Workbook

Sheet Input
B4: ltvtype type | C4: Flexible
B5: Initial Hse price | C5: 310,000.00
B6: Roll up (R) | C6: =LN(1+4.15%) -> 4.07%
B7: Risk free (r) | C7: =LN(1+0.0175) -> 1.73%
B8: Rental yield (g) | C8: 1.00%
B9: µ | C9: 5.36%
B10: σ | C10: 3.90%
B11: δ | C11: 0.5
B12: prepay_load | C12: 1
I13: MALE - Termination Probabilities | L13: FEMALE - Termination Probabilities | O13: JOINTLIFE - Termination Probabilities | R13: GBM - NNEG | V13: ARMA-EGARCH
B14: Age Index | C14: Age (x) | D14: LTV | E14: Initial Loan | F14: k | G14: Loan Balance | H14: Put Option Price | I14: mortality | J14: morbidity | K14: prepayment | L14: mortality | M14: morbidity | N14: prepayment | O14: mortality | P14: morbidity | Q14: prepayment | R14: GBM-rnMale | S14: GBM-rnFemale | T14: GBM-rnJoint | U14: ArmaEgarchPayoff | V14: ArmaEgarchMale | W14: ArmaEgarchFemale | X14: ArmaEgarchJoint
B15: 55 | C15: 55 | D15: =IF(ltvtype="Flexible",VLOOKUP(B15,ltvtable,2,FALSE),IF(ltvtype="Flexible Plus",VLOOKUP(B15,ltvtable,3,FALSE),IF(ltvtype="Flexible Max",VLOOKUP(B15,ltvtable,4,FALSE),IF(ltvtype="Flexible Max Plus",VLOOKUP(B15,ltvtable,5,FALSE),"Error")))) -> 11.50% | E15: =IniHsePrice*D15 -> 35,650.00 | F15: =C15-B15 -> 0 | G15: =E15*EXP(rollup*(F15+0.5+delta)) -> 37,129.48 | H15: =gbmNNEG(IniHsePrice,E15,riskfree,rollup,rentalyield,sigma,(F15+0.5+delta)) -> 0 | I15: =IF($B15=55,INDEX(mort_male_k_q55,$F15+1),IF($B15=60,INDEX(mort_male_k_q60,$F15+1),IF($B15=65,INDEX(mort_male_k_q65,$F15+1),IF($B15=70,INDEX(mort_male_k_q70,$F15+1),IF($B15=80,INDEX(mort_male_k_q80,$F15+1),IF($B15=85,INDEX(mort_male_k_q85,$F15+1),IF($B15=90,INDEX(mort_male_k_q90,$F15+1),IF($B15=95,INDEX(mort_male_k_q95,$F15+1),IF($B15=75,INDEX(mort_male_k_q75,$F15+1),"Error"))))))))) -> 0.56% | J15: =IF($B15=55,INDEX(morb_male_k_q55,$F15+1),IF($B15=60,INDEX(morb_male_k_q60,$F15+1),IF($B15=65,INDEX(morb_male_k_q65,$F15+1),IF($B15=70,INDEX(morb_male_k_q70,$F15+1),IF($B15=80,INDEX(morb_male_k_q80,$F15+1),IF($B15=85,INDEX(morb_male_k_q85,$F15+1),IF($B15=90,INDEX(morb_male_k_q90,$F15+1),IF($B15=95,INDEX(morb_male_k_q95,$F15+1),IF($B15=75,INDEX(morb_male_k_q75,$F15+1),"Error"))))))))) -> 0.60% | K15: =IF($B15=55,INDEX(prepay_male_k_q55,$F15+1),IF($B15=60,INDEX(prepay_male_k_q60,$F15+1),IF($B15=65,INDEX(prepay_male_k_q65,$F15+1),IF($B15=70,INDEX(prepay_male_k_q70,$F15+1),IF($B15=80,INDEX(prepay_male_k_q80,$F15+1),IF($B15=85,INDEX(prepay_male_k_q85,$F15+1),IF($B15=90,INDEX(prepay_male_k_q90,$F15+1),IF($B15=95,INDEX(prepay_male_k_q95,$F15+1),IF($B15=75,INDEX(prepay_male_k_q75,$F15+1),"Error")))))))))*prepayloading -> 0.39% | L15: =IF($B15=55,INDEX(mort_female_k_q55,$F15+1),IF($B15=60,INDEX(mort_female_k_q60,$F15+1),IF($B15=65,INDEX(mort_female_k_q65,$F15+1),IF($B15=70,INDEX(mort_female_k_q70,$F15+1),IF($B15=80,INDEX(mort_female_k_q80,$F15+1),IF($B15=85,INDEX(mort_female_k_q85,$F15+1),IF($B15=90,INDEX(mort_female_k_q90,$F15+1),IF($B15=95,INDEX(mort_female_k_q95,$F15+1),IF($B15=75,INDEX(mort_female_k_q75,$F15+1),"Error"))))))))) -> 0.37% | M15: =IF($B15=55,INDEX(morb_female_k_q55,$F15+1),IF($B15=60,INDEX(morb_female_k_q60,$F15+1),IF($B15=65,INDEX(morb_female_k_q65,$F15+1),IF($B15=70,INDEX(morb_female_k_q70,$F15+1),IF($B15=80,INDEX(morb_female_k_q80,$F15+1),IF($B15=85,INDEX(morb_female_k_q85,$F15+1),IF($B15=90,INDEX(morb_female_k_q90,$F15+1),IF($B15=95,INDEX(morb_female_k_q95,$F15+1),IF($B15=75,INDEX(morb_female_k_q75,$F15+1),"Error"))))))))) -> 0.40% | N15: =IF($B15=55,INDEX(prepay_female_k_q55,$F15+1),IF($B15=60,INDEX(prepay_female_k_q60,$F15+1),IF($B15=65,INDEX(prepay_female_k_q65,$F15+1),IF($B15=70,INDEX(prepay_female_k_q70,$F15+1),IF($B15=80,INDEX(prepay_female_k_q80,$F15+1),IF($B15=85,INDEX(prepay_female_k_q85,$F15+1),IF($B15=90,INDEX(prepay_female_k_q90,$F15+1),IF($B15=95,INDEX(prepay_female_k_q95,$F15+1),IF($B15=75,INDEX(prepay_female_k_q75,$F15+1),"Error")))))))))*prepayloading -> 0.37% | O15: =IF($B15=55,INDEX(mort_joint_k_q55,$F15+1),IF($B15=60,INDEX(mort_joint_k_q60,$F15+1),IF($B15=65,INDEX(mort_joint_k_q65,$F15+1),IF($B15=70,INDEX(mort_joint_k_q70,$F15+1),IF($B15=80,INDEX(mort_joint_k_q80,$F15+1),IF($B15=85,INDEX(mort_joint_k_q85,$F15+1),IF($B15=90,INDEX(mort_joint_k_q90,$F15+1),IF($B15=95,INDEX(mort_joint_k_q95,$F15+1),IF($B15=75,INDEX(mort_joint_k_q75,$F15+1),"Error"))))))))) -> 0.93% | P15: =IF($B15=55,INDEX(morb_joint_k_q55,$F15+1),IF($B15=60,INDEX(morb_joint_k_q60,$F15+1),IF($B15=65,INDEX(morb_joint_k_q65,$F15+1),IF($B15=70,INDEX(morb_joint_k_q70,$F15+1),IF($B15=80,INDEX(morb_joint_k_q80,$F15+1),IF($B15=85,INDEX(morb_joint_k_q85,$F15+1),IF($B15=90,INDEX(morb_joint_k_q90,$F15+1),IF($B15=95,INDEX(morb_joint_k_q95,$F15+1),IF($B15=75,INDEX(morb_joint_k_q75,$F15+1),"Error"))))))))) -> 0.00% | Q15: =IF($B15=55,INDEX(prepay_joint_k_q55,$F15+1),IF($B15=60,INDEX(prepay_joint_k_q60,$F15+1),IF($B15=65,INDEX(prepay_joint_k_q65,$F15+1),IF($B15=70,INDEX(prepay_joint_k_q70,$F15+1),IF($B15=80,INDEX(prepay_joint_k_q80,$F15+1),IF($B15=85,INDEX(prepay_joint_k_q85,$F15+1),IF($B15=90,INDEX(prepay_joint_k_q90,$F15+1),IF($B15=95,INDEX(prepay_joint_k_q95,$F15+1),IF($B15=75,INDEX(prepay_joint_k_q75,$F15+1),"Error")))))))))*prepayloading -> 0.00% | R15: =SUM(I15:K15)*H15 -> 0 | S15: =SUM(L15:N15)*H15 -> 0 | T15: =SUM(O15:Q15)*H15 -> 0 | U15: =ArmaEgarchPx(G15,INDEX(DiscFactor,F15+1),(F15+1)) -> 0 | V15: =SUM(I15:K15)*U15 -> 0 | W15: =SUM(L15:N15)*U15 -> 0 | X15: =SUM(O15:Q15)*U15 -> 0
B16: 55 | C16: =C15+1 -> 56 | D16: 11.50% | E16: 35,650.00 | F16: =C16-B16 -> 1 | G16: 38,670.35 | H16: 0 | I16: 0.61% | J16: 0.64% | K16: 0.44% | L16: 0.41% | M16: 0.45% | N16: 0.42% | O16: 1.02% | P16: 0.01% | Q16: 0.01% | R16: =SUM(I16:K16)*H16 -> 0 | S16: =SUM(L16:N16)*H16 -> 0 | T16: =SUM(O16:Q16)*H16 -> 0 | U16: 0 | V16: =SUM(I16:K16)*U16 -> 0 | W16: =SUM(L16:N16)*U16 -> 0 | X16: =SUM(O16:Q16)*U16 -> 0
B17: 55 | C17: =C16+1 -> 57 | D17: 11.50% | E17: 35,650.00 | F17: 2 | G17: 40,275.17 | H17: 0.00 | I17: 0.61% | J17: 0.64% | K17: 0.43% | L17: 0.40% | M17: 0.43% | N17: 0.41% | O17: 1.00% | P17: 0.01% | Q17: 0.01% | R17: 0.000 | S17: 0.000 | T17: 0.000 | U17: 0 | V17: 0 | W17: 0 | X17: 0
B18: 55 | C18: 58 | D18: 11.50% | E18: 35,650.00 | F18: 3 | G18: 41,946.59 | H18: 0.00 | I18: 0.67% | J18: 0.70% | K18: 0.52% | L18: 0.49% | M18: 0.53% | N18: 0.50% | O18: 1.15% | P18: 0.02% | Q18: 0.02% | R18: 0.000 | S18: 0.000 | T18: 0.000 | U18: 0 | V18: 0 | W18: 0 | X18: 0
B19: 55 | C19: 59 | D19: 11.50% | E19: 35,650.00 | F19: 4 | G19: 43,687.37 | H19: 0.00 | I19: 0.73% | J19: 0.77% | K19: 0.62% | L19: 0.57% | M19: 0.62% | N19: 0.58% | O19: 1.30% | P19: 0.04% | Q19: 0.03% | R19: 0.000 | S19: 0.000 | T19: 0.000 | U19: 0 | V19: 0 | W19: 0 | X19: 0
B20: 55 | C20: 60 | D20: 11.50% | E20: 35,650.00 | F20: 5 | G20: 45,500.40 | H20: 0.00 | I20: 0.83% | J20: 0.87% | K20: 0.62% | L20: 0.58% | M20: 0.62% | N20: 0.58% | O20: 1.40% | P20: 0.05% | Q20: 0.04% | R20: 0.000 | S20: 0.000 | T20: 0.000 | U20: 0 | V20: 0 | W20: 0 | X20: 0
B21: 55 | C21: 61 | D21: 11.50% | E21: 35,650.00 | F21: 6 | G21: 47,388.66 | H21: 0.00 | I21: 0.93% | J21: 0.97% | K21: 0.64% | L21: 0.59% | M21: 0.64% | N21: 0.60% | O21: 1.51% | P21: 0.06% | Q21: 0.06% | R21: 0.000 | S21: 0.000 | T21: 0.000 | U21: 0 | V21: 0 | W21: 0 | X21: 0
B22: 55 | C22: 62 | D22: 11.50% | E22: 35,650.00 | F22: 7 | G22: 49,355.29 | H22: 0.00 | I22: 0.97% | J22: 1.02% | K22: 0.70% | L22: 0.66% | M22: 0.71% | N22: 0.66% | O22: 1.62% | P22: 0.08% | Q22: 0.07% | R22: 0.000 | S22: 0.000 | T22: 0.000 | U22: 0 | V22: 0 | W22: 0 | X22: 0
B23: 55 | C23: 63 | D23: 11.50% | E23: 35,650.00 | F23: 8 | G23: 51,403.54 | H23: 0.00 | I23: 1.05% | J23: 1.10% | K23: 0.79% | L23: 0.74% | M23: 0.79% | N23: 0.74% | O23: 1.78% | P23: 0.11% | Q23: 0.10% | R23: 0.000 | S23: 0.000 | T23: 0.000 | U23: 0 | V23: 0 | W23: 0 | X23: 0
B24: 55 | C24: 64 | D24: 11.50% | E24: 35,650.00 | F24: 9 | G24: 53,536.78 | H24: 0.00 | I24: 1.13% | J24: 1.18% | K24: 0.84% | L24: 0.79% | M24: 0.85% | N24: 0.79% | O24: 1.91% | P24: 0.14% | Q24: 0.12% | R24: 0.000 | S24: 0.000 | T24: 0.000 | U24: 0 | V24: 0 | W24: 0 | X24: 0
B25: 55 | C25: 65 | D25: 11.50% | E25: 35,650.00 | F25: 10 | G25: 55,758.56 | H25: 0.00 | I25: 1.16% | J25: 1.21% | K25: 0.90% | L25: 0.85% | M25: 0.91% | N25: 0.85% | O25: 2.00% | P25: 0.16% | Q25: 0.15% | R25: 0.000 | S25: 0.000 | T25: 0.000 | U25: 0 | V25: 0 | W25: 0 | X25: 0
B26: 55 | C26: 66 | D26: 11.50% | E26: 35,650.00 | F26: 11 | G26: 58,072.54 | H26: 0.00 | I26: 1.34% | J26: 1.39% | K26: 0.99% | L26: 0.94% | M26: 1.00% | N26: 0.94% | O26: 2.26% | P26: 0.21% | Q26: 0.19% | R26: 0.000 | S26: 0.000 | T26: 0.000 | U26: 0 | V26: 0 | W26: 0 | X26: 0
B27: 55 | C27: 67 | D27: 11.50% | E27: 35,650.00 | F27: 12 | G27: 60,482.55 | H27: 0.00 | I27: 1.46% | J27: 1.51% | K27: 1.08% | L27: 1.01% | M27: 1.08% | N27: 1.02% | O27: 2.46% | P27: 0.26% | Q27: 0.23% | R27: 0.000 | S27: 0.000 | T27: 0.000 | U27: 0 | V27: 0 | W27: 0 | X27: 0
B28: 55 | C28: 68 | D28: 11.50% | E28: 35,650.00 | F28: 13 | G28: 62,992.58 | H28: 0.00 | I28: 1.39% | J28: 1.43% | K28: 1.09% | L28: 1.02% | M28: 1.09% | N28: 1.03% | O28: 2.40% | P28: 0.29% | Q28: 0.26% | R28: 0.000 | S28: 0.000 | T28: 0.000 | U28: 0 | V28: 0 | W28: 0 | X28: 0
B29: 55 | C29: 69 | D29: 11.50% | E29: 35,650.00 | F29: 14 | G29: 65,606.77 | H29: 0.00 | I29: 1.63% | J29: 1.68% | K29: 1.25% | L29: 1.19% | M29: 1.26% | N29: 1.19% | O29: 2.80% | P29: 0.38% | Q29: 0.33% | R29: 0.000 | S29: 0.000 | T29: 0.000 | U29: 0 | V29: 0 | W29: 0 | X29: 0
B30: 55 | C30: 70 | D30: 11.50% | E30: 35,650.00 | F30: 15 | G30: 68,329.45 | H30: 0.00 | I30: 1.78% | J30: 1.83% | K30: 1.35% | L30: 1.28% | M30: 1.36% | N30: 1.28% | O30: 3.03% | P30: 0.46% | Q30: 0.40% | R30: 0.000 | S30: 0.000 | T30: 0.000 | U30: 0 | V30: 0 | W30: 0 | X30: 0
B31: 55 | C31: 71 | D31: 11.50% | E31: 35,650.00 | F31: 16 | G31: 71,165.12 | H31: 0.00 | I31: 1.89% | J31: 1.97% | K31: 1.42% | L31: 1.33% | M31: 1.60% | N31: 1.33% | O31: 3.19% | P31: 0.62% | Q31: 0.47% | R31: 0.000 | S31: 0.000 | T31: 0.000 | U31: 0 | V31: 0 | W31: 0 | X31: 0
B32: 55 | C32: 72 | D32: 11.50% | E32: 35,650.00 | F32: 17 | G32: 74,118.47 | H32: 0.00 | I32: 2.09% | J32: 2.17% | K32: 1.59% | L32: 1.49% | M32: 1.78% | N32: 1.49% | O32: 3.55% | P32: 0.76% | Q32: 0.58% | R32: 0.000 | S32: 0.000 | T32: 0.000 | U32: 0 | V32: 0 | W32: 0 | X32: 0
B33: 55 | C33: 73 | D33: 11.50% | E33: 35,650.00 | F33: 18 | G33: 77,194.39 | H33: 0.00 | I33: 2.15% | J33: 2.22% | K33: 1.77% | L33: 1.66% | M33: 1.97% | N33: 1.66% | O33: 3.78% | P33: 0.89% | Q33: 0.69% | R33: 0.000 | S33: 0.000 | T33: 0.000 | U33: 0 | V33: 0 | W33: 0 | X33: 0
B34: 55 | C34: 74 | D34: 11.50% | E34: 35,650.00 | F34: 19 | G34: 80,397.96 | H34: 0.00 | I34: 2.45% | J34: 2.51% | K34: 1.84% | L34: 1.73% | M34: 2.04% | N34: 1.72% | O34: 4.14% | P34: 1.06% | Q34: 0.82% | R34: 0.000 | S34: 0.000 | T34: 0.000 | U34: 0 | V34: 0 | W34: 0 | X34: 0
B35: 55 | C35: 75 | D35: 11.50% | E35: 35,650.00 | F35: 20 | G35: 83,734.47 | H35: 0.00 | I35: 2.63% | J35: 2.68% | K35: 1.91% | L35: 1.81% | M35: 2.12% | N35: 1.80% | O35: 4.39% | P35: 1.23% | Q35: 0.95% | R35: 0.000 | S35: 0.000 | T35: 0.000 | U35: 0 | V35: 0 | W35: 0 | X35: 0
B36: 55 | C36: =C35+1 -> 76 | D36: 11.50% | E36: 35,650.00 | F36: 21 | G36: 87,209.45 | H36: 0.00 | I36: 2.75% | J36: 2.78% | K36: 2.22% | L36: 2.12% | M36: 2.46% | N36: 2.10% | O36: 4.81% | P36: 1.47% | Q36: 1.14% | R36: 0.000 | S36: 0.000 | T36: 0.000 | U36: 0 | V36: 0 | W36: 0 | X36: 0
B37: 55 | C37: 77 | D37: 11.50% | E37: 35,650.00 | F37: 22 | G37: 90,828.65 | H37: 0.00 | I37: 2.95% | J37: 2.96% | K37: 2.33% | L37: 2.24% | M37: 2.57% | N37: 2.20% | O37: 5.13% | P37: 1.69% | Q37: 1.32% | R37: 0.000 | S37: 0.000 | T37: 0.000 | U37: 0 | V37: 0 | W37: 0 | X37: 0
B38: 55 | C38: 78 | D38: 11.50% | E38: 35,650.00 | F38: 23 | G38: 94,598.04 | H38: 0.00 | I38: 3.05% | J38: 3.03% | K38: 2.60% | L38: 2.51% | M38: 2.85% | N38: 2.46% | O38: 5.48% | P38: 1.96% | Q38: 1.53% | R38: 0.000 | S38: 0.000 | T38: 0.000 | U38: 0 | V38: 0 | W38: 0 | X38: 0
B39: 55 | C39: 79 | D39: 11.50% | E39: 35,650.00 | F39: 24 | G39: 98,523.85 | H39: 0.00 | I39: 3.42% | J39: 3.37% | K39: 2.68% | L39: 2.61% | M39: 2.92% | N39: 2.55% | O39: 5.94% | P39: 2.25% | Q39: 1.78% | R39: 0.000 | S39: 0.000 | T39: 0.000 | U39: 0 | V39: 0 | W39: 0 | X39: 0
B40: 55 | C40: 80 | D40: 11.50% | E40: 35,650.00 | F40: 25 | G40: 102,612.59 | H40: 0.00 | I40: 3.42% | J40: 3.34% | K40: 3.00% | L40: 2.95% | M40: 3.25% | N40: 2.86% | O40: 6.27% | P40: 2.55% | Q40: 2.02% | R40: 0.000 | S40: 0.000 | T40: 0.000 | U40: 0 | V40: 0 | W40: 0 | X40: 0
B41: 55 | C41: 81 | D41: 11.50% | E41: 35,650.00 | F41: 26 | G41: 106,871.02 | H41: 0.00 | I41: 3.60% | J41: 3.52% | K41: 3.15% | L41: 3.08% | M41: 3.39% | N41: 2.97% | O41: 6.56% | P41: 2.90% | Q41: 2.25% | R41: 0.000 | S41: 0.000 | T41: 0.000 | U41: 0 | V41: 0 | W41: 0 | X41: 0
B42: 55 | C42: 82 | D42: 11.50% | E42: 35,650.00 | F42: 27 | G42: 111,306.16 | H42: 0.00 | I42: 3.80% | J42: 3.66% | K42: 3.46% | L42: 3.43% | M42: 3.69% | N42: 3.28% | O42: 7.10% | P42: 3.28% | Q42: 2.57% | R42: 0.000 | S42: 0.000 | T42: 0.000 | U42: 0 | V42: 0 | W42: 0 | X42: 0
B43: 55 | C43: 83 | D43: 11.50% | E43: 35,650.00 | F43: 28 | G43: 115,925.37 | H43: 0.00 | I43: 3.86% | J43: 3.66% | K43: 3.66% | L43: 3.68% | M43: 3.86% | N43: 3.49% | O43: 7.40% | P43: 3.55% | Q43: 2.82% | R43: 0.000 | S43: 0.000 | T43: 0.000 | U43: 0 | V43: 0 | W43: 0 | X43: 0
B44: 55 | C44: 84 | D44: 11.50% | E44: 35,650.00 | F44: 29 | G44: 120,736.27 | H44: 0.00 | I44: 4.09% | J44: 3.79% | K44: 3.83% | L44: 3.92% | M44: 4.00% | N44: 3.68% | O44: 7.85% | P44: 3.86% | Q44: 3.11% | R44: 0.000 | S44: 0.000 | T44: 0.000 | U44: 0 | V44: 0 | W44: 0 | X44: 0
B45: 55 | C45: 85 | D45: 11.50% | E45: 35,650.00 | F45: 30 | G45: 125,746.83 | H45: 0.00 | I45: 4.27% | J45: 3.85% | K45: 4.00% | L45: 4.18% | M45: 4.13% | N45: 3.88% | O45: 8.27% | P45: 4.12% | Q45: 3.39% | R45: 0.000 | S45: 0.000 | T45: 0.000 | U45: 0 | V45: 0 | W45: 0 | X45: 0
B46: 55 | C46: 86 | D46: 11.50% | E46: 35,650.00 | F46: 31 | G46: 130,965.32 | H46: 0.00 | I46: 4.22% | J46: 3.71% | K46: 4.12% | L46: 4.41% | M46: 4.20% | N46: 4.03% | O46: 8.44% | P46: 4.23% | Q46: 3.55% | R46: 0.000 | S46: 0.000 | T46: 0.000 | U46: 0 | V46: 0 | W46: 0 | X46: 0
B47: 55 | C47: 87 | D47: 11.50% | E47: 35,650.00 | F47: 32 | G47: 136,400.38 | H47: 0.01 | I47: 3.92% | J47: 3.38% | K47: 3.97% | L47: 4.34% | M47: 3.98% | N47: 3.93% | O47: 8.09% | P47: 4.03% | Q47: 3.45% | R47: 0.001 | S47: 0.001 | T47: 0.001 | U47: 0 | V47: 0 | W47: 0 | X47: 0
B48: 55 | C48: =C47+1 -> 88 | D48: 11.50% | E48: 35,650.00 | F48: 33 | G48: 142,061.00 | H48: 0.02 | I48: 4.07% | J48: 3.36% | K48: 4.03% | L48: 4.55% | M48: 3.97% | N48: 4.03% | O48: 8.43% | P48: 4.12% | Q48: 3.61% | R48: 0.002 | S48: 0.002 | T48: 0.003 | U48: 0 | V48: 0 | W48: 0 | X48: 0
B49: 55 | C49: 89 | D49: 11.50% | E49: 35,650.00 | F49: 34 | G49: 147,956.53 | H49: 0.05 | I49: 3.77% | J49: 3.02% | K49: 3.88% | L49: 4.53% | M49: 3.75% | N49: 3.95% | O49: 8.13% | P49: 3.88% | Q49: 3.48% | R49: 0.005 | S49: 0.006 | T49: 0.008 | U49: 0 | V49: 0 | W49: 0 | X49: 0
B50: 55 | C50: 90 | D50: 11.50% | E50: 35,650.00 | F50: 35 | G50: 154,096.72 | H50: 0.13 | I50: 3.53% | J50: 2.72% | K50: 3.70% | L50: 4.50% | M50: 3.49% | N50: 3.83% | O50: 7.87% | P50: 3.63% | Q50: 3.34% | R50: 0.013 | S50: 0.015 | T50: 0.019 | U50: 0 | V50: 0 | W50: 0 | X50: 0
B51: 55 | C51: 91 | D51: 11.50% | E51: 35,650.00 | F51: 36 | G51: 160,491.74 | H51: 0.32 | I51: 3.49% | J51: 2.48% | K51: 3.42% | L51: 4.42% | M51: 2.99% | N51: 3.66% | O51: 7.76% | P51: 3.13% | Q51: 3.23% | R51: 0.030 | S51: 0.035 | T51: 0.045 | U51: 0 | V51: 0 | W51: 0 | X51: 0
B52: 55 | C52: =C51+1 -> 92 | D52: 11.50% | E52: 35,650.00 | F52: 37 | G52: 167,152.15 | H52: 0.74 | I52: 2.85% | J52: 1.97% | K52: 2.96% | L52: 3.97% | M52: 2.55% | N52: 3.22% | O52: 6.71% | P52: 2.63% | Q52: 2.75% | R52: 0.057 | S52: 0.072 | T52: 0.089 | U52: 0 | V52: 0 | W52: 0 | X52: 0
B53: 55 | C53: 93 | D53: 11.50% | E53: 35,650.00 | F53: 38 | G53: 174,088.96 | H53: 1.61 | I53: 2.43% | J53: 1.61% | K53: 2.62% | L53: 3.71% | M53: 2.23% | N53: 2.91% | O53: 6.05% | P53: 2.29% | Q53: 2.43% | R53: 0.107 | S53: 0.142 | T53: 0.173 | U53: 0 | V53: 0 | W53: 0 | X53: 0
B54: 55 | C54: 94 | D54: 11.50% | E54: 35,650.00 | F54: 39 | G54: 181,313.65 | H54: 3.32 | I54: 2.13% | J54: 1.32% | K54: 2.20% | L54: 3.31% | M54: 1.84% | N54: 2.51% | O54: 5.37% | P54: 1.96% | Q54: 2.11% | R54: 0.188 | S54: 0.254 | T54: 0.314 | U54: 0 | V54: 0 | W54: 0 | X54: 0
B55: 55 | C55: 95 | D55: 11.50% | E55: 35,650.00 | F55: 40 | G55: 188,838.17 | H55: 6.55 | I55: 1.71% | J55: 1.00% | K55: 1.76% | L55: 2.79% | M55: 1.44% | N55: 2.05% | O55: 4.45% | P55: 1.58% | Q55: 1.72% | R55: 0.293 | S55: 0.412 | T55: 0.507 | U55: 0 | V55: 0 | W55: 0 | X55: 0
B56: 55 | C56: 96 | D56: 11.50% | E56: 35,650.00 | F56: 41 | G56: 196,674.95 | H56: 12.36 | I56: 1.32% | J56: 0.74% | K56: 1.34% | L56: 2.25% | M56: 1.08% | N56: 1.61% | O56: 3.54% | P56: 1.23% | Q56: 1.34% | R56: 0.420 | S56: 0.611 | T56: 0.756 | U56: 0 | V56: 0 | W56: 0 | X56: 0
B57: 55 | C57: 97 | D57: 11.50% | E57: 35,650.00 | F57: 42 | G57: 204,836.96 | H57: 22.40 | I57: 1.00% | J57: 0.52% | K57: 1.01% | L57: 1.82% | M57: 0.80% | N57: 1.26% | O57: 2.80% | P57: 0.95% | Q57: 1.05% | R57: 0.569 | S57: 0.868 | T57: 1.076 | U57: 0 | V57: 0 | W57: 0 | X57: 0
B58: 55 | C58: =C57+1 -> 98 | D58: 11.50% | E58: 35,650.00 | F58: 43 | G58: 213,337.70 | H58: 39.08 | I58: 0.82% | J58: 0.38% | K58: 0.72% | L58: 1.36% | M58: 0.55% | N58: 0.92% | O58: 2.17% | P58: 0.72% | Q58: 0.80% | R58: 0.749 | S58: 1.105 | T58: 1.442 | U58: 0 | V58: 0 | W58: 0 | X58: 0
B59: 55 | C59: 99 | D59: 11.50% | E59: 35,650.00 | F59: 44 | G59: 222,191.21 | H59: 65.81 | I59: 0.57% | J59: 0.24% | K59: 0.52% | L59: 1.08% | M59: 0.39% | N59: 0.69% | O59: 1.64% | P59: 0.54% | Q59: 0.60% | R59: 0.872 | S59: 1.423 | T59: 1.831 | U59: 0 | V59: 0 | W59: 0 | X59: 0
B60: 55 | C60: 100 | D60: 11.50% | E60: 35,650.00 | F60: 45 | G60: 231,412.15 | H60: 107.26 | I60: 0.31% | J60: 0.13% | K60: 0.35% | L60: 0.77% | M60: 0.25% | N60: 0.48% | O60: 1.08% | P60: 0.35% | Q60: 0.39% | R60: 0.847 | S60: 1.616 | T60: 1.961 | U60: 6.78 | V60: 0.05 | W60: 0.10 | X60: 0.12
B61: 60 | C61: 60 | D61: 17.00% | E61: 52,700.00 | F61: 0 | G61: 54,887.05 | H61: 0 | I61: 0.85% | J61: 0.90% | K61: 0.63% | L61: 0.59% | M61: 0.64% | N61: 0.60% | O61: 1.44% | P61: 0.05% | Q61: 0.04% | R61: 0 | S61: 0 | T61: 0 | U61: 0 | V61: 0 | W61: 0 | X61: 0
B62: 60 | C62: =C61+1 -> 61 | D62: 17.00% | E62: 52,700.00 | F62: 1 | G62: 57,164.86 | H62: 0.00 | I62: 0.96% | J62: 1.00% | K62: 0.65% | L62: 0.61% | M62: 0.66% | N62: 0.61% | O62: 1.56% | P62: 0.06% | Q62: 0.06% | R62: 0.000 | S62: 0.000 | T62: 0.000 | U62: 0 | V62: 0 | W62: 0 | X62: 0
B63: 60 | C63: =C62+1 -> 62 | D63: 17.00% | E63: 52,700.00 | F63: 2 | G63: 59,537.20 | H63: 0.00 | I63: 1.01% | J63: 1.05% | K63: 0.72% | L63: 0.67% | M63: 0.73% | N63: 0.68% | O63: 1.67% | P63: 0.08% | Q63: 0.07% | R63: 0.000 | S63: 0.000 | T63: 0.000 | U63: 0 | V63: 0 | W63: 0 | X63: 0
B64: 60 | C64: 63 | D64: 17.00% | E64: 52,700.00 | F64: 3 | G64: 62,008.00 | H64: 0.00 | I64: 1.09% | J64: 1.14% | K64: 0.81% | L64: 0.75% | M64: 0.81% | N64: 0.76% | O64: 1.83% | P64: 0.11% | Q64: 0.10% | R64: 0.000 | S64: 0.000 | T64: 0.000 | U64: 0 | V64: 0 | W64: 0 | X64: 0
B65: 60 | C65: 64 | D65: 17.00% | E65: 52,700.00 | F65: 4 | G65: 64,581.33 | H65: 0.00 | I65: 1.17% | J65: 1.22% | K65: 0.86% | L65: 0.80% | M65: 0.87% | N65: 0.81% | O65: 1.97% | P65: 0.14% | Q65: 0.12% | R65: 0.000 | S65: 0.000 | T65: 0.000 | U65: 0 | V65: 0 | W65: 0 | X65: 0
B66: 60 | C66: 65 | D66: 17.00% | E66: 52,700.00 | F66: 5 | G66: 67,261.46 | H66: 0.00 | I66: 1.20% | J66: 1.25% | K66: 0.92% | L66: 0.87% | M66: 0.93% | N66: 0.87% | O66: 2.06% | P66: 0.16% | Q66: 0.15% | R66: 0.000 | S66: 0.000 | T66: 0.000 | U66: 0 | V66: 0 | W66: 0 | X66: 0
B67: 60 | C67: 66 | D67: 17.00% | E67: 52,700.00 | F67: 6 | G67: 70,052.81 | H67: 0.00 | I67: 1.38% | J67: 1.44% | K67: 1.02% | L67: 0.96% | M67: 1.03% | N67: 0.96% | O67: 2.33% | P67: 0.21% | Q67: 0.19% | R67: 0.000 | S67: 0.000 | T67: 0.000 | U67: 0 | V67: 0 | W67: 0 | X67: 0
B68: 60 | C68: 67 | D68: 17.00% | E68: 52,700.00 | F68: 7 | G68: 72,960.00 | H68: 0.00 | I68: 1.51% | J68: 1.57% | K68: 1.10% | L68: 1.04% | M68: 1.11% | N68: 1.04% | O68: 2.53% | P68: 0.26% | Q68: 0.23% | R68: 0.000 | S68: 0.000 | T68: 0.000 | U68: 0 | V68: 0 | W68: 0 | X68: 0
B69: 60 | C69: 68 | D69: 17.00% | E69: 52,700.00 | F69: 8 | G69: 75,987.84 | H69: 0.00 | I69: 1.43% | J69: 1.48% | K69: 1.11% | L69: 1.05% | M69: 1.12% | N69: 1.06% | O69: 2.46% | P69: 0.29% | Q69: 0.26% | R69: 0.000 | S69: 0.000 | T69: 0.000 | U69: 0 | V69: 0 | W69: 0 | X69: 0
B70: 60 | C70: 69 | D70: 17.00% | E70: 52,700.00 | F70: 9 | G70: 79,141.33 | H70: 0.00 | I70: 1.69% | J70: 1.74% | K70: 1.29% | L70: 1.21% | M70: 1.29% | N70: 1.22% | O70: 2.88% | P70: 0.38% | Q70: 0.33% | R70: 0.000 | S70: 0.000 | T70: 0.000 | U70: 0 | V70: 0 | W70: 0 | X70: 0
B71: 60 | C71: 70 | D71: 17.00% | E71: 52,700.00 | F71: 10 | G71: 82,425.70 | H71: 0.00 | I71: 1.84% | J71: 1.89% | K71: 1.38% | L71: 1.31% | M71: 1.39% | N71: 1.31% | O71: 3.12% | P71: 0.46% | Q71: 0.40% | R71: 0.000 | S71: 0.000 | T71: 0.000 | U71: 0 | V71: 0 | W71: 0 | X71: 0
B72: 60 | C72: 71 | D72: 17.00% | E72: 52,700.00 | F72: 11 | G72: 85,846.36 | H72: 0.00 | I72: 1.95% | J72: 2.04% | K72: 1.46% | L72: 1.36% | M72: 1.64% | N72: 1.36% | O72: 3.29% | P72: 0.62% | Q72: 0.47% | R72: 0.000 | S72: 0.000 | T72: 0.000 | U72: 0 | V72: 0 | W72: 0 | X72: 0
B73: 60 | C73: 72 | D73: 17.00% | E73: 52,700.00 | F73: 12 | G73: 89,408.99 | H73: 0.00 | I73: 2.16% | J73: 2.24% | K73: 1.63% | L73: 1.53% | M73: 1.83% | N73: 1.52% | O73: 3.65% | P73: 0.76% | Q73: 0.58% | R73: 0.000 | S73: 0.000 | T73: 0.000 | U73: 0 | V73: 0 | W73: 0 | X73: 0
B74: 60 | C74: 73 | D74: 17.00% | E74: 52,700.00 | F74: 13 | G74: 93,119.46 | H74: 0.00 | I74: 2.22% | J74: 2.30% | K74: 1.81% | L74: 1.70% | M74: 2.02% | N74: 1.70% | O74: 3.89% | P74: 0.89% | Q74: 0.69% | R74: 0.000 | S74: 0.000 | T74: 0.000 | U74: 0 | V74: 0 | W74: 0 | X74: 0
B75: 60 | C75: 74 | D75: 17.00% | E75: 52,700.00 | F75: 14 | G75: 96,983.92 | H75: 0.00 | I75: 2.53% | J75: 2.60% | K75: 1.88% | L75: 1.77% | M75: 2.10% | N75: 1.77% | O75: 4.26% | P75: 1.06% | Q75: 0.82% | R75: 0.000 | S75: 0.000 | T75: 0.000 | U75: 0 | V75: 0 | W75: 0 | X75: 0
B76: 60 | C76: 75 | D76: 17.00% | E76: 52,700.00 | F76: 15 | G76: 101,008.75 | H76: 0.00 | I76: 2.72% | J76: 2.77% | K76: 1.96% | L76: 1.85% | M76: 2.18% | N76: 1.84% | O76: 4.52% | P76: 1.23% | Q76: 0.95% | R76: 0.000 | S76: 0.000 | T76: 0.000 | U76: 0 | V76: 0 | W76: 0 | X76: 0
B77: 60 | C77: 76 | D77: 17.00% | E77: 52,700.00 | F77: 16 | G77: 105,200.61 | H77: 0.00 | I77: 2.84% | J77: 2.88% | K77: 2.28% | L77: 2.17% | M77: 2.52% | N77: 2.14% | O77: 4.95% | P77: 1.47% | Q77: 1.14% | R77: 0.000 | S77: 0.000 | T77: 0.000 | U77: 0 | V77: 0 | W77: 0 | X77: 0
B78: 60 | C78: 77 | D78: 17.00% | E78: 52,700.00 | F78: 17 | G78: 109,566.44 | H78: 0.00 | I78: 3.05% | J78: 3.07% | K78: 2.39% | L78: 2.29% | M78: 2.63% | N78: 2.26% | O78: 5.27% | P78: 1.69% | Q78: 1.32% | R78: 0.000 | S78: 0.000 | T78: 0.000 | U78: 0 | V78: 0 | W78: 0 | X78: 0
B79: 60 | C79: 78 | D79: =IF(ltvtype="Flexible",VLOOKUP(B79,ltvtable,2,FALSE),IF(ltvtype="Flexible Plus",VLOOKUP(B79,ltvtable,3,FALSE),IF(ltvtype="Flexible Max",VLOOKUP(B79,ltvtable,4,FALSE),IF(ltvtype="Flexible Max Plus",VLOOKUP(B79,ltvtable,5,FALSE),"Error")))) -> 17.00% | E79: =IniHsePrice*D79 -> 52,700.00 | F79: 18 | G79: =E79*EXP(rollup*(F79+0.5+delta)) -> 114,113.45 | H79: =gbmNNEG(IniHsePrice,E79,riskfree,rollup,rentalyield,sigma,(F79+0.5+delta)) -> 0.00 | I79: =IF($B79=55,INDEX(mort_male_k_q55,$F79+1),IF($B79=60,INDEX(mort_male_k_q60,$F79+1),IF($B79=65,INDEX(mort_male_k_q65,$F79+1),IF($B79=70,INDEX(mort_male_k_q70,$F79+1),IF($B79=80,INDEX(mort_male_k_q80,$F79+1),IF($B79=85,INDEX(mort_male_k_q85,$F79+1),IF($B79=90,INDEX(mort_male_k_q90,$F79+1),IF($B79=95,INDEX(mort_male_k_q95,$F79+1),IF($B79=75,INDEX(mort_male_k_q75,$F79+1),"Error"))))))))) -> 3.15% | J79: =IF($B79=55,INDEX(morb_male_k_q55,$F79+1),IF($B79=60,INDEX(morb_male_k_q60,$F79+1),IF($B79=65,INDEX(morb_male_k_q65,$F79+1),IF($B79=70,INDEX(morb_male_k_q70,$F79+1),IF($B79=80,INDEX(morb_male_k_q80,$F79+1),IF($B79=85,INDEX(morb_male_k_q85,$F79+1),IF($B79=90,INDEX(morb_male_k_q90,$F79+1),IF($B79=95,INDEX(morb_male_k_q95,$F79+1),IF($B79=75,INDEX(morb_male_k_q75,$F79+1),"Error"))))))))) -> 3.14% | K79: =IF($B79=55,INDEX(prepay_male_k_q55,$F79+1),IF($B79=60,INDEX(prepay_male_k_q60,$F79+1),IF($B79=65,INDEX(prepay_male_k_q65,$F79+1),IF($B79=70,INDEX(prepay_male_k_q70,$F79+1),IF($B79=80,INDEX(prepay_male_k_q80,$F79+1),IF($B79=85,INDEX(prepay_male_k_q85,$F79+1),IF($B79=90,INDEX(prepay_male_k_q90,$F79+1),IF($B79=95,INDEX(prepay_male_k_q95,$F79+1),IF($B79=75,INDEX(prepay_male_k_q75,$F79+1),"Error")))))))))*prepayloading -> 2.66% | L79: =IF($B79=55,INDEX(mort_female_k_q55,$F79+1),IF($B79=60,INDEX(mort_female_k_q60,$F79+1),IF($B79=65,INDEX(mort_female_k_q65,$F79+1),IF($B79=70,INDEX(mort_female_k_q70,$F79+1),IF($B79=80,INDEX(mort_female_k_q80,$F79+1),IF($B79=85,INDEX(mort_female_k_q85,$F79+1),IF($B79=90,INDEX(mort_female_k_q90,$F79+1),IF($B79=95,INDEX(mort_female_k_q95,$F79+1),IF($B79=75,INDEX(mort_female_k_q75,$F79+1),"Error"))))))))) -> 2.57% | M79: =IF($B79=55,INDEX(morb_female_k_q55,$F79+1),IF($B79=60,INDEX(morb_female_k_q60,$F79+1),IF($B79=65,INDEX(morb_female_k_q65,$F79+1),IF($B79=70,INDEX(morb_female_k_q70,$F79+1),IF($B79=80,INDEX(morb_female_k_q80,$F79+1),IF($B79=85,INDEX(morb_female_k_q85,$F79+1),IF($B79=90,INDEX(morb_female_k_q90,$F79+1),IF($B79=95,INDEX(morb_female_k_q95,$F79+1),IF($B79=75,INDEX(morb_female_k_q75,$F79+1),"Error"))))))))) -> 2.92% | N79: =IF($B79=55,INDEX(prepay_female_k_q55,$F79+1),IF($B79=60,INDEX(prepay_female_k_q60,$F79+1),IF($B79=65,INDEX(prepay_female_k_q65,$F79+1),IF($B79=70,INDEX(prepay_female_k_q70,$F79+1),IF($B79=80,INDEX(prepay_female_k_q80,$F79+1),IF($B79=85,INDEX(prepay_female_k_q85,$F79+1),IF($B79=90,INDEX(prepay_female_k_q90,$F79+1),IF($B79=95,INDEX(prepay_female_k_q95,$F79+1),IF($B79=75,INDEX(prepay_female_k_q75,$F79+1),"Error")))))))))*prepayloading -> 2.52% | O79: =IF($B79=55,INDEX(mort_joint_k_q55,$F79+1),IF($B79=60,INDEX(mort_joint_k_q60,$F79+1),IF($B79=65,INDEX(mort_joint_k_q65,$F79+1),IF($B79=70,INDEX(mort_joint_k_q70,$F79+1),IF($B79=80,INDEX(mort_joint_k_q80,$F79+1),IF($B79=85,INDEX(mort_joint_k_q85,$F79+1),IF($B79=90,INDEX(mort_joint_k_q90,$F79+1),IF($B79=95,INDEX(mort_joint_k_q95,$F79+1),IF($B79=75,INDEX(mort_joint_k_q75,$F79+1),"Error"))))))))) -> 5.63% | P79: =IF($B79=55,INDEX(morb_joint_k_q55,$F79+1),IF($B79=60,INDEX(morb_joint_k_q60,$F79+1),IF($B79=65,INDEX(morb_joint_k_q65,$F79+1),IF($B79=70,INDEX(morb_joint_k_q70,$F79+1),IF($B79=80,INDEX(morb_joint_k_q80,$F79+1),IF($B79=85,INDEX(morb_joint_k_q85,$F79+1),IF($B79=90,INDEX(morb_joint_k_q90,$F79+1),IF($B79=95,INDEX(morb_joint_k_q95,$F79+1),IF($B79=75,INDEX(morb_joint_k_q75,$F79+1),"Error"))))))))) -> 1.96% | Q79: =IF($B79=55,INDEX(prepay_joint_k_q55,$F79+1),IF($B79=60,INDEX(prepay_joint_k_q60,$F79+1),IF($B79=65,INDEX(prepay_joint_k_q65,$F79+1),IF($B79=70,INDEX(prepay_joint_k_q70,$F79+1),IF($B79=80,INDEX(prepay_joint_k_q80,$F79+1),IF($B79=85,INDEX(prepay_joint_k_q85,$F79+1),IF($B79=90,INDEX(prepay_joint_k_q90,$F79+1),IF($B79=95,INDEX(prepay_joint_k_q95,$F79+1),IF($B79=75,INDEX(prepay_joint_k_q75,$F79+1),"Error")))))))))*prepayloading -> 1.54% | R79: 0.000 | S79: 0.000 | T79: 0.000 | U79: =ArmaEgarchPx(G79,INDEX(DiscFactor,F79+1),(F79+1)) -> 0 | V79: 0 | W79: 0 | X79: 0
B80: 60 | C80: 79 | D80: 17.00% | E80: 52,700.00 | F80: =C80-B80 -> 19 | G80: 118,849.16 | H80: 0.00 | I80: 3.54% | J80: 3.48% | K80: 2.75% | L80: 2.67% | M80: 2.99% | N80: 2.61% | O80: 6.11% | P80: 2.25% | Q80: 1.78% | R80: =SUM(I80:K80)*H80 -> 0.000 | S80: =SUM(L80:N80)*H80 -> 0.000 | T80: =SUM(O80:Q80)*H80 -> 0.000 | U80: 0 | V80: =SUM(I80:K80)*U80 -> 0 | W80: =SUM(L80:N80)*U80 -> 0 | X80: =SUM(O80:Q80)*U80 -> 0
B81: 60 | C81: 80 | D81: 17.00% | E81: 52,700.00 | F81: 20 | G81: 123,781.40 | H81: 0.00 | I81: 3.53% | J81: 3.45% | K81: 3.07% | L81: 3.01% | M81: 3.33% | N81: 2.92% | O81: 6.44% | P81: 2.55% | Q81: 2.02% | R81: 0.000 | S81: 0.000 | T81: 0.000 | U81: 0 | V81: 0 | W81: 0 | X81: 0
B82: 60 | C82: 81 | D82: 17.00% | E82: 52,700.00 | F82: 21 | G82: 128,918.32 | H82: 0.00 | I82: 3.72% | J82: 3.65% | K82: 3.23% | L82: 3.15% | M82: 3.47% | N82: 3.04% | O82: 6.74% | P82: 2.90% | Q82: 2.25% | R82: 0.000 | S82: 0.000 | T82: 0.000 | U82: 0 | V82: 0 | W82: 0 | X82: 0
B83: 60 | C83: 82 | D83: 17.00% | E83: 52,700.00 | F83: 22 | G83: 134,268.43 | H83: 0.00 | I83: 3.93% | J83: 3.79% | K83: 3.55% | L83: 3.50% | M83: 3.78% | N83: 3.35% | O83: 7.29% | P83: 3.28% | Q83: 2.58% | R83: 0.000 | S83: 0.000 | T83: 0.000 | U83: 0 | V83: 0 | W83: 0 | X83: 0
B84: 60 | C84: 83 | D84: 17.00% | E84: 52,700.00 | F84: 23 | G84: 139,840.57 | H84: 0.00 | I84: 3.99% | J84: 3.79% | K84: 3.75% | L84: 3.76% | M84: 3.96% | N84: 3.57% | O84: 7.60% | P84: 3.55% | Q84: 2.82% | R84: 0.000 | S84: 0.000 | T84: 0.000 | U84: 0 | V84: 0 | W84: 0 | X84: 0
B85: 60 | C85: 84 | D85: 17.00% | E85: 52,700.00 | F85: 24 | G85: 145,643.96 | H85: 0.00 | I85: 4.22% | J85: 3.92% | K85: 3.93% | L85: 4.01% | M85: 4.10% | N85: 3.76% | O85: 8.06% | P85: 3.86% | Q85: 3.12% | R85: 0.000 | S85: 0.000 | T85: 0.001 | U85: 0 | V85: 0 | W85: 0 | X85: 0
B86: 60 | C86: 85 | D86: 17.00% | E86: 52,700.00 | F86: 25 | G86: 151,688.18 | H86: 0.02 | I86: 4.41% | J86: 3.99% | K86: 4.10% | L86: 4.28% | M86: 4.24% | N86: 3.97% | O86: 8.50% | P86: 4.13% | Q86: 3.39% | R86: 0.002 | S86: 0.002 | T86: 0.003 | U86: 0 | V86: 0 | W86: 0 | X86: 0
B87: 60 | C87: 86 | D87: 17.00% | E87: 52,700.00 | F87: 26 | G87: 157,983.24 | H87: 0.05 | I87: 4.36% | J87: 3.84% | K87: 4.22% | L87: 4.51% | M87: 4.30% | N87: 4.12% | O87: 8.67% | P87: 4.23% | Q87: 3.55% | R87: 0.007 | S87: 0.007 | T87: 0.009 | U87: 0 | V87: 0 | W87: 0 | X87: 0
B88: 60 | C88: 87 | D88: 17.00% | E88: 52,700.00 | F88: 27 | G88: 164,539.55 | H88: 0.17 | I88: 4.05% | J88: 3.50% | K88: 4.07% | L88: 4.44% | M88: 4.08% | N88: 4.02% | O88: 8.31% | P88: 4.04% | Q88: 3.46% | R88: 0.020 | S88: 0.021 | T88: 0.027 | U88: 0 | V88: 0 | W88: 0 | X88: 0
B89: 60 | C89: 88 | D89: 17.00% | E89: 52,700.00 | F89: 28 | G89: 171,367.94 | H89: 0.47 | I89: 4.20% | J89: 3.48% | K89: 4.13% | L89: 4.65% | M89: 4.07% | N89: 4.13% | O89: 8.65% | P89: 4.13% | Q89: 3.61% | R89: 0.056 | S89: 0.060 | T89: 0.077 | U89: 0 | V89: 0 | W89: 0 | X89: 0
B90: 60 | C90: 89 | D90: 17.00% | E90: 52,700.00 | F90: 29 | G90: 178,479.71 | H90: 1.21 | I90: 3.89% | J90: 3.13% | K90: 3.98% | L90: 4.64% | M90: 3.84% | N90: 4.04% | O90: 8.35% | P90: 3.88% | Q90: 3.48% | R90: 0.133 | S90: 0.152 | T90: 0.191 | U90: 0 | V90: 0 | W90: 0 | X90: 0
B91: 60 | C91: 90 | D91: 17.00% | E91: 52,700.00 | F91: 30 | G91: 185,886.61 | H91: 2.89 | I91: 3.65% | J91: 2.81% | K91: 3.79% | L91: 4.60% | M91: 3.58% | N91: 3.92% | O91: 8.08% | P91: 3.64% | Q91: 3.34% | R91: 0.296 | S91: 0.350 | T91: 0.435 | U91: 0 | V91: 0 | W91: 0 | X91: 0
B92: 60 | C92: 91 | D92: 17.00% | E92: 52,700.00 | F92: 31 | G92: 193,600.91 | H92: 6.43 | I92: 3.60% | J92: 2.57% | K92: 3.50% | L92: 4.53% | M92: 3.06% | N92: 3.74% | O92: 7.97% | P92: 3.13% | Q92: 3.24% | R92: 0.622 | S92: 0.729 | T92: 0.922 | U92: 0 | V92: 0 | W92: 0 | X92: 0
B93: 60 | C93: 92 | D93: 17.00% | E93: 52,700.00 | F93: 32 | G93: 201,635.35 | H93: 13.45 | I93: 2.95% | J93: 2.04% | K93: 3.03% | L93: 4.06% | M93: 2.62% | N93: 3.30% | O93: 6.89% | P93: 2.63% | Q93: 2.75% | R93: 1.079 | S93: 1.343 | T93: 1.651 | U93: 0 | V93: 0 | W93: 0 | X93: 0
B94: 60 | C94: 93 | D94: 17.00% | E94: 52,700.00 | F94: 33 | G94: 210,003.21 | H94: 26.56 | I94: 2.51% | J94: 1.66% | K94: 2.69% | L94: 3.80% | M94: 2.28% | N94: 2.98% | O94: 6.21% | P94: 2.29% | Q94: 2.43% | R94: 1.821 | S94: 2.408 | T94: 2.904 | U94: 0 | V94: 0 | W94: 0 | X94: 0
B95: 60 | C95: 94 | D95: 17.00% | E95: 52,700.00 | F95: 34 | G95: 218,718.35 | H95: 49.80 | I95: 2.20% | J95: 1.37% | K95: 2.26% | L95: 3.38% | M95: 1.89% | N95: 2.57% | O95: 5.51% | P95: 1.97% | Q95: 2.11% | R95: 2.904 | S95: 3.904 | T95: 4.776 | U95: 0 | V95: 0 | W95: 0 | X95: 0
B96: 60 | C96: 95 | D96: 17.00% | E96: 52,700.00 | F96: 35 | G96: 227,795.16 | H96: 89.06 | I96: 1.76% | J96: 1.04% | K96: 1.80% | L96: 2.85% | M96: 1.48% | N96: 2.10% | O96: 4.57% | P96: 1.58% | Q96: 1.72% | R96: 4.100 | S96: 5.728 | T96: 7.006 | U96: 4.16 | V96: 0.19 | W96: 0.27 | X96: 0.33
B97: 60 | C97: 96 | D97: 17.00% | E97: 52,700.00 | F97: 36 | G97: 237,248.66 | H97: 152.53 | I97: 1.37% | J97: 0.76% | K97: 1.38% | L97: 2.30% | M97: 1.10% | N97: 1.65% | O97: 3.64% | P97: 1.23% | Q97: 1.34% | R97: 5.342 | S97: 7.714 | T97: 9.469 | U97: 21.84 | V97: 0.76 | W97: 1.10 | X97: 1.36
B98: 60 | C98: 97 | D98: 17.00% | E98: 52,700.00 | F98: 37 | G98: 247,094.48 | H98: 251.06 | I98: 1.03% | J98: 0.54% | K98: 1.04% | L98: 1.86% | M98: 0.82% | N98: 1.29% | O98: 2.88% | P98: 0.95% | Q98: 1.05% | R98: 6.566 | S98: 9.956 | T98: 12.246 | U98: 56.91 | V98: 1.49 | W98: 2.26 | X98: 2.78
B99: 60 | C99: 98 | D99: 17.00% | E99: 52,700.00 | F99: 38 | G99: 257,348.90 | H99: 398.49 | I99: 0.85% | J99: 0.39% | K99: 0.74% | L99: 1.39% | M99: 0.56% | N99: 0.94% | O99: 2.22% | P99: 0.72% | Q99: 0.80% | R99: 7.865 | S99: 11.538 | T99: 14.940 | U99: 118.42 | V99: 2.34 | W99: 3.43 | X99: 4.44
B100: 60 | C100: 99 | D100: 17.00% | E100: 52,700.00 | F100: 39 | G100: 268,028.88 | H100: 611.72 | I100: 0.59% | J100: 0.25% | K100: 0.53% | L100: 1.10% | M100: 0.40% | N100: 0.71% | O100: 1.68% | P100: 0.54% | Q100: 0.60% | R100: 8.346 | S100: 13.534 | T100: 17.288 | U100: 187.22 | V100: 2.55 | W100: 4.14 | X100: 5.29
B101: 60 | C101: 100 | D101: 17.00% | E101: 52,700.00 | F101: 40 | G101: 279,152.08 | H101: 910.63 | I101: 0.32% | J101: 0.14% | K101: 0.36% | L101: 0.79% | M101: 0.26% | N101: 0.49% | O101: 1.11% | P101: 0.35% | Q101: 0.39% | R101: 7.407 | S101: 14.041 | T101: 16.909 | U101: 289.38 | V101: 2.35 | W101: 4.46 | X101: 5.37
B102: 65 | C102: 65 | D102: 22.50% | E102: 69,750.00 | F102: 0 | G102: 72,644.63 | H102: 0.00 | I102: 1.26% | J102: 1.32% | K102: 0.96% | L102: 0.90% | M102: 0.97% | N102: 0.91% | O102: 2.15% | P102: 0.17% | Q102: 0.15% | R102: 0.000 | S102: 0.000 | T102: 0.000 | U102: 0 | V102: 0 | W102: 0 | X102: 0
B103: 65 | C103: =C102+1 -> 66 | D103: 22.50% | E103: 69,750.00 | F103: 1 | G103: 75,659.38 | H103: 0.00 | I103: 1.46% | J103: 1.52% | K103: 1.06% | L103: 0.99% | M103: 1.07% | N103: 1.00% | O103: 2.43% | P103: 0.21% | Q103: 0.19% | R103: 0.000 | S103: 0.000 | T103: 0.000 | U103: 0 | V103: 0 | W103: 0 | X103: 0
B104: 65 | C104: =C103+1 -> 67 | D104: 22.50% | E104: 69,750.00 | F104: 2 | G104: 78,799.24 | H104: 0.00 | I104: 1.59% | J104: 1.65% | K104: 1.14% | L104: 1.07% | M104: 1.15% | N104: 1.08% | O104: 2.65% | P104: 0.26% | Q104: 0.23% | R104: 0.000 | S104: 0.000 | T104: 0.000 | U104: 0 | V104: 0 | W104: 0 | X104: 0
B105: 65 | C105: 68 | D105: 22.50% | E105: 69,750.00 | F105: 3 | G105: 82,069.41 | H105: 0.00 | I105: 1.51% | J105: 1.57% | K105: 1.16% | L105: 1.09% | M105: 1.17% | N105: 1.09% | O105: 2.58% | P105: 0.29% | Q105: 0.26% | R105: 0.000 | S105: 0.000 | T105: 0.000 | U105: 0 | V105: 0 | W105: 0 | X105: 0
B106: 65 | C106: 69 | D106: 22.50% | E106: 69,750.00 | F106: 4 | G106: 85,475.29 | H106: 0.00 | I106: 1.78% | J106: 1.84% | K106: 1.33% | L106: 1.26% | M106: 1.34% | N106: 1.26% | O106: 3.01% | P106: 0.38% | Q106: 0.34% | R106: 0.000 | S106: 0.000 | T106: 0.000 | U106: 0 | V106: 0 | W106: 0 | X106: 0
B107: 65 | C107: 70 | D107: 22.50% | E107: 69,750.00 | F107: 5 | G107: 89,022.51 | H107: 0.00 | I107: 1.94% | J107: 2.00% | K107: 1.43% | L107: 1.35% | M107: 1.44% | N107: 1.36% | O107: 3.26% | P107: 0.46% | Q107: 0.41% | R107: 0.000 | S107: 0.000 | T107: 0.000 | U107: 0 | V107: 0 | W107: 0 | X107: 0
B108: 65 | C108: 71 | D108: 22.50% | E108: 69,750.00 | F108: 6 | G108: 92,716.95 | H108: 0.00 | I108: 2.06% | J108: 2.16% | K108: 1.51% | L108: 1.41% | M108: 1.70% | N108: 1.41% | O108: 3.44% | P108: 0.62% | Q108: 0.47% | R108: 0.000 | S108: 0.000 | T108: 0.000 | U108: 0 | V108: 0 | W108: 0 | X108: 0
B109: 65 | C109: 72 | D109: 22.50% | E109: 69,750.00 | F109: 7 | G109: 96,564.70 | H109: 0.00 | I109: 2.27% | J109: 2.37% | K109: 1.69% | L109: 1.58% | M109: 1.90% | N109: 1.58% | O109: 3.82% | P109: 0.76% | Q109: 0.58% | R109: 0.000 | S109: 0.000 | T109: 0.000 | U109: 0 | V109: 0 | W109: 0 | X109: 0
B110: 65 | C110: 73 | D110: 22.50% | E110: 69,750.00 | F110: 8 | G110: 100,572.14 | H110: 0.00 | I110: 2.34% | J110: 2.43% | K110: 1.88% | L110: 1.76% | M110: 2.10% | N110: 1.76% | O110: 4.06% | P110: 0.90% | Q110: 0.69% | R110: 0.000 | S110: 0.000 | T110: 0.000 | U110: 0 | V110: 0 | W110: 0 | X110: 0
B111: 65 | C111: 74 | D111: 22.50% | E111: 69,750.00 | F111: 9 | G111: 104,745.88 | H111: 0.00 | I111: 2.66% | J111: 2.74% | K111: 1.96% | L111: 1.84% | M111: 2.18% | N111: 1.83% | O111: 4.45% | P111: 1.07% | Q111: 0.82% | R111: 0.000 | S111: 0.000 | T111: 0.000 | U111: 0 | V111: 0 | W111: 0 | X111: 0
B112: 65 | C112: 75 | D112: 22.50% | E112: 69,750.00 | F112: 10 | G112: 109,092.84 | H112: 0.00 | I112: 2.86% | J112: 2.93% | K112: 2.04% | L112: 1.92% | M112: 2.26% | N112: 1.91% | O112: 4.73% | P112: 1.23% | Q112: 0.95% | R112: 0.000 | S112: 0.000 | T112: 0.000 | U112: 0 | V112: 0 | W112: 0 | X112: 0
B113: 65 | C113: 76 | D113: 22.50% | E113: 69,750.00 | F113: 11 | G113: 113,620.19 | H113: 0.00 | I113: 2.99% | J113: 3.04% | K113: 2.37% | L113: 2.25% | M113: 2.62% | N113: 2.22% | O113: 5.17% | P113: 1.48% | Q113: 1.15% | R113: 0.000 | S113: 0.000 | T113: 0.000 | U113: 0 | V113: 0 | W113: 0 | X113: 0
B114: 65 | C114: 77 | D114: 22.50% | E114: 69,750.00 | F114: 12 | G114: 118,335.43 | H114: 0.00 | I114: 3.21% | J114: 3.24% | K114: 2.48% | L114: 2.37% | M114: 2.73% | N114: 2.34% | O114: 5.51% | P114: 1.70% | Q114: 1.32% | R114: 0.000 | S114: 0.000 | T114: 0.000 | U114: 0 | V114: 0 | W114: 0 | X114: 0
B115: 65 | C115: 78 | D115: 22.50% | E115: 69,750.00 | F115: 13 | G115: 123,246.35 | H115: 0.00 | I115: 3.31% | J115: 3.32% | K115: 2.77% | L115: 2.66% | M115: 3.03% | N115: 2.61% | O115: 5.89% | P115: 1.97% | Q115: 1.54% | R115: 0.000 | S115: 0.000 | T115: 0.000 | U115: 0 | V115: 0 | W115: 0 | X115: 0
B116: 65 | C116: 79 | D116: 22.50% | E116: 69,750.00 | F116: 14 | G116: 128,361.07 | H116: 0.00 | I116: 3.73% | J116: 3.68% | K116: 2.85% | L116: 2.76% | M116: 3.11% | N116: 2.70% | O116: 6.39% | P116: 2.26% | Q116: 1.78% | R116: 0.000 | S116: 0.000 | T116: 0.000 | U116: 0 | V116: 0 | W116: 0 | X116: 0
B117: 65 | C117: 80 | D117: 22.50% | E117: 69,750.00 | F117: 15 | G117: 133,688.05 | H117: 0.00 | I117: 3.72% | J117: 3.65% | K117: 3.19% | L117: 3.12% | M117: 3.46% | N117: 3.03% | O117: 6.73% | P117: 2.56% | Q117: 2.03% | R117: 0.000 | S117: 0.000 | T117: 0.000 | U117: 0 | V117: 0 | W117: 0 | X117: 0
B118: 65 | C118: 81 | D118: 22.50% | E118: 69,750.00 | F118: 16 | G118: 139,236.11 | H118: 0.00 | I118: 3.91% | J118: 3.85% | K118: 3.36% | L118: 3.26% | M118: 3.61% | N118: 3.15% | O118: 7.04% | P118: 2.91% | Q118: 2.26% | R118: 0.000 | S118: 0.000 | T118: 0.000 | U118: 0 | V118: 0 | W118: 0 | X118: 0
B119: 65 | C119: 82 | D119: 22.50% | E119: 69,750.00 | F119: 17 | G119: 145,014.41 | H119: 0.00 | I119: 4.14% | J119: 4.01% | K119: 3.68% | L119: 3.63% | M119: 3.93% | N119: 3.47% | O119: 7.61% | P119: 3.30% | Q119: 2.59% | R119: 0.000 | S119: 0.000 | T119: 0.000 | U119: 0 | V119: 0 | W119: 0 | X119: 0
B120: 65 | C120: 83 | D120: 22.50% | E120: 69,750.00 | F120: 18 | G120: 151,032.50 | H120: 0.00 | I120: 4.20% | J120: 4.00% | K120: 3.90% | L120: 3.90% | M120: 4.11% | N120: 3.70% | O120: 7.93% | P120: 3.57% | Q120: 2.83% | R120: 0.000 | S120: 0.000 | T120: 0.000 | U120: 0 | V120: 0 | W120: 0 | X120: 0
B121: 65 | C121: 84 | D121: 22.50% | E121: 69,750.00 | F121: 19 | G121: 157,300.35 | H121: 0.01 | I121: 4.45% | J121: 4.14% | K121: 4.08% | L121: 4.15% | M121: 4.26% | N121: 3.90% | O121: 8.41% | P121: 3.88% | Q121: 3.13% | R121: 0.001 | S121: 0.001 | T121: 0.001 | U121: 0 | V121: 0 | W121: 0 | X121: 0
B122: 65 | C122: 85 | D122: 22.50% | E122: 69,750.00 | F122: 20 | G122: 163,828.32 | H122: 0.03 | I122: 4.65% | J122: 4.21% | K122: 4.26% | L122: 4.43% | M122: 4.40% | N122: 4.11% | O122: 8.87% | P122: 4.15% | Q122: 3.41% | R122: 0.004 | S122: 0.004 | T122: 0.005 | U122: 0 | V122: 0 | W122: 0 | X122: 0
B123: 65 | C123: 86 | D123: 22.50% | E123: 69,750.00 | F123: 21 | G123: 170,627.19 | H123: 0.11 | I123: 4.59% | J123: 4.06% | K123: 4.38% | L123: 4.67% | M123: 4.47% | N123: 4.27% | O123: 9.05% | P123: 4.25% | Q123: 3.56% | R123: 0.015 | S123: 0.015 | T123: 0.019 | U123: 0 | V123: 0 | W123: 0 | X123: 0
B124: 65 | C124: 87 | D124: 22.50% | E124: 69,750.00 | F124: 22 | G124: 177,708.22 | H124: 0.39 | I124: 4.27% | J124: 3.70% | K124: 4.23% | L124: 4.60% | M124: 4.24% | N124: 4.16% | O124: 8.67% | P124: 4.06% | Q124: 3.47% | R124: 0.047 | S124: 0.050 | T124: 0.063 | U124: 0 | V124: 0 | W124: 0 | X124: 0
B125: 65 | C125: 88 | D125: 22.50% | E125: 69,750.00 | F125: 23 | G125: 185,083.11 | H125: 1.17 | I125: 4.42% | J125: 3.68% | K125: 4.28% | L125: 4.82% | M125: 4.22% | N125: 4.28% | O125: 9.03% | P125: 4.14% | Q125: 3.63% | R125: 0.145 | S125: 0.156 | T125: 0.197 | U125: 0 | V125: 0 | W125: 0 | X125: 0
B126: 65 | C126: 89 | D126: 22.50% | E126: 69,750.00 | F126: 24 | G126: 192,764.06 | H126: 3.18 | I126: 4.10% | J126: 3.30% | K126: 4.13% | L126: 4.80% | M126: 3.99% | N126: 4.19% | O126: 8.71% | P126: 3.90% | Q126: 3.50% | R126: 0.366 | S126: 0.412 | T126: 0.511 | U126: 0 | V126: 0 | W126: 0 | X126: 0
B127: 65 | C127: =C126+1 -> 90 | D127: 22.50% | E127: 69,750.00 | F127: 25 | G127: 200,763.77 | H127: 7.84 | I127: 3.84% | J127: 2.97% | K127: 3.94% | L127: 4.76% | M127: 3.72% | N127: 4.06% | O127: 8.42% | P127: 3.65% | Q127: 3.35% | R127: 0.843 | S127: 0.983 | T127: 1.210 | U127: 0 | V127: 0 | W127: 0 | X127: 0
B128: 65 | C128: 91 | D128: 22.50% | E128: 69,750.00 | F128: 26 | G128: 209,095.47 | H128: 17.81 | I128: 3.80% | J128: 2.71% | K128: 3.64% | L128: 4.69% | M128: 3.18% | N128: 3.88% | O128: 8.30% | P128: 3.15% | Q128: 3.25% | R128: 1.807 | S128: 2.092 | T128: 2.618 | U128: 0 | V128: 0 | W128: 0 | X128: 0
B129: 65 | C129: 92 | D129: 22.50% | E129: 69,750.00 | F129: 27 | G129: 217,772.93 | H129: 37.57 | I129: 3.11% | J129: 2.16% | K129: 3.15% | L129: 4.21% | M129: 2.72% | N129: 3.42% | O129: 7.18% | P129: 2.64% | Q129: 2.76% | R129: 3.161 | S129: 3.887 | T129: 4.729 | U129: 0 | V129: 0 | W129: 0 | X129: 0
B130: 65 | C130: 93 | D130: 22.50% | E130: 69,750.00 | F130: 28 | G130: 226,810.51 | H130: 74.16 | I130: 2.64% | J130: 1.76% | K130: 2.79% | L130: 3.93% | M130: 2.37% | N130: 3.09% | O130: 6.47% | P130: 2.30% | Q130: 2.44% | R130: 5.331 | S130: 6.968 | T130: 8.316 | U130: 6.11 | V130: 0.44 | W130: 0.57 | X130: 0.68
B131: 65 | C131: 94 | D131: 22.50% | E131: 69,750.00 | F131: 29 | G131: 236,223.14 | H131: 137.98 | I131: 2.32% | J131: 1.45% | K131: 2.35% | L131: 3.50% | M131: 1.96% | N131: 2.66% | O131: 5.74% | P131: 1.97% | Q131: 2.12% | R131: 8.435 | S131: 11.210 | T131: 13.573 | U131: 26.39 | V131: 1.61 | W131: 2.14 | X131: 2.60
B132: 65 | C132: 95 | D132: 22.50% | E132: 69,750.00 | F132: 30 | G132: 246,026.40 | H132: 243.38 | I132: 1.86% | J132: 1.10% | K132: 1.87% | L132: 2.95% | M132: 1.53% | N132: 2.18% | O132: 4.76% | P132: 1.59% | Q132: 1.72% | R132: 11.747 | S132: 16.224 | T132: 19.643 | U132: 46.91 | V132: 2.26 | W132: 3.13 | X132: 3.79
B133: 65 | C133: 96 | D133: 22.50% | E133: 69,750.00 | F133: 31 | G133: 256,236.50 | H133: 409.18 | I133: 1.44% | J133: 0.80% | K133: 1.43% | L133: 2.38% | M133: 1.15% | N133: 1.71% | O133: 3.79% | P133: 1.23% | Q133: 1.35% | R133: 15.022 | S133: 21.449 | T133: 26.068 | U133: 108.37 | V133: 3.98 | W133: 5.68 | X133: 6.90
B134: 65 | C134: 97 | D134: 22.50% | E134: 69,750.00 | F134: 32 | G134: 266,870.31 | H134: 658.77 | I134: 1.09% | J134: 0.57% | K134: 1.08% | L134: 1.93% | M134: 0.85% | N134: 1.33% | O134: 3.00% | P134: 0.96% | Q134: 1.05% | R134: 18.058 | S134: 27.074 | T134: 32.976 | U134: 214.45 | V134: 5.88 | W134: 8.81 | X134: 10.73
B135: 65 | C135: =C134+1 -> 98 | D135: 22.50% | E135: 69,750.00 | F135: 33 | G135: 277,945.43 | H135: 1,019.82 | I135: 0.89% | J135: 0.41% | K135: 0.76% | L135: 1.44% | M135: 0.59% | N135: 0.98% | O135: 2.32% | P135: 0.73% | Q135: 0.80% | R135: 21.103 | S135: 30.601 | T135: 39.253 | U135: 361.48 | V135: 7.48 | W135: 10.85 | X135: 13.91
B136: 65 | C136: 99 | D136: 22.50% | E136: 69,750.00 | F136: 34 | G136: 289,480.17 | H136: 1,523.64 | I136: 0.62% | J136: 0.26% | K136: 0.55% | L136: 1.14% | M136: 0.41% | N136: 0.74% | O136: 1.75% | P136: 0.54% | Q136: 0.60% | R136: 21.789 | S136: 34.934 | T136: 44.198 | U136: 651.15 | V136: 9.31 | W136: 14.93 | X136: 18.89
B137: 65 | C137: =C136+1 -> 100 | D137: 22.50% | E137: 69,750.00 | F137: 35 | G137: 301,493.59 | H137: 2,204.14 | I137: 0.34% | J137: 0.14% | K137: 0.37% | L137: 0.82% | M137: 0.27% | N137: 0.51% | O137: 1.15% | P137: 0.36% | Q137: 0.40% | R137: 18.779 | S137: 35.218 | T137: 41.986 | U137: 1,044.46 | V137: 8.90 | W137: 16.69 | X137: 19.90
B138: 70 | C138: 70 | D138: 28.50% | E138: 88,350.00 | F138: 0 | G138: 92,016.53 | H138: 0.00 | I138: 2.09% | J138: 2.17% | K138: 1.52% | L138: 1.43% | M138: 1.53% | N138: 1.44% | O138: 3.49% | P138: 0.46% | Q138: 0.41% | R138: 0.000 | S138: 0.000 | T138: 0.000 | U138: 0 | V138: 0 | W138: 0 | X138: 0
B139: 70 | C139: =C138+1 -> 71 | D139: 28.50% | E139: 88,350.00 | F139: 1 | G139: 95,835.21 | H139: 0.00 | I139: 2.23% | J139: 2.34% | K139: 1.61% | L139: 1.48% | M139: 1.80% | N139: 1.49% | O139: 3.68% | P139: 0.63% | Q139: 0.48% | R139: 0.000 | S139: 0.000 | T139: 0.000 | U139: 0 | V139: 0 | W139: 0 | X139: 0
B140: 70 | C140: =C139+1 -> 72 | D140: 28.50% | E140: 88,350.00 | F140: 2 | G140: 99,812.37 | H140: 0.00 | I140: 2.46% | J140: 2.58% | K140: 1.80% | L140: 1.67% | M140: 2.01% | N140: 1.67% | O140: 4.09% | P140: 0.77% | Q140: 0.59% | R140: 0.000 | S140: 0.000 | T140: 0.000 | U140: 0 | V140: 0 | W140: 0 | X140: 0
B141: 70 | C141: 73 | D141: 28.50% | E141: 88,350.00 | F141: 3 | G141: 103,954.59 | H141: 0.00 | I141: 2.53% | J141: 2.64% | K141: 2.00% | L141: 1.86% | M141: 2.23% | N141: 1.86% | O141: 4.35% | P141: 0.91% | Q141: 0.70% | R141: 0.000 | S141: 0.000 | T141: 0.000 | U141: 0 | V141: 0 | W141: 0 | X141: 0
B142: 70 | C142: 74 | D142: 28.50% | E142: 88,350.00 | F142: 4 | G142: 108,268.70 | H142: 0.00 | I142: 2.88% | J142: 2.98% | K142: 2.07% | L142: 1.94% | M142: 2.31% | N142: 1.93% | O142: 4.77% | P142: 1.08% | Q142: 0.83% | R142: 0.000 | S142: 0.000 | T142: 0.000 | U142: 0 | V142: 0 | W142: 0 | X142: 0
B143: 70 | C143: 75 | D143: =IF(ltvtype="Flexible",VLOOKUP(B143,ltvtable,2,FALSE),IF(ltvtype="Flexible Plus",VLOOKUP(B143,ltvtable,3,FALSE),IF(ltvtype="Flexible Max",VLOOKUP(B143,ltvtable,4,FALSE),IF(ltvtype="Flexible Max Plus",VLOOKUP(B143,ltvtable,5,FALSE),"Error")))) -> 28.50% | E143: =IniHsePrice*D143 -> 88,350.00 | F143: 5 | G143: =E143*EXP(rollup*(F143+0.5+delta)) -> 112,761.85 | H143: =gbmNNEG(IniHsePrice,E143,riskfree,rollup,rentalyield,sigma,(F143+0.5+delta)) -> 0.00 | I143: =IF($B143=55,INDEX(mort_male_k_q55,$F143+1),IF($B143=60,INDEX(mort_male_k_q60,$F143+1),IF($B143=65,INDEX(mort_male_k_q65,$F143+1),IF($B143=70,INDEX(mort_male_k_q70,$F143+1),IF($B143=80,INDEX(mort_male_k_q80,$F143+1),IF($B143=85,INDEX(mort_male_k_q85,$F143+1),IF($B143=90,INDEX(mort_male_k_q90,$F143+1),IF($B143=95,INDEX(mort_male_k_q95,$F143+1),IF($B143=75,INDEX(mort_male_k_q75,$F143+1),"Error"))))))))) -> 3.10% | J143: =IF($B143=55,INDEX(morb_male_k_q55,$F143+1),IF($B143=60,INDEX(morb_male_k_q60,$F143+1),IF($B143=65,INDEX(morb_male_k_q65,$F143+1),IF($B143=70,INDEX(morb_male_k_q70,$F143+1),IF($B143=80,INDEX(morb_male_k_q80,$F143+1),IF($B143=85,INDEX(morb_male_k_q85,$F143+1),IF($B143=90,INDEX(morb_male_k_q90,$F143+1),IF($B143=95,INDEX(morb_male_k_q95,$F143+1),IF($B143=75,INDEX(morb_male_k_q75,$F143+1),"Error"))))))))) -> 3.18% | K143: =IF($B143=55,INDEX(prepay_male_k_q55,$F143+1),IF($B143=60,INDEX(prepay_male_k_q60,$F143+1),IF($B143=65,INDEX(prepay_male_k_q65,$F143+1),IF($B143=70,INDEX(prepay_male_k_q70,$F143+1),IF($B143=80,INDEX(prepay_male_k_q80,$F143+1),IF($B143=85,INDEX(prepay_male_k_q85,$F143+1),IF($B143=90,INDEX(prepay_male_k_q90,$F143+1),IF($B143=95,INDEX(prepay_male_k_q95,$F143+1),IF($B143=75,INDEX(prepay_male_k_q75,$F143+1),"Error")))))))))*prepayloading -> 2.16% | L143: =IF($B143=55,INDEX(mort_female_k_q55,$F143+1),IF($B143=60,INDEX(mort_female_k_q60,$F143+1),IF($B143=65,INDEX(mort_female_k_q65,$F143+1),IF($B143=70,INDEX(mort_female_k_q70,$F143+1),IF($B143=80,INDEX(mort_female_k_q80,$F143+1),IF($B143=85,INDEX(mort_female_k_q85,$F143+1),IF($B143=90,INDEX(mort_female_k_q90,$F143+1),IF($B143=95,INDEX(mort_female_k_q95,$F143+1),IF($B143=75,INDEX(mort_female_k_q75,$F143+1),"Error"))))))))) -> 2.03% | M143: =IF($B143=55,INDEX(morb_female_k_q55,$F143+1),IF($B143=60,INDEX(morb_female_k_q60,$F143+1),IF($B143=65,INDEX(morb_female_k_q65,$F143+1),IF($B143=70,INDEX(morb_female_k_q70,$F143+1),IF($B143=80,INDEX(morb_female_k_q80,$F143+1),IF($B143=85,INDEX(morb_female_k_q85,$F143+1),IF($B143=90,INDEX(morb_female_k_q90,$F143+1),IF($B143=95,INDEX(morb_female_k_q95,$F143+1),IF($B143=75,INDEX(morb_female_k_q75,$F143+1),"Error"))))))))) -> 2.40% | N143: =IF($B143=55,INDEX(prepay_female_k_q55,$F143+1),IF($B143=60,INDEX(prepay_female_k_q60,$F143+1),IF($B143=65,INDEX(prepay_female_k_q65,$F143+1),IF($B143=70,INDEX(prepay_female_k_q70,$F143+1),IF($B143=80,INDEX(prepay_female_k_q80,$F143+1),IF($B143=85,INDEX(prepay_female_k_q85,$F143+1),IF($B143=90,INDEX(prepay_female_k_q90,$F143+1),IF($B143=95,INDEX(prepay_female_k_q95,$F143+1),IF($B143=75,INDEX(prepay_female_k_q75,$F143+1),"Error")))))))))*prepayloading -> 2.02% | O143: =IF($B143=55,INDEX(mort_joint_k_q55,$F143+1),IF($B143=60,INDEX(mort_joint_k_q60,$F143+1),IF($B143=65,INDEX(mort_joint_k_q65,$F143+1),IF($B143=70,INDEX(mort_joint_k_q70,$F143+1),IF($B143=80,INDEX(mort_joint_k_q80,$F143+1),IF($B143=85,INDEX(mort_joint_k_q85,$F143+1),IF($B143=90,INDEX(mort_joint_k_q90,$F143+1),IF($B143=95,INDEX(mort_joint_k_q95,$F143+1),IF($B143=75,INDEX(mort_joint_k_q75,$F143+1),"Error"))))))))) -> 5.06% | P143: =IF($B143=55,INDEX(morb_joint_k_q55,$F143+1),IF($B143=60,INDEX(morb_joint_k_q60,$F143+1),IF($B143=65,INDEX(morb_joint_k_q65,$F143+1),IF($B143=70,INDEX(morb_joint_k_q70,$F143+1),IF($B143=80,INDEX(morb_joint_k_q80,$F143+1),IF($B143=85,INDEX(morb_joint_k_q85,$F143+1),IF($B143=90,INDEX(morb_joint_k_q90,$F143+1),IF($B143=95,INDEX(morb_joint_k_q95,$F143+1),IF($B143=75,INDEX(morb_joint_k_q75,$F143+1),"Error"))))))))) -> 1.25% | Q143: =IF($B143=55,INDEX(prepay_joint_k_q55,$F143+1),IF($B143=60,INDEX(prepay_joint_k_q60,$F143+1),IF($B143=65,INDEX(prepay_joint_k_q65,$F143+1),IF($B143=70,INDEX(prepay_joint_k_q70,$F143+1),IF($B143=80,INDEX(prepay_joint_k_q80,$F143+1),IF($B143=85,INDEX(prepay_joint_k_q85,$F143+1),IF($B143=90,INDEX(prepay_joint_k_q90,$F143+1),IF($B143=95,INDEX(prepay_joint_k_q95,$F143+1),IF($B143=75,INDEX(prepay_joint_k_q75,$F143+1),"Error")))))))))*prepayloading -> 0.96% | R143: 0.000 | S143: 0.000 | T143: 0.000 | U143: =ArmaEgarchPx(G143,INDEX(DiscFactor,F143+1),(F143+1)) -> 0 | V143: 0 | W143: 0 | X143: 0
B144: 70 | C144: 76 | D144: 28.50% | E144: 88,350.00 | F144: =C144-B144 -> 6 | G144: 117,441.47 | H144: 0.00 | I144: 3.24% | J144: 3.31% | K144: 2.51% | L144: 2.37% | M144: 2.78% | N144: 2.35% | O144: 5.53% | P144: 1.50% | Q144: 1.16% | R144: =SUM(I144:K144)*H144 -> 0.000 | S144: =SUM(L144:N144)*H144 -> 0.000 | T144: =SUM(O144:Q144)*H144 -> 0.000 | U144: 0 | V144: =SUM(I144:K144)*U144 -> 0 | W144: =SUM(L144:N144)*U144 -> 0 | X144: =SUM(O144:Q144)*U144 -> 0
B145: 70 | C145: 77 | D145: 28.50% | E145: 88,350.00 | F145: 7 | G145: 122,315.29 | H145: 0.00 | I145: 3.48% | J145: 3.53% | K145: 2.63% | L145: 2.50% | M145: 2.90% | N145: 2.47% | O145: 5.89% | P145: 1.72% | Q145: 1.34% | R145: 0.000 | S145: 0.000 | T145: 0.000 | U145: 0 | V145: 0 | W145: 0 | X145: 0
B146: 70 | C146: 78 | D146: 28.50% | E146: 88,350.00 | F146: 8 | G146: 127,391.37 | H146: 0.00 | I146: 3.59% | J146: 3.61% | K146: 2.93% | L146: 2.81% | M146: 3.22% | N146: 2.76% | O146: 6.30% | P146: 1.99% | Q146: 1.56% | R146: 0.000 | S146: 0.000 | T146: 0.000 | U146: 0 | V146: 0 | W146: 0 | X146: 0
B147: 70 | C147: 79 | D147: 28.50% | E147: 88,350.00 | F147: 9 | G147: 132,678.12 | H147: 0.00 | I147: 4.03% | J147: 4.00% | K147: 3.02% | L147: 2.92% | M147: 3.30% | N147: 2.86% | O147: 6.83% | P147: 2.29% | Q147: 1.81% | R147: 0.000 | S147: 0.000 | T147: 0.000 | U147: 0 | V147: 0 | W147: 0 | X147: 0
B148: 70 | C148: 80 | D148: 28.50% | E148: 88,350.00 | F148: 10 | G148: 138,184.26 | H148: 0.00 | I148: 4.03% | J148: 3.97% | K148: 3.38% | L148: 3.30% | M148: 3.67% | N148: 3.20% | O148: 7.19% | P148: 2.59% | Q148: 2.06% | R148: 0.000 | S148: 0.000 | T148: 0.000 | U148: 0 | V148: 0 | W148: 0 | X148: 0
B149: 70 | C149: 81 | D149: 28.50% | E149: 88,350.00 | F149: 11 | G149: 143,918.90 | H149: 0.00 | I149: 4.24% | J149: 4.19% | K149: 3.56% | L149: 3.44% | M149: 3.83% | N149: 3.33% | O149: 7.53% | P149: 2.95% | Q149: 2.28% | R149: 0.000 | S149: 0.000 | T149: 0.000 | U149: 0 | V149: 0 | W149: 0 | X149: 0
B150: 70 | C150: 82 | D150: 28.50% | E150: 88,350.00 | F150: 12 | G150: 149,891.54 | H150: 0.00 | I150: 4.48% | J150: 4.36% | K150: 3.91% | L150: 3.83% | M150: 4.17% | N150: 3.67% | O150: 8.14% | P150: 3.34% | Q150: 2.62% | R150: 0.000 | S150: 0.000 | T150: 0.000 | U150: 0 | V150: 0 | W150: 0 | X150: 0
B151: 70 | C151: 83 | D151: 28.50% | E151: 88,350.00 | F151: 13 | G151: 156,112.04 | H151: 0.00 | I151: 4.54% | J151: 4.35% | K151: 4.13% | L151: 4.11% | M151: 4.37% | N151: 3.91% | O151: 8.47% | P151: 3.62% | Q151: 2.87% | R151: 0.000 | S151: 0.000 | T151: 0.000 | U151: 0 | V151: 0 | W151: 0 | X151: 0
B152: 70 | C152: 84 | D152: 28.50% | E152: 88,350.00 | F152: 14 | G152: 162,590.69 | H152: 0.00 | I152: 4.82% | J152: 4.51% | K152: 4.32% | L152: 4.38% | M152: 4.52% | N152: 4.12% | O152: 8.99% | P152: 3.93% | Q152: 3.16% | R152: 0.000 | S152: 0.000 | T152: 0.000 | U152: 0 | V152: 0 | W152: 0 | X152: 0
B153: 70 | C153: 85 | D153: 28.50% | E153: 88,350.00 | F153: 15 | G153: 169,338.20 | H153: 0.01 | I153: 5.03% | J153: 4.58% | K153: 4.52% | L153: 4.68% | M153: 4.67% | N153: 4.35% | O153: 9.47% | P153: 4.20% | Q153: 3.45% | R153: 0.001 | S153: 0.001 | T153: 0.002 | U153: 0 | V153: 0 | W153: 0 | X153: 0
B154: 70 | C154: 86 | D154: 28.50% | E154: 88,350.00 | F154: 16 | G154: 176,365.74 | H154: 0.06 | I154: 4.97% | J154: 4.42% | K154: 4.65% | L154: 4.93% | M154: 4.74% | N154: 4.52% | O154: 9.65% | P154: 4.31% | Q154: 3.61% | R154: 0.008 | S154: 0.008 | T154: 0.010 | U154: 0 | V154: 0 | W154: 0 | X154: 0
B155: 70 | C155: 87 | D155: 28.50% | E155: 88,350.00 | F155: 17 | G155: 183,684.91 | H155: 0.26 | I155: 4.62% | J155: 4.02% | K155: 4.48% | L155: 4.85% | M155: 4.50% | N155: 4.40% | O155: 9.25% | P155: 4.11% | Q155: 3.51% | R155: 0.034 | S155: 0.036 | T155: 0.044 | U155: 0 | V155: 0 | W155: 0 | X155: 0
B156: 70 | C156: =C155+1 -> 88 | D156: 28.50% | E156: 88,350.00 | F156: 18 | G156: 191,307.84 | H156: 0.97 | I156: 4.79% | J156: 4.00% | K156: 4.54% | L156: 5.09% | M156: 4.48% | N156: 4.52% | O156: 9.63% | P156: 4.20% | Q156: 3.67% | R156: 0.129 | S156: 0.137 | T156: 0.170 | U156: 0 | V156: 0 | W156: 0 | X156: 0
B157: 70 | C157: 89 | D157: 28.50% | E157: 88,350.00 | F157: 19 | G157: 199,247.11 | H157: 3.11 | I157: 4.44% | J157: 3.59% | K157: 4.38% | L157: 5.07% | M157: 4.24% | N157: 4.42% | O157: 9.28% | P157: 3.95% | Q157: 3.54% | R157: 0.387 | S157: 0.427 | T157: 0.522 | U157: 0 | V157: 0 | W157: 0 | X157: 0
B158: 70 | C158: 90 | D158: 28.50% | E158: 88,350.00 | F158: 20 | G158: 207,515.87 | H158: 8.76 | I158: 4.16% | J158: 3.23% | K158: 4.18% | L158: 5.03% | M158: 3.94% | N158: 4.29% | O158: 8.98% | P158: 3.70% | Q158: 3.39% | R158: 1.013 | S158: 1.162 | T158: 1.408 | U158: 0 | V158: 0 | W158: 0 | X158: 0
B159: 70 | C159: 91 | D159: 28.50% | E159: 88,350.00 | F159: 21 | G159: 216,127.78 | H159: 22.02 | I159: 4.11% | J159: 2.95% | K159: 3.86% | L159: 4.95% | M159: 3.38% | N159: 4.10% | O159: 8.85% | P159: 3.19% | Q159: 3.29% | R159: 2.404 | S159: 2.736 | T159: 3.376 | U159: 0 | V159: 0 | W159: 0 | X159: 0
B160: 70 | C160: 92 | D160: 28.50% | E160: 88,350.00 | F160: 22 | G160: 225,097.08 | H160: 50.19 | I160: 3.36% | J160: 2.35% | K160: 3.34% | L160: 4.44% | M160: 2.89% | N160: 3.62% | O160: 7.66% | P160: 2.67% | Q160: 2.80% | R160: 4.543 | S160: 5.493 | T160: 6.589 | U160: 0 | V160: 0 | W160: 0 | X160: 0
B161: 70 | C161: 93 | D161: 28.50% | E161: 88,350.00 | F161: 23 | G161: 234,438.61 | H161: 105.07 | I161: 2.86% | J161: 1.91% | K161: 2.96% | L161: 4.15% | M161: 2.52% | N161: 3.27% | O161: 6.89% | P161: 2.33% | Q161: 2.47% | R161: 8.120 | S161: 10.441 | T161: 12.288 | U161: 5.67 | V161: 0.44 | W161: 0.56 | X161: 0.66
B162: 70 | C162: 94 | D162: 28.50% | E162: 88,350.00 | F162: 24 | G162: 244,167.81 | H162: 204.12 | I162: 2.51% | J162: 1.57% | K162: 2.49% | L162: 3.70% | M162: 2.08% | N162: 2.81% | O162: 6.12% | P162: 2.00% | Q162: 2.15% | R162: 13.416 | S162: 17.539 | T162: 20.950 | U162: 37.61 | V162: 2.47 | W162: 3.23 | X162: 3.86
B163: 70 | C163: 95 | D163: 28.50% | E163: 88,350.00 | F163: 25 | G163: 254,300.78 | H163: 371.35 | I163: 2.01% | J163: 1.19% | K163: 1.98% | L163: 3.12% | M163: 1.63% | N163: 2.30% | O163: 5.07% | P163: 1.61% | Q163: 1.74% | R163: 19.268 | S163: 26.179 | T163: 31.277 | U163: 99.35 | V163: 5.16 | W163: 7.00 | X163: 8.37
B164: 70 | C164: 96 | D164: 28.50% | E164: 88,350.00 | F164: 26 | G164: 264,854.26 | H164: 637.53 | I164: 1.56% | J164: 0.87% | K164: 1.52% | L164: 2.52% | M164: 1.22% | N164: 1.81% | O164: 4.03% | P164: 1.25% | Q164: 1.37% | R164: 25.160 | S164: 35.341 | T164: 42.395 | U164: 205.45 | V164: 8.11 | W164: 11.39 | X164: 13.66
B165: 70 | C165: =C164+1 -> 97 | D165: 28.50% | E165: 88,350.00 | F165: 27 | G165: 275,845.71 | H165: 1,039.70 | I165: 1.18% | J165: 0.62% | K165: 1.14% | L165: 2.04% | M165: 0.90% | N165: 1.41% | O165: 3.19% | P165: 0.97% | Q165: 1.07% | R165: 30.632 | S165: 45.184 | T165: 54.328 | U165: 394.62 | V165: 11.63 | W165: 17.15 | X165: 20.62
B166: 70 | C166: 98 | D166: 28.50% | E166: 88,350.00 | F166: 28 | G166: 287,293.31 | H166: 1,619.91 | I166: 0.97% | J166: 0.45% | K166: 0.81% | L166: 1.52% | M166: 0.62% | N166: 1.03% | O166: 2.47% | P166: 0.74% | Q166: 0.81% | R166: 36.045 | S166: 51.397 | T166: 65.123 | U166: 722.63 | V166: 16.08 | W166: 22.93 | X166: 29.05
B167: 70 | C167: =C166+1 -> 99 | D167: 28.50% | E167: 88,350.00 | F167: 29 | G167: 299,215.98 | H167: 2,423.28 | I167: 0.67% | J167: 0.28% | K167: 0.59% | L167: 1.21% | M167: 0.44% | N167: 0.78% | O167: 1.87% | P167: 0.55% | Q167: 0.61% | R167: 37.246 | S167: 58.744 | T167: 73.398 | U167: 1,193.14 | V167: 18.34 | W167: 28.92 | X167: 36.14
B168: 70 | C168: 100 | D168: 28.50% | E168: 88,350.00 | F168: 30 | G168: 311,633.44 | H168: 3,495.72 | I168: 0.37% | J168: 0.16% | K168: 0.39% | L168: 0.87% | M168: 0.28% | N168: 0.54% | O168: 1.23% | P168: 0.36% | Q168: 0.40% | R168: 31.979 | S168: 59.052 | T168: 69.477 | U168: 1,914.80 | V168: 17.52 | W168: 32.35 | X168: 38.06
B169: 75 | C169: 75 | D169: 32.40% | E169: 100,440.00 | F169: 0 | G169: 104,608.26 | H169: 0.00 | I169: 3.53% | J169: 3.66% | K169: 2.38% | L169: 2.21% | M169: 2.67% | N169: 2.21% | O169: 5.66% | P169: 1.30% | Q169: 0.99% | R169: 0.000 | S169: 0.000 | T169: 0.000 | U169: 0 | V169: 0 | W169: 0 | X169: 0
B170: 75 | C170: =C169+1 -> 76 | D170: 32.40% | E170: 100,440.00 | F170: 1 | G170: 108,949.50 | H170: 0.00 | I170: 3.69% | J170: 3.81% | K170: 2.76% | L170: 2.59% | M170: 3.09% | N170: 2.57% | O170: 6.18% | P170: 1.56% | Q170: 1.20% | R170: 0.000 | S170: 0.000 | T170: 0.000 | U170: 0 | V170: 0 | W170: 0 | X170: 0
B171: 75 | C171: =C170+1 -> 77 | D171: 32.40% | E171: 100,440.00 | F171: 2 | G171: 113,470.91 | H171: 0.00 | I171: 3.96% | J171: 4.06% | K171: 2.90% | L171: 2.73% | M171: 3.23% | N171: 2.70% | O171: 6.59% | P171: 1.79% | Q171: 1.38% | R171: 0.000 | S171: 0.000 | T171: 0.000 | U171: 0 | V171: 0 | W171: 0 | X171: 0
B172: 75 | C172: 78 | D172: 32.40% | E172: 100,440.00 | F172: 3 | G172: 118,179.95 | H172: 0.00 | I172: 4.08% | J172: 4.15% | K172: 3.23% | L172: 3.07% | M172: 3.58% | N172: 3.02% | O172: 7.03% | P172: 2.08% | Q172: 1.61% | R172: 0.000 | S172: 0.000 | T172: 0.000 | U172: 0 | V172: 0 | W172: 0 | X172: 0
B173: 75 | C173: 79 | D173: 32.40% | E173: 100,440.00 | F173: 4 | G173: 123,084.42 | H173: 0.00 | I173: 4.59% | J173: 4.61% | K173: 3.33% | L173: 3.18% | M173: 3.67% | N173: 3.12% | O173: 7.63% | P173: 2.39% | Q173: 1.86% | R173: 0.000 | S173: 0.000 | T173: 0.000 | U173: 0 | V173: 0 | W173: 0 | X173: 0
B174: 75 | C174: 80 | D174: 32.40% | E174: 100,440.00 | F174: 5 | G174: 128,192.42 | H174: 0.00 | I174: 4.59% | J174: 4.56% | K174: 3.72% | L174: 3.60% | M174: 4.08% | N174: 3.50% | O174: 8.02% | P174: 2.70% | Q174: 2.12% | R174: 0.000 | S174: 0.000 | T174: 0.000 | U174: 0 | V174: 0 | W174: 0 | X174: 0
B175: 75 | C175: 81 | D175: 32.40% | E175: 100,440.00 | F175: 6 | G175: 133,512.41 | H175: 0.00 | I175: 4.82% | J175: 4.82% | K175: 3.92% | L175: 3.76% | M175: 4.26% | N175: 3.64% | O175: 8.40% | P175: 3.07% | Q175: 2.36% | R175: 0.000 | S175: 0.000 | T175: 0.000 | U175: 0 | V175: 0 | W175: 0 | X175: 0
B176: 75 | C176: 82 | D176: 32.40% | E176: 100,440.00 | F176: 7 | G176: 139,053.17 | H176: 0.00 | I176: 5.10% | J176: 5.01% | K176: 4.30% | L176: 4.18% | M176: 4.63% | N176: 4.02% | O176: 9.07% | P176: 3.48% | Q176: 2.70% | R176: 0.000 | S176: 0.000 | T176: 0.000 | U176: 0 | V176: 0 | W176: 0 | X176: 0
B177: 75 | C177: 83 | D177: 32.40% | E177: 100,440.00 | F177: 8 | G177: 144,823.88 | H177: 0.00 | I177: 5.18% | J177: 5.01% | K177: 4.55% | L177: 4.49% | M177: 4.86% | N177: 4.27% | O177: 9.44% | P177: 3.76% | Q177: 2.96% | R177: 0.000 | S177: 0.000 | T177: 0.000 | U177: 0 | V177: 0 | W177: 0 | X177: 0
B178: 75 | C178: 84 | D178: 32.40% | E178: 100,440.00 | F178: 9 | G178: 150,834.07 | H178: 0.00 | I178: 5.48% | J178: 5.19% | K178: 4.76% | L178: 4.78% | M178: 5.03% | N178: 4.51% | O178: 10.00% | P178: 4.09% | Q178: 3.26% | R178: 0.000 | S178: 0.000 | T178: 0.000 | U178: 0 | V178: 0 | W178: 0 | X178: 0
B179: 75 | C179: 85 | D179: 32.40% | E179: 100,440.00 | F179: 10 | G179: 157,093.68 | H179: 0.00 | I179: 5.73% | J179: 5.27% | K179: 4.98% | L179: 5.11% | M179: 5.20% | N179: 4.75% | O179: 10.54% | P179: 4.37% | Q179: 3.55% | R179: 0.000 | S179: 0.000 | T179: 0.000 | U179: 0 | V179: 0 | W179: 0 | X179: 0
B180: 75 | C180: 86 | D180: 32.40% | E180: 100,440.00 | F180: 11 | G180: 163,613.07 | H180: 0.00 | I180: 5.66% | J180: 5.08% | K180: 5.12% | L180: 5.38% | M180: 5.27% | N180: 4.94% | O180: 10.74% | P180: 4.48% | Q180: 3.72% | R180: 0.000 | S180: 0.000 | T180: 0.000 | U180: 0 | V180: 0 | W180: 0 | X180: 0
B181: 75 | C181: 87 | D181: 32.40% | E181: 100,440.00 | F181: 12 | G181: 170,403.01 | H181: 0.00 | I181: 5.26% | J181: 4.63% | K181: 4.93% | L181: 5.30% | M181: 5.01% | N181: 4.81% | O181: 10.28% | P181: 4.28% | Q181: 3.62% | R181: 0.000 | S181: 0.000 | T181: 0.000 | U181: 0 | V181: 0 | W181: 0 | X181: 0
B182: 75 | C182: 88 | D182: 32.40% | E182: 100,440.00 | F182: 13 | G182: 177,474.74 | H182: 0.02 | I182: 5.45% | J182: 4.60% | K182: 5.00% | L182: 5.55% | M182: 4.99% | N182: 4.94% | O182: 10.70% | P182: 4.37% | Q182: 3.79% | R182: 0.003 | S182: 0.003 | T182: 0.003 | U182: 0 | V182: 0 | W182: 0 | X182: 0
B183: 75 | C183: 89 | D183: 32.40% | E183: 100,440.00 | F183: 14 | G183: 184,839.94 | H183: 0.11 | I183: 5.06% | J183: 4.13% | K183: 4.82% | L183: 5.53% | M183: 4.71% | N183: 4.84% | O183: 10.31% | P183: 4.11% | Q183: 3.65% | R183: 0.015 | S183: 0.016 | T183: 0.019 | U183: 0 | V183: 0 | W183: 0 | X183: 0
B184: 75 | C184: 90 | D184: 32.40% | E184: 100,440.00 | F184: 15 | G184: 192,510.80 | H184: 0.50 | I184: 4.73% | J184: 3.72% | K184: 4.60% | L184: 5.49% | M184: 4.39% | N184: 4.69% | O184: 9.96% | P184: 3.85% | Q184: 3.50% | R184: 0.066 | S184: 0.073 | T184: 0.087 | U184: 0 | V184: 0 | W184: 0 | X184: 0
B185: 75 | C185: 91 | D185: 32.40% | E185: 100,440.00 | F185: 16 | G185: 200,500.00 | H185: 1.95 | I185: 4.68% | J185: 3.40% | K185: 4.25% | L185: 5.40% | M185: 3.76% | N185: 4.49% | O185: 9.83% | P185: 3.32% | Q185: 3.39% | R185: 0.241 | S185: 0.266 | T185: 0.323 | U185: 0 | V185: 0 | W185: 0 | X185: 0
B186: 75 | C186: 92 | D186: 32.40% | E186: 100,440.00 | F186: 17 | G186: 208,820.75 | H186: 6.37 | I186: 3.83% | J186: 2.70% | K186: 3.68% | L186: 4.85% | M186: 3.21% | N186: 3.95% | O186: 8.49% | P186: 2.78% | Q186: 2.88% | R186: 0.651 | S186: 0.766 | T186: 0.902 | U186: 0 | V186: 0 | W186: 0 | X186: 0
B187: 75 | C187: 93 | D187: 32.40% | E187: 100,440.00 | F187: 18 | G187: 217,486.81 | H187: 17.99 | I187: 3.25% | J187: 2.20% | K187: 3.26% | L187: 4.53% | M187: 2.80% | N187: 3.57% | O187: 7.64% | P187: 2.43% | Q187: 2.55% | R187: 1.567 | S187: 1.962 | T187: 2.269 | U187: 0 | V187: 0 | W187: 0 | X187: 0
B188: 75 | C188: 94 | D188: 32.40% | E188: 100,440.00 | F188: 19 | G188: 226,512.51 | H188: 44.89 | I188: 2.86% | J188: 1.81% | K188: 2.74% | L188: 4.04% | M188: 2.31% | N188: 3.08% | O188: 6.78% | P188: 2.08% | Q188: 2.21% | R188: 3.327 | S188: 4.232 | T188: 4.972 | U188: 1.32 | V188: 0.10 | W188: 0.12 | X188: 0.15
B189: 75 | C189: 95 | D189: 32.40% | E189: 100,440.00 | F189: 20 | G189: 235,912.78 | H189: 100.85 | I189: 2.29% | J189: 1.37% | K189: 2.18% | L189: 3.41% | M189: 1.81% | N189: 2.52% | O189: 5.62% | P189: 1.67% | Q189: 1.80% | R189: 5.898 | S189: 7.799 | T189: 9.169 | U189: 9.88 | V189: 0.58 | W189: 0.76 | X189: 0.90
B190: 75 | C190: 96 | D190: 32.40% | E190: 100,440.00 | F190: 21 | G190: 245,703.16 | H190: 206.97 | I190: 1.77% | J190: 1.01% | K190: 1.67% | L190: 2.75% | M190: 1.35% | N190: 1.98% | O190: 4.47% | P190: 1.30% | Q190: 1.41% | R190: 9.205 | S190: 12.583 | T190: 14.861 | U190: 41.22 | V190: 1.83 | W190: 2.51 | X190: 2.96
B191: 75 | C191: 97 | D191: 32.40% | E191: 100,440.00 | F191: 22 | G191: 255,899.84 | H191: 392.81 | I191: 1.34% | J191: 0.72% | K191: 1.26% | L191: 2.22% | M191: 1.00% | N191: 1.54% | O191: 3.54% | P191: 1.01% | Q191: 1.10% | R191: 13.039 | S191: 18.717 | T191: 22.162 | U191: 90.91 | V191: 3.02 | W191: 4.33 | X191: 5.13
B192: 75 | C192: 98 | D192: 32.40% | E192: 100,440.00 | F192: 23 | G192: 266,519.68 | H192: 696.51 | I192: 1.10% | J192: 0.52% | K192: 0.89% | L192: 1.66% | M192: 0.69% | N192: 1.13% | O192: 2.74% | P192: 0.77% | Q192: 0.84% | R192: 17.474 | S192: 24.225 | T192: 30.262 | U192: 250.14 | V192: 6.28 | W192: 8.70 | X192: 10.87
B193: 75 | C193: 99 | D193: 32.40% | E193: 100,440.00 | F193: 24 | G193: 277,580.25 | H193: 1,163.81 | I193: 0.76% | J193: 0.32% | K193: 0.65% | L193: 1.32% | M193: 0.49% | N193: 0.85% | O193: 2.07% | P193: 0.57% | Q193: 0.63% | R193: 20.152 | S193: 30.917 | T193: 38.073 | U193: 528.61 | V193: 9.15 | W193: 14.04 | X193: 17.29
B194: 75 | C194: 100 | D194: 32.40% | E194: 100,440.00 | F194: 25 | G194: 289,099.83 | H194: 1,846.00 | I194: 0.42% | J194: 0.18% | K194: 0.43% | L194: 0.94% | M194: 0.32% | N194: 0.59% | O194: 1.36% | P194: 0.37% | Q194: 0.41% | R194: 18.993 | S194: 34.165 | T194: 39.571 | U194: 1,063.79 | V194: 10.94 | W194: 19.69 | X194: 22.80
B195: 80 | C195: 80 | D195: 36.50% | E195: 113,150.00 | F195: 0 | G195: 117,845.73 | H195: 0.00 | I195: 5.72% | J195: 5.80% | K195: 4.39% | L195: 4.17% | M195: 4.91% | N195: 4.08% | O195: 9.66% | P195: 2.97% | Q195: 2.28% | R195: 0.000 | S195: 0.000 | T195: 0.000 | U195: 0 | V195: 0 | W195: 0 | X195: 0
B196: 80 | C196: 81 | D196: 36.50% | E196: 113,150.00 | F196: 1 | G196: 122,736.32 | H196: 0.00 | I196: 6.02% | J196: 6.13% | K196: 4.62% | L196: 4.36% | M196: 5.12% | N196: 4.23% | O196: 10.11% | P196: 3.39% | Q196: 2.54% | R196: 0.000 | S196: 0.000 | T196: 0.000 | U196: 0 | V196: 0 | W196: 0 | X196: 0
B197: 80 | C197: 82 | D197: 36.50% | E197: 113,150.00 | F197: 2 | G197: 127,829.88 | H197: 0.00 | I197: 6.36% | J197: 6.37% | K197: 5.07% | L197: 4.85% | M197: 5.57% | N197: 4.67% | O197: 10.90% | P197: 3.84% | Q197: 2.91% | R197: 0.000 | S197: 0.000 | T197: 0.000 | U197: 0 | V197: 0 | W197: 0 | X197: 0
B198: 80 | C198: 83 | D198: 36.50% | E198: 113,150.00 | F198: 3 | G198: 133,134.82 | H198: 0.00 | I198: 6.46% | J198: 6.36% | K198: 5.36% | L198: 5.21% | M198: 5.84% | N198: 4.97% | O198: 11.33% | P198: 4.15% | Q198: 3.19% | R198: 0.000 | S198: 0.000 | T198: 0.000 | U198: 0 | V198: 0 | W198: 0 | X198: 0
B199: 80 | C199: 84 | D199: 36.50% | E199: 113,150.00 | F199: 4 | G199: 138,659.92 | H199: 0.00 | I199: 6.84% | J199: 6.59% | K199: 5.61% | L199: 5.55% | M199: 6.05% | N199: 5.24% | O199: 12.01% | P199: 4.51% | Q199: 3.51% | R199: 0.000 | S199: 0.000 | T199: 0.000 | U199: 0 | V199: 0 | W199: 0 | X199: 0
B200: 80 | C200: 85 | D200: 36.50% | E200: 113,150.00 | F200: 5 | G200: 144,414.30 | H200: 0.00 | I200: 7.15% | J200: 6.70% | K200: 5.86% | L200: 5.92% | M200: 6.25% | N200: 5.53% | O200: 12.64% | P200: 4.82% | Q200: 3.83% | R200: 0.000 | S200: 0.000 | T200: 0.000 | U200: 0 | V200: 0 | W200: 0 | X200: 0
B201: 80 | C201: 86 | D201: 36.50% | E201: 113,150.00 | F201: 6 | G201: 150,407.50 | H201: 0.00 | I201: 7.06% | J201: 6.46% | K201: 6.03% | L201: 6.24% | M201: 6.34% | N201: 5.74% | O201: 12.86% | P201: 4.94% | Q201: 4.01% | R201: 0.000 | S201: 0.000 | T201: 0.000 | U201: 0 | V201: 0 | W201: 0 | X201: 0
B202: 80 | C202: 87 | D202: 36.50% | E202: 113,150.00 | F202: 7 | G202: 156,649.41 | H202: 0.00 | I202: 6.56% | J202: 5.88% | K202: 5.81% | L202: 6.14% | M202: 6.02% | N202: 5.60% | O202: 12.30% | P202: 4.71% | Q202: 3.90% | R202: 0.000 | S202: 0.000 | T202: 0.000 | U202: 0 | V202: 0 | W202: 0 | X202: 0
B203: 80 | C203: 88 | D203: 36.50% | E203: 113,150.00 | F203: 8 | G203: 163,150.36 | H203: 0.00 | I203: 6.80% | J203: 5.85% | K203: 5.89% | L203: 6.44% | M203: 6.00% | N203: 5.75% | O203: 12.80% | P203: 4.82% | Q203: 4.08% | R203: 0.000 | S203: 0.000 | T203: 0.000 | U203: 0 | V203: 0 | W203: 0 | X203: 0
... 45 more rows

Sheet Output
B2: Age | C2: Initial Loan | D2: GBM-rnMale | E2: GBM-rnFemale | F2: GBM-rnJoint | G2: ArmaEgarchMale | H2: ArmaEgarchFemale | I2: ArmaEgarchJoint
B3: 60 | C3: =VLOOKUP(B3,Input!$B$15:$E$248,4,FALSE) -> 52,700.00 | D3: =SUMIF(Input!$B$15:$B$248,"=60",Input!$R$15:$R$248)/C3 -> 0.09% | E3: =SUMIF(Input!$B$15:$B$248,"=60",Input!$S$15:$S$248)/C3 -> 0.14% | F3: =SUMIF(Input!$B$15:$B$248,"=60",Input!$T$15:$T$248)/C3 -> 0.17% | G3: =SUMIF(Input!$B$15:$B$248,"=60",Input!$V$15:$V$248)/C3 -> 0.02% | H3: =SUMIF(Input!$B$15:$B$248,"=60",Input!$W$15:$W$248)/C3 -> 0.03% | I3: =SUMIF(Input!$B$15:$B$248,"=60",Input!$X$15:$X$248)/C3 -> 0.04%
B4: =B3+5 -> 65 | C4: =VLOOKUP(B4,Input!$B$15:$E$248,4,FALSE) -> 69,750.00 | D4: =SUMIF(Input!$B$15:$B$248,"=65",Input!$R$15:$R$248)/C4 -> 0.18% | E4: =SUMIF(Input!$B$15:$B$248,"=65",Input!$S$15:$S$248)/C4 -> 0.27% | F4: =SUMIF(Input!$B$15:$B$248,"=65",Input!$T$15:$T$248)/C4 -> 0.34% | G4: =SUMIF(Input!$B$15:$B$248,"=65",Input!$V$15:$V$248)/C4 -> 0.06% | H4: =SUMIF(Input!$B$15:$B$248,"=65",Input!$W$15:$W$248)/C4 -> 0.09% | I4: =SUMIF(Input!$B$15:$B$248,"=65",Input!$X$15:$X$248)/C4 -> 0.11%
B5: =B4+5 -> 70 | C5: =VLOOKUP(B5,Input!$B$15:$E$248,4,FALSE) -> 88,350.00 | D5: =SUMIF(Input!$B$15:$B$248,"=70",Input!$R$15:$R$248)/C5 -> 0.24% | E5: =SUMIF(Input!$B$15:$B$248,"=70",Input!$S$15:$S$248)/C5 -> 0.36% | F5: =SUMIF(Input!$B$15:$B$248,"=70",Input!$T$15:$T$248)/C5 -> 0.43% | G5: =SUMIF(Input!$B$15:$B$248,"=70",Input!$V$15:$V$248)/C5 -> 0.09% | H5: =SUMIF(Input!$B$15:$B$248,"=70",Input!$W$15:$W$248)/C5 -> 0.14% | I5: =SUMIF(Input!$B$15:$B$248,"=70",Input!$X$15:$X$248)/C5 -> 0.17%
B6: 75 | C6: =VLOOKUP(B6,Input!$B$15:$E$248,4,FALSE) -> 100,440.00 | D6: =SUMIF(Input!$B$15:$B$248,"=75",Input!$R$15:$R$248)/C6 -> 0.09% | E6: =SUMIF(Input!$B$15:$B$248,"=75",Input!$S$15:$S$248)/C6 -> 0.14% | F6: =SUMIF(Input!$B$15:$B$248,"=75",Input!$T$15:$T$248)/C6 -> 0.16% | G6: =SUMIF(Input!$B$15:$B$248,"=75",Input!$V$15:$V$248)/C6 -> 0.03% | H6: =SUMIF(Input!$B$15:$B$248,"=75",Input!$W$15:$W$248)/C6 -> 0.05% | I6: =SUMIF(Input!$B$15:$B$248,"=75",Input!$X$15:$X$248)/C6 -> 0.06%
B7: 80 | C7: =VLOOKUP(B7,Input!$B$15:$E$248,4,FALSE) -> 113,150.00 | D7: =SUMIF(Input!$B$15:$B$248,"=80",Input!$R$15:$R$248)/C7 -> 0.02% | E7: =SUMIF(Input!$B$15:$B$248,"=80",Input!$S$15:$S$248)/C7 -> 0.04% | F7: =SUMIF(Input!$B$15:$B$248,"=80",Input!$T$15:$T$248)/C7 -> 0.04% | G7: =SUMIF(Input!$B$15:$B$248,"=80",Input!$V$15:$V$248)/C7 -> 0.00% | H7: =SUMIF(Input!$B$15:$B$248,"=80",Input!$W$15:$W$248)/C7 -> 0.01% | I7: =SUMIF(Input!$B$15:$B$248,"=80",Input!$X$15:$X$248)/C7 -> 0.01%
B8: 85 | C8: =VLOOKUP(B8,Input!$B$15:$E$248,4,FALSE) -> 128,650.00 | D8: =SUMIF(Input!$B$15:$B$248,"=85",Input!$R$15:$R$248)/C8 -> 0.00% | E8: =SUMIF(Input!$B$15:$B$248,"=85",Input!$S$15:$S$248)/C8 -> 0.01% | F8: =SUMIF(Input!$B$15:$B$248,"=85",Input!$T$15:$T$248)/C8 -> 0.01% | G8: =SUMIF(Input!$B$15:$B$248,"=85",Input!$V$15:$V$248)/C8 -> 0.00% | H8: =SUMIF(Input!$B$15:$B$248,"=85",Input!$W$15:$W$248)/C8 -> 0.00% | I8: =SUMIF(Input!$B$15:$B$248,"=85",Input!$X$15:$X$248)/C8 -> 0.00%
B9: 90 | C9: =VLOOKUP(B9,Input!$B$15:$E$248,4,FALSE) -> 128,650.00 | D9: =SUMIF(Input!$B$15:$B$248,"=90",Input!$R$15:$R$248)/C9 -> 0.00% | E9: =SUMIF(Input!$B$15:$B$248,"=90",Input!$S$15:$S$248)/C9 -> 0.00% | F9: =SUMIF(Input!$B$15:$B$248,"=90",Input!$T$15:$T$248)/C9 -> 0.00% | G9: =SUMIF(Input!$B$15:$B$248,"=90",Input!$V$15:$V$248)/C9 -> 0.00% | H9: =SUMIF(Input!$B$15:$B$248,"=90",Input!$W$15:$W$248)/C9 -> 0.00% | I9: =SUMIF(Input!$B$15:$B$248,"=90",Input!$X$15:$X$248)/C9 -> 0.00%
B10: 95 | C10: =VLOOKUP(B10,Input!$B$15:$E$248,4,FALSE) -> 128,650.00 | D10: =SUMIF(Input!$B$15:$B$248,"=95",Input!$R$15:$R$248)/C10 -> 0.00% | E10: =SUMIF(Input!$B$15:$B$248,"=695",Input!$S$15:$S$248)/C10 -> 0.00% | F10: =SUMIF(Input!$B$15:$B$248,"=95",Input!$T$15:$T$248)/C10 -> 0.00% | G10: =SUMIF(Input!$B$15:$B$248,"=95",Input!$V$15:$V$248)/C10 -> 0.00% | H10: =SUMIF(Input!$B$15:$B$248,"=95",Input!$W$15:$W$248)/C10 -> 0.00% | I10: =SUMIF(Input!$B$15:$B$248,"=95",Input!$X$15:$X$248)/C10 -> 0.00%

Sheet CondVol (hidden)
B1: month_1 | C1: month_2 | D1: month_3 | E1: month_4 | F1: month_5 | G1: month_6 | H1: month_7 | I1: month_8 | J1: month_9 | K1: month_10 | L1: month_11 | M1: month_12 | N1: month_13 | O1: month_14 | P1: month_15 | Q1: month_16 | R1: month_17 | S1: month_18 | T1: month_19 | U1: month_20 | V1: month_21 | W1: month_22 | X1: month_23 | Y1: month_24 | Z1: month_25 | AA1: month_26 | AB1: month_27 | AC1: month_28 | AD1: month_29 | AE1: month_30 | AF1: month_31 | AG1: month_32 | AH1: month_33 | AI1: month_34 | AJ1: month_35 | AK1: month_36 | AL1: month_37 | AM1: month_38 | AN1: month_39 | AO1: month_40 | AP1: month_41 | AQ1: month_42 | AR1: month_43 | AS1: month_44 | AT1: month_45 | AU1: month_46 | AV1: month_47 | AW1: month_48 | AX1: month_49 | AY1: month_50 | AZ1: month_51 | BA1: month_52 | BB1: month_53 | BC1: month_54 | BD1: month_55 | BE1: month_56 | BF1: month_57 | BG1: month_58 | BH1: month_59 | BI1: month_60 | BJ1: month_61 | BK1: month_62 | BL1: month_63 | BM1: month_64 | BN1: month_65 | BO1: month_66 | BP1: month_67 | BQ1: month_68 | BR1: month_69 | BS1: month_70 | BT1: month_71 | BU1: month_72 | BV1: month_73 | BW1: month_74 | BX1: month_75 | BY1: month_76 | BZ1: month_77 | CA1: month_78 | CB1: month_79 | CC1: month_80 | CD1: month_81 | CE1: month_82 | CF1: month_83 | CG1: month_84 | CH1: month_85 | CI1: month_86 | CJ1: month_87 | CK1: month_88 | CL1: month_89 | CM1: month_90 | CN1: month_91 | CO1: month_92 | CP1: month_93 | CQ1: month_94 | CR1: month_95 | CS1: month_96 | CT1: month_97 | CU1: month_98 | CV1: month_99 | CW1: month_100 | CX1: month_101 | CY1: month_102 | CZ1: month_103 | DA1: month_104 | DB1: month_105 | DC1: month_106 | DD1: month_107 | DE1: month_108 | DF1: month_109 | DG1: month_110 | DH1: month_111 | DI1: month_112 | DJ1: month_113 | DK1: month_114 | DL1: month_115 | DM1: month_116 | DN1: month_117 | DO1: month_118 | DP1: month_119 | DQ1: month_120 | DR1: month_121 | DS1: month_122 | DT1: month_123 | DU1: month_124 | DV1: month_125 | DW1: month_126 | DX1: month_127 | DY1: month_128 | DZ1: month_129 | EA1: month_130 | EB1: month_131 | EC1: month_132 | ED1: month_133 | EE1: month_134 | EF1: month_135 | EG1: month_136 | EH1: month_137 | EI1: month_138 | EJ1: month_139 | EK1: month_140 | EL1: month_141 | EM1: month_142 | EN1: month_143 | EO1: month_144 | EP1: month_145 | EQ1: month_146 | ER1: month_147 | ES1: month_148 | ET1: month_149 | EU1: month_150 | EV1: month_151 | EW1: month_152 | EX1: month_153 | EY1: month_154 | EZ1: month_155 | FA1: month_156 | FB1: month_157 | FC1: month_158 | FD1: month_159 | FE1: month_160 | FF1: month_161 | FG1: month_162 | FH1: month_163 | FI1: month_164 | FJ1: month_165 | FK1: month_166 | FL1: month_167 | FM1: month_168 | FN1: month_169 | FO1: month_170 | FP1: month_171 | FQ1: month_172 | FR1: month_173 | FS1: month_174 | FT1: month_175 | FU1: month_176 | FV1: month_177 | FW1: month_178 | FX1: month_179 | FY1: month_180 | FZ1: month_181 | GA1: month_182 | GB1: month_183 | GC1: month_184 | GD1: month_185 | GE1: month_186 | GF1: month_187 | GG1: month_188 | GH1: month_189 | GI1: month_190 | GJ1: month_191 | GK1: month_192 | GL1: month_193 | GM1: month_194 | GN1: month_195 | GO1: month_196 | GP1: month_197 | GQ1: month_198 | GR1: month_199 | GS1: month_200 | GT1: month_201 | GU1: month_202 | GV1: month_203 | GW1: month_204 | GX1: month_205 | GY1: month_206 | GZ1: month_207 | HA1: month_208 | HB1: month_209 | HC1: month_210 | HD1: month_211 | HE1: month_212 | HF1: month_213 | HG1: month_214 | HH1: month_215 | HI1: month_216 | HJ1: month_217 | HK1: month_218 | HL1: month_219 | HM1: month_220 | HN1: month_221 | HO1: month_222 | HP1: month_223 | HQ1: month_224 | HR1: month_225 | HS1: month_226 | HT1: month_227 | HU1: month_228 | HV1: month_229 | HW1: month_230 | HX1: month_231 | HY1: month_232 | HZ1: month_233 | IA1: month_234 | IB1: month_235 | IC1: month_236 | ID1: month_237 | IE1: month_238 | IF1: month_239 | IG1: month_240 | IH1: month_241 | II1: month_242 | IJ1: month_243 | IK1: month_244 | IL1: month_245 | IM1: month_246 | IN1: month_247 | IO1: month_248 | IP1: month_249 | IQ1: month_250 | IR1: month_251 | IS1: month_252 | IT1: month_253 | IU1: month_254 | IV1: month_255 | IW1: month_256 | IX1: month_257 | IY1: month_258 | IZ1: month_259 | JA1: month_260 | JB1: month_261 | JC1: month_262 | JD1: month_263 | JE1: month_264 | JF1: month_265 | JG1: month_266 | JH1: month_267 | JI1: month_268 | JJ1: month_269 | JK1: month_270 | JL1: month_271 | JM1: month_272 | JN1: month_273 | JO1: month_274 | JP1: month_275 | JQ1: month_276 | JR1: month_277 | JS1: month_278 | JT1: month_279 | JU1: month_280 | JV1: month_281 | JW1: month_282 | JX1: month_283 | JY1: month_284 | JZ1: month_285 | KA1: month_286 | KB1: month_287 | KC1: month_288 | KD1: month_289 | KE1: month_290 | KF1: month_291 | KG1: month_292 | KH1: month_293 | KI1: month_294 | KJ1: month_295 | KK1: month_296 | KL1: month_297 | KM1: month_298 | KN1: month_299 | KO1: month_300 | KP1: month_301 | KQ1: month_302 | KR1: month_303 | KS1: month_304 | KT1: month_305 | KU1: month_306 | KV1: month_307 | KW1: month_308 | KX1: month_309 | KY1: month_310 | KZ1: month_311 | LA1: month_312 | LB1: month_313 | LC1: month_314 | LD1: month_315 | LE1: month_316 | LF1: month_317 | LG1: month_318 | LH1: month_319 | LI1: month_320 | LJ1: month_321 | LK1: month_322 | LL1: month_323 | LM1: month_324 | LN1: month_325 | LO1: month_326 | LP1: month_327 | LQ1: month_328 | LR1: month_329 | LS1: month_330 | LT1: month_331 | LU1: month_332 | LV1: month_333 | LW1: month_334 | LX1: month_335 | LY1: month_336 | LZ1: month_337 | MA1: month_338 | MB1: month_339 | MC1: month_340 | MD1: month_341 | ME1: month_342 | MF1: month_343 | MG1: month_344 | MH1: month_345 | MI1: month_346 | MJ1: month_347 | MK1: month_348 | ML1: month_349 | MM1: month_350 | MN1: month_351 | MO1: month_352 | MP1: month_353 | MQ1: month_354 | MR1: month_355 | MS1: month_356 | MT1: month_357 | MU1: month_358 | MV1: month_359 | MW1: month_360 | MX1: month_361 | MY1: month_362 | MZ1: month_363 | NA1: month_364 | NB1: month_365 | NC1: month_366 | ND1: month_367 | NE1: month_368 | NF1: month_369 | NG1: month_370 | NH1: month_371 | NI1: month_372 | NJ1: month_373 | NK1: month_374 | NL1: month_375 | NM1: month_376 | NN1: month_377 | NO1: month_378 | NP1: month_379 | NQ1: month_380 | NR1: month_381 | NS1: month_382 | NT1: month_383 | NU1: month_384 | NV1: month_385 | NW1: month_386 | NX1: month_387 | NY1: month_388 | NZ1: month_389 | OA1: month_390 | OB1: month_391 | OC1: month_392 | OD1: month_393 | OE1: month_394 | OF1: month_395 | OG1: month_396 | OH1: month_397 | OI1: month_398 | OJ1: month_399 | OK1: month_400 | OL1: month_401 | OM1: month_402 | ON1: month_403 | OO1: month_404 | OP1: month_405 | OQ1: month_406 | OR1: month_407 | OS1: month_408 | OT1: month_409 | OU1: month_410 | OV1: month_411 | OW1: month_412 | OX1: month_413 | OY1: month_414 | OZ1: month_415 | PA1: month_416 | PB1: month_417 | PC1: month_418 | PD1: month_419 | PE1: month_420 | PF1: month_421 | PG1: month_422 | PH1: month_423 | PI1: month_424 | PJ1: month_425 | PK1: month_426 | PL1: month_427 | PM1: month_428 | PN1: month_429 | PO1: month_430 | PP1: month_431 | PQ1: month_432 | PR1: month_433 | PS1: month_434 | PT1: month_435 | PU1: month_436 | PV1: month_437 | PW1: month_438 | PX1: month_439 | PY1: month_440 | PZ1: month_441 | QA1: month_442 | QB1: month_443 | QC1: month_444 | QD1: month_445 | QE1: month_446 | QF1: month_447 | QG1: month_448 | QH1: month_449 | QI1: month_450 | QJ1: month_451 | QK1: month_452 | QL1: month_453 | QM1: month_454 | QN1: month_455 | QO1: month_456 | QP1: month_457 | QQ1: month_458 | QR1: month_459 | QS1: month_460 | QT1: month_461 | QU1: month_462 | QV1: month_463 | QW1: month_464 | QX1: month_465 | QY1: month_466 | QZ1: month_467 | RA1: month_468 | RB1: month_469 | RC1: month_470 | RD1: month_471 | RE1: month_472 | RF1: month_473 | RG1: month_474 | RH1: month_475 | RI1: month_476 | RJ1: month_477 | RK1: month_478 | RL1: month_479 | RM1: month_480 | RN1: month_481 | RO1: month_482 | RP1: month_483 | RQ1: month_484 | RR1: month_485 | RS1: month_486 | RT1: month_487 | RU1: month_488 | RV1: month_489 | RW1: month_490 | RX1: month_491 | RY1: month_492 | RZ1: month_493 | SA1: month_494 | SB1: month_495 | SC1: month_496 | SD1: month_497 | SE1: month_498 | SF1: month_499 | SG1: month_500 | SH1: month_501 | SI1: month_502 | SJ1: month_503 | SK1: month_504 | SL1: month_505 | SM1: month_506 | SN1: month_507 | SO1: month_508 | SP1: month_509 | SQ1: month_510 | SR1: month_511 | SS1: month_512 | ST1: month_513 | SU1: month_514 | SV1: month_515 | SW1: month_516 | SX1: month_517 | SY1: month_518 | SZ1: month_519 | TA1: month_520 | TB1: month_521 | TC1: month_522 | TD1: month_523 | TE1: month_524 | TF1: month_525 | TG1: month_526 | TH1: month_527 | TI1: month_528 | TJ1: month_529 | TK1: month_530 | TL1: month_531 | TM1: month_532 | TN1: month_533 | TO1: month_534 | TP1: month_535 | TQ1: month_536 | TR1: month_537 | TS1: month_538 | TT1: month_539 | TU1: month_540 | TV1: month_541 | TW1: month_542 | TX1: month_543 | TY1: month_544 | TZ1: month_545 | UA1: month_546 | UB1: month_547 | UC1: month_548 | UD1: month_549 | UE1: month_550 | UF1: month_551 | UG1: month_552
A2: sim_1 | B2: 0.008399503151 | C2: 0.008399503151 | D2: 0.008399503151 | E2: 0.008399503151 | F2: 0.008399503151 | G2: 0.008399503151 | H2: 0.008399503151 | I2: 0.008399503151 | J2: 0.008399503151 | K2: 0.008399503151 | L2: 0.008399503151 | M2: 0.008399503151 | N2: 0.008399503151 | O2: 0.008399503151 | P2: 0.008399503151 | Q2: 0.008399503151 | R2: 0.008399503151 | S2: 0.008399503151 | T2: 0.008399503151 | U2: 0.008399503151 | V2: 0.008399503151 | W2: 0.008399503151 | X2: 0.008399503151 | Y2: 0.008399503151 | Z2: 0.008399503151 | AA2: 0.008399503151 | AB2: 0.008399503151 | AC2: 0.008399503151 | AD2: 0.008399503151 | AE2: 0.008399503151 | AF2: 0.008399503151 | AG2: 0.008399503151 | AH2: 0.008399503151 | AI2: 0.008399503151 | AJ2: 0.008399503151 | AK2: 0.008399503151 | AL2: 0.008399503151 | AM2: 0.008399503151 | AN2: 0.008399503151 | AO2: 0.008399503151 | AP2: 0.008399503151 | AQ2: 0.008399503151 | AR2: 0.008399503151 | AS2: 0.008399503151 | AT2: 0.008399503151 | AU2: 0.008399503151 | AV2: 0.008399503151 | AW2: 0.008399503151 | AX2: 0.008399503151 | AY2: 0.008399503151 | AZ2: 0.008399503151 | BA2: 0.008399503151 | BB2: 0.008399503151 | BC2: 0.008399503151 | BD2: 0.008399503151 | BE2: 0.008399503151 | BF2: 0.008399503151 | BG2: 0.008399503151 | BH2: 0.008399503151 | BI2: 0.008399503151 | BJ2: 0.008399503151 | BK2: 0.008399503151 | BL2: 0.008399503151 | BM2: 0.008399503151 | BN2: 0.008399503151 | BO2: 0.008399503151 | BP2: 0.008399503151 | BQ2: 0.008399503151 | BR2: 0.008399503151 | BS2: 0.008399503151 | BT2: 0.008399503151 | BU2: 0.008399503151 | BV2: 0.008399503151 | BW2: 0.008399503151 | BX2: 0.008399503151 | BY2: 0.008399503151 | BZ2: 0.008399503151 | CA2: 0.008399503151 | CB2: 0.008399503151 | CC2: 0.008399503151 | CD2: 0.008399503151 | CE2: 0.008399503151 | CF2: 0.008399503151 | CG2: 0.008399503151 | CH2: 0.008399503151 | CI2: 0.008399503151 | CJ2: 0.008399503151 | CK2: 0.008399503151 | CL2: 0.008399503151 | CM2: 0.008399503151 | CN2: 0.008399503151 | CO2: 0.008399503151 | CP2: 0.008399503151 | CQ2: 0.008399503151 | CR2: 0.008399503151 | CS2: 0.008399503151 | CT2: 0.008399503151 | CU2: 0.008399503151 | CV2: 0.008399503151 | CW2: 0.008399503151 | CX2: 0.008399503151 | CY2: 0.008399503151 | CZ2: 0.008399503151 | DA2: 0.008399503151 | DB2: 0.008399503151 | DC2: 0.008399503151 | DD2: 0.008399503151 | DE2: 0.008399503151 | DF2: 0.008399503151 | DG2: 0.008399503151 | DH2: 0.008399503151 | DI2: 0.008399503151 | DJ2: 0.008399503151 | DK2: 0.008399503151 | DL2: 0.008399503151 | DM2: 0.008399503151 | DN2: 0.008399503151 | DO2: 0.008399503151 | DP2: 0.008399503151 | DQ2: 0.008399503151 | DR2: 0.008399503151 | DS2: 0.008399503151 | DT2: 0.008399503151 | DU2: 0.008399503151 | DV2: 0.008399503151 | DW2: 0.008399503151 | DX2: 0.008399503151 | DY2: 0.008399503151 | DZ2: 0.008399503151 | EA2: 0.008399503151 | EB2: 0.008399503151 | EC2: 0.008399503151 | ED2: 0.008399503151 | EE2: 0.008399503151 | EF2: 0.008399503151 | EG2: 0.008399503151 | EH2: 0.008399503151 | EI2: 0.008399503151 | EJ2: 0.008399503151 | EK2: 0.008399503151 | EL2: 0.008399503151 | EM2: 0.008399503151 | EN2: 0.008399503151 | EO2: 0.008399503151 | EP2: 0.008399503151 | EQ2: 0.008399503151 | ER2: 0.008399503151 | ES2: 0.008399503151 | ET2: 0.008399503151 | EU2: 0.008399503151 | EV2: 0.008399503151 | EW2: 0.008399503151 | EX2: 0.008399503151 | EY2: 0.008399503151 | EZ2: 0.008399503151 | FA2: 0.008399503151 | FB2: 0.008399503151 | FC2: 0.008399503151 | FD2: 0.008399503151 | FE2: 0.008399503151 | FF2: 0.008399503151 | FG2: 0.008399503151 | FH2: 0.008399503151 | FI2: 0.008399503151 | FJ2: 0.008399503151 | FK2: 0.008399503151 | FL2: 0.008399503151 | FM2: 0.008399503151 | FN2: 0.008399503151 | FO2: 0.008399503151 | FP2: 0.008399503151 | FQ2: 0.008399503151 | FR2: 0.008399503151 | FS2: 0.008399503151 | FT2: 0.008399503151 | FU2: 0.008399503151 | FV2: 0.008399503151 | FW2: 0.008399503151 | FX2: 0.008399503151 | FY2: 0.008399503151 | FZ2: 0.008399503151 | GA2: 0.008399503151 | GB2: 0.008399503151 | GC2: 0.008399503151 | GD2: 0.008399503151 | GE2: 0.008399503151 | GF2: 0.008399503151 | GG2: 0.008399503151 | GH2: 0.008399503151 | GI2: 0.008399503151 | GJ2: 0.008399503151 | GK2: 0.008399503151 | GL2: 0.008399503151 | GM2: 0.008399503151 | GN2: 0.008399503151 | GO2: 0.008399503151 | GP2: 0.008399503151 | GQ2: 0.008399503151 | GR2: 0.008399503151 | GS2: 0.008399503151 | GT2: 0.008399503151 | GU2: 0.008399503151 | GV2: 0.008399503151 | GW2: 0.008399503151 | GX2: 0.008399503151 | GY2: 0.008399503151 | GZ2: 0.008399503151 | HA2: 0.008399503151 | HB2: 0.008399503151 | HC2: 0.008399503151 | HD2: 0.008399503151 | HE2: 0.008399503151 | HF2: 0.008399503151 | HG2: 0.008399503151 | HH2: 0.008399503151 | HI2: 0.008399503151 | HJ2: 0.008399503151 | HK2: 0.008399503151 | HL2: 0.008399503151 | HM2: 0.008399503151 | HN2: 0.008399503151 | HO2: 0.008399503151 | HP2: 0.008399503151 | HQ2: 0.008399503151 | HR2: 0.008399503151 | HS2: 0.008399503151 | HT2: 0.008399503151 | HU2: 0.008399503151 | HV2: 0.008399503151 | HW2: 0.008399503151 | HX2: 0.008399503151 | HY2: 0.008399503151 | HZ2: 0.008399503151 | IA2: 0.008399503151 | IB2: 0.008399503151 | IC2: 0.008399503151 | ID2: 0.008399503151 | IE2: 0.008399503151 | IF2: 0.008399503151 | IG2: 0.008399503151 | IH2: 0.008399503151 | II2: 0.008399503151 | IJ2: 0.008399503151 | IK2: 0.008399503151 | IL2: 0.008399503151 | IM2: 0.008399503151 | IN2: 0.008399503151 | IO2: 0.008399503151 | IP2: 0.008399503151 | IQ2: 0.008399503151 | IR2: 0.008399503151 | IS2: 0.008399503151 | IT2: 0.008399503151 | IU2: 0.008399503151 | IV2: 0.008399503151 | IW2: 0.008399503151 | IX2: 0.008399503151 | IY2: 0.008399503151 | IZ2: 0.008399503151 | JA2: 0.008399503151 | JB2: 0.008399503151 | JC2: 0.008399503151 | JD2: 0.008399503151 | JE2: 0.008399503151 | JF2: 0.008399503151 | JG2: 0.008399503151 | JH2: 0.008399503151 | JI2: 0.008399503151 | JJ2: 0.008399503151 | JK2: 0.008399503151 | JL2: 0.008399503151 | JM2: 0.008399503151 | JN2: 0.008399503151 | JO2: 0.008399503151 | JP2: 0.008399503151 | JQ2: 0.008399503151 | JR2: 0.008399503151 | JS2: 0.008399503151 | JT2: 0.008399503151 | JU2: 0.008399503151 | JV2: 0.008399503151 | JW2: 0.008399503151 | JX2: 0.008399503151 | JY2: 0.008399503151 | JZ2: 0.008399503151 | KA2: 0.008399503151 | KB2: 0.008399503151 | KC2: 0.008399503151 | KD2: 0.008399503151 | KE2: 0.008399503151 | KF2: 0.008399503151 | KG2: 0.008399503151 | KH2: 0.008399503151 | KI2: 0.008399503151 | KJ2: 0.008399503151 | KK2: 0.008399503151 | KL2: 0.008399503151 | KM2: 0.008399503151 | KN2: 0.008399503151 | KO2: 0.008399503151 | KP2: 0.008399503151 | KQ2: 0.008399503151 | KR2: 0.008399503151 | KS2: 0.008399503151 | KT2: 0.008399503151 | KU2: 0.008399503151 | KV2: 0.008399503151 | KW2: 0.008399503151 | KX2: 0.008399503151 | KY2: 0.008399503151 | KZ2: 0.008399503151 | LA2: 0.008399503151 | LB2: 0.008399503151 | LC2: 0.008399503151 | LD2: 0.008399503151 | LE2: 0.008399503151 | LF2: 0.008399503151 | LG2: 0.008399503151 | LH2: 0.008399503151 | LI2: 0.008399503151 | LJ2: 0.008399503151 | LK2: 0.008399503151 | LL2: 0.008399503151 | LM2: 0.008399503151 | LN2: 0.008399503151 | LO2: 0.008399503151 | LP2: 0.008399503151 | LQ2: 0.008399503151 | LR2: 0.008399503151 | LS2: 0.008399503151 | LT2: 0.008399503151 | LU2: 0.008399503151 | LV2: 0.008399503151 | LW2: 0.008399503151 | LX2: 0.008399503151 | LY2: 0.008399503151 | LZ2: 0.008399503151 | MA2: 0.008399503151 | MB2: 0.008399503151 | MC2: 0.008399503151 | MD2: 0.008399503151 | ME2: 0.008399503151 | MF2: 0.008399503151 | MG2: 0.008399503151 | MH2: 0.008399503151 | MI2: 0.008399503151 | MJ2: 0.008399503151 | MK2: 0.008399503151 | ML2: 0.008399503151 | MM2: 0.008399503151 | MN2: 0.008399503151 | MO2: 0.008399503151 | MP2: 0.008399503151 | MQ2: 0.008399503151 | MR2: 0.008399503151 | MS2: 0.008399503151 | MT2: 0.008399503151 | MU2: 0.008399503151 | MV2: 0.008399503151 | MW2: 0.008399503151 | MX2: 0.008399503151 | MY2: 0.008399503151 | MZ2: 0.008399503151 | NA2: 0.008399503151 | NB2: 0.008399503151 | NC2: 0.008399503151 | ND2: 0.008399503151 | NE2: 0.008399503151 | NF2: 0.008399503151 | NG2: 0.008399503151 | NH2: 0.008399503151 | NI2: 0.008399503151 | NJ2: 0.008399503151 | NK2: 0.008399503151 | NL2: 0.008399503151 | NM2: 0.008399503151 | NN2: 0.008399503151 | NO2: 0.008399503151 | NP2: 0.008399503151 | NQ2: 0.008399503151 | NR2: 0.008399503151 | NS2: 0.008399503151 | NT2: 0.008399503151 | NU2: 0.008399503151 | NV2: 0.008399503151 | NW2: 0.008399503151 | NX2: 0.008399503151 | NY2: 0.008399503151 | NZ2: 0.008399503151 | OA2: 0.008399503151 | OB2: 0.008399503151 | OC2: 0.008399503151 | OD2: 0.008399503151 | OE2: 0.008399503151 | OF2: 0.008399503151 | OG2: 0.008399503151 | OH2: 0.008399503151 | OI2: 0.008399503151 | OJ2: 0.008399503151 | OK2: 0.008399503151 | OL2: 0.008399503151 | OM2: 0.008399503151 | ON2: 0.008399503151 | OO2: 0.008399503151 | OP2: 0.008399503151 | OQ2: 0.008399503151 | OR2: 0.008399503151 | OS2: 0.008399503151 | OT2: 0.008399503151 | OU2: 0.008399503151 | OV2: 0.008399503151 | OW2: 0.008399503151 | OX2: 0.008399503151 | OY2: 0.008399503151 | OZ2: 0.008399503151 | PA2: 0.008399503151 | PB2: 0.008399503151 | PC2: 0.008399503151 | PD2: 0.008399503151 | PE2: 0.008399503151 | PF2: 0.008399503151 | PG2: 0.008399503151 | PH2: 0.008399503151 | PI2: 0.008399503151 | PJ2: 0.008399503151 | PK2: 0.008399503151 | PL2: 0.008399503151 | PM2: 0.008399503151 | PN2: 0.008399503151 | PO2: 0.008399503151 | PP2: 0.008399503151 | PQ2: 0.008399503151 | PR2: 0.008399503151 | PS2: 0.008399503151 | PT2: 0.008399503151 | PU2: 0.008399503151 | PV2: 0.008399503151 | PW2: 0.008399503151 | PX2: 0.008399503151 | PY2: 0.008399503151 | PZ2: 0.008399503151 | QA2: 0.008399503151 | QB2: 0.008399503151 | QC2: 0.008399503151 | QD2: 0.008399503151 | QE2: 0.008399503151 | QF2: 0.008399503151 | QG2: 0.008399503151 | QH2: 0.008399503151 | QI2: 0.008399503151 | QJ2: 0.008399503151 | QK2: 0.008399503151 | QL2: 0.008399503151 | QM2: 0.008399503151 | QN2: 0.008399503151 | QO2: 0.008399503151 | QP2: 0.008399503151 | QQ2: 0.008399503151 | QR2: 0.008399503151 | QS2: 0.008399503151 | QT2: 0.008399503151 | QU2: 0.008399503151 | QV2: 0.008399503151 | QW2: 0.008399503151 | QX2: 0.008399503151 | QY2: 0.008399503151 | QZ2: 0.008399503151 | RA2: 0.008399503151 | RB2: 0.008399503151 | RC2: 0.008399503151 | RD2: 0.008399503151 | RE2: 0.008399503151 | RF2: 0.008399503151 | RG2: 0.008399503151 | RH2: 0.008399503151 | RI2: 0.008399503151 | RJ2: 0.008399503151 | RK2: 0.008399503151 | RL2: 0.008399503151 | RM2: 0.008399503151 | RN2: 0.008399503151 | RO2: 0.008399503151 | RP2: 0.008399503151 | RQ2: 0.008399503151 | RR2: 0.008399503151 | RS2: 0.008399503151 | RT2: 0.008399503151 | RU2: 0.008399503151 | RV2: 0.008399503151 | RW2: 0.008399503151 | RX2: 0.008399503151 | RY2: 0.008399503151 | RZ2: 0.008399503151 | SA2: 0.008399503151 | SB2: 0.008399503151 | SC2: 0.008399503151 | SD2: 0.008399503151 | SE2: 0.008399503151 | SF2: 0.008399503151 | SG2: 0.008399503151 | SH2: 0.008399503151 | SI2: 0.008399503151 | SJ2: 0.008399503151 | SK2: 0.008399503151 | SL2: 0.008399503151 | SM2: 0.008399503151 | SN2: 0.008399503151 | SO2: 0.008399503151 | SP2: 0.008399503151 | SQ2: 0.008399503151 | SR2: 0.008399503151 | SS2: 0.008399503151 | ST2: 0.008399503151 | SU2: 0.008399503151 | SV2: 0.008399503151 | SW2: 0.008399503151 | SX2: 0.008399503151 | SY2: 0.008399503151 | SZ2: 0.008399503151 | TA2: 0.008399503151 | TB2: 0.008399503151 | TC2: 0.008399503151 | TD2: 0.008399503151 | TE2: 0.008399503151 | TF2: 0.008399503151 | TG2: 0.008399503151 | TH2: 0.008399503151 | TI2: 0.008399503151 | TJ2: 0.008399503151 | TK2: 0.008399503151 | TL2: 0.008399503151 | TM2: 0.008399503151 | TN2: 0.008399503151 | TO2: 0.008399503151 | TP2: 0.008399503151 | TQ2: 0.008399503151 | TR2: 0.008399503151 | TS2: 0.008399503151 | TT2: 0.008399503151 | TU2: 0.008399503151 | TV2: 0.008399503151 | TW2: 0.008399503151 | TX2: 0.008399503151 | TY2: 0.008399503151 | TZ2: 0.008399503151 | UA2: 0.008399503151 | UB2: 0.008399503151 | UC2: 0.008399503151 | UD2: 0.008399503151 | UE2: 0.008399503151 | UF2: 0.008399503151 | UG2: 0.008399503151
A3: sim_2 | B3: 0.008975470363 | C3: 0.008972343814 | D3: 0.008070375414 | E3: 0.009496177953 | F3: 0.008283530939 | G3: 0.007906665675 | H3: 0.008187287712 | I3: 0.007854357908 | J3: 0.008047521699 | K3: 0.008877940237 | L3: 0.008001293621 | M3: 0.009544215671 | N3: 0.008158496537 | O3: 0.008402785947 | P3: 0.008491654846 | Q3: 0.008032552779 | R3: 0.008057231869 | S3: 0.008394678288 | T3: 0.008251216775 | U3: 0.007952957481 | V3: 0.007870831885 | W3: 0.007867817493 | X3: 0.008665088739 | Y3: 0.0088184984 | Z3: 0.008756518845 | AA3: 0.00786751888 | AB3: 0.008951458373 | AC3: 0.007917803527 | AD3: 0.008094152741 | AE3: 0.008198496046 | AF3: 0.008463384648 | AG3: 0.008353267361 | AH3: 0.009175609449 | AI3: 0.007897434668 | AJ3: 0.008103433775 | AK3: 0.009305592543 | AL3: 0.008409359446 | AM3: 0.008234063924 | AN3: 0.00850249975 | AO3: 0.009283349356 | AP3: 0.008477578884 | AQ3: 0.00829975776 | AR3: 0.007882791168 | AS3: 0.008582204414 | AT3: 0.00796236522 | AU3: 0.007978123778 | AV3: 0.007900510649 | AW3: 0.00845371428 | AX3: 0.009342463079 | AY3: 0.007924789026 | AZ3: 0.008099702328 | BA3: 0.008329941818 | BB3: 0.008009705917 | BC3: 0.009072230522 | BD3: 0.008462186235 | BE3: 0.009488915996 | BF3: 0.008981082818 | BG3: 0.007860137014 | BH3: 0.00866479153 | BI3: 0.008118349197 | BJ3: 0.008110455277 | BK3: 0.008377323919 | BL3: 0.007881658512 | BM3: 0.008100043045 | BN3: 0.008146979424 | BO3: 0.008854430478 | BP3: 0.008208018873 | BQ3: 0.00809926758 | BR3: 0.008075954344 | BS3: 0.008935359608 | BT3: 0.009627682568 | BU3: 0.008223191268 | BV3: 0.008389434337 | BW3: 0.008165789928 | BX3: 0.008285683729 | BY3: 0.007980140778 | BZ3: 0.007939805622 | CA3: 0.009122979523 | CB3: 0.008971250955 | CC3: 0.008381097404 | CD3: 0.007891697158 | CE3: 0.008337296408 | CF3: 0.008649059852 | CG3: 0.007942244312 | CH3: 0.007978935417 | CI3: 0.008556162825 | CJ3: 0.007877085342 | CK3: 0.008021012747 | CL3: 0.009693349703 | CM3: 0.007923433971 | CN3: 0.008148712312 | CO3: 0.007871643209 | CP3: 0.007877449014 | CQ3: 0.00801573379 | CR3: 0.008264928342 | CS3: 0.008622011782 | CT3: 0.008949167978 | CU3: 0.007856802136 | CV3: 0.008293417245 | CW3: 0.0079217522 | CX3: 0.008966376695 | CY3: 0.008605784863 | CZ3: 0.007912632437 | DA3: 0.007994288632 | DB3: 0.007944791447 | DC3: 0.009229240534 | DD3: 0.007962774465 | DE3: 0.008436259529 | DF3: 0.008201008795 | DG3: 0.00869148025 | DH3: 0.007904694912 | DI3: 0.008372882685 | DJ3: 0.008945084519 | DK3: 0.008942729329 | DL3: 0.008301577253 | DM3: 0.008068811808 | DN3: 0.008158049037 | DO3: 0.009010621103 | DP3: 0.008145480298 | DQ3: 0.008007622513 | DR3: 0.009214592322 | DS3: 0.008290040571 | DT3: 0.008374392821 | DU3: 0.01133947687 | DV3: 0.007982977829 | DW3: 0.00789507817 | DX3: 0.008077403084 | DY3: 0.008785212172 | DZ3: 0.008431240472 | EA3: 0.008129868629 | EB3: 0.008291960452 | EC3: 0.007953563832 | ED3: 0.009175451998 | EE3: 0.009148488364 | EF3: 0.008152583542 | EG3: 0.008657475773 | EH3: 0.008283175674 | EI3: 0.008060928153 | EJ3: 0.007877846887 | EK3: 0.008407685518 | EL3: 0.009204322559 | EM3: 0.008205229781 | EN3: 0.008618916681 | EO3: 0.008065659675 | EP3: 0.008185141451 | EQ3: 0.007909273632 | ER3: 0.007994514527 | ES3: 0.01035270901 | ET3: 0.007956177306 | EU3: 0.009662662732 | EV3: 0.00801107796 | EW3: 0.008412976607 | EX3: 0.008739540241 | EY3: 0.0078889742 | EZ3: 0.01139629065 | FA3: 0.008828327482 | FB3: 0.008617748814 | FC3: 0.007877890536 | FD3: 0.009855343888 | FE3: 0.008105518732 | FF3: 0.008755692437 | FG3: 0.008279315179 | FH3: 0.008064233636 | FI3: 0.008391511546 | FJ3: 0.008597604251 | FK3: 0.00814493874 | FL3: 0.01166809705 | FM3: 0.008626011218 | FN3: 0.008641969993 | FO3: 0.008046648014 | FP3: 0.009208652675 | FQ3: 0.0079068382 | FR3: 0.008343079092 | FS3: 0.007990929216 | FT3: 0.008908721597 | FU3: 0.007953641727 | FV3: 0.008123795927 | FW3: 0.008040725345 | FX3: 0.007992642008 | FY3: 0.009494626112 | FZ3: 0.008339267032 | GA3: 0.008250313472 | GB3: 0.007935194805 | GC3: 0.008876710618 | GD3: 0.008778030105 | GE3: 0.008199046751 | GF3: 0.008564071529 | GG3: 0.007907384626 | GH3: 0.008506461602 | GI3: 0.008767245681 | GJ3: 0.007902531812 | GK3: 0.008014096814 | GL3: 0.008904184149 | GM3: 0.008150090394 | GN3: 0.007880879333 | GO3: 0.008031111534 | GP3: 0.007952331569 | GQ3: 0.008730757628 | GR3: 0.009845394832 | GS3: 0.007958687963 | GT3: 0.008344049301 | GU3: 0.007958528453 | GV3: 0.008015198714 | GW3: 0.008663985135 | GX3: 0.008266050299 | GY3: 0.008516784964 | GZ3: 0.007959941923 | HA3: 0.008356369353 | HB3: 0.008604937605 | HC3: 0.008311930859 | HD3: 0.007975739844 | HE3: 0.009630820308 | HF3: 0.008643578679 | HG3: 0.008271442702 | HH3: 0.009008964469 | HI3: 0.007867877037 | HJ3: 0.008765579241 | HK3: 0.008087646629 | HL3: 0.00848487129 | HM3: 0.008129600992 | HN3: 0.008758230554 | HO3: 0.008275008458 | HP3: 0.008157001764 | HQ3: 0.008208194041 | HR3: 0.007876752914 | HS3: 0.008994373787 | HT3: 0.01026127865 | HU3: 0.008763646654 | HV3: 0.008015653444 | HW3: 0.009079979711 | HX3: 0.008128298636 | HY3: 0.007900810896 | HZ3: 0.008515105042 | IA3: 0.007942105125 | IB3: 0.007886576872 | IC3: 0.008673800802 | ID3: 0.008294209781 | IE3: 0.008108963802 | IF3: 0.008599057642 | IG3: 0.009415482487 | IH3: 0.008572010875 | II3: 0.007873864639 | IJ3: 0.009084297254 | IK3: 0.008634129348 | IL3: 0.008705847865 | IM3: 0.007858413429 | IN3: 0.008023593963 | IO3: 0.008342745313 | IP3: 0.008638067928 | IQ3: 0.008533662008 | IR3: 0.008191384854 | IS3: 0.008339749319 | IT3: 0.007919379574 | IU3: 0.007949795655 | IV3: 0.008050117679 | IW3: 0.008139246881 | IX3: 0.007890458329 | IY3: 0.008365765312 | IZ3: 0.008863440945 | JA3: 0.007962325142 | JB3: 0.008816019088 | JC3: 0.008359209875 | JD3: 0.007890424766 | JE3: 0.008496017237 | JF3: 0.008900910732 | JG3: 0.008456700145 | JH3: 0.008211888648 | JI3: 0.008357189075 | JJ3: 0.008314027838 | JK3: 0.0079911928 | JL3: 0.008651913582 | JM3: 0.008250253698 | JN3: 0.008313483249 | JO3: 0.008259534251 | JP3: 0.008590464946 | JQ3: 0.008886698555 | JR3: 0.008113185084 | JS3: 0.008123701764 | JT3: 0.007951299126 | JU3: 0.008612196792 | JV3: 0.007942539246 | JW3: 0.007999402395 | JX3: 0.008028469538 | JY3: 0.009297211045 | JZ3: 0.008139478892 | KA3: 0.008349769651 | KB3: 0.007924488635 | KC3: 0.008825441938 | KD3: 0.008336788442 | KE3: 0.008120287741 | KF3: 0.008025796917 | KG3: 0.007927415807 | KH3: 0.008110027278 | KI3: 0.008137073762 | KJ3: 0.008008646377 | KK3: 0.007872778531 | KL3: 0.008097152232 | KM3: 0.008204497079 | KN3: 0.008792482526 | KO3: 0.007869751207 | KP3: 0.007934184424 | KQ3: 0.008774667873 | KR3: 0.00790739527 | KS3: 0.008001597736 | KT3: 0.007949225376 | KU3: 0.00802168342 | KV3: 0.008805112493 | KW3: 0.008066523669 | KX3: 0.008401178306 | KY3: 0.007946005301 | KZ3: 0.008874372599 | LA3: 0.009619101875 | LB3: 0.007989459256 | LC3: 0.008445837536 | LD3: 0.007883328281 | LE3: 0.008263375394 | LF3: 0.008008853976 | LG3: 0.009118329859 | LH3: 0.007961927494 | LI3: 0.008086108757 | LJ3: 0.00823642621 | LK3: 0.008336334036 | LL3: 0.007920388612 | LM3: 0.008620934594 | LN3: 0.007919349171 | LO3: 0.008542559951 | LP3: 0.007973343174 | LQ3: 0.00803182391 | LR3: 0.008307755436 | LS3: 0.007845775797 | LT3: 0.0079567577 | LU3: 0.008609330351 | LV3: 0.008107505908 | LW3: 0.008064546498 | LX3: 0.007987939927 | LY3: 0.008026462251 | LZ3: 0.009179771368 | MA3: 0.008055509111 | MB3: 0.00797690727 | MC3: 0.008586021956 | MD3: 0.008196676643 | ME3: 0.008294820722 | MF3: 0.008792672971 | MG3: 0.009668988457 | MH3: 0.008081435674 | MI3: 0.008337575784 | MJ3: 0.008242760066 | MK3: 0.009216224611 | ML3: 0.008839128318 | MM3: 0.007858782602 | MN3: 0.008128432317 | MO3: 0.008021183394 | MP3: 0.007864061951 | MQ3: 0.008066734613 | MR3: 0.008172739119 | MS3: 0.009270788177 | MT3: 0.009364245479 | MU3: 0.008788247186 | MV3: 0.00842962312 | MW3: 0.008259064991 | MX3: 0.008282902031 | MY3: 0.008095578333 | MZ3: 0.008178530918 | NA3: 0.008383865364 | NB3: 0.01026221679 | NC3: 0.007952212634 | ND3: 0.007867345521 | NE3: 0.007884960857 | NF3: 0.008045988012 | NG3: 0.008668702839 | NH3: 0.008886884612 | NI3: 0.008137371509 | NJ3: 0.008080798639 | NK3: 0.008013062233 | NL3: 0.007918405292 | NM3: 0.007863880595 | NN3: 0.008002188955 | NO3: 0.008229682202 | NP3: 0.007907111765 | NQ3: 0.007901507341 | NR3: 0.008578704006 | NS3: 0.008046915567 | NT3: 0.009617198018 | NU3: 0.008027230182 | NV3: 0.007968789548 | NW3: 0.00820767712 | NX3: 0.009542621661 | NY3: 0.008546917446 | NZ3: 0.008250274887 | OA3: 0.007895729507 | OB3: 0.00812141115 | OC3: 0.008902792192 | OD3: 0.009429518396 | OE3: 0.008512410517 | OF3: 0.008597251369 | OG3: 0.008040218699 | OH3: 0.008659690878 | OI3: 0.008010569258 | OJ3: 0.007971568043 | OK3: 0.008116402877 | OL3: 0.008168128652 | OM3: 0.01042536684 | ON3: 0.008138526754 | OO3: 0.009411342657 | OP3: 0.009623879251 | OQ3: 0.008142304831 | OR3: 0.008248655588 | OS3: 0.008230908407 | OT3: 0.007962608143 | OU3: 0.008621669598 | OV3: 0.008401884677 | OW3: 0.007908837532 | OX3: 0.008128494713 | OY3: 0.008032569095 | OZ3: 0.007855997068 | PA3: 0.01073001911 | PB3: 0.0082197021 | PC3: 0.009445754787 | PD3: 0.009448938291 | PE3: 0.008582671395 | PF3: 0.009074204039 | PG3: 0.007905601571 | PH3: 0.008066138333 | PI3: 0.008156006959 | PJ3: 0.008900694563 | PK3: 0.008093351553 | PL3: 0.008156671876 | PM3: 0.007870841554 | PN3: 0.00818515725 | PO3: 0.008073574631 | PP3: 0.007900228417 | PQ3: 0.008243960019 | PR3: 0.007893242418 | PS3: 0.008023858691 | PT3: 0.01070457669 | PU3: 0.008975342475 | PV3: 0.009766491404 | PW3: 0.008481237045 | PX3: 0.007950529789 | PY3: 0.008455890104 | PZ3: 0.01016650565 | QA3: 0.008423082949 | QB3: 0.007961125156 | QC3: 0.008912061645 | QD3: 0.007869592264 | QE3: 0.008476909741 | QF3: 0.008670022769 | QG3: 0.00814264743 | QH3: 0.009226812467 | QI3: 0.00793094337 | QJ3: 0.008865488637 | QK3: 0.008021643441 | QL3: 0.008580780813 | QM3: 0.008239115877 | QN3: 0.007904631063 | QO3: 0.008111733337 | QP3: 0.01011377151 | QQ3: 0.007873463013 | QR3: 0.008976963759 | QS3: 0.007955690255 | QT3: 0.007989864261 | QU3: 0.008159455049 | QV3: 0.008209039024 | QW3: 0.009181064684 | QX3: 0.008384984626 | QY3: 0.008707334049 | QZ3: 0.008068367208 | RA3: 0.008611577012 | RB3: 0.007920824315 | RC3: 0.008350826016 | RD3: 0.009807742742 | RE3: 0.008486814247 | RF3: 0.008147289908 | RG3: 0.008762044347 | RH3: 0.008345568416 | RI3: 0.00898337279 | RJ3: 0.008982995392 | RK3: 0.008000821917 | RL3: 0.008434807272 | RM3: 0.007856181458 | RN3: 0.008809515283 | RO3: 0.008624342669 | RP3: 0.008562013932 | RQ3: 0.008103663929 | RR3: 0.008403866722 | RS3: 0.007933254346 | RT3: 0.01019606766 | RU3: 0.008425729191 | RV3: 0.008024463961 | RW3: 0.008121689506 | RX3: 0.008023698017 | RY3: 0.008377752592 | RZ3: 0.007910285897 | SA3: 0.007917202526 | SB3: 0.008235482842 | SC3: 0.009014288339 | SD3: 0.008239534293 | SE3: 0.008633247942 | SF3: 0.008803509269 | SG3: 0.008632693927 | SH3: 0.008045123236 | SI3: 0.008898046827 | SJ3: 0.008539195271 | SK3: 0.00964759474 | SL3: 0.007944862924 | SM3: 0.007992244106 | SN3: 0.008528099743 | SO3: 0.008976336308 | SP3: 0.009728643302 | SQ3: 0.01059694063 | SR3: 0.008401123499 | SS3: 0.008098868688 | ST3: 0.008084194337 | SU3: 0.00800984513 | SV3: 0.007888617852 | SW3: 0.008107027568 | SX3: 0.008078741002 | SY3: 0.008147927572 | SZ3: 0.008382300386 | TA3: 0.009011760862 | TB3: 0.007940600075 | TC3: 0.008448167524 | TD3: 0.008298181399 | TE3: 0.00808014808 | TF3: 0.007884266268 | TG3: 0.008079780128 | TH3: 0.008202937327 | TI3: 0.008884940376 | TJ3: 0.008354464732 | TK3: 0.00851496171 | TL3: 0.008165559366 | TM3: 0.008229894975 | TN3: 0.008682408683 | TO3: 0.009860483201 | TP3: 0.008678385758 | TQ3: 0.008140240793 | TR3: 0.008326279468 | TS3: 0.008986858037 | TT3: 0.00875222817 | TU3: 0.008278076551 | TV3: 0.00881509079 | TW3: 0.009415975228 | TX3: 0.008248968382 | TY3: 0.008110717296 | TZ3: 0.008084756137 | UA3: 0.00988746845 | UB3: 0.009031141067 | UC3: 0.007967182451 | UD3: 0.008965109729 | UE3: 0.008255273254 | UF3: 0.007931485885 | UG3: 0.007853209367
A4: sim_3 | B4: 0.008701512474 | C4: 0.008537746446 | D4: 0.008330501868 | E4: 0.009188095525 | F4: 0.008266983252 | G4: 0.007536540997 | H4: 0.008162997464 | I4: 0.008127786862 | J4: 0.008011989317 | K4: 0.009034898437 | L4: 0.008625333549 | M4: 0.009383477638 | N4: 0.008792200646 | O4: 0.008338664981 | P4: 0.008281367327 | Q4: 0.007574212659 | R4: 0.00860202213 | S4: 0.008320444752 | T4: 0.007976615627 | U4: 0.007466921675 | V4: 0.007382670882 | W4: 0.008413617753 | X4: 0.008305427982 | Y4: 0.008910929256 | Z4: 0.008742720657 | AA4: 0.007882486488 | AB4: 0.008472605295 | AC4: 0.007806140496 | AD4: 0.008373650525 | AE4: 0.007724695999 | AF4: 0.008534678045 | AG4: 0.009046328759 | AH4: 0.008841206027 | AI4: 0.007714080046 | AJ4: 0.007982230733 | AK4: 0.008659628836 | AL4: 0.00818237963 | AM4: 0.007738288422 | AN4: 0.009067317989 | AO4: 0.009428620822 | AP4: 0.01091929697 | AQ4: 0.008914775842 | AR4: 0.007742891972 | AS4: 0.008530844214 | AT4: 0.008400131263 | AU4: 0.008882020289 | AV4: 0.007510501486 | AW4: 0.008082678282 | AX4: 0.009340855082 | AY4: 0.008036593709 | AZ4: 0.00823380226 | BA4: 0.007948450674 | BB4: 0.008388072185 | BC4: 0.009048187314 | BD4: 0.009547329031 | BE4: 0.01065096699 | BF4: 0.008861507839 | BG4: 0.008323710328 | BH4: 0.008982000238 | BI4: 0.008425354679 | BJ4: 0.01107959738 | BK4: 0.00792412816 | BL4: 0.007867129827 | BM4: 0.007611949883 | BN4: 0.008961098773 | BO4: 0.008415428769 | BP4: 0.00823335036 | BQ4: 0.008422702932 | BR4: 0.007788861759 | BS4: 0.008983985208 | BT4: 0.009339725597 | BU4: 0.009283483982 | BV4: 0.008084287521 | BW4: 0.008097778076 | BX4: 0.008652295651 | BY4: 0.007937949091 | BZ4: 0.007606833851 | CA4: 0.01031571458 | CB4: 0.008749654746 | CC4: 0.00829895051 | CD4: 0.007688014761 | CE4: 0.00799966924 | CF4: 0.008849159995 | CG4: 0.007617980472 | CH4: 0.008182299507 | CI4: 0.0080536367 | CJ4: 0.00748873521 | CK4: 0.007817760174 | CL4: 0.009541127949 | CM4: 0.007502065554 | CN4: 0.007751609095 | CO4: 0.008772045703 | CP4: 0.007567547839 | CQ4: 0.007564024348 | CR4: 0.007790581935 | CS4: 0.009217057024 | CT4: 0.009326891271 | CU4: 0.007802691866 | CV4: 0.007840086919 | CW4: 0.007458979046 | CX4: 0.008749234065 | CY4: 0.01083000865 | CZ4: 0.007824267042 | DA4: 0.007508658769 | DB4: 0.01048836302 | DC4: 0.008932014458 | DD4: 0.007570466712 | DE4: 0.009043041403 | DF4: 0.008099161817 | DG4: 0.008456095334 | DH4: 0.008472859439 | DI4: 0.008190431825 | DJ4: 0.008767403105 | DK4: 0.00859525847 | DL4: 0.007991191272 | DM4: 0.00836443011 | DN4: 0.007856487836 | DO4: 0.01098466138 | DP4: 0.008036997681 | DQ4: 0.007842618865 | DR4: 0.009015628966 | DS4: 0.008062561007 | DT4: 0.008020896072 | DU4: 0.01240654524 | DV4: 0.007725800769 | DW4: 0.007462309944 | DX4: 0.009600138685 | DY4: 0.00821171766 | DZ4: 0.01071253863 | EA4: 0.008438858003 | EB4: 0.009581027721 | EC4: 0.007633224123 | ED4: 0.0100962673 | EE4: 0.008584053375 | EF4: 0.007682333493 | EG4: 0.00835015635 | EH4: 0.008073334342 | EI4: 0.008427338535 | EJ4: 0.007656881113 | EK4: 0.008029474573 | EL4: 0.009258661066 | EM4: 0.008270179098 | EN4: 0.009228898213 | EO4: 0.007841115584 | EP4: 0.008057125735 | EQ4: 0.008874200133 | ER4: 0.007944784809 | ES4: 0.009808737933 | ET4: 0.00798783761 | EU4: 0.009776250472 | EV4: 0.00752429794 | EW4: 0.00822522801 | EX4: 0.008327920597 | EY4: 0.009644293346 | EZ4: 0.01115961261 | FA4: 0.008963116631 | FB4: 0.008130654664 | FC4: 0.007978459564 | FD4: 0.009259413583 | FE4: 0.008204345975 | FF4: 0.009144247975 | FG4: 0.008053587518 | FH4: 0.007719264297 | FI4: 0.008433621707 | FJ4: 0.00874367382 | FK4: 0.007619576001 | FL4: 0.01105924681 | FM4: 0.008228685327 | FN4: 0.008532809745 | FO4: 0.008810830123 | FP4: 0.009026014101 | FQ4: 0.007496416632 | FR4: 0.008623829818 | FS4: 0.008257221411 | FT4: 0.009346507296 | FU4: 0.007773552634 | FV4: 0.007621654688 | FW4: 0.009405256251 | FX4: 0.008216985455 | FY4: 0.008892821092 | FZ4: 0.007849127232 | GA4: 0.007898475251 | GB4: 0.009162702611 | GC4: 0.008272077646 | GD4: 0.008336674032 | GE4: 0.007717479095 | GF4: 0.009776242948 | GG4: 0.007490699638 | GH4: 0.008188427089 | GI4: 0.008473303949 | GJ4: 0.008308156497 | GK4: 0.007773631385 | GL4: 0.008828360316 | GM4: 0.007945677582 | GN4: 0.007629001942 | GO4: 0.008188285182 | GP4: 0.007755718078 | GQ4: 0.008944888001 | GR4: 0.009887047527 | GS4: 0.007621461155 | GT4: 0.008816130683 | GU4: 0.00754980178 | GV4: 0.007593668732 | GW4: 0.009253366432 | GX4: 0.008173129456 | GY4: 0.008616134236 | GZ4: 0.007488111355 | HA4: 0.008464289472 | HB4: 0.008195898831 | HC4: 0.008629579401 | HD4: 0.009233515182 | HE4: 0.009234808847 | HF4: 0.008245482797 | HG4: 0.008014391947 | HH4: 0.009570346488 | HI4: 0.008937610404 | HJ4: 0.00827672087 | HK4: 0.007793565575 | HL4: 0.008003754603 | HM4: 0.009760158813 | HN4: 0.008952741958 | HO4: 0.008829735757 | HP4: 0.007783574588 | HQ4: 0.007965514602 | HR4: 0.0077216475 | HS4: 0.008576311609 | HT4: 0.009666186392 | HU4: 0.009347663526 | HV4: 0.008174636785 | HW4: 0.008637339253 | HX4: 0.007607816411 | HY4: 0.008195875536 | HZ4: 0.00864792699 | IA4: 0.007746329212 | IB4: 0.007947364974 | IC4: 0.008420178222 | ID4: 0.008239565302 | IE4: 0.007901553232 | IF4: 0.00924567921 | IG4: 0.008872318868 | IH4: 0.008496629063 | II4: 0.007899672211 | IJ4: 0.008792871512 | IK4: 0.008233303005 | IL4: 0.00867585106 | IM4: 0.007547106504 | IN4: 0.007721177794 | IO4: 0.008495166887 | IP4: 0.00863456193 | IQ4: 0.008249332281 | IR4: 0.007740800665 | IS4: 0.007913042404 | IT4: 0.007982862559 | IU4: 0.008252993091 | IV4: 0.007754827381 | IW4: 0.008148574927 | IX4: 0.007766373189 | IY4: 0.008068659429 | IZ4: 0.009299544235 | JA4: 0.007771541204 | JB4: 0.008410318427 | JC4: 0.01005852262 | JD4: 0.00746018595 | JE4: 0.008207327558 | JF4: 0.008997806326 | JG4: 0.008417324804 | JH4: 0.007976635373 | JI4: 0.008311114431 | JJ4: 0.008435399082 | JK4: 0.008063600331 | JL4: 0.01027516031 | JM4: 0.008588250552 | JN4: 0.008316610513 | JO4: 0.008010521474 | JP4: 0.008077936131 | JQ4: 0.008897466028 | JR4: 0.008807264454 | JS4: 0.009086609782 | JT4: 0.007955236195 | JU4: 0.008321449984 | JV4: 0.007440508112 | JW4: 0.008443134641 | JX4: 0.008098691925 | JY4: 0.009127951829 | JZ4: 0.009299777272 | KA4: 0.008210807344 | KB4: 0.007880236444 | KC4: 0.008393866234 | KD4: 0.008700946422 | KE4: 0.007837888809 | KF4: 0.008107986018 | KG4: 0.007854216442 | KH4: 0.008539241179 | KI4: 0.008265391103 | KJ4: 0.00867841938 | KK4: 0.007399527313 | KL4: 0.00775645573 | KM4: 0.01093456933 | KN4: 0.009470168419 | KO4: 0.007435502907 | KP4: 0.008019518456 | KQ4: 0.00847785591 | KR4: 0.007492672334 | KS4: 0.008118277479 | KT4: 0.007630753883 | KU4: 0.008241304047 | KV4: 0.00834249533 | KW4: 0.007735540842 | KX4: 0.007909112839 | KY4: 0.008093006956 | KZ4: 0.009418736056 | LA4: 0.01015311658 | LB4: 0.007698573053 | LC4: 0.007888893606 | LD4: 0.0091796814 | LE4: 0.008276505583 | LF4: 0.007826023375 | LG4: 0.01055125135 | LH4: 0.007706675425 | LI4: 0.0103705855 | LJ4: 0.008383208801 | LK4: 0.008552657351 | LL4: 0.0091112127 | LM4: 0.008070116403 | LN4: 0.007824724558 | LO4: 0.008055170334 | LP4: 0.008758398111 | LQ4: 0.008186574784 | LR4: 0.007917648075 | LS4: 0.007739664089 | LT4: 0.007563891262 | LU4: 0.008622825168 | LV4: 0.007986472288 | LW4: 0.008379719762 | LX4: 0.01097773792 | LY4: 0.0078229708 | LZ4: 0.008989659016 | MA4: 0.008149458186 | MB4: 0.007959255915 | MC4: 0.008090832665 | MD4: 0.007904374351 | ME4: 0.009281933939 | MF4: 0.008496440681 | MG4: 0.0100085384 | MH4: 0.008522839687 | MI4: 0.008268798434 | MJ4: 0.00865406472 | MK4: 0.00864904011 | ML4: 0.008596263083 | MM4: 0.007865479353 | MN4: 0.007971146107 | MO4: 0.007790486851 | MP4: 0.007731552871 | MQ4: 0.007881648046 | MR4: 0.009402552511 | MS4: 0.008931109996 | MT4: 0.009189850939 | MU4: 0.008889134979 | MV4: 0.00955977618 | MW4: 0.008240967846 | MX4: 0.00892324496 | MY4: 0.007776858607 | MZ4: 0.007667785065 | NA4: 0.008145614466 | NB4: 0.01009180526 | NC4: 0.007453523091 | ND4: 0.00780097105 | NE4: 0.007854733704 | NF4: 0.008114192298 | NG4: 0.008514854421 | NH4: 0.009040329302 | NI4: 0.007755264311 | NJ4: 0.007586834948 | NK4: 0.00844344246 | NL4: 0.008199537376 | NM4: 0.007467226538 | NN4: 0.007583379825 | NO4: 0.009107322719 | NP4: 0.00959198059 | NQ4: 0.0074055568 | NR4: 0.008264002304 | NS4: 0.007966156573 | NT4: 0.009488456071 | NU4: 0.008349534508 | NV4: 0.008254129978 | NW4: 0.007729818082 | NX4: 0.009224538446 | NY4: 0.008924951997 | NZ4: 0.008018173014 | OA4: 0.00777191765 | OB4: 0.008062606934 | OC4: 0.008383895671 | OD4: 0.009107821279 | OE4: 0.008480265534 | OF4: 0.008346027441 | OG4: 0.009139807103 | OH4: 0.008345887729 | OI4: 0.007701428086 | OJ4: 0.008048230673 | OK4: 0.007787551783 | OL4: 0.00879936441 | OM4: 0.009936993875 | ON4: 0.009043568995 | OO4: 0.009354817035 | OP4: 0.009019396794 | OQ4: 0.008946542624 | OR4: 0.008161297863 | OS4: 0.007803894978 | OT4: 0.007781827641 | OU4: 0.009299674175 | OV4: 0.008361208281 | OW4: 0.007673568696 | OX4: 0.00808276321 | OY4: 0.007986889832 | OZ4: 0.007378333131 | PA4: 0.01081411122 | PB4: 0.009299699024 | PC4: 0.008880841454 | PD4: 0.009024068017 | PE4: 0.008516621504 | PF4: 0.009881123283 | PG4: 0.007809037172 | PH4: 0.008400863508 | PI4: 0.007656734256 | PJ4: 0.008904744167 | PK4: 0.007958639869 | PL4: 0.007701062663 | PM4: 0.008242757545 | PN4: 0.008063970098 | PO4: 0.007618946452 | PP4: 0.007646550401 | PQ4: 0.007808371521 | PR4: 0.008517405846 | PS4: 0.007641941969 | PT4: 0.01120296815 | PU4: 0.008399030274 | PV4: 0.009327022286 | PW4: 0.008033031091 | PX4: 0.008083570733 | PY4: 0.007927018133 | PZ4: 0.009497647353 | QA4: 0.009301508097 | QB4: 0.007666046623 | QC4: 0.008616980002 | QD4: 0.007667480362 | QE4: 0.008130764225 | QF4: 0.008355137781 | QG4: 0.00807782775 | QH4: 0.009637963595 | QI4: 0.007641622718 | QJ4: 0.00845717256 | QK4: 0.007624214383 | QL4: 0.00815341024 | QM4: 0.007719681858 | QN4: 0.009362925571 | QO4: 0.00783633026 | QP4: 0.009992390531 | QQ4: 0.007524206342 | QR4: 0.008375733805 | QS4: 0.009019986065 | QT4: 0.008892219848 | QU4: 0.008074529611 | QV4: 0.007818970425 | QW4: 0.008990465419 | QX4: 0.009817495087 | QY4: 0.008928009038 | QZ4: 0.008720322725 | RA4: 0.008046427215 | RB4: 0.007869202642 | RC4: 0.008362457801 | RD4: 0.00918468385 | RE4: 0.008147325585 | RF4: 0.00901589544 | RG4: 0.009962823412 | RH4: 0.008093626201 | RI4: 0.008518427793 | RJ4: 0.00846159227 | RK4: 0.008081163417 | RL4: 0.008109426598 | RM4: 0.008209320491 | RN4: 0.00986003036 | RO4: 0.008775424652 | RP4: 0.008142324256 | RQ4: 0.007933707267 | RR4: 0.008118441789 | RS4: 0.007445971807 | RT4: 0.0103476415 | RU4: 0.008030240519 | RV4: 0.008312267564 | RW4: 0.008538622203 | RX4: 0.007676020618 | RY4: 0.008339855625 | RZ4: 0.007458156021 | SA4: 0.007680179728 | SB4: 0.007700068903 | SC4: 0.008588644921 | SD4: 0.008902519505 | SE4: 0.009882545391 | SF4: 0.00861377307 | SG4: 0.008629810151 | SH4: 0.007661755578 | SI4: 0.008521477505 | SJ4: 0.008292858743 | SK4: 0.009620001745 | SL4: 0.00749556828 | SM4: 0.007501780258 | SN4: 0.008093525758 | SO4: 0.008905101077 | SP4: 0.009552548 | SQ4: 0.01047823663 | SR4: 0.008354137846 | SS4: 0.008413710702 | ST4: 0.007841928586 | SU4: 0.007913607858 | SV4: 0.007684050632 | SW4: 0.007684310981 | SX4: 0.007715647384 | SY4: 0.00834567131 | SZ4: 0.008539866382 | TA4: 0.009341987786 | TB4: 0.00770468065 | TC4: 0.007907634985 | TD4: 0.009337648203 | TE4: 0.008401606079 | TF4: 0.008465069652 | TG4: 0.00829878499 | TH4: 0.00847793624 | TI4: 0.008316304984 | TJ4: 0.007947861865 | TK4: 0.008384184594 | TL4: 0.009920964745 | TM4: 0.008667836607 | TN4: 0.008863364914 | TO4: 0.009574225296 | TP4: 0.01045802203 | TQ4: 0.007900425458 | TR4: 0.007922913234 | TS4: 0.008414066331 | TT4: 0.009018688911 | TU4: 0.007799181407 | TV4: 0.008811664168 | TW4: 0.009673472287 | TX4: 0.007884258086 | TY4: 0.0080627634 | TZ4: 0.008696978379 | UA4: 0.009277921264 | UB4: 0.009333494073 | UC4: 0.009362492166 | UD4: 0.008523202427 | UE4: 0.007841723657 | UF4: 0.0077593538 | UG4: 0.007523438341
A5: sim_4 | B5: 0.008297944462 | C5: 0.008497410331 | D5: 0.007945599213 | E5: 0.00892371757 | F5: 0.008306655497 | G5: 0.007097680564 | H5: 0.00877683991 | I5: 0.007849677239 | J5: 0.007745094357 | K5: 0.01295932649 | L5: 0.009094287361 | M5: 0.00899272277 | N5: 0.0083859205 | O5: 0.00799833048 | P5: 0.007894761372 | Q5: 0.008440626498 | R5: 0.00828069631 | S5: 0.007993049816 | T5: 0.008397615992 | U5: 0.007609370594 | V5: 0.007383967723 | W5: 0.00854707915 | X5: 0.009244386879 | Y5: 0.009171776825 | Z5: 0.008867238786 | AA5: 0.008364887637 | AB5: 0.007933931338 | AC5: 0.008694991007 | AD5: 0.008488523036 | AE5: 0.007318032729 | AF5: 0.008027235686 | AG5: 0.009261881522 | AH5: 0.008422466075 | AI5: 0.007947433411 | AJ5: 0.008623674415 | AK5: 0.008559177034 | AL5: 0.008306405781 | AM5: 0.00774044353 | AN5: 0.009759689263 | AO5: 0.009360242646 | AP5: 0.01338315456 | AQ5: 0.01068416908 | AR5: 0.007526582349 | AS5: 0.008186485599 | AT5: 0.008027516294 | AU5: 0.008850539088 | AV5: 0.007250206627 | AW5: 0.008141329529 | AX5: 0.009086433707 | AY5: 0.00781738198 | AZ5: 0.008485562521 | BA5: 0.007545981744 | BB5: 0.008569010341 | BC5: 0.009523697413 | BD5: 0.009075664067 | BE5: 0.01061343665 | BF5: 0.009137642483 | BG5: 0.008013382581 | BH5: 0.008540253971 | BI5: 0.008209290415 | BJ5: 0.01094780663 | BK5: 0.007474268484 | BL5: 0.01002545282 | BM5: 0.007607044138 | BN5: 0.008562842895 | BO5: 0.008302641874 | BP5: 0.00852002768 | BQ5: 0.008384017183 | BR5: 0.007608909133 | BS5: 0.009410643139 | BT5: 0.009116932934 | BU5: 0.008840760108 | BV5: 0.00824995954 | BW5: 0.007629751679 | BX5: 0.008589368911 | BY5: 0.007593540023 | BZ5: 0.007994717104 | CA5: 0.009748013414 | CB5: 0.008319567569 | CC5: 0.007784304002 | CD5: 0.007262863882 | CE5: 0.008510985065 | CF5: 0.009531630881 | CG5: 0.009043285199 | CH5: 0.009663540141 | CI5: 0.008519578602 | CJ5: 0.007403619417 | CK5: 0.007470550662 | CL5: 0.009586936226 | CM5: 0.007751092049 | CN5: 0.007996555847 | CO5: 0.009038024545 | CP5: 0.007847225748 | CQ5: 0.00714015164 | CR5: 0.00740311832 | CS5: 0.008743585392 | CT5: 0.008813823138 | CU5: 0.00884059862 | CV5: 0.007591078551 | CW5: 0.007112479522 | CX5: 0.00831936424 | CY5: 0.01104041045 | CZ5: 0.008569252754 | DA5: 0.007234110092 | DB5: 0.01080943237 | DC5: 0.008986663442 | DD5: 0.008408217568 | DE5: 0.00878201128 | DF5: 0.008560958744 | DG5: 0.007928035353 | DH5: 0.008369655843 | DI5: 0.008517959351 | DJ5: 0.009126684528 | DK5: 0.008140389871 | DL5: 0.008246179882 | DM5: 0.007883951737 | DN5: 0.009267521622 | DO5: 0.01338417024 | DP5: 0.007712722765 | DQ5: 0.007677940594 | DR5: 0.009276471361 | DS5: 0.008756353579 | DT5: 0.007575048037 | DU5: 0.0124524301 | DV5: 0.007690762045 | DW5: 0.007854940099 | DX5: 0.009168227147 | DY5: 0.008111727829 | DZ5: 0.01135430008 | EA5: 0.008114440943 | EB5: 0.009485124729 | EC5: 0.00756835313 | ED5: 0.009923134012 | EE5: 0.00845254046 | EF5: 0.007731888251 | EG5: 0.008028722289 | EH5: 0.007591437752 | EI5: 0.008037960078 | EJ5: 0.007299525132 | EK5: 0.00767769194 | EL5: 0.009302976522 | EM5: 0.008032128937 | EN5: 0.008748761 | EO5: 0.008279452251 | EP5: 0.007940266294 | EQ5: 0.009338540421 | ER5: 0.007532314427 | ES5: 0.01079030933 | ET5: 0.009019777312 | EU5: 0.009424596299 | EV5: 0.007513310857 | EW5: 0.008549877506 | EX5: 0.008099736515 | EY5: 0.009303037449 | EZ5: 0.01031411733 | FA5: 0.009004631701 | FB5: 0.00784205592 | FC5: 0.008706181412 | FD5: 0.008748300051 | FE5: 0.007890779049 | FF5: 0.008535403648 | FG5: 0.008807164497 | FH5: 0.007745566054 | FI5: 0.009375195276 | FJ5: 0.008192658689 | FK5: 0.007218624423 | FL5: 0.0126181045 | FM5: 0.008584361656 | FN5: 0.008410673101 | FO5: 0.008502643749 | FP5: 0.008470035332 | FQ5: 0.007443964048 | FR5: 0.01030630625 | FS5: 0.009022569983 | FT5: 0.008973032701 | FU5: 0.007622476077 | FV5: 0.007812849351 | FW5: 0.009041313383 | FX5: 0.00776891516 | FY5: 0.008332357602 | FZ5: 0.007509233181 | GA5: 0.009080575495 | GB5: 0.008801700334 | GC5: 0.007994989303 | GD5: 0.008138012785 | GE5: 0.007357072566 | GF5: 0.009456136714 | GG5: 0.007516500431 | GH5: 0.00850179477 | GI5: 0.008722463519 | GJ5: 0.008282060498 | GK5: 0.00765222941 | GL5: 0.008446024123 | GM5: 0.007706780662 | GN5: 0.008332013122 | GO5: 0.008065241378 | GP5: 0.007607624133 | GQ5: 0.008624233363 | GR5: 0.009771135784 | GS5: 0.007439076305 | GT5: 0.008449505418 | GU5: 0.007163645373 | GV5: 0.008049525623 | GW5: 0.01059471632 | GX5: 0.007960794857 | GY5: 0.008501959605 | GZ5: 0.00725764488 | HA5: 0.008184630548 | HB5: 0.008847510063 | HC5: 0.008832821967 | HD5: 0.008695670415 | HE5: 0.00921211389 | HF5: 0.007755283327 | HG5: 0.008354429706 | HH5: 0.009076125589 | HI5: 0.0086006198 | HJ5: 0.008098938671 | HK5: 0.008990782114 | HL5: 0.007992931371 | HM5: 0.01038417585 | HN5: 0.00888357947 | HO5: 0.008681308945 | HP5: 0.007821820958 | HQ5: 0.007535018454 | HR5: 0.007302824684 | HS5: 0.008619205251 | HT5: 0.009607964382 | HU5: 0.008741154445 | HV5: 0.008177387907 | HW5: 0.008918126987 | HX5: 0.007169706881 | HY5: 0.009411806206 | HZ5: 0.009269504525 | IA5: 0.00802621031 | IB5: 0.008910340007 | IC5: 0.008626073006 | ID5: 0.007915803012 | IE5: 0.007550958886 | IF5: 0.00896933275 | IG5: 0.008957780298 | IH5: 0.008228170805 | II5: 0.008714980305 | IJ5: 0.008300521269 | IK5: 0.007762405133 | IL5: 0.008637112046 | IM5: 0.007532846716 | IN5: 0.007960020827 | IO5: 0.008465541286 | IP5: 0.008173995024 | IQ5: 0.00801216976 | IR5: 0.007491819133 | IS5: 0.00765629742 | IT5: 0.007569687362 | IU5: 0.008000272506 | IV5: 0.007975847163 | IW5: 0.007873377429 | IX5: 0.007565113642 | IY5: 0.008510620325 | IZ5: 0.009481997761 | JA5: 0.007831280503 | JB5: 0.00801398996 | JC5: 0.0102640901 | JD5: 0.008238556563 | JE5: 0.00774417354 | JF5: 0.008389202537 | JG5: 0.009318788951 | JH5: 0.007747551955 | JI5: 0.007933113442 | JJ5: 0.009319682334 | JK5: 0.009155390641 | JL5: 0.009680828733 | JM5: 0.008918240461 | JN5: 0.00993835955 | JO5: 0.008073152917 | JP5: 0.007921126605 | JQ5: 0.008976109082 | JR5: 0.008529616673 | JS5: 0.009351239691 | JT5: 0.008267523586 | JU5: 0.007819028768 | JV5: 0.007377238775 | JW5: 0.008628583334 | JX5: 0.007764417601 | JY5: 0.008705222015 | JZ5: 0.009193117151 | KA5: 0.008631389702 | KB5: 0.007488589581 | KC5: 0.008488269825 | KD5: 0.008981629641 | KE5: 0.00833941501 | KF5: 0.007813322597 | KG5: 0.008165673062 | KH5: 0.008115458558 | KI5: 0.00826323501 | KJ5: 0.009024426332 | KK5: 0.00717350184 | KL5: 0.00753931746 | KM5: 0.01017723477 | KN5: 0.008856382519 | KO5: 0.007164881309 | KP5: 0.00777937283 | KQ5: 0.008615777561 | KR5: 0.00775645852 | KS5: 0.00925404298 | KT5: 0.007209667775 | KU5: 0.007785034484 | KV5: 0.007831755652 | KW5: 0.007365923194 | KX5: 0.00757932204 | KY5: 0.007763472932 | KZ5: 0.009613972048 | LA5: 0.009542405924 | LB5: 0.007281779637 | LC5: 0.008010462298 | LD5: 0.008588267667 | LE5: 0.008260025712 | LF5: 0.00836083863 | LG5: 0.0100811087 | LH5: 0.008220726074 | LI5: 0.01051244347 | LJ5: 0.008355169771 | LK5: 0.00815109398 | LL5: 0.008777000708 | LM5: 0.00853307499 | LN5: 0.008986775562 | LO5: 0.007811093603 | LP5: 0.008750328869 | LQ5: 0.008725805853 | LR5: 0.007687228738 | LS5: 0.007325560789 | LT5: 0.008352344557 | LU5: 0.01066674575 | LV5: 0.008369654485 | LW5: 0.008128744525 | LX5: 0.01251580592 | LY5: 0.007932481605 | LZ5: 0.008926711435 | MA5: 0.007959596356 | MB5: 0.007573041994 | MC5: 0.008540060205 | MD5: 0.008671634737 | ME5: 0.009338512037 | MF5: 0.007970946604 | MG5: 0.009909548186 | MH5: 0.008021850124 | MI5: 0.00848787514 | MJ5: 0.009157539781 | MK5: 0.008852736716 | ML5: 0.008115871493 | MM5: 0.007593580306 | MN5: 0.007596384351 | MO5: 0.007496489749 | MP5: 0.00799804992 | MQ5: 0.008002874315 | MR5: 0.009069762851 | MS5: 0.009091249207 | MT5: 0.008594198816 | MU5: 0.008581170974 | MV5: 0.01262196323 | MW5: 0.00787218757 | MX5: 0.008496801661 | MY5: 0.00788764302 | MZ5: 0.007442877067 | NA5: 0.00795960241 | NB5: 0.009612434003 | NC5: 0.009425405859 | ND5: 0.007425728812 | NE5: 0.007461888546 | NF5: 0.008206389936 | NG5: 0.007996678858 | NH5: 0.01048486197 | NI5: 0.007476138815 | NJ5: 0.00743584083 | NK5: 0.008216128754 | NL5: 0.008167831514 | NM5: 0.007288982897 | NN5: 0.007366226841 | NO5: 0.00919706376 | NP5: 0.009045766924 | NQ5: 0.00697097192 | NR5: 0.00811138372 | NS5: 0.007831750602 | NT5: 0.009471182202 | NU5: 0.008627005519 | NV5: 0.01001865364 | NW5: 0.008965459296 | NX5: 0.009230911426 | NY5: 0.008426965319 | NZ5: 0.007885199151 | OA5: 0.009000970712 | OB5: 0.008679927936 | OC5: 0.008438091424 | OD5: 0.009214492877 | OE5: 0.009599715856 | OF5: 0.008170965226 | OG5: 0.009428040835 | OH5: 0.009049934047 | OI5: 0.007821813538 | OJ5: 0.007742573542 | OK5: 0.007587775743 | OL5: 0.008666018514 | OM5: 0.009879852423 | ON5: 0.008706495946 | OO5: 0.009411132327 | OP5: 0.01023346642 | OQ5: 0.008407518947 | OR5: 0.007793430643 | OS5: 0.008809202744 | OT5: 0.007803698931 | OU5: 0.008850218596 | OV5: 0.009866776288 | OW5: 0.00872432371 | OX5: 0.007668334 | OY5: 0.007783839539 | OZ5: 0.007895959695 | PA5: 0.01049266907 | PB5: 0.009306474685 | PC5: 0.009862605456 | PD5: 0.009854177036 | PE5: 0.008060090673 | PF5: 0.009438225862 | PG5: 0.007421993061 | PH5: 0.00802939642 | PI5: 0.007212462812 | PJ5: 0.008573471113 | PK5: 0.007915192584 | PL5: 0.007589336109 | PM5: 0.008451361133 | PN5: 0.007779547561 | PO5: 0.007188460292 | PP5: 0.007766952688 | PQ5: 0.007849909747 | PR5: 0.009403141206 | PS5: 0.007292361951 | PT5: 0.01131747552 | PU5: 0.008501199298 | PV5: 0.008721010353 | PW5: 0.008071597348 | PX5: 0.008670612965 | PY5: 0.007971563843 | PZ5: 0.009109086624 | QA5: 0.009302135763 | QB5: 0.00769787634 | QC5: 0.008583708087 | QD5: 0.007656324626 | QE5: 0.008151218746 | QF5: 0.008292876654 | QG5: 0.007944135495 | QH5: 0.008993136392 | QI5: 0.007546329237 | QJ5: 0.008676043713 | QK5: 0.00744724369 | QL5: 0.00780053413 | QM5: 0.007305610458 | QN5: 0.009036606621 | QO5: 0.007639578551 | QP5: 0.009263050342 | QQ5: 0.007546947282 | QR5: 0.00848504529 | QS5: 0.008629064963 | QT5: 0.009007315046 | QU5: 0.007733963076 | QV5: 0.007340397092 | QW5: 0.008537374369 | QX5: 0.009256771279 | QY5: 0.00856274501 | QZ5: 0.008909117867 | RA5: 0.008366258855 | RB5: 0.007461305773 | RC5: 0.008278460474 | RD5: 0.0102960941 | RE5: 0.008040922622 | RF5: 0.009182668676 | RG5: 0.01252772571 | RH5: 0.007978142277 | RI5: 0.01019263598 | RJ5: 0.00859992522 | RK5: 0.009872637202 | RL5: 0.007735871186 | RM5: 0.007970025712 | RN5: 0.009852440836 | RO5: 0.008407463572 | RP5: 0.00787320476 | RQ5: 0.008056907174 | RR5: 0.007741263106 | RS5: 0.007012581001 | RT5: 0.01006122118 | RU5: 0.008401655424 | RV5: 0.008000019021 | RW5: 0.008381939286 | RX5: 0.007622926275 | RY5: 0.007819035866 | RZ5: 0.007211304201 | SA5: 0.009311356723 | SB5: 0.007447682828 | SC5: 0.008105596011 | SD5: 0.009703664436 | SE5: 0.01013722606 | SF5: 0.008043608017 | SG5: 0.008276237958 | SH5: 0.008081605614 | SI5: 0.0086888548 | SJ5: 0.007762599562 | SK5: 0.008952863778 | SL5: 0.007058731954 | SM5: 0.007443919938 | SN5: 0.007887506593 | SO5: 0.008449098692 | SP5: 0.009534075286 | SQ5: 0.009887416425 | SR5: 0.009213840285 | SS5: 0.008446482408 | ST5: 0.007352644253 | SU5: 0.007904486984 | SV5: 0.007514382823 | SW5: 0.007267610653 | SX5: 0.00755709901 | SY5: 0.008674665025 | SZ5: 0.008378013789 | TA5: 0.008868315172 | TB5: 0.007416871793 | TC5: 0.008403609462 | TD5: 0.008719503304 | TE5: 0.007916982507 | TF5: 0.008009189389 | TG5: 0.00826348945 | TH5: 0.00801005301 | TI5: 0.008703070645 | TJ5: 0.00798801762 | TK5: 0.008407167561 | TL5: 0.01147678736 | TM5: 0.008609641842 | TN5: 0.008405083478 | TO5: 0.008909296532 | TP5: 0.009904682802 | TQ5: 0.007617042124 | TR5: 0.007526787759 | TS5: 0.007989773541 | TT5: 0.008515411638 | TU5: 0.008778181168 | TV5: 0.009267103544 | TW5: 0.01000658966 | TX5: 0.009885711745 | TY5: 0.008009711064 | TZ5: 0.008595566987 | UA5: 0.009526406848 | UB5: 0.008820498072 | UC5: 0.009902853795 | UD5: 0.00899318426 | UE5: 0.008860434611 | UF5: 0.008577001459 | UG5: 0.007403692484
A6: sim_5 | B6: 0.008512121794 | C6: 0.01012802933 | D6: 0.008788712657 | E6: 0.008636175027 | F6: 0.008082234438 | G6: 0.00737829344 | H6: 0.008427994057 | I6: 0.00837255438 | J6: 0.007321718911 | K6: 0.01189232111 | L6: 0.00861560599 | M6: 0.008646978588 | N6: 0.00910192681 | O6: 0.007900251067 | P6: 0.008448288704 | Q6: 0.008320385153 | R6: 0.008353681429 | S6: 0.007752512935 | T6: 0.00786447234 | U6: 0.007179466751 | V6: 0.007309096719 | W6: 0.008801796574 | X6: 0.008963747845 | Y6: 0.008591650818 | Z6: 0.008300468941 | AA6: 0.008014266745 | AB6: 0.00888654325 | AC6: 0.008365929443 | AD6: 0.008582119776 | AE6: 0.007142284698 | AF6: 0.008294721447 | AG6: 0.008846845683 | AH6: 0.007976347126 | AI6: 0.007569962043 | AJ6: 0.008562125846 | AK6: 0.009074599599 | AL6: 0.008807354324 | AM6: 0.009159879863 | AN6: 0.009088923559 | AO6: 0.009172198917 | AP6: 0.01502770207 | AQ6: 0.009907921521 | AR6: 0.007775531386 | AS6: 0.008033712842 | AT6: 0.008425080977 | AU6: 0.01004658354 | AV6: 0.006988742106 | AW6: 0.007697222733 | AX6: 0.01138097455 | AY6: 0.008085599906 | AZ6: 0.008646773188 | BA6: 0.007134036344 | BB6: 0.008209316283 | BC6: 0.009648361827 | BD6: 0.008504604147 | BE6: 0.01065868724 | BF6: 0.00965941979 | BG6: 0.007711304234 | BH6: 0.008738917655 | BI6: 0.007762386576 | BJ6: 0.01054472342 | BK6: 0.007114875705 | BL6: 0.009305720897 | BM6: 0.007653011044 | BN6: 0.008357768079 | BO6: 0.009062701362 | BP6: 0.008354085124 | BQ6: 0.007929198396 | BR6: 0.008825622109 | BS6: 0.008891463374 | BT6: 0.008893999735 | BU6: 0.009282278356 | BV6: 0.0078563935 | BW6: 0.007396165121 | BX6: 0.008465216944 | BY6: 0.007854732838 | BZ6: 0.007517566122 | CA6: 0.0105868262 | CB6: 0.009255402963 | CC6: 0.007457537669 | CD6: 0.007114750328 | CE6: 0.007980986894 | CF6: 0.01144263335 | CG6: 0.008841993343 | CH6: 0.009310238965 | CI6: 0.009067842107 | CJ6: 0.007005825567 | CK6: 0.00746526535 | CL6: 0.009287944865 | CM6: 0.007612123143 | CN6: 0.00798209021 | CO6: 0.009071649505 | CP6: 0.00835017269 | CQ6: 0.007590090757 | CR6: 0.007333601962 | CS6: 0.008448704921 | CT6: 0.009898296269 | CU6: 0.008476861315 | CV6: 0.008483505067 | CW6: 0.007531012908 | CX6: 0.008599630507 | CY6: 0.01034856687 | CZ6: 0.008116726381 | DA6: 0.008355233319 | DB6: 0.01029395669 | DC6: 0.008709930108 | DD6: 0.008977235498 | DE6: 0.008747109246 | DF6: 0.009091594468 | DG6: 0.00868293616 | DH6: 0.007845290115 | DI6: 0.007980010619 | DJ6: 0.00901825441 | DK6: 0.007961423027 | DL6: 0.008130840647 | DM6: 0.008000896694 | DN6: 0.009243877011 | DO6: 0.01236124917 | DP6: 0.008192970731 | DQ6: 0.00751673471 | DR6: 0.01060305079 | DS6: 0.008763345746 | DT6: 0.007177156476 | DU6: 0.01257391477 | DV6: 0.008976750643 | DW6: 0.00827214852 | DX6: 0.009044226627 | DY6: 0.009991807559 | DZ6: 0.01101657662 | EA6: 0.007896175942 | EB6: 0.009370480621 | EC6: 0.007523033971 | ED6: 0.009498819828 | EE6: 0.008298371592 | EF6: 0.007383229517 | EG6: 0.00830178527 | EH6: 0.007344189176 | EI6: 0.008104265773 | EJ6: 0.007105947514 | EK6: 0.008183216558 | EL6: 0.008701605314 | EM6: 0.007915340506 | EN6: 0.009982426982 | EO6: 0.007937074462 | EP6: 0.007743117567 | EQ6: 0.009006585728 | ER6: 0.007951413409 | ES6: 0.01172794414 | ET6: 0.009004734897 | EU6: 0.009126385051 | EV6: 0.007087044662 | EW6: 0.00832843411 | EX6: 0.007790580713 | EY6: 0.009039531094 | EZ6: 0.01008427025 | FA6: 0.00991653529 | FB6: 0.008155459925 | FC6: 0.008755594371 | FD6: 0.009542642569 | FE6: 0.007476984315 | FF6: 0.008115948787 | FG6: 0.008788855799 | FH6: 0.007461897413 | FI6: 0.008895432541 | FJ6: 0.009140492983 | FK6: 0.00697245901 | FL6: 0.01196515432 | FM6: 0.008162569881 | FN6: 0.01046459308 | FO6: 0.007998624493 | FP6: 0.009026221494 | FQ6: 0.006996582216 | FR6: 0.00954884762 | FS6: 0.008812488874 | FT6: 0.009470901268 | FU6: 0.007995096438 | FV6: 0.007546644809 | FW6: 0.009340940289 | FX6: 0.007324835096 | FY6: 0.008117684198 | FZ6: 0.007378234344 | GA6: 0.008589289124 | GB6: 0.008204235151 | GC6: 0.008091329155 | GD6: 0.007671266607 | GE6: 0.0072424583 | GF6: 0.00903827988 | GG6: 0.007755966264 | GH6: 0.008450733888 | GI6: 0.008469054317 | GJ6: 0.007816332118 | GK6: 0.008841033012 | GL6: 0.008121012258 | GM6: 0.007464791951 | GN6: 0.007901878706 | GO6: 0.008151066812 | GP6: 0.007570276171 | GQ6: 0.008740798911 | GR6: 0.009216029618 | GS6: 0.00738583449 | GT6: 0.009534592385 | GU6: 0.006780637676 | GV6: 0.008025336219 | GW6: 0.0111407259 | GX6: 0.008118697044 | GY6: 0.008779064025 | GZ6: 0.006983780724 | HA6: 0.008108094602 | HB6: 0.008287335434 | HC6: 0.008574852676 | HD6: 0.008602641644 | HE6: 0.008830211988 | HF6: 0.008254075765 | HG6: 0.0100070569 | HH6: 0.009195323968 | HI6: 0.008647126089 | HJ6: 0.007657056886 | HK6: 0.009231826689 | HL6: 0.007657688361 | HM6: 0.01011960773 | HN6: 0.01011816856 | HO6: 0.009812040388 | HP6: 0.007961992024 | HQ6: 0.007426345881 | HR6: 0.007203406808 | HS6: 0.008058206081 | HT6: 0.008988714047 | HU6: 0.008349904825 | HV6: 0.007898566954 | HW6: 0.008411087209 | HX6: 0.006998393543 | HY6: 0.009039945637 | HZ6: 0.009114904809 | IA6: 0.008422508692 | IB6: 0.008710578518 | IC6: 0.008114317499 | ID6: 0.008201638283 | IE6: 0.00807608468 | IF6: 0.008489939815 | IG6: 0.008418819068 | IH6: 0.007976590797 | II6: 0.01010036733 | IJ6: 0.00810973316 | IK6: 0.009422227158 | IL6: 0.008221067794 | IM6: 0.007096768851 | IN6: 0.007945283501 | IO6: 0.008247900838 | IP6: 0.008015234029 | IQ6: 0.007671085722 | IR6: 0.007414152436 | IS6: 0.007267706309 | IT6: 0.007439410238 | IU6: 0.00854796346 | IV6: 0.007678399515 | IW6: 0.008870726318 | IX6: 0.00743525529 | IY6: 0.008350043125 | IZ6: 0.009659283507 | JA6: 0.007526354386 | JB6: 0.009650884822 | JC6: 0.01022301776 | JD6: 0.008029912326 | JE6: 0.007435534851 | JF6: 0.008117575012 | JG6: 0.008840350526 | JH6: 0.007306592702 | JI6: 0.007719341833 | JJ6: 0.008731316613 | JK6: 0.008559331917 | JL6: 0.009193166908 | JM6: 0.008521854142 | JN6: 0.01021186892 | JO6: 0.00798401656 | JP6: 0.008203216955 | JQ6: 0.009754969597 | JR6: 0.009168667549 | JS6: 0.00925729273 | JT6: 0.008386617665 | JU6: 0.007661050929 | JV6: 0.00829537889 | JW6: 0.01052705968 | JX6: 0.007591480381 | JY6: 0.009245539421 | JZ6: 0.009279580048 | KA6: 0.008549885461 | KB6: 0.007652756743 | KC6: 0.008471498358 | KD6: 0.00870876946 | KE6: 0.00867289666 | KF6: 0.007927293371 | KG6: 0.007848254546 | KH6: 0.008761525905 | KI6: 0.008636328996 | KJ6: 0.01034307481 | KK6: 0.006902137088 | KL6: 0.00756421215 | KM6: 0.009813144339 | KN6: 0.008448493969 | KO6: 0.00674524407 | KP6: 0.009173930712 | KQ6: 0.009112313983 | KR6: 0.007617306152 | KS6: 0.008644999296 | KT6: 0.007297651154 | KU6: 0.007340721549 | KV6: 0.007739352015 | KW6: 0.006985663346 | KX6: 0.009289673804 | KY6: 0.007962140243 | KZ6: 0.009125217029 | LA6: 0.009373688787 | LB6: 0.007202133329 | LC6: 0.008196122093 | LD6: 0.008743180393 | LE6: 0.009891367355 | LF6: 0.008412508789 | LG6: 0.00962694744 | LH6: 0.007841321655 | LI6: 0.01049632075 | LJ6: 0.0079156397 | LK6: 0.007626541495 | LL6: 0.008216303421 | LM6: 0.008531644501 | LN6: 0.00845179969 | LO6: 0.007392533322 | LP6: 0.01034532282 | LQ6: 0.008318924267 | LR6: 0.00736571834 | LS6: 0.007104056815 | LT6: 0.009092491076 | LU6: 0.01031840472 | LV6: 0.007871505969 | LW6: 0.007834677752 | LX6: 0.01168101796 | LY6: 0.007607687037 | LZ6: 0.008456027141 | MA6: 0.00747505792 | MB6: 0.007496412808 | MC6: 0.008286596527 | MD6: 0.008287501479 | ME6: 0.009452749681 | MF6: 0.007634837498 | MG6: 0.009277792679 | MH6: 0.0108952675 | MI6: 0.008544464718 | MJ6: 0.009110256348 | MK6: 0.01010232812 | ML6: 0.008676458041 | MM6: 0.007313631833 | MN6: 0.007638142688 | MO6: 0.008341894182 | MP6: 0.007825158616 | MQ6: 0.008252483103 | MR6: 0.008538555202 | MS6: 0.01078807645 | MT6: 0.008146551869 | MU6: 0.008890853156 | MV6: 0.01173627937 | MW6: 0.008381718916 | MX6: 0.008034044785 | MY6: 0.007538037462 | MZ6: 0.00724092454 | NA6: 0.007624398947 | NB6: 0.01014095987 | NC6: 0.009148467156 | ND6: 0.007236258721 | NE6: 0.007157320148 | NF6: 0.008189665887 | NG6: 0.008346743706 | NH6: 0.00990551665 | NI6: 0.00766338761 | NJ6: 0.007221621298 | NK6: 0.01048367505 | NL6: 0.008991081492 | NM6: 0.006983939673 | NN6: 0.007150326496 | NO6: 0.008896291669 | NP6: 0.008455529215 | NQ6: 0.007587536648 | NR6: 0.00782998758 | NS6: 0.00789548879 | NT6: 0.009280433152 | NU6: 0.008148719068 | NV6: 0.009351231242 | NW6: 0.009142699229 | NX6: 0.008819853907 | NY6: 0.008011199681 | NZ6: 0.00939647822 | OA6: 0.008392971107 | OB6: 0.009603943513 | OC6: 0.008261758784 | OD6: 0.008864259894 | OE6: 0.009176256539 | OF6: 0.009774604833 | OG6: 0.0093872923 | OH6: 0.009302363688 | OI6: 0.007972845842 | OJ6: 0.007766675186 | OK6: 0.007657376216 | OL6: 0.009444352549 | OM6: 0.009236471307 | ON6: 0.008394093816 | OO6: 0.009529086765 | OP6: 0.009866450956 | OQ6: 0.009031162914 | OR6: 0.008008182383 | OS6: 0.008675257724 | OT6: 0.007401793156 | OU6: 0.008913272918 | OV6: 0.009903549588 | OW6: 0.008284480162 | OX6: 0.00746173755 | OY6: 0.00905411497 | OZ6: 0.008305681025 | PA6: 0.009751930975 | PB6: 0.008938093926 | PC6: 0.009651665811 | PD6: 0.009325530115 | PE6: 0.007953922573 | PF6: 0.009293747692 | PG6: 0.007386566263 | PH6: 0.007958949834 | PI6: 0.007076551597 | PJ6: 0.008540606388 | PK6: 0.008078408265 | PL6: 0.007359821993 | PM6: 0.007936099312 | PN6: 0.007663139708 | PO6: 0.007391063414 | PP6: 0.007358600934 | PQ6: 0.007993414652 | PR6: 0.008928438599 | PS6: 0.007058167392 | PT6: 0.01090134879 | PU6: 0.008700116076 | PV6: 0.008901250853 | PW6: 0.007564912878 | PX6: 0.01024720559 | PY6: 0.00748255856 | PZ6: 0.009698003707 | QA6: 0.008654240819 | QB6: 0.007551423311 | QC6: 0.00913000659 | QD6: 0.00728018511 | QE6: 0.007918541434 | QF6: 0.007779156913 | QG6: 0.007827424682 | QH6: 0.009247449442 | QI6: 0.007252989775 | QJ6: 0.008706086668 | QK6: 0.007094568339 | QL6: 0.007544501292 | QM6: 0.007737699949 | QN6: 0.009203005595 | QO6: 0.007298189747 | QP6: 0.008928679351 | QQ6: 0.007548216427 | QR6: 0.009383734218 | QS6: 0.009038270936 | QT6: 0.008430554159 | QU6: 0.007352601013 | QV6: 0.007877086532 | QW6: 0.008628637585 | QX6: 0.009029900586 | QY6: 0.008705053486 | QZ6: 0.008616813803 | RA6: 0.008695142498 | RB6: 0.007936518995 | RC6: 0.007844269035 | RD6: 0.009885351959 | RE6: 0.007652187334 | RF6: 0.008616129068 | RG6: 0.01155097638 | RH6: 0.008076131336 | RI6: 0.01204652921 | RJ6: 0.008637845828 | RK6: 0.009306398207 | RL6: 0.009298949854 | RM6: 0.008017422169 | RN6: 0.01022813035 | RO6: 0.007990627235 | RP6: 0.008121328679 | RQ6: 0.008372060606 | RR6: 0.009433452783 | RS6: 0.006610238409 | RT6: 0.009910046036 | RU6: 0.007874395555 | RV6: 0.00971454392 | RW6: 0.008016120601 | RX6: 0.00757975778 | RY6: 0.007331697136 | RZ6: 0.00727140727 | SA6: 0.008957095091 | SB6: 0.007484402372 | SC6: 0.00767908927 | SD6: 0.009443832185 | SE6: 0.009829506947 | SF6: 0.0081568181 | SG6: 0.009312706665 | SH6: 0.007815732223 | SI6: 0.008468166224 | SJ6: 0.007345912673 | SK6: 0.01117313982 | SL6: 0.007632038215 | SM6: 0.007343742813 | SN6: 0.008036686211 | SO6: 0.008316823836 | SP6: 0.01133124804 | SQ6: 0.009230871683 | SR6: 0.008695397045 | SS6: 0.008551299697 | ST6: 0.007662447504 | SU6: 0.008265833982 | SV6: 0.007242248575 | SW6: 0.006895507155 | SX6: 0.007136906519 | SY6: 0.00906898471 | SZ6: 0.009261022639 | TA6: 0.009030763358 | TB6: 0.007299758196 | TC6: 0.008248512467 | TD6: 0.008498603952 | TE6: 0.007571654432 | TF6: 0.007814329165 | TG6: 0.008113372351 | TH6: 0.007798766346 | TI6: 0.008580820978 | TJ6: 0.007696386748 | TK6: 0.008579554659 | TL6: 0.01066054293 | TM6: 0.008299792843 | TN6: 0.008498265359 | TO6: 0.008514082048 | TP6: 0.009559592545 | TQ6: 0.008053352401 | TR6: 0.007488041136 | TS6: 0.007814788292 | TT6: 0.008511222967 | TU6: 0.008504061217 | TV6: 0.009761904147 | TW6: 0.009986570025 | TX6: 0.009749518466 | TY6: 0.009233471888 | TZ6: 0.00985911343 | UA6: 0.009870780123 | UB6: 0.008620342771 | UC6: 0.01219541011 | UD6: 0.01027428224 | UE6: 0.00836272768 | UF6: 0.008145495456 | UG6: 0.007220823786
A7: sim_6 | B7: 0.01031363338 | C7: 0.01133597585 | D7: 0.00932557993 | E7: 0.01013353941 | F7: 0.00805284426 | G7: 0.007101844572 | H7: 0.007987063101 | I7: 0.007861975559 | J7: 0.007272489001 | K7: 0.01214638616 | L7: 0.009339515269 | M7: 0.008484019141 | N7: 0.008954703071 | O7: 0.007545849225 | P7: 0.008496285074 | Q7: 0.008011825167 | R7: 0.008691177491 | S7: 0.007690304661 | T7: 0.007436213821 | U7: 0.007366066519 | V7: 0.007911761045 | W7: 0.008309366934 | X7: 0.01017384221 | Y7: 0.008481894366 | Z7: 0.008066789285 | AA7: 0.007576059505 | AB7: 0.00907323104 | AC7: 0.007980025176 | AD7: 0.008242025207 | AE7: 0.007060252115 | AF7: 0.008051884445 | AG7: 0.008262800252 | AH7: 0.007646735718 | AI7: 0.007512746224 | AJ7: 0.008874752888 | AK7: 0.008915663565 | AL7: 0.00872195011 | AM7: 0.008586557746 | AN7: 0.009174299543 | AO7: 0.01033732241 | AP7: 0.0140502231 | AQ7: 0.009492529455 | AR7: 0.01021380488 | AS7: 0.008168889992 | AT7: 0.008223672528 | AU7: 0.01139772444 | AV7: 0.00702659472 | AW7: 0.007406816641 | AX7: 0.01325024191 | AY7: 0.008235062483 | AZ7: 0.008721355371 | BA7: 0.006813075624 | BB7: 0.007935175583 | BC7: 0.008985415411 | BD7: 0.008642958326 | BE7: 0.01043697675 | BF7: 0.0094621505 | BG7: 0.008374786994 | BH7: 0.008928558561 | BI7: 0.007839341885 | BJ7: 0.01327353251 | BK7: 0.007384883888 | BL7: 0.009350281639 | BM7: 0.008448318974 | BN7: 0.008747297717 | BO7: 0.01060981577 | BP7: 0.007927909152 | BQ7: 0.009020847277 | BR7: 0.008457010817 | BS7: 0.00859639557 | BT7: 0.00985523183 | BU7: 0.01046664735 | BV7: 0.007484704592 | BW7: 0.007632824005 | BX7: 0.008752973393 | BY7: 0.008621408475 | BZ7: 0.007771366849 | CA7: 0.01060955736 | CB7: 0.009528602341 | CC7: 0.00701033892 | CD7: 0.007119075149 | CE7: 0.007491276442 | CF7: 0.01062637985 | CG7: 0.008261018688 | CH7: 0.008767660756 | CI7: 0.008480063679 | CJ7: 0.007442053689 | CK7: 0.00738914511 | CL7: 0.008946181226 | CM7: 0.007811537385 | CN7: 0.007555296075 | CO7: 0.008943856082 | CP7: 0.007862672425 | CQ7: 0.007241015647 | CR7: 0.007025004447 | CS7: 0.009113684534 | CT7: 0.01047477524 | CU7: 0.008084903207 | CV7: 0.008472581359 | CW7: 0.007746806612 | CX7: 0.008799831114 | CY7: 0.01023073745 | CZ7: 0.007798501874 | DA7: 0.008123202697 | DB7: 0.01104756488 | DC7: 0.008761214575 | DD7: 0.008691715942 | DE7: 0.008483388053 | DF7: 0.009967094373 | DG7: 0.009120151304 | DH7: 0.008344538334 | DI7: 0.007513392534 | DJ7: 0.008766555827 | DK7: 0.008075703809 | DL7: 0.007804060767 | DM7: 0.008660101625 | DN7: 0.009396733811 | DO7: 0.01173756385 | DP7: 0.008006558369 | DQ7: 0.007237342383 | DR7: 0.009891502846 | DS7: 0.008241526608 | DT7: 0.006780878487 | DU7: 0.01223206386 | DV7: 0.008441857388 | DW7: 0.008527916724 | DX7: 0.009004796667 | DY7: 0.009904917066 | DZ7: 0.01082431812 | EA7: 0.007637606991 | EB7: 0.009436457089 | EC7: 0.007214354964 | ED7: 0.009449625629 | EE7: 0.008916036408 | EF7: 0.007144404442 | EG7: 0.008299644947 | EH7: 0.006978973712 | EI7: 0.007684435551 | EJ7: 0.006762694581 | EK7: 0.009308303311 | EL7: 0.00828839753 | EM7: 0.007763038032 | EN7: 0.01066329443 | EO7: 0.007861082925 | EP7: 0.007282843238 | EQ7: 0.00864680041 | ER7: 0.007816583019 | ES7: 0.0115675043 | ET7: 0.009564578887 | EU7: 0.009014047374 | EV7: 0.007082990367 | EW7: 0.008060916077 | EX7: 0.007406703799 | EY7: 0.008436466115 | EZ7: 0.01000868081 | FA7: 0.01011987239 | FB7: 0.008513449199 | FC7: 0.01150508422 | FD7: 0.008900007383 | FE7: 0.007896360378 | FF7: 0.008068276428 | FG7: 0.008848575053 | FH7: 0.007848226212 | FI7: 0.009441418106 | FJ7: 0.0103542658 | FK7: 0.006641169326 | FL7: 0.01131237012 | FM7: 0.008220218293 | FN7: 0.009872493008 | FO7: 0.007624090788 | FP7: 0.008678699895 | FQ7: 0.007094738328 | FR7: 0.0095560332 | FS7: 0.009601130739 | FT7: 0.01093301348 | FU7: 0.007497822249 | FV7: 0.008325469311 | FW7: 0.01010734099 | FX7: 0.009399055518 | FY7: 0.008000998708 | FZ7: 0.007582496528 | GA7: 0.008477667456 | GB7: 0.007957380713 | GC7: 0.008085856096 | GD7: 0.009411070819 | GE7: 0.007497567831 | GF7: 0.009251561148 | GG7: 0.00738299851 | GH7: 0.008056589329 | GI7: 0.008180090562 | GJ7: 0.007885883117 | GK7: 0.008543650297 | GL7: 0.008402748548 | GM7: 0.007226309344 | GN7: 0.008239035186 | GO7: 0.008183539265 | GP7: 0.00752927041 | GQ7: 0.008872452224 | GR7: 0.008715635317 | GS7: 0.007200322908 | GT7: 0.009012471805 | GU7: 0.00655451568 | GV7: 0.007585024826 | GW7: 0.01062715672 | GX7: 0.007634242227 | GY7: 0.008935866964 | GZ7: 0.006864831292 | HA7: 0.007621106211 | HB7: 0.007777334869 | HC7: 0.008130698996 | HD7: 0.00892192817 | HE7: 0.00860500593 | HF7: 0.007807203849 | HG7: 0.00931175276 | HH7: 0.009047511298 | HI7: 0.008553601729 | HJ7: 0.007288415182 | HK7: 0.009236523296 | HL7: 0.00734484785 | HM7: 0.009621163645 | HN7: 0.009372757509 | HO7: 0.0103449662 | HP7: 0.007457071339 | HQ7: 0.007114652012 | HR7: 0.008207499315 | HS7: 0.008544370861 | HT7: 0.008379153427 | HU7: 0.007837172632 | HV7: 0.007622039824 | HW7: 0.007891189999 | HX7: 0.007538866512 | HY7: 0.009923132396 | HZ7: 0.008665641917 | IA7: 0.007907894651 | IB7: 0.008992912704 | IC7: 0.008143633456 | ID7: 0.009051588659 | IE7: 0.007604101691 | IF7: 0.008341920066 | IG7: 0.009024700023 | IH7: 0.008001681256 | II7: 0.00995765739 | IJ7: 0.008570880088 | IK7: 0.01052472881 | IL7: 0.008258409062 | IM7: 0.006951363299 | IN7: 0.007715104755 | IO7: 0.008582549023 | IP7: 0.00814764304 | IQ7: 0.007469337479 | IR7: 0.007128849785 | IS7: 0.007339427024 | IT7: 0.007482677322 | IU7: 0.008002949731 | IV7: 0.007909816527 | IW7: 0.008295893104 | IX7: 0.008138424107 | IY7: 0.007920671547 | IZ7: 0.01103231589 | JA7: 0.007249090806 | JB7: 0.009380041526 | JC7: 0.009820535492 | JD7: 0.007982297787 | JE7: 0.007366454432 | JF7: 0.007643519913 | JG7: 0.008454885964 | JH7: 0.006907817023 | JI7: 0.008083231847 | JJ7: 0.00830032226 | JK7: 0.008520548302 | JL7: 0.009045779831 | JM7: 0.008187472452 | JN7: 0.01031652975 | JO7: 0.008101826678 | JP7: 0.007964757258 | JQ7: 0.01016247513 | JR7: 0.008759570913 | JS7: 0.008986215962 | JT7: 0.008651530019 | JU7: 0.00750839838 | JV7: 0.008310563379 | JW7: 0.01041375456 | JX7: 0.007650209311 | JY7: 0.00902695762 | JZ7: 0.009339323647 | KA7: 0.008559574315 | KB7: 0.008101076207 | KC7: 0.008386543263 | KD7: 0.008346372819 | KE7: 0.00822343762 | KF7: 0.007789534924 | KG7: 0.007793808316 | KH7: 0.008271848118 | KI7: 0.008610618808 | KJ7: 0.009904999515 | KK7: 0.006540823011 | KL7: 0.009076330637 | KM7: 0.009117912317 | KN7: 0.007934589417 | KO7: 0.006715134149 | KP7: 0.008969162222 | KQ7: 0.008659697497 | KR7: 0.007300621928 | KS7: 0.008099019452 | KT7: 0.007647703522 | KU7: 0.007060082714 | KV7: 0.007802287507 | KW7: 0.006895716147 | KX7: 0.008951824767 | KY7: 0.007554545088 | KZ7: 0.008602238906 | LA7: 0.009454341552 | LB7: 0.006820602587 | LC7: 0.008384189285 | LD7: 0.00867815381 | LE7: 0.009652522389 | LF7: 0.008068013223 | LG7: 0.00924387061 | LH7: 0.007360758336 | LI7: 0.01073169599 | LJ7: 0.007912020916 | LK7: 0.008071338523 | LL7: 0.008043583895 | LM7: 0.008316648759 | LN7: 0.007946986937 | LO7: 0.007320726943 | LP7: 0.01132248021 | LQ7: 0.007931998765 | LR7: 0.0071743392 | LS7: 0.006728796714 | LT7: 0.009966541125 | LU7: 0.01031917931 | LV7: 0.00838284287 | LW7: 0.007584030426 | LX7: 0.01194524253 | LY7: 0.00720807325 | LZ7: 0.01058631602 | MA7: 0.007219448822 | MB7: 0.007191366089 | MC7: 0.009209713571 | MD7: 0.007848108311 | ME7: 0.008979401788 | MF7: 0.007595776753 | MG7: 0.00884266826 | MH7: 0.01039252617 | MI7: 0.008302848948 | MJ7: 0.009811768294 | MK7: 0.009666850165 | ML7: 0.008240659969 | MM7: 0.009005114231 | MN7: 0.007412034723 | MO7: 0.007961908809 | MP7: 0.008022604978 | MQ7: 0.007773427293 | MR7: 0.008137872944 | MS7: 0.01304697211 | MT7: 0.007711650431 | MU7: 0.00963927639 | MV7: 0.01142839336 | MW7: 0.008781344394 | MX7: 0.007927118454 | MY7: 0.007244136361 | MZ7: 0.007002082377 | NA7: 0.007201149112 | NB7: 0.009579997056 | NC7: 0.01001266932 | ND7: 0.006914267787 | NE7: 0.007028633882 | NF7: 0.007776885273 | NG7: 0.008404595051 | NH7: 0.009323987129 | NI7: 0.0079475857 | NJ7: 0.006844892965 | NK7: 0.01125129996 | NL7: 0.008572925747 | NM7: 0.006793484669 | NN7: 0.006747192266 | NO7: 0.008349005034 | NP7: 0.009867378481 | NQ7: 0.007543224964 | NR7: 0.007845790233 | NS7: 0.007674868032 | NT7: 0.00863147571 | NU7: 0.00885624501 | NV7: 0.009083261906 | NW7: 0.009219488044 | NX7: 0.008319936906 | NY7: 0.008861895891 | NZ7: 0.01109936906 | OA7: 0.008075919142 | OB7: 0.009223086821 | OC7: 0.008097137346 | OD7: 0.009015534431 | OE7: 0.009346544194 | OF7: 0.01037733809 | OG7: 0.009483855926 | OH7: 0.009445427142 | OI7: 0.008990656668 | OJ7: 0.009009178349 | OK7: 0.007326026617 | OL7: 0.009686594396 | OM7: 0.009346877009 | ON7: 0.008015497538 | OO7: 0.00985607681 | OP7: 0.01024660547 | OQ7: 0.008495557398 | OR7: 0.007809058496 | OS7: 0.008452473313 | OT7: 0.007857789573 | OU7: 0.01064966399 | OV7: 0.009316792361 | OW7: 0.008315827947 | OX7: 0.007283320247 | OY7: 0.008814113218 | OZ7: 0.008281184377 | PA7: 0.01105548494 | PB7: 0.00850821963 | PC7: 0.0107440592 | PD7: 0.01111164726 | PE7: 0.00788780886 | PF7: 0.009972678644 | PG7: 0.007774090104 | PH7: 0.007764351378 | PI7: 0.006898404438 | PJ7: 0.008445464962 | PK7: 0.007571820395 | PL7: 0.007901325778 | PM7: 0.009208368848 | PN7: 0.007857616881 | PO7: 0.007385949094 | PP7: 0.007434587398 | PQ7: 0.00752236693 | PR7: 0.008426958246 | PS7: 0.006719918867 | PT7: 0.01047508067 | PU7: 0.008533186709 | PV7: 0.008503640806 | PW7: 0.0097026369 | PX7: 0.01005132976 | PY7: 0.00868449391 | PZ7: 0.009517871566 | QA7: 0.008117439731 | QB7: 0.007610497385 | QC7: 0.009394939606 | QD7: 0.007188287536 | QE7: 0.007802136872 | QF7: 0.007420159251 | QG7: 0.0087403543 | QH7: 0.008945660812 | QI7: 0.007072253662 | QJ7: 0.008185597699 | QK7: 0.006850499433 | QL7: 0.007387989659 | QM7: 0.00790145021 | QN7: 0.009187921089 | QO7: 0.007974964738 | QP7: 0.008554561015 | QQ7: 0.008035203768 | QR7: 0.008861180667 | QS7: 0.01017020639 | QT7: 0.008409607402 | QU7: 0.006949795499 | QV7: 0.007469677778 | QW7: 0.008058455763 | QX7: 0.008917092316 | QY7: 0.008650346633 | QZ7: 0.008128569691 | RA7: 0.009203373966 | RB7: 0.008456558531 | RC7: 0.008564762514 | RD7: 0.01045622226 | RE7: 0.007283390495 | RF7: 0.008070028818 | RG7: 0.01164522262 | RH7: 0.009457276017 | RI7: 0.01389299733 | RJ7: 0.008507911801 | RK7: 0.009061648285 | RL7: 0.008727993176 | RM7: 0.00926138417 | RN7: 0.0106813903 | RO7: 0.007694582827 | RP7: 0.01079239204 | RQ7: 0.007997821064 | RR7: 0.009181551835 | RS7: 0.00629712329 | RT7: 0.01111738403 | RU7: 0.007628256548 | RV7: 0.009233409078 | RW7: 0.007642753372 | RX7: 0.008053884721 | RY7: 0.006967744074 | RZ7: 0.007347906747 | SA7: 0.01244308559 | SB7: 0.007068845936 | SC7: 0.007322429898 | SD7: 0.009194873931 | SE7: 0.01066978218 | SF7: 0.007657755583 | SG7: 0.00865664342 | SH7: 0.00771547453 | SI7: 0.00802703086 | SJ7: 0.007287496012 | SK7: 0.0112139088 | SL7: 0.007319581228 | SM7: 0.007439316413 | SN7: 0.007672697759 | SO7: 0.00780633045 | SP7: 0.01162855657 | SQ7: 0.008596105802 | SR7: 0.008324912566 | SS7: 0.008097511989 | ST7: 0.008141171059 | SU7: 0.008582733149 | SV7: 0.007151234767 | SW7: 0.007100828798 | SX7: 0.006754741958 | SY7: 0.00912036434 | SZ7: 0.009564114071 | TA7: 0.008983442125 | TB7: 0.006998842169 | TC7: 0.008053426686 | TD7: 0.008542409962 | TE7: 0.008501766776 | TF7: 0.007348950207 | TG7: 0.007780399806 | TH7: 0.007386331304 | TI7: 0.00855246011 | TJ7: 0.007562091271 | TK7: 0.009398663701 | TL7: 0.01002392299 | TM7: 0.007770002517 | TN7: 0.008057279756 | TO7: 0.008296687761 | TP7: 0.009912060559 | TQ7: 0.007719988557 | TR7: 0.009640070047 | TS7: 0.008787980861 | TT7: 0.008304102707 | TU7: 0.008279639578 | TV7: 0.009323547195 | TW7: 0.01080436346 | TX7: 0.009826257086 | TY7: 0.009455190722 | TZ7: 0.01006556486 | UA7: 0.01335381729 | UB7: 0.008313248409 | UC7: 0.01148216668 | UD7: 0.009812231175 | UE7: 0.007993043949 | UF7: 0.007622794703 | UG7: 0.007325751027
A8: sim_7 | B8: 0.0100411717 | C8: 0.01091759912 | D8: 0.008776159467 | E8: 0.009581781472 | F8: 0.007805201315 | G8: 0.006881071905 | H8: 0.007940750751 | I8: 0.007735231591 | J8: 0.007642846988 | K8: 0.01188178601 | L8: 0.008907263402 | M8: 0.008040123826 | N8: 0.01067609305 | O8: 0.007126002856 | P8: 0.009197369908 | Q8: 0.007910550636 | R8: 0.008682089151 | S8: 0.007533418202 | T8: 0.007591180955 | U8: 0.0073780849 | V8: 0.008316975192 | W8: 0.008037815429 | X8: 0.01035111864 | Y8: 0.008418675576 | Z8: 0.009542839825 | AA8: 0.008394869289 | AB8: 0.009571860879 | AC8: 0.008501143709 | AD8: 0.007995897438 | AE8: 0.007149875932 | AF8: 0.007982962809 | AG8: 0.008004088542 | AH8: 0.007230636757 | AI8: 0.007784259331 | AJ8: 0.0091558637 | AK8: 0.008360114608 | AL8: 0.008538056085 | AM8: 0.009341342035 | AN8: 0.009009898896 | AO8: 0.009883523167 | AP8: 0.01290817466 | AQ8: 0.008826896133 | AR8: 0.009698739906 | AS8: 0.007705990977 | AT8: 0.008742903305 | AU8: 0.01061907528 | AV8: 0.007655820726 | AW8: 0.008302135756 | AX8: 0.0153209354 | AY8: 0.007810208702 | AZ8: 0.00887813888 | BA8: 0.007073421507 | BB8: 0.007546108565 | BC8: 0.008506999381 | BD8: 0.009341427075 | BE8: 0.009956815204 | BF8: 0.009002780979 | BG8: 0.007968424886 | BH8: 0.009329856646 | BI8: 0.008067945111 | BJ8: 0.0125154022 | BK8: 0.007189092011 | BL8: 0.009230066179 | BM8: 0.009538292564 | BN8: 0.009101040967 | BO8: 0.01092499837 | BP8: 0.007608618467 | BQ8: 0.008993921132 | BR8: 0.008240623249 | BS8: 0.00845335215 | BT8: 0.009364123208 | BU8: 0.01011934534 | BV8: 0.007351825654 | BW8: 0.009277944106 | BX8: 0.008198019835 | BY8: 0.00867743761 | BZ8: 0.007566565687 | CA8: 0.01079095394 | CB8: 0.009388914491 | CC8: 0.006672378146 | CD8: 0.006920507333 | CE8: 0.007818031291 | CF8: 0.01088284687 | CG8: 0.00934654563 | CH8: 0.008989183502 | CI8: 0.008157046278 | CJ8: 0.007066082599 | CK8: 0.007464205635 | CL8: 0.009731221538 | CM8: 0.007359413596 | CN8: 0.008445700326 | CO8: 0.009158603555 | CP8: 0.007620680814 | CQ8: 0.007522845908 | CR8: 0.006661819997 | CS8: 0.008982930101 | CT8: 0.01018800369 | CU8: 0.008372620921 | CV8: 0.008376865578 | CW8: 0.007653506488 | CX8: 0.008232373418 | CY8: 0.01026467186 | CZ8: 0.007366645155 | DA8: 0.008194641865 | DB8: 0.01098480564 | DC8: 0.008633296694 | DD8: 0.009633972093 | DE8: 0.007976511193 | DF8: 0.01299206012 | DG8: 0.00896584894 | DH8: 0.007818360822 | DI8: 0.007184047946 | DJ8: 0.009116460933 | DK8: 0.007778773667 | DL8: 0.007490052202 | DM8: 0.008230496266 | DN8: 0.009266407086 | DO8: 0.01096291167 | DP8: 0.007746866851 | DQ8: 0.006978165317 | DR8: 0.01002614917 | DS8: 0.00785573675 | DT8: 0.006975414301 | DU8: 0.01202933832 | DV8: 0.008364925483 | DW8: 0.008195509508 | DX8: 0.008882820735 | DY8: 0.009537431923 | DZ8: 0.0105779187 | EA8: 0.007649761341 | EB8: 0.009029769234 | EC8: 0.007230658718 | ED8: 0.009139119809 | EE8: 0.01027742322 | EF8: 0.006809266863 | EG8: 0.008032860572 | EH8: 0.008122433245 | EI8: 0.008081351836 | EJ8: 0.006920056828 | EK8: 0.008761765727 | EL8: 0.0079489969 | EM8: 0.007331106873 | EN8: 0.01038991411 | EO8: 0.0083519125 | EP8: 0.006967400184 | EQ8: 0.01074203722 | ER8: 0.00744263644 | ES8: 0.01118277229 | ET8: 0.008885113561 | EU8: 0.009204838746 | EV8: 0.006712802866 | EW8: 0.007560137921 | EX8: 0.00740044304 | EY8: 0.007942685654 | EZ8: 0.009326613222 | FA8: 0.0101774459 | FB8: 0.009300536683 | FC8: 0.01080211881 | FD8: 0.008493754671 | FE8: 0.007740557062 | FF8: 0.008825897701 | FG8: 0.01044129542 | FH8: 0.007660767549 | FI8: 0.009822491106 | FJ8: 0.01111330926 | FK8: 0.007230532575 | FL8: 0.01138490972 | FM8: 0.008576270111 | FN8: 0.009455787441 | FO8: 0.007376448387 | FP8: 0.009950842735 | FQ8: 0.007440481332 | FR8: 0.009291885097 | FS8: 0.008962630746 | FT8: 0.01102207169 | FU8: 0.007080575111 | FV8: 0.008036190051 | FW8: 0.009724008744 | FX8: 0.008895170379 | FY8: 0.007753694479 | FZ8: 0.007554105244 | GA8: 0.007980097286 | GB8: 0.008054014963 | GC8: 0.007794019932 | GD8: 0.008927326866 | GE8: 0.007230673239 | GF8: 0.008847611457 | GG8: 0.007623104722 | GH8: 0.008819444272 | GI8: 0.008078151293 | GJ8: 0.008177461583 | GK8: 0.008099431954 | GL8: 0.008342459559 | GM8: 0.006856801045 | GN8: 0.009525196174 | GO8: 0.008726783022 | GP8: 0.007699555712 | GQ8: 0.009144656546 | GR8: 0.008347022769 | GS8: 0.007526334828 | GT8: 0.008539692032 | GU8: 0.006938007643 | GV8: 0.007385262898 | GW8: 0.009859372496 | GX8: 0.007477924502 | GY8: 0.008853053264 | GZ8: 0.007246836884 | HA8: 0.007469420259 | HB8: 0.008366210525 | HC8: 0.008325898885 | HD8: 0.008407566746 | HE8: 0.008155229776 | HF8: 0.007600874298 | HG8: 0.009174964916 | HH8: 0.008528870979 | HI8: 0.008410400405 | HJ8: 0.00715259544 | HK8: 0.009013690847 | HL8: 0.00728296532 | HM8: 0.009669832333 | HN8: 0.009543061462 | HO8: 0.009768392922 | HP8: 0.00755737065 | HQ8: 0.008659961213 | HR8: 0.008607244131 | HS8: 0.009971784825 | HT8: 0.007940020891 | HU8: 0.007752564378 | HV8: 0.00773906876 | HW8: 0.008571877009 | HX8: 0.007175019892 | HY8: 0.0104490517 | HZ8: 0.008211551923 | IA8: 0.008353992401 | IB8: 0.008649101875 | IC8: 0.008344144978 | ID8: 0.01085639992 | IE8: 0.007386543061 | IF8: 0.008042849421 | IG8: 0.009205642853 | IH8: 0.007495927628 | II8: 0.009869371692 | IJ8: 0.008072191821 | IK8: 0.01032813057 | IL8: 0.007783995953 | IM8: 0.006900340132 | IN8: 0.007699095487 | IO8: 0.00879199258 | IP8: 0.008044494758 | IQ8: 0.007729586584 | IR8: 0.007063814971 | IS8: 0.007095474272 | IT8: 0.007417851477 | IU8: 0.007636380309 | IV8: 0.007738927565 | IW8: 0.008699013438 | IX8: 0.007807019973 | IY8: 0.009689192129 | IZ8: 0.01069397549 | JA8: 0.007402293929 | JB8: 0.009328333491 | JC8: 0.009815421169 | JD8: 0.007503722164 | JE8: 0.00693179668 | JF8: 0.007290805417 | JG8: 0.008076390292 | JH8: 0.006993279463 | JI8: 0.008001662222 | JJ8: 0.008777017275 | JK8: 0.008354537939 | JL8: 0.008456959549 | JM8: 0.008842828978 | JN8: 0.009590861855 | JO8: 0.007697274178 | JP8: 0.008775705765 | JQ8: 0.01055496661 | JR8: 0.009992004454 | JS8: 0.009135089866 | JT8: 0.008137407658 | JU8: 0.00711775358 | JV8: 0.008529135204 | JW8: 0.01034499403 | JX8: 0.007298956052 | JY8: 0.00990876402 | JZ8: 0.008798718039 | KA8: 0.008036908342 | KB8: 0.008205121569 | KC8: 0.008081303044 | KD8: 0.008834098131 | KE8: 0.008086484485 | KF8: 0.007779917468 | KG8: 0.007633312244 | KH8: 0.00952849882 | KI8: 0.009132010296 | KJ8: 0.009348801239 | KK8: 0.006326384646 | KL8: 0.009329231467 | KM8: 0.008821317453 | KN8: 0.008129482335 | KO8: 0.007895532581 | KP8: 0.008754222541 | KQ8: 0.008339471643 | KR8: 0.007221311072 | KS8: 0.008035356988 | KT8: 0.007356301219 | KU8: 0.006959668767 | KV8: 0.008089254791 | KW8: 0.006550165905 | KX8: 0.008450747845 | KY8: 0.007421606145 | KZ8: 0.008782236479 | LA8: 0.009089104285 | LB8: 0.006525116966 | LC8: 0.008980991255 | LD8: 0.008910445814 | LE8: 0.009703143312 | LF8: 0.007710183731 | LG8: 0.00929708548 | LH8: 0.00718408192 | LI8: 0.009964781591 | LJ8: 0.007464727942 | LK8: 0.007809759752 | LL8: 0.007839012484 | LM8: 0.009276251231 | LN8: 0.007643805297 | LO8: 0.007018426724 | LP8: 0.01097738219 | LQ8: 0.00816834385 | LR8: 0.007172325126 | LS8: 0.006465254226 | LT8: 0.01032095199 | LU8: 0.01214981627 | LV8: 0.007876777483 | LW8: 0.00754193098 | LX8: 0.01107628233 | LY8: 0.007269594006 | LZ8: 0.01147321728 | MA8: 0.007516330808 | MB8: 0.008059297857 | MC8: 0.008638826084 | MD8: 0.008879046444 | ME8: 0.009567388758 | MF8: 0.007630658468 | MG8: 0.00887429287 | MH8: 0.0102372595 | MI8: 0.007782538965 | MJ8: 0.009324458723 | MK8: 0.01076516309 | ML8: 0.007960444592 | MM8: 0.01028106926 | MN8: 0.009324521182 | MO8: 0.007516386488 | MP8: 0.00779141815 | MQ8: 0.007378428115 | MR8: 0.008146880819 | MS8: 0.01467378031 | MT8: 0.007953823805 | MU8: 0.009648223753 | MV8: 0.01060948651 | MW8: 0.008403118097 | MX8: 0.008117063541 | MY8: 0.007265046082 | MZ8: 0.006883437655 | NA8: 0.00713165196 | NB8: 0.01043882077 | NC8: 0.00963802904 | ND8: 0.007896941756 | NE8: 0.007156294374 | NF8: 0.007592034834 | NG8: 0.009463354251 | NH8: 0.008843514207 | NI8: 0.007856177783 | NJ8: 0.00690654709 | NK8: 0.01134423186 | NL8: 0.01042312696 | NM8: 0.006424213622 | NN8: 0.007255971787 | NO8: 0.00893511585 | NP8: 0.01022851839 | NQ8: 0.008688906661 | NR8: 0.007392326279 | NS8: 0.007664003526 | NT8: 0.008210245215 | NU8: 0.008575985115 | NV8: 0.008970004669 | NW8: 0.008624011141 | NX8: 0.008015283997 | NY8: 0.009042492454 | NZ8: 0.01098200785 | OA8: 0.009187651794 | OB8: 0.009738544916 | OC8: 0.009459250947 | OD8: 0.009692509202 | OE8: 0.008994568647 | OF8: 0.009718457846 | OG8: 0.009612460716 | OH8: 0.009487709119 | OI8: 0.00875368115 | OJ8: 0.01215193394 | OK8: 0.006960650809 | OL8: 0.009620822425 | OM8: 0.009020151405 | ON8: 0.007949038564 | OO8: 0.009512117522 | OP8: 0.009906178233 | OQ8: 0.009040512744 | OR8: 0.007353334421 | OS8: 0.007943284404 | OT8: 0.008294609022 | OU8: 0.01066831459 | OV8: 0.009277549148 | OW8: 0.00816423475 | OX8: 0.007616998447 | OY8: 0.009270148664 | OZ8: 0.008259921581 | PA8: 0.01035048362 | PB8: 0.008078541862 | PC8: 0.01187042532 | PD8: 0.01025959677 | PE8: 0.007586012938 | PF8: 0.009867566197 | PG8: 0.008102359065 | PH8: 0.007315874306 | PI8: 0.006552945458 | PJ8: 0.009165807394 | PK8: 0.007306915458 | PL8: 0.007898594945 | PM8: 0.009007243656 | PN8: 0.008181423658 | PO8: 0.007115987914 | PP8: 0.007891265011 | PQ8: 0.007911857213 | PR8: 0.008225659303 | PS8: 0.006516205271 | PT8: 0.0105178771 | PU8: 0.008414150956 | PV8: 0.00826506151 | PW8: 0.009118527196 | PX8: 0.009713470471 | PY8: 0.008223525311 | PZ8: 0.009851379676 | QA8: 0.00794672891 | QB8: 0.007211614654 | QC8: 0.009612204623 | QD8: 0.007262664984 | QE8: 0.007601626701 | QF8: 0.008879360322 | QG8: 0.008677920482 | QH8: 0.008834643169 | QI8: 0.007284554537 | QJ8: 0.008330253041 | QK8: 0.006858302495 | QL8: 0.007372156982 | QM8: 0.008378274965 | QN8: 0.009625255124 | QO8: 0.007863267458 | QP8: 0.008365619652 | QQ8: 0.009639678061 | QR8: 0.009326547082 | QS8: 0.01027010242 | QT8: 0.00978958426 | QU8: 0.007716923904 | QV8: 0.007196612224 | QW8: 0.008006351714 | QX8: 0.008828887009 | QY8: 0.008894396357 | QZ8: 0.009622919808 | RA8: 0.008613826778 | RB8: 0.008486639802 | RC8: 0.008120329538 | RD8: 0.01071744208 | RE8: 0.008536311961 | RF8: 0.008160752396 | RG8: 0.0129638179 | RH8: 0.00883788539 | RI8: 0.0136885941 | RJ8: 0.008912129621 | RK8: 0.008732239381 | RL8: 0.008504369271 | RM8: 0.00874212442 | RN8: 0.01030943141 | RO8: 0.007304470622 | RP8: 0.01023236597 | RQ8: 0.008297644004 | RR8: 0.01078338875 | RS8: 0.006902900381 | RT8: 0.01081229021 | RU8: 0.008383217221 | RV8: 0.008618071074 | RW8: 0.008007758743 | RX8: 0.007654893191 | RY8: 0.008136244734 | RZ8: 0.00722048932 | SA8: 0.01192105503 | SB8: 0.007773892737 | SC8: 0.006924418461 | SD8: 0.009150282537 | SE8: 0.01004874251 | SF8: 0.007210533666 | SG8: 0.008659293884 | SH8: 0.007272394578 | SI8: 0.007558965187 | SJ8: 0.008081221631 | SK8: 0.01136186182 | SL8: 0.006963140598 | SM8: 0.007235771832 | SN8: 0.007508568801 | SO8: 0.007860330417 | SP8: 0.01102178821 | SQ8: 0.008291273273 | SR8: 0.007800861819 | SS8: 0.008031247826 | ST8: 0.007950247608 | SU8: 0.009591912953 | SV8: 0.007110427785 | SW8: 0.006755126524 | SX8: 0.007134308022 | SY8: 0.008778128213 | SZ8: 0.009467718212 | TA8: 0.008405016031 | TB8: 0.007363579285 | TC8: 0.007647752788 | TD8: 0.008422382088 | TE8: 0.00832123578 | TF8: 0.007083556152 | TG8: 0.007445452871 | TH8: 0.007852398293 | TI8: 0.008694635248 | TJ8: 0.008426378522 | TK8: 0.008771532393 | TL8: 0.01030283305 | TM8: 0.007331295983 | TN8: 0.008599365693 | TO8: 0.008111306365 | TP8: 0.01017608674 | TQ8: 0.007734117276 | TR8: 0.00895405254 | TS8: 0.009266481128 | TT8: 0.008750839287 | TU8: 0.007747671721 | TV8: 0.01055137492 | TW8: 0.01029218387 | TX8: 0.01206732297 | TY8: 0.009485788642 | TZ8: 0.009482458934 | UA8: 0.01531570015 | UB8: 0.008204927524 | UC8: 0.01186960767 | UD8: 0.009887524471 | UE8: 0.008092688848 | UF8: 0.007395143092 | UG8: 0.007166064005
A9: sim_8 | B9: 0.009611397706 | C9: 0.0127803738 | D9: 0.009156718413 | E9: 0.00956227264 | F9: 0.007802117212 | G9: 0.006569761856 | H9: 0.00844178277 | I9: 0.00748540435 | J9: 0.007410699419 | K9: 0.0115339817 | L9: 0.008301943805 | M9: 0.00829689885 | N9: 0.01110153999 | O9: 0.007644527542 | P9: 0.009095985598 | Q9: 0.007544018506 | R9: 0.008594640116 | S9: 0.007158659847 | T9: 0.008824542017 | U9: 0.007102021946 | V9: 0.00848658896 | W9: 0.007535050046 | X9: 0.009936218967 | Y9: 0.007941727459 | Z9: 0.01060738987 | AA9: 0.008413714997 | AB9: 0.009148295802 | AC9: 0.008144833742 | AD9: 0.007529135053 | AE9: 0.007044691618 | AF9: 0.007982600768 | AG9: 0.008738223533 | AH9: 0.007652483835 | AI9: 0.007348320707 | AJ9: 0.009210225714 | AK9: 0.008275482981 | AL9: 0.01023327189 | AM9: 0.008876038918 | AN9: 0.008654252468 | AO9: 0.009812193047 | AP9: 0.01197764116 | AQ9: 0.008483455473 | AR9: 0.009616162715 | AS9: 0.007516743798 | AT9: 0.00869576741 | AU9: 0.0103166709 | AV9: 0.007260446361 | AW9: 0.007995698615 | AX9: 0.01723350074 | AY9: 0.007820253006 | AZ9: 0.008363742826 | BA9: 0.007071996087 | BB9: 0.00811465427 | BC9: 0.009089552394 | BD9: 0.009068757316 | BE9: 0.00961279121 | BF9: 0.008940977092 | BG9: 0.007803572833 | BH9: 0.008770387512 | BI9: 0.008030420154 | BJ9: 0.01317578454 | BK9: 0.006778476967 | BL9: 0.01065704878 | BM9: 0.009631395514 | BN9: 0.009139321775 | BO9: 0.01020650214 | BP9: 0.007597324743 | BQ9: 0.008652301192 | BR9: 0.007958210283 | BS9: 0.008011766722 | BT9: 0.008730838223 | BU9: 0.009573274778 | BV9: 0.007763870993 | BW9: 0.00873521521 | BX9: 0.00815525241 | BY9: 0.008541139642 | BZ9: 0.00711508009 | CA9: 0.01035072652 | CB9: 0.009142409973 | CC9: 0.006320454354 | CD9: 0.006740500442 | CE9: 0.007737292217 | CF9: 0.01105840991 | CG9: 0.009039893816 | CH9: 0.008553182332 | CI9: 0.008530789973 | CJ9: 0.007346637087 | CK9: 0.007378075075 | CL9: 0.009503809288 | CM9: 0.007267820388 | CN9: 0.008241892472 | CO9: 0.008561305708 | CP9: 0.007293019713 | CQ9: 0.007284377366 | CR9: 0.006304525859 | CS9: 0.008994533777 | CT9: 0.01015294575 | CU9: 0.007972119854 | CV9: 0.007957167393 | CW9: 0.009203364183 | CX9: 0.008250136616 | CY9: 0.009996991785 | CZ9: 0.007087740469 | DA9: 0.007799745068 | DB9: 0.01252046121 | DC9: 0.008078299338 | DD9: 0.008957949894 | DE9: 0.008105139454 | DF9: 0.01256600782 | DG9: 0.008827071973 | DH9: 0.007795233201 | DI9: 0.00685612596 | DJ9: 0.009585254814 | DK9: 0.007327064767 | DL9: 0.008809317151 | DM9: 0.007748399183 | DN9: 0.008745140221 | DO9: 0.01096986202 | DP9: 0.007373203828 | DQ9: 0.007404889026 | DR9: 0.009825992143 | DS9: 0.008133131452 | DT9: 0.00685472036 | DU9: 0.01255363131 | DV9: 0.008024601649 | DW9: 0.007916179566 | DX9: 0.008674326523 | DY9: 0.009686585718 | DZ9: 0.0099336349 | EA9: 0.008663815972 | EB9: 0.00908255677 | EC9: 0.007546183689 | ED9: 0.008523711745 | EE9: 0.01087590599 | EF9: 0.007874344074 | EG9: 0.008442152336 | EH9: 0.009028259792 | EI9: 0.008070897394 | EJ9: 0.00769996875 | EK9: 0.008676019508 | EL9: 0.007822778573 | EM9: 0.007211577247 | EN9: 0.009794607581 | EO9: 0.008268158977 | EP9: 0.00711916488 | EQ9: 0.01127385553 | ER9: 0.007008213185 | ES9: 0.01197558938 | ET9: 0.01038687778 | EU9: 0.00862826545 | EV9: 0.006567471629 | EW9: 0.00808413248 | EX9: 0.008013623973 | EY9: 0.008333059499 | EZ9: 0.008717203777 | FA9: 0.01040095094 | FB9: 0.008691108826 | FC9: 0.01015317343 | FD9: 0.009518719404 | FE9: 0.008545291533 | FF9: 0.009159919426 | FG9: 0.01014344846 | FH9: 0.007625352935 | FI9: 0.009488289003 | FJ9: 0.01194001321 | FK9: 0.006997119436 | FL9: 0.01071259674 | FM9: 0.008379959462 | FN9: 0.009721408278 | FO9: 0.007472140452 | FP9: 0.009559287738 | FQ9: 0.007606040003 | FR9: 0.00981677752 | FS9: 0.009337602488 | FT9: 0.01054277145 | FU9: 0.006796119123 | FV9: 0.009294618906 | FW9: 0.00997419656 | FX9: 0.01110048451 | FY9: 0.009211105227 | FZ9: 0.007113729154 | GA9: 0.007796463702 | GB9: 0.00779023986 | GC9: 0.008665366799 | GD9: 0.009819271404 | GE9: 0.006958782895 | GF9: 0.008378549826 | GG9: 0.007286616451 | GH9: 0.008916587848 | GI9: 0.0078681155 | GJ9: 0.008939877117 | GK9: 0.008377397349 | GL9: 0.008249533038 | GM9: 0.007093572066 | GN9: 0.009428181244 | GO9: 0.009059771943 | GP9: 0.007317060092 | GQ9: 0.008937383676 | GR9: 0.007956678658 | GS9: 0.008749960689 | GT9: 0.008027183481 | GU9: 0.006933814865 | GV9: 0.0074390422 | GW9: 0.009893199047 | GX9: 0.007224422297 | GY9: 0.008951359066 | GZ9: 0.007062823239 | HA9: 0.00741536609 | HB9: 0.009373247336 | HC9: 0.008342171901 | HD9: 0.008784114285 | HE9: 0.008402660034 | HF9: 0.00841425306 | HG9: 0.01055163804 | HH9: 0.008018091823 | HI9: 0.007875289326 | HJ9: 0.007674958021 | HK9: 0.008768128277 | HL9: 0.008013818586 | HM9: 0.01000371207 | HN9: 0.009060916529 | HO9: 0.009600519067 | HP9: 0.007193241547 | HQ9: 0.00840744066 | HR9: 0.01129047867 | HS9: 0.009246573657 | HT9: 0.007788816285 | HU9: 0.007701442067 | HV9: 0.008253725995 | HW9: 0.0081585266 | HX9: 0.00691829288 | HY9: 0.01044640006 | HZ9: 0.007868849708 | IA9: 0.009760627624 | IB9: 0.00893004825 | IC9: 0.007855554299 | ID9: 0.01157785891 | IE9: 0.007660085863 | IF9: 0.007923170209 | IG9: 0.00892811837 | IH9: 0.008620230841 | II9: 0.01002469828 | IJ9: 0.0079159934 | IK9: 0.0113768501 | IL9: 0.007432976095 | IM9: 0.006957631834 | IN9: 0.007273007425 | IO9: 0.0101237068 | IP9: 0.007562635308 | IQ9: 0.008940365319 | IR9: 0.007142775747 | IS9: 0.008150197259 | IT9: 0.007031849749 | IU9: 0.00781618736 | IV9: 0.007392369582 | IW9: 0.008727188098 | IX9: 0.00878570844 | IY9: 0.009306958027 | IZ9: 0.01037180125 | JA9: 0.007653934948 | JB9: 0.009087818945 | JC9: 0.009878154477 | JD9: 0.007240770703 | JE9: 0.007323980804 | JF9: 0.007376371967 | JG9: 0.007634473574 | JH9: 0.006908156243 | JI9: 0.007835421444 | JJ9: 0.008245080156 | JK9: 0.008310461776 | JL9: 0.008065307289 | JM9: 0.008878940492 | JN9: 0.01009357192 | JO9: 0.007514062145 | JP9: 0.009041733302 | JQ9: 0.01096190206 | JR9: 0.0116486518 | JS9: 0.009061427674 | JT9: 0.007837349063 | JU9: 0.007670580351 | JV9: 0.009001161821 | JW9: 0.01030179411 | JX9: 0.00748214036 | JY9: 0.00929333925 | JZ9: 0.008864045829 | KA9: 0.007837142261 | KB9: 0.007872687033 | KC9: 0.008661708742 | KD9: 0.008978289215 | KE9: 0.007970415273 | KF9: 0.007344109851 | KG9: 0.008680419505 | KH9: 0.008931457306 | KI9: 0.009097855933 | KJ9: 0.00886135278 | KK9: 0.006104289498 | KL9: 0.009042942555 | KM9: 0.008446348726 | KN9: 0.008073529007 | KO9: 0.008151921216 | KP9: 0.008777180572 | KQ9: 0.008325319066 | KR9: 0.007227764718 | KS9: 0.00765050001 | KT9: 0.007051292135 | KU9: 0.00686169858 | KV9: 0.007823305071 | KW9: 0.0066261043 | KX9: 0.008384166365 | KY9: 0.007360496461 | KZ9: 0.008348350892 | LA9: 0.008897136578 | LB9: 0.00640311801 | LC9: 0.008760971828 | LD9: 0.008480470741 | LE9: 0.009092198166 | LF9: 0.007500298955 | LG9: 0.01005374466 | LH9: 0.007539849856 | LI9: 0.009489532154 | LJ9: 0.007241934795 | LK9: 0.008996332736 | LL9: 0.007674051857 | LM9: 0.008650627254 | LN9: 0.007601926348 | LO9: 0.007502635392 | LP9: 0.01130642174 | LQ9: 0.008138849977 | LR9: 0.007389177706 | LS9: 0.006457533061 | LT9: 0.009577335104 | LU9: 0.01250871518 | LV9: 0.007671362801 | LW9: 0.008200107673 | LX9: 0.01068694351 | LY9: 0.006927699881 | LZ9: 0.01067759454 | MA9: 0.007572254595 | MB9: 0.007982224149 | MC9: 0.008582949409 | MD9: 0.008585711516 | ME9: 0.00968859092 | MF9: 0.008392189294 | MG9: 0.00827728828 | MH9: 0.01004923085 | MI9: 0.007465911149 | MJ9: 0.009658584558 | MK9: 0.01114057822 | ML9: 0.00759944752 | MM9: 0.00973960338 | MN9: 0.008845941408 | MO9: 0.00722877602 | MP9: 0.008520829926 | MQ9: 0.007709429744 | MR9: 0.007679958715 | MS9: 0.01408461538 | MT9: 0.007506511617 | MU9: 0.009690680936 | MV9: 0.0102466259 | MW9: 0.008906333858 | MX9: 0.007753675752 | MY9: 0.007379056566 | MZ9: 0.006755879578 | NA9: 0.006847687673 | NB9: 0.0101025011 | NC9: 0.00950221335 | ND9: 0.007534886962 | NE9: 0.006965239558 | NF9: 0.008594013358 | NG9: 0.009619257422 | NH9: 0.008897753599 | NI9: 0.007416321769 | NJ9: 0.006654957503 | NK9: 0.01061775874 | NL9: 0.01046877651 | NM9: 0.006226090808 | NN9: 0.007836543637 | NO9: 0.008414671606 | NP9: 0.01048825211 | NQ9: 0.008662226991 | NR9: 0.007143632594 | NS9: 0.007895076973 | NT9: 0.007693653531 | NU9: 0.008114538004 | NV9: 0.009253351218 | NW9: 0.008105823983 | NX9: 0.007614293796 | NY9: 0.009287826305 | NZ9: 0.01102226334 | OA9: 0.009098474706 | OB9: 0.01269731006 | OC9: 0.008809927039 | OD9: 0.009344037851 | OE9: 0.008519034326 | OF9: 0.00949010832 | OG9: 0.009228325321 | OH9: 0.009193705996 | OI9: 0.01014219146 | OJ9: 0.01180928326 | OK9: 0.006775670837 | OL9: 0.01033527226 | OM9: 0.009220603646 | ON9: 0.007576729655 | OO9: 0.00955709762 | OP9: 0.01001509696 | OQ9: 0.008588101886 | OR9: 0.007862035522 | OS9: 0.007967617904 | OT9: 0.008057364821 | OU9: 0.01065273934 | OV9: 0.009219497686 | OW9: 0.007875519496 | OX9: 0.00756621511 | OY9: 0.008655420703 | OZ9: 0.008431175239 | PA9: 0.009924732132 | PB9: 0.007819533529 | PC9: 0.01095570266 | PD9: 0.01163898862 | PE9: 0.007127464566 | PF9: 0.009223968728 | PG9: 0.007989788236 | PH9: 0.007237849502 | PI9: 0.006293282617 | PJ9: 0.009081308751 | PK9: 0.008544817551 | PL9: 0.008877914051 | PM9: 0.008726270872 | PN9: 0.008724393625 | PO9: 0.008175672976 | PP9: 0.00754459146 | PQ9: 0.007812318256 | PR9: 0.008581595679 | PS9: 0.006519710593 | PT9: 0.009824591086 | PU9: 0.009668721847 | PV9: 0.008262886565 | PW9: 0.0105534614 | PX9: 0.009433106906 | PY9: 0.01028047198 | PZ9: 0.009508382594 | QA9: 0.007695641223 | QB9: 0.006942526104 | QC9: 0.009338085151 | QD9: 0.007495945808 | QE9: 0.008602676483 | QF9: 0.008373400953 | QG9: 0.00907865999 | QH9: 0.008418037838 | QI9: 0.007157096752 | QJ9: 0.008089972199 | QK9: 0.006799128066 | QL9: 0.00743263483 | QM9: 0.008205105527 | QN9: 0.008979403702 | QO9: 0.007481281369 | QP9: 0.008015899075 | QQ9: 0.009490913877 | QR9: 0.008888432051 | QS9: 0.01009890036 | QT9: 0.009107636402 | QU9: 0.008646708012 | QV9: 0.007166668832 | QW9: 0.007860153854 | QX9: 0.008669436801 | QY9: 0.008311267602 | QZ9: 0.01043801314 | RA9: 0.008148632151 | RB9: 0.008219673857 | RC9: 0.007679510825 | RD9: 0.01056189572 | RE9: 0.008431957235 | RF9: 0.007654194289 | RG9: 0.01195376713 | RH9: 0.008439450995 | RI9: 0.01263361929 | RJ9: 0.008377917124 | RK9: 0.008508261726 | RL9: 0.008519260514 | RM9: 0.008699007802 | RN9: 0.00955174347 | RO9: 0.007011622197 | RP9: 0.009990861779 | RQ9: 0.008538225643 | RR9: 0.01247496496 | RS9: 0.007855592069 | RT9: 0.0104269096 | RU9: 0.00811099171 | RV9: 0.008497648815 | RW9: 0.007598470877 | RX9: 0.00777727084 | RY9: 0.007935398588 | RZ9: 0.007094482211 | SA9: 0.01186130715 | SB9: 0.007321643351 | SC9: 0.006719939737 | SD9: 0.008639311246 | SE9: 0.009844490637 | SF9: 0.00720954905 | SG9: 0.009231019765 | SH9: 0.007757726859 | SI9: 0.007575702626 | SJ9: 0.007966288721 | SK9: 0.01086596844 | SL9: 0.007217476702 | SM9: 0.007122946445 | SN9: 0.007928144708 | SO9: 0.007523545841 | SP9: 0.0108706116 | SQ9: 0.008408432935 | SR9: 0.00758768174 | SS9: 0.008318730369 | ST9: 0.007875816871 | SU9: 0.0092450055 | SV9: 0.007376724545 | SW9: 0.00637539316 | SX9: 0.006874496906 | SY9: 0.009117639594 | SZ9: 0.009546350777 | TA9: 0.00795447218 | TB9: 0.006972879062 | TC9: 0.00865915171 | TD9: 0.008074564922 | TE9: 0.009676884012 | TF9: 0.007929023283 | TG9: 0.007367153029 | TH9: 0.007523437918 | TI9: 0.008424417169 | TJ9: 0.00895144928 | TK9: 0.009827696014 | TL9: 0.01105846752 | TM9: 0.0069102221 | TN9: 0.009519371925 | TO9: 0.007888735343 | TP9: 0.01064980012 | TQ9: 0.008043175394 | TR9: 0.008827055629 | TS9: 0.00984241452 | TT9: 0.008204772388 | TU9: 0.007357469698 | TV9: 0.009963603162 | TW9: 0.009874008432 | TX9: 0.01175783929 | TY9: 0.009037890191 | TZ9: 0.008846258029 | UA9: 0.01434077017 | UB9: 0.008267960591 | UC9: 0.011055766 | UD9: 0.009326975243 | UE9: 0.008680405495 | UF9: 0.007139720971 | UG9: 0.008227301437
A10: sim_9 | B10: 0.009066471715 | C10: 0.01253150846 | D10: 0.009022486967 | E10: 0.009476636556 | F10: 0.007379394692 | G10: 0.006529442614 | H10: 0.007958955851 | I10: 0.007677684931 | J10: 0.007887875796 | K10: 0.01123093222 | L10: 0.008299082705 | M10: 0.008559518711 | N10: 0.01196217778 | O10: 0.007297636187 | P10: 0.008945865336 | Q10: 0.008054579017 | R10: 0.008551983368 | S10: 0.006910863752 | T10: 0.008303890592 | U10: 0.008245238689 | V10: 0.008345716769 | W10: 0.009002687352 | X10: 0.009498828825 | Y10: 0.009421119362 | Z10: 0.01092310048 | AA10: 0.01007846604 | AB10: 0.008512537335 | AC10: 0.008908544938 | AD10: 0.007441890306 | AE10: 0.006818904809 | AF10: 0.008049633445 | AG10: 0.008155890995 | AH10: 0.007831162029 | AI10: 0.007986211228 | AJ10: 0.009402232 | AK10: 0.008258998646 | AL10: 0.01007416557 | AM10: 0.008400574963 | AN10: 0.008410212941 | AO10: 0.009765898387 | AP10: 0.01100253077 | AQ10: 0.008443191101 | AR10: 0.008955041476 | AS10: 0.007849166928 | AT10: 0.00819343288 | AU10: 0.009612472643 | AV10: 0.006849037912 | AW10: 0.007583359104 | AX10: 0.0162017544 | AY10: 0.008185532173 | AZ10: 0.008374172995 | BA10: 0.006695973401 | BB10: 0.007810915225 | BC10: 0.008963494955 | BD10: 0.008563221068 | BE10: 0.00943409379 | BF10: 0.008451340001 | BG10: 0.00750190154 | BH10: 0.009165388452 | BI10: 0.007523239154 | BJ10: 0.01253706399 | BK10: 0.006437564432 | BL10: 0.009947605445 | BM10: 0.009438257305 | BN10: 0.01044818714 | BO10: 0.01090512923 | BP10: 0.007577978865 | BQ10: 0.008386613978 | BR10: 0.007513944101 | BS10: 0.007908315662 | BT10: 0.008252201968 | BU10: 0.009785798779 | BV10: 0.007444431321 | BW10: 0.008834450936 | BX10: 0.00793676999 | BY10: 0.008179842889 | BZ10: 0.007028218421 | CA10: 0.01169348668 | CB10: 0.009773560734 | CC10: 0.006126537613 | CD10: 0.007504202013 | CE10: 0.009323241876 | CF10: 0.01034937641 | CG10: 0.00868924015 | CH10: 0.009019082476 | CI10: 0.009946073442 | CJ10: 0.006959965792 | CK10: 0.007463068838 | CL10: 0.009483382627 | CM10: 0.007644843245 | CN10: 0.00850539677 | CO10: 0.008393401264 | CP10: 0.007187233003 | CQ10: 0.007178879391 | CR10: 0.006850993125 | CS10: 0.01042762158 | CT10: 0.009995884783 | CU10: 0.007477410833 | CV10: 0.007668904356 | CW10: 0.008719489763 | CX10: 0.007748489144 | CY10: 0.009489266716 | CZ10: 0.006847355513 | DA10: 0.007354272398 | DB10: 0.01272935371 | DC10: 0.008452096991 | DD10: 0.009145354581 | DE10: 0.007752060235 | DF10: 0.01243802426 | DG10: 0.008719066616 | DH10: 0.007664900761 | DI10: 0.006782644933 | DJ10: 0.01060851462 | DK10: 0.007476843382 | DL10: 0.008467875088 | DM10: 0.007870635978 | DN10: 0.008930784483 | DO10: 0.01033454768 | DP10: 0.006977944984 | DQ10: 0.007097041046 | DR10: 0.009754093569 | DS10: 0.007668540051 | DT10: 0.007350226373 | DU10: 0.01219967634 | DV10: 0.008103106349 | DW10: 0.008419035459 | DX10: 0.008133226929 | DY10: 0.009292653878 | DZ10: 0.009780846867 | EA10: 0.008840962599 | EB10: 0.008601101632 | EC10: 0.00777761902 | ED10: 0.009641261458 | EE10: 0.01030477021 | EF10: 0.007449191006 | EG10: 0.0083939363 | EH10: 0.008774870062 | EI10: 0.008351765385 | EJ10: 0.007390976643 | EK10: 0.009239690779 | EL10: 0.008719988979 | EM10: 0.007063511528 | EN10: 0.009758360657 | EO10: 0.008372617173 | EP10: 0.006785435119 | EQ10: 0.01049699394 | ER10: 0.006633313127 | ES10: 0.0121039052 | ET10: 0.01013306512 | EU10: 0.008292695348 | EV10: 0.006399660886 | EW10: 0.007782889805 | EX10: 0.007704533319 | EY10: 0.008142231916 | EZ10: 0.008458327526 | FA10: 0.009914653375 | FB10: 0.00892866107 | FC10: 0.009565920093 | FD10: 0.009208196102 | FE10: 0.008877804856 | FF10: 0.009497733659 | FG10: 0.009463297324 | FH10: 0.008528379136 | FI10: 0.008900660205 | FJ10: 0.01100036262 | FK10: 0.006930727136 | FL10: 0.01042761755 | FM10: 0.009541320165 | FN10: 0.01120637778 | FO10: 0.007199703019 | FP10: 0.009029184841 | FQ10: 0.007691471338 | FR10: 0.009803489225 | FS10: 0.009230994832 | FT10: 0.01006465468 | FU10: 0.006773363032 | FV10: 0.01042505938 | FW10: 0.01059938294 | FX10: 0.01105105865 | FY10: 0.008629499711 | FZ10: 0.007719318758 | GA10: 0.007316355607 | GB10: 0.007537721685 | GC10: 0.00906863575 | GD10: 0.009430844978 | GE10: 0.007540606588 | GF10: 0.008833029975 | GG10: 0.007173047299 | GH10: 0.01044285809 | GI10: 0.008091608715 | GJ10: 0.008698406493 | GK10: 0.007980881575 | GL10: 0.007797156227 | GM10: 0.007215739579 | GN10: 0.009769382596 | GO10: 0.0086221997 | GP10: 0.00700651358 | GQ10: 0.008667079754 | GR10: 0.008405212752 | GS10: 0.00987188644 | GT10: 0.007702860025 | GU10: 0.006833505688 | GV10: 0.007184795084 | GW10: 0.01039603382 | GX10: 0.007012775778 | GY10: 0.009597384394 | GZ10: 0.007714182128 | HA10: 0.008674255191 | HB10: 0.009061405906 | HC10: 0.007833248992 | HD10: 0.00870146097 | HE10: 0.00807688822 | HF10: 0.007899512548 | HG10: 0.01065592695 | HH10: 0.007607966865 | HI10: 0.007655197235 | HJ10: 0.008535518732 | HK10: 0.01025117601 | HL10: 0.009029235554 | HM10: 0.009515894772 | HN10: 0.00894702716 | HO10: 0.009144209386 | HP10: 0.00728664392 | HQ10: 0.008578418185 | HR10: 0.0111377414 | HS10: 0.00865236309 | HT10: 0.007914358601 | HU10: 0.007226659026 | HV10: 0.008029633425 | HW10: 0.008855288799 | HX10: 0.006902190983 | HY10: 0.009666168126 | HZ10: 0.008105682338 | IA10: 0.01208336326 | IB10: 0.008371508039 | IC10: 0.008123069204 | ID10: 0.01101536317 | IE10: 0.007524023006 | IF10: 0.008506197299 | IG10: 0.00874137191 | IH10: 0.008936136876 | II10: 0.009727953167 | IJ10: 0.007983898986 | IK10: 0.01078993679 | IL10: 0.008023286658 | IM10: 0.007236446412 | IN10: 0.007450864932 | IO10: 0.009841790803 | IP10: 0.009479572509 | IQ10: 0.008854626905 | IR10: 0.007298141873 | IS10: 0.008449983566 | IT10: 0.006789536979 | IU10: 0.008063970842 | IV10: 0.006972157147 | IW10: 0.008300131448 | IX10: 0.009510377133 | IY10: 0.009246711392 | IZ10: 0.00967375208 | JA10: 0.007505630681 | JB10: 0.009631026692 | JC10: 0.01004046863 | JD10: 0.006941085258 | JE10: 0.006964564304 | JF10: 0.007186032056 | JG10: 0.007890935183 | JH10: 0.006540246604 | JI10: 0.008428663575 | JJ10: 0.007980732192 | JK10: 0.008175224756 | JL10: 0.008448539234 | JM10: 0.008315019039 | JN10: 0.009767511974 | JO10: 0.007329198211 | JP10: 0.008795844034 | JQ10: 0.01024381722 | JR10: 0.01196323945 | JS10: 0.009148966101 | JT10: 0.008059349097 | JU10: 0.007339685154 | JV10: 0.009831167923 | JW10: 0.009826551307 | JX10: 0.007433217474 | JY10: 0.009799725142 | JZ10: 0.00896673309 | KA10: 0.007703916607 | KB10: 0.007512899827 | KC10: 0.008105124273 | KD10: 0.008919722414 | KE10: 0.008580277231 | KF10: 0.007351511391 | KG10: 0.008558048811 | KH10: 0.00851968358 | KI10: 0.008766771996 | KJ10: 0.009389235193 | KK10: 0.007453867684 | KL10: 0.008623721083 | KM10: 0.01187167127 | KN10: 0.007779688856 | KO10: 0.008982582294 | KP10: 0.008466013154 | KQ10: 0.007790014382 | KR10: 0.007017480713 | KS10: 0.007245391726 | KT10: 0.006839371308 | KU10: 0.007093481878 | KV10: 0.007903060433 | KW10: 0.006701836188 | KX10: 0.008241421126 | KY10: 0.00716518276 | KZ10: 0.00874729353 | LA10: 0.01126852106 | LB10: 0.006817569612 | LC10: 0.009233725492 | LD10: 0.009157598181 | LE10: 0.01037186724 | LF10: 0.007821362452 | LG10: 0.009399970587 | LH10: 0.007165468085 | LI10: 0.009436368188 | LJ10: 0.007003228045 | LK10: 0.00909980095 | LL10: 0.007698760754 | LM10: 0.009109209758 | LN10: 0.007257528987 | LO10: 0.007140685504 | LP10: 0.01076817214 | LQ10: 0.007720637115 | LR10: 0.00737580093 | LS10: 0.006480837424 | LT10: 0.009594965195 | LU10: 0.01196123641 | LV10: 0.007999870932 | LW10: 0.007792702535 | LX10: 0.01054912751 | LY10: 0.007047526155 | LZ10: 0.01013733103 | MA10: 0.007268855433 | MB10: 0.007891322735 | MC10: 0.008019901719 | MD10: 0.008429424321 | ME10: 0.009452583099 | MF10: 0.008896910043 | MG10: 0.008157199285 | MH10: 0.01126228861 | MI10: 0.007361399118 | MJ10: 0.009620570887 | MK10: 0.01053809772 | ML10: 0.007671724163 | MM10: 0.009234813091 | MN10: 0.008248702732 | MO10: 0.008353251327 | MP10: 0.00854566211 | MQ10: 0.007410420755 | MR10: 0.008069599416 | MS10: 0.01395382135 | MT10: 0.007722481496 | MU10: 0.009233590762 | MV10: 0.01013493164 | MW10: 0.009527187893 | MX10: 0.007908633104 | MY10: 0.007474543256 | MZ10: 0.006696518391 | NA10: 0.006832693237 | NB10: 0.009816646513 | NC10: 0.009385425114 | ND10: 0.007905774604 | NE10: 0.006848011153 | NF10: 0.008036333014 | NG10: 0.008961166741 | NH10: 0.008387374419 | NI10: 0.00726075565 | NJ10: 0.006909996378 | NK10: 0.01042361173 | NL10: 0.01014457115 | NM10: 0.005913948083 | NN10: 0.008476347058 | NO10: 0.008500715585 | NP10: 0.01018241398 | NQ10: 0.008220819626 | NR10: 0.008963517859 | NS10: 0.007639574875 | NT10: 0.008048494875 | NU10: 0.007840030391 | NV10: 0.008975493829 | NW10: 0.008651154344 | NX10: 0.007657897689 | NY10: 0.008750423643 | NZ10: 0.01042304249 | OA10: 0.009241990943 | OB10: 0.01232850098 | OC10: 0.009812942891 | OD10: 0.009151541141 | OE10: 0.008171020097 | OF10: 0.009247395705 | OG10: 0.01170381288 | OH10: 0.008760543335 | OI10: 0.00967006456 | OJ10: 0.01400709206 | OK10: 0.00714108296 | OL10: 0.0107996988 | OM10: 0.008707254149 | ON10: 0.00718982921 | OO10: 0.009093109708 | OP10: 0.009754125618 | OQ10: 0.008037736216 | OR10: 0.00743413877 | OS10: 0.008355265727 | OT10: 0.008221427841 | OU10: 0.01017677578 | OV10: 0.008792845119 | OW10: 0.007750543345 | OX10: 0.007466857138 | OY10: 0.008458114053 | OZ10: 0.008167028868 | PA10: 0.009763892475 | PB10: 0.008546856156 | PC10: 0.01019800985 | PD10: 0.01080924897 | PE10: 0.007180747237 | PF10: 0.00889965243 | PG10: 0.008019862078 | PH10: 0.006812661485 | PI10: 0.006059105689 | PJ10: 0.009708702708 | PK10: 0.01012726254 | PL10: 0.009378633934 | PM10: 0.008483406855 | PN10: 0.008179143912 | PO10: 0.007675557845 | PP10: 0.007777866028 | PQ10: 0.007416607237 | PR10: 0.008043764389 | PS10: 0.006174273572 | PT10: 0.01024876963 | PU10: 0.009495989518 | PV10: 0.008560892147 | PW10: 0.009971009715 | PX10: 0.01019182559 | PY10: 0.01069519093 | PZ10: 0.01095621025 | QA10: 0.007279775354 | QB10: 0.006675383782 | QC10: 0.008846417072 | QD10: 0.007252395704 | QE10: 0.00863115795 | QF10: 0.008280653823 | QG10: 0.008639317325 | QH10: 0.008433806637 | QI10: 0.00735419901 | QJ10: 0.007671745791 | QK10: 0.00715273768 | QL10: 0.007777565826 | QM10: 0.007965675936 | QN10: 0.008654308666 | QO10: 0.007544163822 | QP10: 0.008693362916 | QQ10: 0.009011588003 | QR10: 0.009567892687 | QS10: 0.009492176536 | QT10: 0.009419838362 | QU10: 0.008213526535 | QV10: 0.00688322738 | QW10: 0.007464012293 | QX10: 0.008803472681 | QY10: 0.008062124691 | QZ10: 0.0101208796 | RA10: 0.007626213752 | RB10: 0.008109111842 | RC10: 0.007756532223 | RD10: 0.01043083754 | RE10: 0.008001938913 | RF10: 0.007257395419 | RG10: 0.01200592015 | RH10: 0.008678111727 | RI10: 0.01296580138 | RJ10: 0.009133865775 | RK10: 0.01012340178 | RL10: 0.008463434801 | RM10: 0.008138752535 | RN10: 0.0110682738 | RO10: 0.0075723017 | RP10: 0.01009890864 | RQ10: 0.008223562473 | RR10: 0.01165698558 | RS10: 0.00885312951 | RT10: 0.009951869456 | RU10: 0.008499426862 | RV10: 0.009528976772 | RW10: 0.007867043572 | RX10: 0.00758837184 | RY10: 0.0076564229 | RZ10: 0.00727393002 | SA10: 0.01179452133 | SB10: 0.007755556153 | SC10: 0.006351288298 | SD10: 0.008090965297 | SE10: 0.009440166487 | SF10: 0.007026431707 | SG10: 0.009012716482 | SH10: 0.007478067221 | SI10: 0.007348432619 | SJ10: 0.007592110617 | SK10: 0.01110506806 | SL10: 0.006832615408 | SM10: 0.00830117551 | SN10: 0.007750865942 | SO10: 0.007396421391 | SP10: 0.01020787583 | SQ10: 0.007883693849 | SR10: 0.007248379673 | SS10: 0.00793421122 | ST10: 0.00867226244 | SU10: 0.008709841802 | SV10: 0.007845651713 | SW10: 0.006292973127 | SX10: 0.006702360825 | SY10: 0.009021623506 | SZ10: 0.009414954328 | TA10: 0.00750822739 | TB10: 0.006934032018 | TC10: 0.008120243982 | TD10: 0.007681734174 | TE10: 0.009022485874 | TF10: 0.007569759259 | TG10: 0.008371276897 | TH10: 0.007874528571 | TI10: 0.008754701045 | TJ10: 0.008342974149 | TK10: 0.01071281344 | TL10: 0.01103388852 | TM10: 0.007272743215 | TN10: 0.01017316154 | TO10: 0.007691851534 | TP10: 0.01051719791 | TQ10: 0.008928973598 | TR10: 0.008500622014 | TS10: 0.01082923843 | TT10: 0.008333801004 | TU10: 0.008931632688 | TV10: 0.0108268847 | TW10: 0.009393406003 | TX10: 0.01196448278 | TY10: 0.008869231431 | TZ10: 0.009208826582 | UA10: 0.01483401929 | UB10: 0.007938193551 | UC10: 0.01081031575 | UD10: 0.009121849577 | UE10: 0.008156778252 | UF10: 0.008013661054 | UG10: 0.00863666421
A11: sim_10 | B11: 0.009324637684 | C11: 0.01228675702 | D11: 0.009545966601 | E11: 0.01057592319 | F11: 0.006939655946 | G11: 0.006396544887 | H11: 0.008374835533 | I11: 0.008895342538 | J11: 0.00751709643 | K11: 0.01044813802 | L11: 0.008309579075 | M11: 0.008261249187 | N11: 0.01144240359 | O11: 0.007356253997 | P11: 0.009528930726 | Q11: 0.008127028905 | R11: 0.008015204799 | S11: 0.006934411311 | T11: 0.00825320042 | U11: 0.008292070102 | V11: 0.008812595876 | W11: 0.008443812278 | X11: 0.009320584376 | Y11: 0.009867194774 | Z11: 0.01073343094 | AA11: 0.01185151215 | AB11: 0.007953724593 | AC11: 0.008335242577 | AD11: 0.007276274244 | AE11: 0.006560865956 | AF11: 0.007999496499 | AG11: 0.008583499145 | AH11: 0.007635708812 | AI11: 0.008169082604 | AJ11: 0.009658763013 | AK11: 0.008776719034 | AL11: 0.01066725861 | AM11: 0.007846858357 | AN11: 0.009252047575 | AO11: 0.01173281942 | AP11: 0.0106436815 | AQ11: 0.008089152544 | AR11: 0.008887412298 | AS11: 0.009768792802 | AT11: 0.008712563985 | AU11: 0.009956512018 | AV11: 0.007592422209 | AW11: 0.007825548696 | AX11: 0.01562093364 | AY11: 0.008179845051 | AZ11: 0.008007154426 | BA11: 0.006454362441 | BB11: 0.00827662922 | BC11: 0.009360064765 | BD11: 0.008144840401 | BE11: 0.01109336483 | BF11: 0.00792176681 | BG11: 0.007590947049 | BH11: 0.009980372378 | BI11: 0.00814736167 | BJ11: 0.01249355739 | BK11: 0.006558297799 | BL11: 0.009866298368 | BM11: 0.01017440736 | BN11: 0.01018215182 | BO11: 0.01054479048 | BP11: 0.007772179388 | BQ11: 0.00808319317 | BR11: 0.008198334682 | BS11: 0.008234005054 | BT11: 0.00829410265 | BU11: 0.009959509303 | BV11: 0.007790814049 | BW11: 0.008780296088 | BX11: 0.007879393888 | BY11: 0.0085719055 | BZ11: 0.008164781537 | CA11: 0.01157969074 | CB11: 0.009547396699 | CC11: 0.006359326989 | CD11: 0.008325259478 | CE11: 0.00978424775 | CF11: 0.009774008242 | CG11: 0.008295518849 | CH11: 0.008992987187 | CI11: 0.009645689246 | CJ11: 0.007539683152 | CK11: 0.007137315105 | CL11: 0.008997590576 | CM11: 0.007213319455 | CN11: 0.008467996564 | CO11: 0.008114074604 | CP11: 0.007392775256 | CQ11: 0.006834151938 | CR11: 0.006562292064 | CS11: 0.009904498293 | CT11: 0.00971304524 | CU11: 0.007929010237 | CV11: 0.008009221717 | CW11: 0.008879342873 | CX11: 0.007528988982 | CY11: 0.009783367683 | CZ11: 0.006884285132 | DA11: 0.007116018877 | DB11: 0.01169779398 | DC11: 0.008794328953 | DD11: 0.008807028101 | DE11: 0.007582437969 | DF11: 0.01194979138 | DG11: 0.009281296327 | DH11: 0.007324525786 | DI11: 0.006785431011 | DJ11: 0.01068865294 | DK11: 0.007151798096 | DL11: 0.009416934926 | DM11: 0.007620756086 | DN11: 0.008831228536 | DO11: 0.009828221732 | DP11: 0.006595514456 | DQ11: 0.007046464312 | DR11: 0.009547712799 | DS11: 0.00737771247 | DT11: 0.007199496357 | DU11: 0.01569089336 | DV11: 0.008828170788 | DW11: 0.009385132464 | DX11: 0.008060095079 | DY11: 0.009051456407 | DZ11: 0.009720686139 | EA11: 0.008866357853 | EB11: 0.008978712092 | EC11: 0.01034372476 | ED11: 0.008981494094 | EE11: 0.009813058971 | EF11: 0.00763034795 | EG11: 0.008255466518 | EH11: 0.008572961764 | EI11: 0.008711390339 | EJ11: 0.007656659489 | EK11: 0.009856456737 | EL11: 0.009898427781 | EM11: 0.006989993615 | EN11: 0.00910043824 | EO11: 0.008093345446 | EP11: 0.006585843193 | EQ11: 0.009984704564 | ER11: 0.007571432938 | ES11: 0.01216128837 | ET11: 0.009624227772 | EU11: 0.008372764585 | EV11: 0.006146293571 | EW11: 0.008214333457 | EX11: 0.007502295296 | EY11: 0.009241385656 | EZ11: 0.008104860628 | FA11: 0.009849589201 | FB11: 0.01073681152 | FC11: 0.008983375959 | FD11: 0.008748979177 | FE11: 0.008619089922 | FF11: 0.00922157185 | FG11: 0.008934962038 | FH11: 0.008014134893 | FI11: 0.008600387032 | FJ11: 0.01121868008 | FK11: 0.007191935326 | FL11: 0.01054488662 | FM11: 0.009716895467 | FN11: 0.01062144733 | FO11: 0.00722438689 | FP11: 0.009029276897 | FQ11: 0.007384101409 | FR11: 0.01110973312 | FS11: 0.009389829688 | FT11: 0.01020067952 | FU11: 0.006652845565 | FV11: 0.01242773058 | FW11: 0.01241617277 | FX11: 0.01067175362 | FY11: 0.008792209756 | FZ11: 0.007309144344 | GA11: 0.006957601251 | GB11: 0.007525806731 | GC11: 0.009828987445 | GD11: 0.008966783206 | GE11: 0.007573384654 | GF11: 0.009400478248 | GG11: 0.006761410325 | GH11: 0.00981093896 | GI11: 0.008270358622 | GJ11: 0.008115614579 | GK11: 0.009095389587 | GL11: 0.007406386688 | GM11: 0.007030472829 | GN11: 0.00965140456 | GO11: 0.008471410495 | GP11: 0.007136052269 | GQ11: 0.008591404985 | GR11: 0.01098134714 | GS11: 0.00941800442 | GT11: 0.007583311252 | GU11: 0.007290105683 | GV11: 0.007191766695 | GW11: 0.01115473987 | GX11: 0.00666243453 | GY11: 0.009775868354 | GZ11: 0.008019529864 | HA11: 0.009060228573 | HB11: 0.008507944775 | HC11: 0.007808337 | HD11: 0.008130203509 | HE11: 0.007559288999 | HF11: 0.007597275846 | HG11: 0.009854105694 | HH11: 0.007438741715 | HI11: 0.007317279637 | HJ11: 0.008058918773 | HK11: 0.01154454452 | HL11: 0.008951379947 | HM11: 0.008946284479 | HN11: 0.009307532498 | HO11: 0.008627770004 | HP11: 0.007333032689 | HQ11: 0.01046808374 | HR11: 0.0120243268 | HS11: 0.008667538058 | HT11: 0.007713870466 | HU11: 0.006834083111 | HV11: 0.007706760509 | HW11: 0.008807337567 | HX11: 0.006804465797 | HY11: 0.01035438095 | HZ11: 0.007811437692 | IA11: 0.01151301033 | IB11: 0.009178022546 | IC11: 0.008622601177 | ID11: 0.01102464544 | IE11: 0.007686516041 | IF11: 0.008551200773 | IG11: 0.008377048337 | IH11: 0.008863634749 | II11: 0.01029648369 | IJ11: 0.007520128305 | IK11: 0.01007465351 | IL11: 0.008137777387 | IM11: 0.007319861293 | IN11: 0.007059852955 | IO11: 0.009297483466 | IP11: 0.00923468181 | IQ11: 0.008476183531 | IR11: 0.006866577525 | IS11: 0.007894253775 | IT11: 0.006471337598 | IU11: 0.007825593725 | IV11: 0.00657815811 | IW11: 0.007833047539 | IX11: 0.009077077002 | IY11: 0.008993904207 | IZ11: 0.009225880019 | JA11: 0.007312304242 | JB11: 0.009336772567 | JC11: 0.01015606573 | JD11: 0.006753633902 | JE11: 0.006627495487 | JF11: 0.008020094994 | JG11: 0.008027846129 | JH11: 0.007074495869 | JI11: 0.008553826225 | JJ11: 0.008665446879 | JK11: 0.007873760538 | JL11: 0.008454453784 | JM11: 0.00818291264 | JN11: 0.009520117157 | JO11: 0.007304897249 | JP11: 0.008735125911 | JQ11: 0.01021327618 | JR11: 0.01173221925 | JS11: 0.008980429914 | JT11: 0.00773313597 | JU11: 0.007041604534 | JV11: 0.01069233303 | JW11: 0.01065592019 | JX11: 0.007398717241 | JY11: 0.009358067876 | JZ11: 0.009089239412 | KA11: 0.007803716621 | KB11: 0.008818296857 | KC11: 0.0080372424 | KD11: 0.008517114094 | KE11: 0.008728507418 | KF11: 0.007293006658 | KG11: 0.009451121334 | KH11: 0.008495347315 | KI11: 0.008646863182 | KJ11: 0.009372608581 | KK11: 0.007137519697 | KL11: 0.008236100706 | KM11: 0.01093414068 | KN11: 0.007504766766 | KO11: 0.009414448173 | KP11: 0.008379941608 | KQ11: 0.007569547412 | KR11: 0.006636752016 | KS11: 0.007579235541 | KT11: 0.00667768781 | KU11: 0.006912049357 | KV11: 0.007731748965 | KW11: 0.006904164173 | KX11: 0.0097244089 | KY11: 0.007013748996 | KZ11: 0.008175087903 | LA11: 0.01069664967 | LB11: 0.007026458354 | LC11: 0.008666913368 | LD11: 0.01047677565 | LE11: 0.01058166514 | LF11: 0.00764382195 | LG11: 0.008812570604 | LH11: 0.006962695838 | LI11: 0.009205712698 | LJ11: 0.007669502156 | LK11: 0.008655893479 | LL11: 0.008812077403 | LM11: 0.008476713956 | LN11: 0.007387409971 | LO11: 0.006946938234 | LP11: 0.01049272228 | LQ11: 0.007247484068 | LR11: 0.007341404145 | LS11: 0.006255578765 | LT11: 0.008966123984 | LU11: 0.01141575145 | LV11: 0.008135830544 | LW11: 0.007401436055 | LX11: 0.01133788919 | LY11: 0.007243694042 | LZ11: 0.009810780356 | MA11: 0.007370444815 | MB11: 0.007500264425 | MC11: 0.00909982424 | MD11: 0.008048869999 | ME11: 0.009395240651 | MF11: 0.008440954712 | MG11: 0.007707965163 | MH11: 0.01060166393 | MI11: 0.007509024352 | MJ11: 0.01001847959 | MK11: 0.01015545241 | ML11: 0.007709763066 | MM11: 0.0088900628 | MN11: 0.008935403792 | MO11: 0.008541271124 | MP11: 0.008174104803 | MQ11: 0.007718731257 | MR11: 0.007605920766 | MS11: 0.01406042185 | MT11: 0.007892200278 | MU11: 0.009575403665 | MV11: 0.009425520342 | MW11: 0.009218193396 | MX11: 0.007423290486 | MY11: 0.007531815439 | MZ11: 0.007080790408 | NA11: 0.006810188646 | NB11: 0.009407893686 | NC11: 0.009091162364 | ND11: 0.007683832324 | NE11: 0.006955872376 | NF11: 0.007815915382 | NG11: 0.008483959543 | NH11: 0.009784276697 | NI11: 0.007595728013 | NJ11: 0.007407649778 | NK11: 0.01002971299 | NL11: 0.009521054275 | NM11: 0.006187596688 | NN11: 0.00901274451 | NO11: 0.008935523989 | NP11: 0.011972817 | NQ11: 0.008334520014 | NR11: 0.008728682829 | NS11: 0.00896880223 | NT11: 0.008202168909 | NU11: 0.007761114831 | NV11: 0.008609483606 | NW11: 0.008649077353 | NX11: 0.008290966843 | NY11: 0.009420188963 | NZ11: 0.01026780962 | OA11: 0.009501966836 | OB11: 0.01348274916 | OC11: 0.009112311285 | OD11: 0.009288005392 | OE11: 0.007837963886 | OF11: 0.01045387065 | OG11: 0.01255416706 | OH11: 0.009017929205 | OI11: 0.009497950965 | OJ11: 0.01325465173 | OK11: 0.008297118366 | OL11: 0.01063847482 | OM11: 0.008729148025 | ON11: 0.006819717129 | OO11: 0.008497876171 | OP11: 0.01021339808 | OQ11: 0.008098004129 | OR11: 0.008054269263 | OS11: 0.008688260372 | OT11: 0.007824384452 | OU11: 0.009553692094 | OV11: 0.008365930765 | OW11: 0.007317847822 | OX11: 0.007505345782 | OY11: 0.00837974253 | OZ11: 0.009129020495 | PA11: 0.01075388157 | PB11: 0.009737995339 | PC11: 0.009888016227 | PD11: 0.01094646683 | PE11: 0.007335254794 | PF11: 0.008567289529 | PG11: 0.008291043357 | PH11: 0.007450940637 | PI11: 0.005919536702 | PJ11: 0.00937288403 | PK11: 0.01002513566 | PL11: 0.009537522994 | PM11: 0.00808592348 | PN11: 0.007808676601 | PO11: 0.007387469498 | PP11: 0.007648720535 | PQ11: 0.01020729436 | PR11: 0.009105821092 | PS11: 0.005935374902 | PT11: 0.009630466931 | PU11: 0.008977716288 | PV11: 0.008013420896 | PW11: 0.01017035561 | PX11: 0.01046769227 | PY11: 0.01004750216 | PZ11: 0.01037526277 | QA11: 0.006949963519 | QB11: 0.006794225482 | QC11: 0.009573610751 | QD11: 0.007672532243 | QE11: 0.008435485751 | QF11: 0.008024572762 | QG11: 0.008606263643 | QH11: 0.008192463705 | QI11: 0.008242622872 | QJ11: 0.008479991145 | QK11: 0.006854279037 | QL11: 0.007391479401 | QM11: 0.00767333032 | QN11: 0.008450522504 | QO11: 0.00779899294 | QP11: 0.008196964362 | QQ11: 0.008676323882 | QR11: 0.009057699882 | QS11: 0.009400161148 | QT11: 0.009925921858 | QU11: 0.007995792734 | QV11: 0.006869045935 | QW11: 0.007563247706 | QX11: 0.009625261675 | QY11: 0.008849964907 | QZ11: 0.009472450297 | RA11: 0.007356896249 | RB11: 0.008435773041 | RC11: 0.007287694381 | RD11: 0.009755686467 | RE11: 0.007877299903 | RF11: 0.007168814572 | RG11: 0.01197922373 | RH11: 0.008728747866 | RI11: 0.01212859974 | RJ11: 0.00856953296 | RK11: 0.009549959281 | RL11: 0.007992560627 | RM11: 0.007721635786 | RN11: 0.01024142128 | RO11: 0.007607912956 | RP11: 0.009544540738 | RQ11: 0.007871224272 | RR11: 0.01097934674 | RS11: 0.009505878132 | RT11: 0.009351229508 | RU11: 0.008018383989 | RV11: 0.009506368809 | RW11: 0.007507748388 | RX11: 0.008233829626 | RY11: 0.007389024852 | RZ11: 0.007229397504 | SA11: 0.0110914368 | SB11: 0.007419348338 | SC11: 0.006856823011 | SD11: 0.007834448888 | SE11: 0.008787797153 | SF11: 0.006618451105 | SG11: 0.009290396644 | SH11: 0.007070181068 | SI11: 0.007007524783 | SJ11: 0.008580080068 | SK11: 0.01165916516 | SL11: 0.006564463765 | SM11: 0.007906997666 | SN11: 0.007775906096 | SO11: 0.007546502064 | SP11: 0.009526512638 | SQ11: 0.00774997683 | SR11: 0.006876279482 | SS11: 0.007983746446 | ST11: 0.008705341502 | SU11: 0.01055603004 | SV11: 0.008532885469 | SW11: 0.006435736673 | SX11: 0.006422082531 | SY11: 0.009855377615 | SZ11: 0.009720755594 | TA11: 0.007338897459 | TB11: 0.006990544914 | TC11: 0.007807448971 | TD11: 0.007225046673 | TE11: 0.01048092191 | TF11: 0.007720998822 | TG11: 0.008908393407 | TH11: 0.00741732311 | TI11: 0.008167739196 | TJ11: 0.008542517588 | TK11: 0.01040618825 | TL11: 0.0113942302 | TM11: 0.006878423392 | TN11: 0.009944363421 | TO11: 0.007356799294 | TP11: 0.01058969759 | TQ11: 0.008431093822 | TR11: 0.008637504063 | TS11: 0.01278693952 | TT11: 0.008723403711 | TU11: 0.009975349833 | TV11: 0.01097139906 | TW11: 0.009016967632 | TX11: 0.01250367834 | TY11: 0.01084812266 | TZ11: 0.008604604179 | UA11: 0.01549373098 | UB11: 0.008449131336 | UC11: 0.01016628637 | UD11: 0.009262860953 | UE11: 0.007707980555 | UF11: 0.00800995417 | UG11: 0.009011541635
A12: sim_11 | B12: 0.008720026865 | C12: 0.01185473172 | D12: 0.008993623055 | E12: 0.01211705365 | F12: 0.006712984994 | G12: 0.006423699885 | H12: 0.007858782743 | I12: 0.008295868299 | J12: 0.007085064447 | K12: 0.009992268818 | L12: 0.008071889365 | M12: 0.009920842704 | N12: 0.01060411244 | O12: 0.006995692995 | P12: 0.008849010045 | Q12: 0.007799055253 | R12: 0.007766160193 | S12: 0.007029600224 | T12: 0.008579485569 | U12: 0.008003793432 | V12: 0.008522649739 | W12: 0.008311948099 | X12: 0.009782213641 | Y12: 0.01146042109 | Z12: 0.01027076544 | AA12: 0.01157064192 | AB12: 0.007542358139 | AC12: 0.00821572325 | AD12: 0.007605045107 | AE12: 0.007018246823 | AF12: 0.008510983763 | AG12: 0.008746212952 | AH12: 0.008352790258 | AI12: 0.007687326069 | AJ12: 0.009266273138 | AK12: 0.008399239153 | AL12: 0.01020124835 | AM12: 0.007627920848 | AN12: 0.009135298889 | AO12: 0.01307692626 | AP12: 0.01189743176 | AQ12: 0.008324985235 | AR12: 0.008917326049 | AS12: 0.01189128129 | AT12: 0.008648192568 | AU12: 0.0112925226 | AV12: 0.007947013445 | AW12: 0.007652612372 | AX12: 0.01493628077 | AY12: 0.008007001958 | AZ12: 0.008784412705 | BA12: 0.006772667933 | BB12: 0.008130643143 | BC12: 0.008948824963 | BD12: 0.008045087115 | BE12: 0.01048325801 | BF12: 0.00986014615 | BG12: 0.0072187923 | BH12: 0.009678192369 | BI12: 0.007652392372 | BJ12: 0.01191570483 | BK12: 0.006450224147 | BL12: 0.009194713706 | BM12: 0.009605844575 | BN12: 0.01084511996 | BO12: 0.009748740417 | BP12: 0.009448581318 | BQ12: 0.007839717939 | BR12: 0.008244930819 | BS12: 0.009202321097 | BT12: 0.007833772211 | BU12: 0.009373938108 | BV12: 0.007844607834 | BW12: 0.008310819154 | BX12: 0.007598976959 | BY12: 0.008368924954 | BZ12: 0.008434521798 | CA12: 0.01094359436 | CB12: 0.009093805145 | CC12: 0.006252117105 | CD12: 0.008322218014 | CE12: 0.009394251606 | CF12: 0.009725922983 | CG12: 0.00779722708 | CH12: 0.008787673713 | CI12: 0.009477565722 | CJ12: 0.007147887962 | CK12: 0.006729456434 | CL12: 0.00879787502 | CM12: 0.007787329466 | CN12: 0.009198455045 | CO12: 0.009056064466 | CP12: 0.007128009166 | CQ12: 0.007938203303 | CR12: 0.006535546055 | CS12: 0.01027465526 | CT12: 0.009661733139 | CU12: 0.008046634778 | CV12: 0.007574043938 | CW12: 0.009195018845 | CX12: 0.009030903381 | CY12: 0.01016611581 | CZ12: 0.00740739493 | DA12: 0.007365981351 | DB12: 0.01087968304 | DC12: 0.008716523756 | DD12: 0.008346094728 | DE12: 0.007456595535 | DF12: 0.01264855895 | DG12: 0.009784017459 | DH12: 0.007451235645 | DI12: 0.006470393876 | DJ12: 0.01028048985 | DK12: 0.007038430987 | DL12: 0.008882816026 | DM12: 0.007746145505 | DN12: 0.008278856358 | DO12: 0.009129281559 | DP12: 0.006388615213 | DQ12: 0.007144013051 | DR12: 0.008902034721 | DS12: 0.00693593748 | DT12: 0.007121627769 | DU12: 0.01554950155 | DV12: 0.009696454463 | DW12: 0.009314550175 | DX12: 0.007701972888 | DY12: 0.009353524886 | DZ12: 0.009913124686 | EA12: 0.008914645735 | EB12: 0.008585123144 | EC12: 0.01004433106 | ED12: 0.00836694726 | EE12: 0.009969753032 | EF12: 0.007500366302 | EG12: 0.007834870241 | EH12: 0.008066205504 | EI12: 0.01118346219 | EJ12: 0.007921816109 | EK12: 0.009941393014 | EL12: 0.009190029706 | EM12: 0.006868589594 | EN12: 0.008787656927 | EO12: 0.008398024507 | EP12: 0.006703198223 | EQ12: 0.009732425395 | ER12: 0.007450461932 | ES12: 0.01117444893 | ET12: 0.009016424798 | EU12: 0.008346081242 | EV12: 0.006001210688 | EW12: 0.008060719713 | EX12: 0.007270985015 | EY12: 0.009447211224 | EZ12: 0.008340953454 | FA12: 0.009661679189 | FB12: 0.009932342724 | FC12: 0.008757836503 | FD12: 0.008397370219 | FE12: 0.008703783348 | FF12: 0.008636206197 | FG12: 0.009613554789 | FH12: 0.007709213218 | FI12: 0.008492981481 | FJ12: 0.01352347615 | FK12: 0.007418442345 | FL12: 0.01001239547 | FM12: 0.009597339673 | FN12: 0.01003237822 | FO12: 0.007029625845 | FP12: 0.01112322595 | FQ12: 0.007031308611 | FR12: 0.01081697321 | FS12: 0.009953440163 | FT12: 0.01007815021 | FU12: 0.007045324635 | FV12: 0.01248700522 | FW12: 0.01224464185 | FX12: 0.009884061458 | FY12: 0.008753227615 | FZ12: 0.006897933338 | GA12: 0.007223997863 | GB12: 0.007296710258 | GC12: 0.009156600791 | GD12: 0.008486437967 | GE12: 0.007708843343 | GF12: 0.01097142443 | GG12: 0.006657516348 | GH12: 0.009663182609 | GI12: 0.008674904942 | GJ12: 0.007873416712 | GK12: 0.01005685947 | GL12: 0.007206063718 | GM12: 0.007338728106 | GN12: 0.009371902116 | GO12: 0.009065470776 | GP12: 0.006930710662 | GQ12: 0.008798959462 | GR12: 0.01043158973 | GS12: 0.00880803741 | GT12: 0.007602756974 | GU12: 0.007286971545 | GV12: 0.007139998879 | GW12: 0.01145052123 | GX12: 0.006583090046 | GY12: 0.009121971158 | GZ12: 0.007712424911 | HA12: 0.008855417911 | HB12: 0.008277560171 | HC12: 0.008126315335 | HD12: 0.008362018903 | HE12: 0.00719599504 | HF12: 0.007620978565 | HG12: 0.01004143474 | HH12: 0.007140212827 | HI12: 0.008518077406 | HJ12: 0.007979711271 | HK12: 0.01181302511 | HL12: 0.009059180187 | HM12: 0.01018533752 | HN12: 0.00884799429 | HO12: 0.008244990903 | HP12: 0.007224530069 | HQ12: 0.01092707241 | HR12: 0.01147789643 | HS12: 0.008604930966 | HT12: 0.007843005197 | HU12: 0.007496020906 | HV12: 0.007358536252 | HW12: 0.01152931972 | HX12: 0.006782060239 | HY12: 0.01021129935 | HZ12: 0.007545845341 | IA12: 0.01116612897 | IB12: 0.00927108926 | IC12: 0.008088469766 | ID12: 0.01048138815 | IE12: 0.008274037019 | IF12: 0.008857710483 | IG12: 0.007917088803 | IH12: 0.00853286851 | II12: 0.009627949867 | IJ12: 0.00871309303 | IK12: 0.009929141063 | IL12: 0.007916795357 | IM12: 0.006990599336 | IN12: 0.008271585546 | IO12: 0.008727356874 | IP12: 0.008614739467 | IQ12: 0.0093748147 | IR12: 0.007863635225 | IS12: 0.007464489708 | IT12: 0.006294000437 | IU12: 0.007581200866 | IV12: 0.00668495583 | IW12: 0.008130549666 | IX12: 0.00952961103 | IY12: 0.008604165793 | IZ12: 0.009498709772 | JA12: 0.007204674427 | JB12: 0.009067928109 | JC12: 0.009713972289 | JD12: 0.0068294318 | JE12: 0.006358244434 | JF12: 0.007803863997 | JG12: 0.008529783045 | JH12: 0.006738694933 | JI12: 0.008316708325 | JJ12: 0.008821243602 | JK12: 0.009050349182 | JL12: 0.007989471867 | JM12: 0.007751546668 | JN12: 0.01007245722 | JO12: 0.008097034458 | JP12: 0.008845211379 | JQ12: 0.01042659971 | JR12: 0.01228603543 | JS12: 0.009246108557 | JT12: 0.007420097437 | JU12: 0.008130925447 | JV12: 0.01056521347 | JW12: 0.01101515425 | JX12: 0.007280686954 | JY12: 0.009883446696 | JZ12: 0.01108000467 | KA12: 0.007412352573 | KB12: 0.008879826701 | KC12: 0.007791424899 | KD12: 0.008533390936 | KE12: 0.00960681338 | KF12: 0.007274720416 | KG12: 0.009336269317 | KH12: 0.007936489456 | KI12: 0.009142364906 | KJ12: 0.008783826052 | KK12: 0.006979624486 | KL12: 0.008374676559 | KM12: 0.01027827323 | KN12: 0.007382421621 | KO12: 0.009503460562 | KP12: 0.009297152463 | KQ12: 0.007208299188 | KR12: 0.006375825199 | KS12: 0.00729167547 | KT12: 0.006578121932 | KU12: 0.007015162742 | KV12: 0.007639411242 | KW12: 0.006625062393 | KX12: 0.01015449965 | KY12: 0.008437041253 | KZ12: 0.008333993962 | LA12: 0.01176909404 | LB12: 0.007321125484 | LC12: 0.008545968136 | LD12: 0.01124611603 | LE12: 0.0109158493 | LF12: 0.007366817973 | LG12: 0.008505110555 | LH12: 0.006612152639 | LI12: 0.008785818916 | LJ12: 0.007393057255 | LK12: 0.008531481706 | LL12: 0.008938812554 | LM12: 0.008643672777 | LN12: 0.008373757642 | LO12: 0.006726513498 | LP12: 0.01002957314 | LQ12: 0.008016746649 | LR12: 0.007740636792 | LS12: 0.005974209951 | LT12: 0.009216941653 | LU12: 0.01183098519 | LV12: 0.007957744175 | LW12: 0.007695934635 | LX12: 0.01197089384 | LY12: 0.007135977685 | LZ12: 0.009373849735 | MA12: 0.007218296989 | MB12: 0.007589372168 | MC12: 0.01001202626 | MD12: 0.007741656407 | ME12: 0.008867404123 | MF12: 0.008590104223 | MG12: 0.007975426288 | MH12: 0.00981400255 | MI12: 0.007255422102 | MJ12: 0.009718914842 | MK12: 0.01079592727 | ML12: 0.007427383154 | MM12: 0.008386638886 | MN12: 0.009722080704 | MO12: 0.008093535148 | MP12: 0.008268715296 | MQ12: 0.007706798788 | MR12: 0.007501267099 | MS12: 0.0131986033 | MT12: 0.008258010841 | MU12: 0.008888980647 | MV12: 0.009094170325 | MW12: 0.008705552844 | MX12: 0.00743030441 | MY12: 0.007283139181 | MZ12: 0.007029294407 | NA12: 0.006921687977 | NB12: 0.009526673155 | NC12: 0.008995666412 | ND12: 0.0073885742 | NE12: 0.006645041313 | NF12: 0.008025633884 | NG12: 0.008067111654 | NH12: 0.009757084886 | NI12: 0.00734895884 | NJ12: 0.00759988456 | NK12: 0.00944876943 | NL12: 0.009027653199 | NM12: 0.006234211981 | NN12: 0.00852227357 | NO12: 0.00865234722 | NP12: 0.01255733591 | NQ12: 0.008347409038 | NR12: 0.008469357928 | NS12: 0.009295415346 | NT12: 0.008334316959 | NU12: 0.009570848729 | NV12: 0.008378250006 | NW12: 0.009744725437 | NX12: 0.008068713596 | NY12: 0.008987726429 | NZ12: 0.01004219133 | OA12: 0.008985433502 | OB12: 0.01327131717 | OC12: 0.009065970773 | OD12: 0.009037585811 | OE12: 0.00888730875 | OF12: 0.01050990629 | OG12: 0.01267862095 | OH12: 0.01020704084 | OI12: 0.008897095898 | OJ12: 0.01279846138 | OK12: 0.008645578857 | OL12: 0.01016798993 | OM12: 0.008223646208 | ON12: 0.007589163642 | OO12: 0.007946120355 | OP12: 0.01088631562 | OQ12: 0.008078140513 | OR12: 0.008245582259 | OS12: 0.008886931808 | OT12: 0.007956395924 | OU12: 0.009794867275 | OV12: 0.007949023787 | OW12: 0.007034538097 | OX12: 0.00819096703 | OY12: 0.007848985835 | OZ12: 0.008812114353 | PA12: 0.01127043977 | PB12: 0.009886253542 | PC12: 0.009784868965 | PD12: 0.01203102767 | PE12: 0.008388534938 | PF12: 0.008232222079 | PG12: 0.007806139463 | PH12: 0.00719514221 | PI12: 0.005693522128 | PJ12: 0.009007952822 | PK12: 0.009377208974 | PL12: 0.009417331437 | PM12: 0.008204977649 | PN12: 0.00740269291 | PO12: 0.007233016929 | PP12: 0.007314400036 | PQ12: 0.009516955391 | PR12: 0.009384994036 | PS12: 0.006082580105 | PT12: 0.009256163826 | PU12: 0.008582800898 | PV12: 0.00761177353 | PW12: 0.009785504345 | PX12: 0.01061200976 | PY12: 0.01191771558 | PZ12: 0.01026007433 | QA12: 0.007170224187 | QB12: 0.006958072285 | QC12: 0.01022112031 | QD12: 0.007451306376 | QE12: 0.008483477192 | QF12: 0.01013617451 | QG12: 0.008543486639 | QH12: 0.00847547627 | QI12: 0.008914183824 | QJ12: 0.009645236116 | QK12: 0.006865553217 | QL12: 0.007140560279 | QM12: 0.007743585933 | QN12: 0.008009721556 | QO12: 0.007468531265 | QP12: 0.00808940171 | QQ12: 0.009276571684 | QR12: 0.009275167448 | QS12: 0.008903537451 | QT12: 0.009381474457 | QU12: 0.007902042466 | QV12: 0.006536346416 | QW12: 0.007816114103 | QX12: 0.009162246407 | QY12: 0.009067439402 | QZ12: 0.009339643735 | RA12: 0.007738633578 | RB12: 0.007969154806 | RC12: 0.00787320737 | RD12: 0.009174576164 | RE12: 0.007666475291 | RF12: 0.006933387823 | RG12: 0.01228218578 | RH12: 0.008343878907 | RI12: 0.01180046136 | RJ12: 0.008054710345 | RK12: 0.009549150991 | RL12: 0.007695308924 | RM12: 0.007798894507 | RN12: 0.00964706655 | RO12: 0.007536691355 | RP12: 0.009218191751 | RQ12: 0.007960273985 | RR12: 0.01162389647 | RS12: 0.009231046722 | RT12: 0.01008057104 | RU12: 0.007784621773 | RV12: 0.01168296937 | RW12: 0.007196678494 | RX12: 0.008247838139 | RY12: 0.007216132582 | RZ12: 0.007320807022 | SA12: 0.01029412903 | SB12: 0.007458519429 | SC12: 0.007284864914 | SD12: 0.007800595796 | SE12: 0.00919839329 | SF12: 0.006671286434 | SG12: 0.009555030063 | SH12: 0.007077455286 | SI12: 0.008234600323 | SJ12: 0.008057138556 | SK12: 0.01139285785 | SL12: 0.00658832099 | SM12: 0.007799020143 | SN12: 0.007734010139 | SO12: 0.007363120857 | SP12: 0.008991033374 | SQ12: 0.007811512056 | SR12: 0.006493881475 | SS12: 0.007875546724 | ST12: 0.008772707431 | SU12: 0.01008601344 | SV12: 0.008829365303 | SW12: 0.006558577768 | SX12: 0.006153613918 | SY12: 0.009990011105 | SZ12: 0.01038139702 | TA12: 0.00740384898 | TB12: 0.007124183524 | TC12: 0.007399234224 | TD12: 0.007079397419 | TE12: 0.01056114656 | TF12: 0.00777969761 | TG12: 0.009121970018 | TH12: 0.008540789962 | TI12: 0.007662730148 | TJ12: 0.008579113345 | TK12: 0.009970635934 | TL12: 0.01116409654 | TM12: 0.006575450364 | TN12: 0.009602424273 | TO12: 0.007231195682 | TP12: 0.01030421221 | TQ12: 0.008248247403 | TR12: 0.009019304231 | TS12: 0.01218736699 | TT12: 0.008950206875 | TU12: 0.01147873529 | TV12: 0.01093692525 | TW12: 0.008661936052 | TX12: 0.01192793381 | TY12: 0.01061872868 | TZ12: 0.008694511332 | UA12: 0.0160845107 | UB12: 0.008423183461 | UC12: 0.009597763323 | UD12: 0.009852164667 | UE12: 0.007575255927 | UF12: 0.00890536181 | UG12: 0.009653373382
A13: sim_12 | B13: 0.009106210712 | C13: 0.01099852675 | D13: 0.008395504949 | E13: 0.01159655039 | F13: 0.007462455983 | G13: 0.00685557417 | H13: 0.007367949743 | I13: 0.008807485488 | J13: 0.006762360411 | K13: 0.009590415063 | L13: 0.008039791375 | M13: 0.009216517731 | N13: 0.0106558997 | O13: 0.006793070048 | P13: 0.008928848659 | Q13: 0.008124450315 | R13: 0.007456139851 | S13: 0.006675784515 | T13: 0.008670396496 | U13: 0.007609215632 | V13: 0.008326151882 | W13: 0.009261538828 | X13: 0.009297138221 | Y13: 0.01222643687 | Z13: 0.009883123256 | AA13: 0.01148235607 | AB13: 0.007608357334 | AC13: 0.007712219975 | AD13: 0.007509797148 | AE13: 0.006858756352 | AF13: 0.008625962866 | AG13: 0.009097091139 | AH13: 0.008649629315 | AI13: 0.008046438315 | AJ13: 0.009564661624 | AK13: 0.008933172157 | AL13: 0.009548579373 | AM13: 0.007267879335 | AN13: 0.008566252987 | AO13: 0.01199873328 | AP13: 0.01246510836 | AQ13: 0.00779260364 | AR13: 0.008656028446 | AS13: 0.01497857436 | AT13: 0.008524502072 | AU13: 0.01090736373 | AV13: 0.007825516327 | AW13: 0.007313933391 | AX13: 0.01743824432 | AY13: 0.00786775181 | AZ13: 0.008284891404 | BA13: 0.006659675032 | BB13: 0.007869994236 | BC13: 0.008561021383 | BD13: 0.007737255755 | BE13: 0.009769145785 | BF13: 0.009513322554 | BG13: 0.007006262586 | BH13: 0.009763718943 | BI13: 0.007341751293 | BJ13: 0.01495978272 | BK13: 0.006597657339 | BL13: 0.008610756486 | BM13: 0.01094746145 | BN13: 0.01190184289 | BO13: 0.009653600614 | BP13: 0.01170003015 | BQ13: 0.007569203122 | BR13: 0.008308874163 | BS13: 0.008950335937 | BT13: 0.007629459719 | BU13: 0.009039561001 | BV13: 0.007704183408 | BW13: 0.007935007059 | BX13: 0.008004254134 | BY13: 0.008354236236 | BZ13: 0.008175416248 | CA13: 0.01015702269 | CB13: 0.008596024201 | CC13: 0.005943375148 | CD13: 0.008280261309 | CE13: 0.00984832004 | CF13: 0.009641248633 | CG13: 0.007901451124 | CH13: 0.01030297385 | CI13: 0.01047358745 | CJ13: 0.007343776607 | CK13: 0.007677605143 | CL13: 0.008269228563 | CM13: 0.007705091634 | CN13: 0.008609739344 | CO13: 0.008574749715 | CP13: 0.007255130338 | CQ13: 0.008117489095 | CR13: 0.006593841553 | CS13: 0.01040914375 | CT13: 0.009970373815 | CU13: 0.007994267585 | CV13: 0.007985833125 | CW13: 0.008995440262 | CX13: 0.008683186074 | CY13: 0.009988607734 | CZ13: 0.006987037206 | DA13: 0.007486377359 | DB13: 0.0105377055 | DC13: 0.008166760079 | DD13: 0.01055592332 | DE13: 0.009199863363 | DF13: 0.01185903127 | DG13: 0.01001453594 | DH13: 0.007067866912 | DI13: 0.006479261958 | DJ13: 0.01007649743 | DK13: 0.007124989728 | DL13: 0.009653532257 | DM13: 0.007768283955 | DN13: 0.007992787606 | DO13: 0.008605979581 | DP13: 0.006317737173 | DQ13: 0.007173759819 | DR13: 0.008318930472 | DS13: 0.006556099307 | DT13: 0.007215059022 | DU13: 0.01686791571 | DV13: 0.009533888139 | DW13: 0.00879547807 | DX13: 0.007409642436 | DY13: 0.009297164053 | DZ13: 0.00922226644 | EA13: 0.01012952638 | EB13: 0.008154837278 | EC13: 0.009847640295 | ED13: 0.008587545121 | EE13: 0.009379154267 | EF13: 0.008906881361 | EG13: 0.008448967806 | EH13: 0.007981958713 | EI13: 0.01045879461 | EJ13: 0.008108502221 | EK13: 0.009246728658 | EL13: 0.01108306427 | EM13: 0.006550392198 | EN13: 0.008300270753 | EO13: 0.008633304177 | EP13: 0.006415107098 | EQ13: 0.009322138485 | ER13: 0.00760471871 | ES13: 0.01034470717 | ET13: 0.008418832376 | EU13: 0.008432969314 | EV13: 0.005710481528 | EW13: 0.007589369657 | EX13: 0.007127965598 | EY13: 0.008981302283 | EZ13: 0.008573351588 | FA13: 0.009617111386 | FB13: 0.01118220425 | FC13: 0.00915487667 | FD13: 0.008196484427 | FE13: 0.008799828376 | FF13: 0.009788002792 | FG13: 0.00934888971 | FH13: 0.007324064935 | FI13: 0.008219312319 | FJ13: 0.01309068917 | FK13: 0.007263186684 | FL13: 0.01094439069 | FM13: 0.00893087904 | FN13: 0.009806643837 | FO13: 0.006703356333 | FP13: 0.01122775094 | FQ13: 0.0070539376 | FR13: 0.01021428073 | FS13: 0.01029024061 | FT13: 0.01061084262 | FU13: 0.007020419869 | FV13: 0.01201273487 | FW13: 0.01134657039 | FX13: 0.01014103332 | FY13: 0.008330246392 | FZ13: 0.006625154359 | GA13: 0.007318126778 | GB13: 0.006963854018 | GC13: 0.008768148036 | GD13: 0.008394571224 | GE13: 0.007292289712 | GF13: 0.01040584626 | GG13: 0.006936148775 | GH13: 0.01034020326 | GI13: 0.008597721324 | GJ13: 0.009051077812 | GK13: 0.009351573803 | GL13: 0.006862279101 | GM13: 0.00725056967 | GN13: 0.01038642507 | GO13: 0.008623322908 | GP13: 0.006746217541 | GQ13: 0.008333683678 | GR13: 0.01131187975 | GS13: 0.008744295613 | GT13: 0.007309374748 | GU13: 0.007469129448 | GV13: 0.006881788344 | GW13: 0.01112797961 | GX13: 0.006626974374 | GY13: 0.008631479951 | GZ13: 0.007515396057 | HA13: 0.009490437018 | HB13: 0.007838271122 | HC13: 0.009212090021 | HD13: 0.008321008269 | HE13: 0.007309811704 | HF13: 0.007576802862 | HG13: 0.009846597797 | HH13: 0.007998846205 | HI13: 0.007976945588 | HJ13: 0.007576843333 | HK13: 0.01190444178 | HL13: 0.009849664318 | HM13: 0.01059874177 | HN13: 0.009646468552 | HO13: 0.009057121806 | HP13: 0.007411407263 | HQ13: 0.01079654916 | HR13: 0.01171321194 | HS13: 0.008524272728 | HT13: 0.007564780047 | HU13: 0.007123900886 | HV13: 0.007147490149 | HW13: 0.01220705885 | HX13: 0.007747286893 | HY13: 0.01006230922 | HZ13: 0.007347994271 | IA13: 0.01048829628 | IB13: 0.009333195089 | IC13: 0.008080024323 | ID13: 0.01127977715 | IE13: 0.007896560886 | IF13: 0.008587449622 | IG13: 0.007959242085 | IH13: 0.008893676325 | II13: 0.01011075868 | IJ13: 0.009355657624 | IK13: 0.009245862567 | IL13: 0.007573069206 | IM13: 0.006685857339 | IN13: 0.008446075768 | IO13: 0.009393764648 | IP13: 0.008661065434 | IQ13: 0.009700914887 | IR13: 0.007760723218 | IS13: 0.00712777803 | IT13: 0.006204854527 | IU13: 0.00737519153 | IV13: 0.00724393983 | IW13: 0.00786182848 | IX13: 0.01057703422 | IY13: 0.008331909714 | IZ13: 0.009336093301 | JA13: 0.006842936822 | JB13: 0.008569605524 | JC13: 0.01058949428 | JD13: 0.006827869247 | JE13: 0.007093391049 | JF13: 0.00758511083 | JG13: 0.008485653909 | JH13: 0.006580018653 | JI13: 0.008059557151 | JJ13: 0.008774995718 | JK13: 0.009689716664 | JL13: 0.007757935758 | JM13: 0.007446682444 | JN13: 0.01047156851 | JO13: 0.008541299612 | JP13: 0.008625899149 | JQ13: 0.01130883401 | JR13: 0.01151366455 | JS13: 0.009680970832 | JT13: 0.007018145222 | JU13: 0.008712647407 | JV13: 0.0103646614 | JW13: 0.01251081776 | JX13: 0.007870851383 | JY13: 0.009995923438 | JZ13: 0.01046366158 | KA13: 0.007108657893 | KB13: 0.008403174064 | KC13: 0.007726000686 | KD13: 0.008129599905 | KE13: 0.0103686046 | KF13: 0.006989697622 | KG13: 0.009304561637 | KH13: 0.007497154645 | KI13: 0.008940894084 | KJ13: 0.008671735173 | KK13: 0.007110205454 | KL13: 0.008603564603 | KM13: 0.009949772348 | KN13: 0.007932418306 | KO13: 0.009186777578 | KP13: 0.008789341961 | KQ13: 0.006977100262 | KR13: 0.007306240706 | KS13: 0.006891707641 | KT13: 0.006294197934 | KU13: 0.007537974405 | KV13: 0.00811079231 | KW13: 0.006257579609 | KX13: 0.009679439657 | KY13: 0.008233582074 | KZ13: 0.008228158257 | LA13: 0.01153619481 | LB13: 0.008142592592 | LC13: 0.008510247538 | LD13: 0.01041174739 | LE13: 0.01084952969 | LF13: 0.006957605304 | LG13: 0.008746951418 | LH13: 0.006652910925 | LI13: 0.008348906885 | LJ13: 0.007475290642 | LK13: 0.008051305746 | LL13: 0.009264841327 | LM13: 0.008485908189 | LN13: 0.008310012134 | LO13: 0.006595327291 | LP13: 0.009928527329 | LQ13: 0.007588891143 | LR13: 0.007774131248 | LS13: 0.006131487851 | LT13: 0.009830375641 | LU13: 0.01464762533 | LV13: 0.007549993018 | LW13: 0.007687775349 | LX13: 0.01138387046 | LY13: 0.007225441498 | LZ13: 0.00945714036 | MA13: 0.007618677254 | MB13: 0.007414999059 | MC13: 0.01100704559 | MD13: 0.007343441479 | ME13: 0.008994402683 | MF13: 0.008425477645 | MG13: 0.008226984123 | MH13: 0.009391187154 | MI13: 0.006943684085 | MJ13: 0.009568452491 | MK13: 0.01118359456 | ML13: 0.007030886684 | MM13: 0.008081996677 | MN13: 0.009461540682 | MO13: 0.007581561368 | MP13: 0.007932205692 | MQ13: 0.008182709216 | MR13: 0.008085244701 | MS13: 0.01410603341 | MT13: 0.008572456197 | MU13: 0.008378820486 | MV13: 0.01054656565 | MW13: 0.01062196787 | MX13: 0.007854961078 | MY13: 0.007429508802 | MZ13: 0.007196128986 | NA13: 0.006892043519 | NB13: 0.008896450404 | NC13: 0.009104807018 | ND13: 0.007462728301 | NE13: 0.007455038672 | NF13: 0.009493475654 | NG13: 0.008387430517 | NH13: 0.01033568658 | NI13: 0.007215150086 | NJ13: 0.007422613002 | NK13: 0.008858815004 | NL13: 0.01186890494 | NM13: 0.006409420044 | NN13: 0.008474378186 | NO13: 0.008484694703 | NP13: 0.01246957065 | NQ13: 0.009595026394 | NR13: 0.008005169057 | NS13: 0.00894578454 | NT13: 0.009937363935 | NU13: 0.009900824563 | NV13: 0.01095855316 | NW13: 0.009705717 | NX13: 0.007720379588 | NY13: 0.008657190691 | NZ13: 0.01057948278 | OA13: 0.008841502287 | OB13: 0.01456725268 | OC13: 0.00880384695 | OD13: 0.008599875445 | OE13: 0.008297855666 | OF13: 0.009792046444 | OG13: 0.01199234104 | OH13: 0.009480914994 | OI13: 0.008414082613 | OJ13: 0.01233015456 | OK13: 0.00906645021 | OL13: 0.009457863733 | OM13: 0.00799146199 | ON13: 0.007366243478 | OO13: 0.009312170713 | OP13: 0.01074168632 | OQ13: 0.008372712864 | OR13: 0.008252743975 | OS13: 0.008582770345 | OT13: 0.00798234899 | OU13: 0.009152573407 | OV13: 0.007583247526 | OW13: 0.007344289378 | OX13: 0.008156928276 | OY13: 0.007392307027 | OZ13: 0.008844447037 | PA13: 0.01342719406 | PB13: 0.009890756887 | PC13: 0.01086823694 | PD13: 0.01119424078 | PE13: 0.009069773892 | PF13: 0.009288883899 | PG13: 0.007408335988 | PH13: 0.006786203349 | PI13: 0.005823241085 | PJ13: 0.008748323239 | PK13: 0.009141556962 | PL13: 0.009163870246 | PM13: 0.007915386611 | PN13: 0.008021731762 | PO13: 0.007106595479 | PP13: 0.007706511788 | PQ13: 0.009150400865 | PR13: 0.009858818699 | PS13: 0.006062368385 | PT13: 0.009314468416 | PU13: 0.009093095626 | PV13: 0.007261399304 | PW13: 0.009846024596 | PX13: 0.009853281792 | PY13: 0.01151750649 | PZ13: 0.01066018781 | QA13: 0.00699192999 | QB13: 0.007139608929 | QC13: 0.01083310523 | QD13: 0.007195764268 | QE13: 0.007995589998 | QF13: 0.009703727149 | QG13: 0.009999198213 | QH13: 0.008692499608 | QI13: 0.008410452695 | QJ13: 0.01126201339 | QK13: 0.007154364168 | QL13: 0.006954801195 | QM13: 0.007603492276 | QN13: 0.008021416253 | QO13: 0.007547749947 | QP13: 0.007923374147 | QQ13: 0.009395740716 | QR13: 0.008833887414 | QS13: 0.008452503748 | QT13: 0.009004852634 | QU13: 0.007745305401 | QV13: 0.006677164171 | QW13: 0.007707876099 | QX13: 0.008965585115 | QY13: 0.008661939972 | QZ13: 0.009799856794 | RA13: 0.008232385296 | RB13: 0.008387946015 | RC13: 0.008022260377 | RD13: 0.008607244514 | RE13: 0.007572590184 | RF13: 0.00747870784 | RG13: 0.01141663674 | RH13: 0.007800377319 | RI13: 0.01113918077 | RJ13: 0.007588774156 | RK13: 0.009711626955 | RL13: 0.007304632393 | RM13: 0.007595247459 | RN13: 0.009252871762 | RO13: 0.007676682964 | RP13: 0.009630896959 | RQ13: 0.007819665849 | RR13: 0.01161723123 | RS13: 0.00987168601 | RT13: 0.009581031941 | RU13: 0.007451765516 | RV13: 0.01151876369 | RW13: 0.007356785899 | RX13: 0.00809280316 | RY13: 0.007032391238 | RZ13: 0.007144273043 | SA13: 0.009545120779 | SB13: 0.008222631923 | SC13: 0.006916614191 | SD13: 0.008170350357 | SE13: 0.009283280601 | SF13: 0.008254038157 | SG13: 0.009281018776 | SH13: 0.007084210926 | SI13: 0.00773294789 | SJ13: 0.008228595949 | SK13: 0.01080322145 | SL13: 0.007170937361 | SM13: 0.007461995207 | SN13: 0.009780162558 | SO13: 0.007318682198 | SP13: 0.008596028298 | SQ13: 0.007762594357 | SR13: 0.006966831761 | SS13: 0.007880204063 | ST13: 0.009124464249 | SU13: 0.009377377968 | SV13: 0.008587335658 | SW13: 0.006805821561 | SX13: 0.006149697948 | SY13: 0.009438184254 | SZ13: 0.01070769138 | TA13: 0.007166749648 | TB13: 0.007326499808 | TC13: 0.007562998233 | TD13: 0.007088723106 | TE13: 0.009970915493 | TF13: 0.007354975193 | TG13: 0.008586130641 | TH13: 0.008461281576 | TI13: 0.007844302581 | TJ13: 0.009518550352 | TK13: 0.009451524386 | TL13: 0.01114579564 | TM13: 0.006398145604 | TN13: 0.009239578166 | TO13: 0.006826317247 | TP13: 0.01086824674 | TQ13: 0.007926369875 | TR13: 0.009149871455 | TS13: 0.01188502215 | TT13: 0.009766872191 | TU13: 0.01205547665 | TV13: 0.01017020915 | TW13: 0.008384531582 | TX13: 0.01174975433 | TY13: 0.01007570986 | TZ13: 0.008190295672 | UA13: 0.01573125191 | UB13: 0.007910684862 | UC13: 0.009669632978 | UD13: 0.01072904139 | UE13: 0.007290036201 | UF13: 0.0107740242 | UG13: 0.01059371249
A14: sim_13 | B14: 0.008494562237 | C14: 0.01139575887 | D14: 0.008746577696 | E14: 0.01084641692 | F14: 0.007733373212 | G14: 0.006927249526 | H14: 0.006945952763 | I14: 0.008939553939 | J14: 0.007067914372 | K14: 0.01048286772 | L14: 0.008270347742 | M14: 0.009622712828 | N14: 0.01058189978 | O14: 0.006559152452 | P14: 0.008553914219 | Q14: 0.007801768477 | R14: 0.007545859087 | S14: 0.006333522463 | T14: 0.009270734034 | U14: 0.007756318808 | V14: 0.008303589242 | W14: 0.009217700039 | X14: 0.009096858139 | Y14: 0.01237377867 | Z14: 0.01056208468 | AA14: 0.01079702317 | AB14: 0.008525408886 | AC14: 0.007382201279 | AD14: 0.00758251981 | AE14: 0.007321535843 | AF14: 0.008210492075 | AG14: 0.008914389094 | AH14: 0.008868164293 | AI14: 0.007868789764 | AJ14: 0.009222548952 | AK14: 0.008860715627 | AL14: 0.009600646223 | AM14: 0.006932580888 | AN14: 0.008454052811 | AO14: 0.01281426477 | AP14: 0.01227192798 | AQ14: 0.007760037992 | AR14: 0.008903862089 | AS14: 0.0162789862 | AT14: 0.009062830564 | AU14: 0.01031728528 | AV14: 0.00780330906 | AW14: 0.007016404533 | AX14: 0.01574908121 | AY14: 0.00800125659 | AZ14: 0.007915920573 | BA14: 0.00675202757 | BB14: 0.007985505145 | BC14: 0.0081049648 | BD14: 0.007465080196 | BE14: 0.01046021766 | BF14: 0.009087262938 | BG14: 0.006785905831 | BH14: 0.009307019947 | BI14: 0.007334918193 | BJ14: 0.01365226705 | BK14: 0.006723699121 | BL14: 0.00817382743 | BM14: 0.01112613366 | BN14: 0.01161085421 | BO14: 0.009565527861 | BP14: 0.01153948931 | BQ14: 0.007541005758 | BR14: 0.008754122211 | BS14: 0.009180524916 | BT14: 0.007599734076 | BU14: 0.008821797902 | BV14: 0.007499732699 | BW14: 0.007466856669 | BX14: 0.007637145677 | BY14: 0.008255557171 | BZ14: 0.009237891631 | CA14: 0.01035775804 | CB14: 0.009447755028 | CC14: 0.006000936738 | CD14: 0.009291774932 | CE14: 0.00994199246 | CF14: 0.009085518396 | CG14: 0.00808856028 | CH14: 0.009782423335 | CI14: 0.01015453794 | CJ14: 0.007178501632 | CK14: 0.008139287837 | CL14: 0.008232054661 | CM14: 0.009381937374 | CN14: 0.009003851477 | CO14: 0.008513413808 | CP14: 0.006840658785 | CQ14: 0.007945245901 | CR14: 0.006425757467 | CS14: 0.01019297921 | CT14: 0.009668350445 | CU14: 0.008029677074 | CV14: 0.007806965807 | CW14: 0.00878451944 | CX14: 0.008217138491 | CY14: 0.009455810941 | CZ14: 0.008221857063 | DA14: 0.007647082665 | DB14: 0.01030970506 | DC14: 0.00945878467 | DD14: 0.01000870718 | DE14: 0.009108672951 | DF14: 0.01119986017 | DG14: 0.00968865473 | DH14: 0.007286184587 | DI14: 0.006766864755 | DJ14: 0.009892009515 | DK14: 0.007187831637 | DL14: 0.009296146203 | DM14: 0.007730149657 | DN14: 0.007975354662 | DO14: 0.00867852402 | DP14: 0.007323836374 | DQ14: 0.007292969603 | DR14: 0.008179515633 | DS14: 0.006407686321 | DT14: 0.00747813096 | DU14: 0.01571382246 | DV14: 0.009283916866 | DW14: 0.0090091998 | DX14: 0.007469306084 | DY14: 0.009082948217 | DZ14: 0.008711846669 | EA14: 0.009516782441 | EB14: 0.007685382764 | EC14: 0.01010996172 | ED14: 0.008020900041 | EE14: 0.008975792377 | EF14: 0.00863274271 | EG14: 0.008687628735 | EH14: 0.008010095263 | EI14: 0.009863848513 | EJ14: 0.007988547915 | EK14: 0.00896798629 | EL14: 0.01102668069 | EM14: 0.006283323498 | EN14: 0.007864744362 | EO14: 0.008282501544 | EP14: 0.006239350615 | EQ14: 0.008907793313 | ER14: 0.007142965473 | ES14: 0.01115038892 | ET14: 0.008846166965 | EU14: 0.008474526517 | EV14: 0.005516327773 | EW14: 0.007694710441 | EX14: 0.007658065974 | EY14: 0.009000317608 | EZ14: 0.008212557381 | FA14: 0.01028131797 | FB14: 0.01255326119 | FC14: 0.009381074044 | FD14: 0.007898610966 | FE14: 0.01002955384 | FF14: 0.009932947102 | FG14: 0.008751926782 | FH14: 0.007469752358 | FI14: 0.00850980284 | FJ14: 0.01418615437 | FK14: 0.007149037102 | FL14: 0.01121626816 | FM14: 0.008637316358 | FN14: 0.01018047629 | FO14: 0.006705561203 | FP14: 0.01105919373 | FQ14: 0.007174112822 | FR14: 0.0102510722 | FS14: 0.009878573006 | FT14: 0.01002741851 | FU14: 0.007417017623 | FV14: 0.01180943673 | FW14: 0.01211484691 | FX14: 0.01006786402 | FY14: 0.008012063585 | FZ14: 0.00647749932 | GA14: 0.008143095058 | GB14: 0.007085943197 | GC14: 0.008243019 | GD14: 0.007973961836 | GE14: 0.006884220968 | GF14: 0.009832931162 | GG14: 0.006761163305 | GH14: 0.01096015778 | GI14: 0.01092525161 | GJ14: 0.008844262482 | GK14: 0.01004665208 | GL14: 0.007280708538 | GM14: 0.006926386157 | GN14: 0.0102220263 | GO14: 0.00895491672 | GP14: 0.007347740183 | GQ14: 0.01057594116 | GR14: 0.01067501955 | GS14: 0.008539893828 | GT14: 0.007737622339 | GU14: 0.007330212205 | GV14: 0.006971612995 | GW14: 0.01221602576 | GX14: 0.006548039285 | GY14: 0.008431017236 | GZ14: 0.008457466165 | HA14: 0.00901550606 | HB14: 0.008279574589 | HC14: 0.008628411413 | HD14: 0.009479446909 | HE14: 0.007426212634 | HF14: 0.007197196604 | HG14: 0.01033300964 | HH14: 0.007949484443 | HI14: 0.009166751329 | HJ14: 0.009031948863 | HK14: 0.01222534256 | HL14: 0.0094560566 | HM14: 0.01029290046 | HN14: 0.009891511161 | HO14: 0.009114930321 | HP14: 0.007252025437 | HQ14: 0.01005692113 | HR14: 0.0138557703 | HS14: 0.008720707723 | HT14: 0.007628218745 | HU14: 0.006977193476 | HV14: 0.007016764638 | HW14: 0.01144345629 | HX14: 0.007594359732 | HY14: 0.01069993176 | HZ14: 0.007305438214 | IA14: 0.009957992217 | IB14: 0.008880874675 | IC14: 0.007789866863 | ID14: 0.01170679767 | IE14: 0.00820954413 | IF14: 0.008329302399 | IG14: 0.008051564334 | IH14: 0.008326558043 | II14: 0.01088005391 | IJ14: 0.008827789902 | IK14: 0.008730928479 | IL14: 0.008433295913 | IM14: 0.007081450642 | IN14: 0.007978244627 | IO14: 0.009421821871 | IP14: 0.008290401878 | IQ14: 0.01005724708 | IR14: 0.007322558385 | IS14: 0.007495121133 | IT14: 0.006233676901 | IU14: 0.007083443639 | IV14: 0.006980372484 | IW14: 0.007716724115 | IX14: 0.01134849534 | IY14: 0.008040870388 | IZ14: 0.009715337066 | JA14: 0.006646582818 | JB14: 0.008305119749 | JC14: 0.01091400351 | JD14: 0.006550806949 | JE14: 0.007530570492 | JF14: 0.00747682722 | JG14: 0.00818558258 | JH14: 0.006339681782 | JI14: 0.008160672719 | JJ14: 0.008226552563 | JK14: 0.01060664912 | JL14: 0.008527730357 | JM14: 0.007688686957 | JN14: 0.01182892949 | JO14: 0.008060550705 | JP14: 0.008548799312 | JQ14: 0.01069598581 | JR14: 0.01300051029 | JS14: 0.009863362561 | JT14: 0.007097437879 | JU14: 0.008316369611 | JV14: 0.009672544388 | JW14: 0.01180674428 | JX14: 0.00762717981 | JY14: 0.01041029168 | JZ14: 0.01074311825 | KA14: 0.006733853068 | KB14: 0.008047040123 | KC14: 0.008802638281 | KD14: 0.01007740275 | KE14: 0.009875909521 | KF14: 0.007132386148 | KG14: 0.01170544173 | KH14: 0.00739327076 | KI14: 0.008407587303 | KJ14: 0.008362992361 | KK14: 0.007024546652 | KL14: 0.008253761538 | KM14: 0.01024784478 | KN14: 0.007609124766 | KO14: 0.008898954141 | KP14: 0.008561480876 | KQ14: 0.006805921751 | KR14: 0.007045587929 | KS14: 0.007248286325 | KT14: 0.008148872562 | KU14: 0.0071666671 | KV14: 0.008193279575 | KW14: 0.006983648312 | KX14: 0.01121334518 | KY14: 0.00797165462 | KZ14: 0.0082574654 | LA14: 0.01128054429 | LB14: 0.007775842936 | LC14: 0.008239729977 | LD14: 0.009949182758 | LE14: 0.01122529905 | LF14: 0.006686848913 | LG14: 0.008521117411 | LH14: 0.006316264213 | LI14: 0.008652462111 | LJ14: 0.007040332707 | LK14: 0.007545151523 | LL14: 0.008643136794 | LM14: 0.007924711177 | LN14: 0.007787497399 | LO14: 0.007114984646 | LP14: 0.009256701369 | LQ14: 0.008079603323 | LR14: 0.007643343742 | LS14: 0.005927168058 | LT14: 0.00929888776 | LU14: 0.01433238809 | LV14: 0.007787163908 | LW14: 0.007578462891 | LX14: 0.01153769792 | LY14: 0.00722148032 | LZ14: 0.009350122593 | MA14: 0.007414790305 | MB14: 0.008295477445 | MC14: 0.01070975034 | MD14: 0.007323616196 | ME14: 0.009100262263 | MF14: 0.008122357089 | MG14: 0.007891580807 | MH14: 0.008814499928 | MI14: 0.007116760124 | MJ14: 0.009021181149 | MK14: 0.01047165738 | ML14: 0.007374944759 | MM14: 0.007690202404 | MN14: 0.008919153344 | MO14: 0.007206253056 | MP14: 0.00813618209 | MQ14: 0.008033045631 | MR14: 0.00809972429 | MS14: 0.01413710169 | MT14: 0.008774928632 | MU14: 0.008102295191 | MV14: 0.01146822709 | MW14: 0.01107387021 | MX14: 0.007542318747 | MY14: 0.007849883312 | MZ14: 0.007416112419 | NA14: 0.00681819761 | NB14: 0.00850547781 | NC14: 0.008901611848 | ND14: 0.007302240073 | NE14: 0.007252069033 | NF14: 0.009030500583 | NG14: 0.00813734986 | NH14: 0.0102790782 | NI14: 0.007596288302 | NJ14: 0.007955747663 | NK14: 0.009749039372 | NL14: 0.01178705517 | NM14: 0.006374528956 | NN14: 0.008352022205 | NO14: 0.00825605638 | NP14: 0.01221791908 | NQ14: 0.009265601187 | NR14: 0.009865875808 | NS14: 0.01044283204 | NT14: 0.0100409367 | NU14: 0.009314622826 | NV14: 0.01056925628 | NW14: 0.009882092052 | NX14: 0.007602150063 | NY14: 0.00898537996 | NZ14: 0.01049717865 | OA14: 0.008428559999 | OB14: 0.01464970472 | OC14: 0.009055415174 | OD14: 0.008776451877 | OE14: 0.007934285416 | OF14: 0.00913384781 | OG14: 0.0115870704 | OH14: 0.009003984459 | OI14: 0.007914212208 | OJ14: 0.01248714015 | OK14: 0.01038004195 | OL14: 0.009993811421 | OM14: 0.008132466369 | ON14: 0.007233694291 | OO14: 0.008687215171 | OP14: 0.01029238979 | OQ14: 0.008644480651 | OR14: 0.008638509646 | OS14: 0.008547213216 | OT14: 0.008523639382 | OU14: 0.009124196843 | OV14: 0.007392834548 | OW14: 0.007043687775 | OX14: 0.008411516936 | OY14: 0.008663868846 | OZ14: 0.008421343044 | PA14: 0.01319074398 | PB14: 0.009500248357 | PC14: 0.01020421637 | PD14: 0.01034053818 | PE14: 0.008634239113 | PF14: 0.008680562847 | PG14: 0.007033989056 | PH14: 0.007033186534 | PI14: 0.006615590902 | PJ14: 0.008881000477 | PK14: 0.009162686331 | PL14: 0.008660039832 | PM14: 0.007789571118 | PN14: 0.008520145346 | PO14: 0.008204703401 | PP14: 0.00742339247 | PQ14: 0.009886190851 | PR14: 0.01034568119 | PS14: 0.005861015979 | PT14: 0.009217983267 | PU14: 0.008736396907 | PV14: 0.007695176834 | PW14: 0.00914442932 | PX14: 0.01006012339 | PY14: 0.01079166091 | PZ14: 0.01084882859 | QA14: 0.00691356568 | QB14: 0.007635450544 | QC14: 0.01093869958 | QD14: 0.007181336189 | QE14: 0.008545633434 | QF14: 0.01044405344 | QG14: 0.009865864861 | QH14: 0.009632536302 | QI14: 0.008029566851 | QJ14: 0.01094570034 | QK14: 0.007705517658 | QL14: 0.006627688649 | QM14: 0.007743094174 | QN14: 0.008703517064 | QO14: 0.007299393956 | QP14: 0.007731671445 | QQ14: 0.008936754935 | QR14: 0.008555203629 | QS14: 0.008854039265 | QT14: 0.009242120163 | QU14: 0.007296506202 | QV14: 0.006403963562 | QW14: 0.007931542171 | QX14: 0.009147221444 | QY14: 0.008108734702 | QZ14: 0.0100010046 | RA14: 0.008654930864 | RB14: 0.008479759019 | RC14: 0.007782284156 | RD14: 0.008518428314 | RE14: 0.008117719708 | RF14: 0.007323677735 | RG14: 0.01196632171 | RH14: 0.007585983753 | RI14: 0.01031696876 | RJ14: 0.007798148152 | RK14: 0.01031760272 | RL14: 0.007480964036 | RM14: 0.008460998762 | RN14: 0.009397831106 | RO14: 0.007316688597 | RP14: 0.009776037644 | RQ14: 0.008390352388 | RR14: 0.01233489715 | RS14: 0.009746162738 | RT14: 0.009262752737 | RU14: 0.007651050625 | RV14: 0.01086305043 | RW14: 0.007086023689 | RX14: 0.007698101019 | RY14: 0.006829126718 | RZ14: 0.0073512694 | SA14: 0.009219562143 | SB14: 0.007754423976 | SC14: 0.007586725111 | SD14: 0.007979054651 | SE14: 0.01005891328 | SF14: 0.007815049609 | SG14: 0.009116394519 | SH14: 0.007829443961 | SI14: 0.007432786925 | SJ14: 0.007748536294 | SK14: 0.0104972843 | SL14: 0.006929778726 | SM14: 0.007764810328 | SN14: 0.009494517248 | SO14: 0.008969795103 | SP14: 0.008211435477 | SQ14: 0.007513707232 | SR14: 0.006805202428 | SS14: 0.008110278855 | ST14: 0.009034616877 | SU14: 0.008932083151 | SV14: 0.008272076782 | SW14: 0.006775976535 | SX14: 0.006136505705 | SY14: 0.01077732658 | SZ14: 0.01196072761 | TA14: 0.007214963627 | TB14: 0.008337821579 | TC14: 0.007247321186 | TD14: 0.006685468042 | TE14: 0.01063791112 | TF14: 0.007018514762 | TG14: 0.008437661096 | TH14: 0.007962024438 | TI14: 0.00766114832 | TJ14: 0.009746394618 | TK14: 0.008794767347 | TL14: 0.01036478145 | TM14: 0.006329044041 | TN14: 0.008759036952 | TO14: 0.00668080736 | TP14: 0.01017616163 | TQ14: 0.008140070256 | TR14: 0.01072221356 | TS14: 0.01198965787 | TT14: 0.009454380213 | TU14: 0.01262897051 | TV14: 0.010306123 | TW14: 0.007843724637 | TX14: 0.01253191775 | TY14: 0.009627204988 | TZ14: 0.0085364185 | UA14: 0.01560665511 | UB14: 0.007506767814 | UC14: 0.01007097993 | UD14: 0.01167329964 | UE14: 0.007955218203 | UF14: 0.01253003109 | UG14: 0.01408537793
A15: sim_14 | B15: 0.008043262689 | C15: 0.01467683147 | D15: 0.008331024312 | E15: 0.01211057433 | F15: 0.007606699545 | G15: 0.006764208118 | H15: 0.007319929223 | I15: 0.008681035671 | J15: 0.006674454734 | K15: 0.009800452647 | L15: 0.007893076079 | M15: 0.009264810092 | N15: 0.01046071117 | O15: 0.006504825248 | P15: 0.00882888997 | Q15: 0.007579612791 | R15: 0.007276521896 | S15: 0.006360097713 | T15: 0.008997706154 | U15: 0.008124440002 | V15: 0.008069719493 | W15: 0.009283261172 | X15: 0.008939201271 | Y15: 0.01217718668 | Z15: 0.01033429487 | AA15: 0.01017880349 | AB15: 0.00815193264 | AC15: 0.00708946371 | AD15: 0.007269761711 | AE15: 0.007312709613 | AF15: 0.008268439589 | AG15: 0.0083224398 | AH15: 0.01037147919 | AI15: 0.007572647098 | AJ15: 0.008658043924 | AK15: 0.008319967704 | AL15: 0.009251689342 | AM15: 0.006697020379 | AN15: 0.008054948487 | AO15: 0.01239331016 | AP15: 0.01132142413 | AQ15: 0.008278784562 | AR15: 0.00832423466 | AS15: 0.01519101248 | AT15: 0.008539774126 | AU15: 0.01103564276 | AV15: 0.007538475269 | AW15: 0.007090474188 | AX15: 0.01667467792 | AY15: 0.01057525201 | AZ15: 0.00838449452 | BA15: 0.007200344056 | BB15: 0.008052209246 | BC15: 0.008026966493 | BD15: 0.007317466934 | BE15: 0.01055148609 | BF15: 0.009191724318 | BG15: 0.007218747755 | BH15: 0.009773520278 | BI15: 0.007276970319 | BJ15: 0.01624782968 | BK15: 0.007825599907 | BL15: 0.008358376725 | BM15: 0.01098625059 | BN15: 0.0114902873 | BO15: 0.009162961305 | BP15: 0.01293638698 | BQ15: 0.007350498124 | BR15: 0.008438997932 | BS15: 0.008750522779 | BT15: 0.00774747913 | BU15: 0.009844278557 | BV15: 0.008174558533 | BW15: 0.008491983876 | BX15: 0.008011722518 | BY15: 0.008169031154 | BZ15: 0.008915971899 | CA15: 0.01118806617 | CB15: 0.008808690368 | CC15: 0.006407695886 | CD15: 0.00884347747 | CE15: 0.009492972713 | CF15: 0.00927304588 | CG15: 0.008361481246 | CH15: 0.01004150631 | CI15: 0.009644572886 | CJ15: 0.006790166349 | CK15: 0.008018156001 | CL15: 0.008033532781 | CM15: 0.008945323773 | CN15: 0.01034661391 | CO15: 0.008386421217 | CP15: 0.00668559222 | CQ15: 0.008959135091 | CR15: 0.007270389712 | CS15: 0.009705642092 | CT15: 0.009103649554 | CU15: 0.008329563389 | CV15: 0.008380089557 | CW15: 0.008354767322 | CX15: 0.007737292419 | CY15: 0.008976571822 | CZ15: 0.008122063547 | DA15: 0.007233974887 | DB15: 0.009570419884 | DC15: 0.009442239852 | DD15: 0.009985461565 | DE15: 0.009132291087 | DF15: 0.01059533417 | DG15: 0.01052636251 | DH15: 0.007476409136 | DI15: 0.006529190706 | DJ15: 0.009699487771 | DK15: 0.007310710427 | DL15: 0.009648154057 | DM15: 0.007453507272 | DN15: 0.008395262539 | DO15: 0.009352671816 | DP15: 0.007353839645 | DQ15: 0.007020754295 | DR15: 0.007954433467 | DS15: 0.006624713609 | DT15: 0.007625314657 | DU15: 0.01520821719 | DV15: 0.0088027977 | DW15: 0.008489716754 | DX15: 0.007376758753 | DY15: 0.008859636714 | DZ15: 0.008301023349 | EA15: 0.009833093195 | EB15: 0.007638619197 | EC15: 0.01176395663 | ED15: 0.00847608667 | EE15: 0.008924878923 | EF15: 0.008772747534 | EG15: 0.008134092935 | EH15: 0.007875517503 | EI15: 0.009836157799 | EJ15: 0.007668802568 | EK15: 0.008358556199 | EL15: 0.01048846359 | EM15: 0.006449409591 | EN15: 0.007401597606 | EO15: 0.008923062793 | EP15: 0.005949980882 | EQ15: 0.009007492488 | ER15: 0.00694566999 | ES15: 0.01237796927 | ET15: 0.008572140399 | EU15: 0.008202571774 | EV15: 0.005732112229 | EW15: 0.007385579971 | EX15: 0.007464597487 | EY15: 0.00899305163 | EZ15: 0.007765409141 | FA15: 0.009525129844 | FB15: 0.01514489144 | FC15: 0.009396837109 | FD15: 0.008154994814 | FE15: 0.009425068062 | FF15: 0.009396729421 | FG15: 0.008977950418 | FH15: 0.007283900151 | FI15: 0.008049095939 | FJ15: 0.01296934138 | FK15: 0.006733845943 | FL15: 0.01058980823 | FM15: 0.008691538729 | FN15: 0.009641861328 | FO15: 0.006415868455 | FP15: 0.01037272132 | FQ15: 0.007048865533 | FR15: 0.00970488689 | FS15: 0.00943279406 | FT15: 0.009787699721 | FU15: 0.007330827271 | FV15: 0.01129440899 | FW15: 0.01206037064 | FX15: 0.009632192256 | FY15: 0.007587843501 | FZ15: 0.006153174657 | GA15: 0.0094246058 | GB15: 0.006973743007 | GC15: 0.008123590043 | GD15: 0.00823179247 | GE15: 0.006683618643 | GF15: 0.0101714643 | GG15: 0.007578141609 | GH15: 0.01062847851 | GI15: 0.01016429142 | GJ15: 0.008789660461 | GK15: 0.009642586032 | GL15: 0.007320470474 | GM15: 0.008363923881 | GN15: 0.01004721029 | GO15: 0.008377391476 | GP15: 0.007400305714 | GQ15: 0.01015417457 | GR15: 0.01061367528 | GS15: 0.008277431231 | GT15: 0.008394823616 | GU15: 0.00738351718 | GV15: 0.006958164535 | GW15: 0.01236440505 | GX15: 0.007141402364 | GY15: 0.007902647286 | GZ15: 0.008240787844 | HA15: 0.009070846368 | HB15: 0.008171135648 | HC15: 0.009012732993 | HD15: 0.008928727624 | HE15: 0.007325802417 | HF15: 0.00704125308 | HG15: 0.009716438023 | HH15: 0.007469899759 | HI15: 0.008885014953 | HJ15: 0.008577450522 | HK15: 0.01196058332 | HL15: 0.01007089266 | HM15: 0.01125072998 | HN15: 0.009353472099 | HO15: 0.008763895882 | HP15: 0.007173709819 | HQ15: 0.00997197105 | HR15: 0.01268793774 | HS15: 0.009684483242 | HT15: 0.008134103241 | HU15: 0.008426092129 | HV15: 0.007413613006 | HW15: 0.01076623072 | HX15: 0.008188351629 | HY15: 0.01008626797 | HZ15: 0.007493067247 | IA15: 0.009421511583 | IB15: 0.01000519111 | IC15: 0.007333185166 | ID15: 0.01087732612 | IE15: 0.00783473865 | IF15: 0.007980610048 | IG15: 0.007944010113 | IH15: 0.009521678248 | II15: 0.01090234761 | IJ15: 0.008416530805 | IK15: 0.008184316768 | IL15: 0.008277995133 | IM15: 0.007588033662 | IN15: 0.007681921881 | IO15: 0.00932733217 | IP15: 0.008923266928 | IQ15: 0.009967593274 | IR15: 0.007358701097 | IS15: 0.007500723739 | IT15: 0.006058838861 | IU15: 0.007576247125 | IV15: 0.007929748315 | IW15: 0.007535986512 | IX15: 0.01132207365 | IY15: 0.007858886126 | IZ15: 0.009797503268 | JA15: 0.006391679262 | JB15: 0.009160535442 | JC15: 0.01076394593 | JD15: 0.006363533086 | JE15: 0.007977840625 | JF15: 0.007058737112 | JG15: 0.008180517546 | JH15: 0.006130104798 | JI15: 0.008269384194 | JJ15: 0.007839747901 | JK15: 0.009878958242 | JL15: 0.009217602381 | JM15: 0.007232934799 | JN15: 0.01264574557 | JO15: 0.007864576256 | JP15: 0.008226174834 | JQ15: 0.01013070232 | JR15: 0.01455993094 | JS15: 0.009433365982 | JT15: 0.006928662634 | JU15: 0.007805207389 | JV15: 0.009394206378 | JW15: 0.01099635983 | JX15: 0.007397626468 | JY15: 0.009686091242 | JZ15: 0.01019931662 | KA15: 0.006784641431 | KB15: 0.007953453403 | KC15: 0.008344887977 | KD15: 0.009553701641 | KE15: 0.009498123078 | KF15: 0.008654188426 | KG15: 0.01309934835 | KH15: 0.007502319454 | KI15: 0.008658129527 | KJ15: 0.007818687732 | KK15: 0.006667471678 | KL15: 0.008046755853 | KM15: 0.009587227313 | KN15: 0.009604933424 | KO15: 0.008797344838 | KP15: 0.008099416899 | KQ15: 0.006868287879 | KR15: 0.006675016901 | KS15: 0.007117769313 | KT15: 0.008850048965 | KU15: 0.007086165078 | KV15: 0.01019477561 | KW15: 0.007337281063 | KX15: 0.01247690018 | KY15: 0.008115214509 | KZ15: 0.007921358248 | LA15: 0.01089379354 | LB15: 0.007785700717 | LC15: 0.008102588067 | LD15: 0.009240988518 | LE15: 0.01064490638 | LF15: 0.006945957855 | LG15: 0.008450696072 | LH15: 0.006509748173 | LI15: 0.009107423957 | LJ15: 0.007234509043 | LK15: 0.007119704308 | LL15: 0.00806560067 | LM15: 0.007465286851 | LN15: 0.00788768533 | LO15: 0.007747164406 | LP15: 0.008914486547 | LQ15: 0.007670789694 | LR15: 0.008480102118 | LS15: 0.007207117356 | LT15: 0.008786045805 | LU15: 0.01430722863 | LV15: 0.007562529466 | LW15: 0.007936681222 | LX15: 0.01115003937 | LY15: 0.008335211165 | LZ15: 0.009147274163 | MA15: 0.008862216646 | MB15: 0.008022163375 | MC15: 0.01023457506 | MD15: 0.007196748894 | ME15: 0.009218001433 | MF15: 0.008559844382 | MG15: 0.007596591513 | MH15: 0.008494475382 | MI15: 0.007240626362 | MJ15: 0.008679127156 | MK15: 0.01008015331 | ML15: 0.007568662218 | MM15: 0.007485824749 | MN15: 0.008632788031 | MO15: 0.007403491419 | MP15: 0.007626865055 | MQ15: 0.007757166245 | MR15: 0.00808663734 | MS15: 0.01430917932 | MT15: 0.008481718392 | MU15: 0.007791546041 | MV15: 0.01111470197 | MW15: 0.01173860774 | MX15: 0.007537665837 | MY15: 0.007369344795 | MZ15: 0.007061555218 | NA15: 0.007309662465 | NB15: 0.008041427463 | NC15: 0.009279057347 | ND15: 0.007314177163 | NE15: 0.00733504465 | NF15: 0.008682122624 | NG15: 0.008417428431 | NH15: 0.01078204502 | NI15: 0.007361124094 | NJ15: 0.007733647862 | NK15: 0.009380133805 | NL15: 0.01417421405 | NM15: 0.006501231275 | NN15: 0.008292355764 | NO15: 0.007976680867 | NP15: 0.01586012195 | NQ15: 0.008758076339 | NR15: 0.009294987067 | NS15: 0.0102355822 | NT15: 0.009350408889 | NU15: 0.01010754891 | NV15: 0.01100344698 | NW15: 0.009657392184 | NX15: 0.007376961641 | NY15: 0.01119013676 | NZ15: 0.009879488236 | OA15: 0.00789092358 | OB15: 0.01339384453 | OC15: 0.008568337387 | OD15: 0.008446904961 | OE15: 0.009209117506 | OF15: 0.009550684707 | OG15: 0.01075010687 | OH15: 0.009166819132 | OI15: 0.00785055404 | OJ15: 0.01213165734 | OK15: 0.01026433658 | OL15: 0.009713708445 | OM15: 0.008620607667 | ON15: 0.006823265694 | OO15: 0.008916130045 | OP15: 0.01055630703 | OQ15: 0.009034121061 | OR15: 0.008724859228 | OS15: 0.008072920933 | OT15: 0.008721042625 | OU15: 0.008631201573 | OV15: 0.0069949076 | OW15: 0.006874656925 | OX15: 0.008079125565 | OY15: 0.00843666621 | OZ15: 0.008420012583 | PA15: 0.0153756912 | PB15: 0.009464250195 | PC15: 0.009639645057 | PD15: 0.01041075855 | PE15: 0.008788818785 | PF15: 0.008164359028 | PG15: 0.006628286274 | PH15: 0.006874782247 | PI15: 0.006569512809 | PJ15: 0.009426051523 | PK15: 0.008803135349 | PL15: 0.008612463086 | PM15: 0.008016137263 | PN15: 0.009907362669 | PO15: 0.008203719121 | PP15: 0.007403302349 | PQ15: 0.009851872897 | PR15: 0.01026610499 | PS15: 0.005630133213 | PT15: 0.008620815169 | PU15: 0.008366810599 | PV15: 0.008116883176 | PW15: 0.009369469994 | PX15: 0.009662006514 | PY15: 0.01045146361 | PZ15: 0.01052445525 | QA15: 0.007292993886 | QB15: 0.007977064821 | QC15: 0.01030328865 | QD15: 0.006841492425 | QE15: 0.009403503468 | QF15: 0.009897158766 | QG15: 0.01014269248 | QH15: 0.008939466275 | QI15: 0.008068736845 | QJ15: 0.01033812056 | QK15: 0.008082913598 | QL15: 0.006645219673 | QM15: 0.008252390333 | QN15: 0.008266680837 | QO15: 0.007302301614 | QP15: 0.007423252045 | QQ15: 0.008926999362 | QR15: 0.00848725728 | QS15: 0.008650987153 | QT15: 0.00921567437 | QU15: 0.007787652698 | QV15: 0.006471191746 | QW15: 0.007577597395 | QX15: 0.008821922252 | QY15: 0.008414922061 | QZ15: 0.01069882598 | RA15: 0.008119071872 | RB15: 0.008021621007 | RC15: 0.007522640762 | RD15: 0.01023606846 | RE15: 0.007799084435 | RF15: 0.007295539725 | RG15: 0.01106176211 | RH15: 0.007323868802 | RI15: 0.009879500946 | RJ15: 0.007535202156 | RK15: 0.01122438187 | RL15: 0.007521943321 | RM15: 0.008131635183 | RN15: 0.01004182254 | RO15: 0.00773992988 | RP15: 0.00919259251 | RQ15: 0.008660849314 | RR15: 0.01174251066 | RS15: 0.009510178197 | RT15: 0.008826465635 | RU15: 0.00826614432 | RV15: 0.01006564083 | RW15: 0.007461510064 | RX15: 0.007308676295 | RY15: 0.007235081061 | RZ15: 0.007464114799 | SA15: 0.008603521317 | SB15: 0.007489869061 | SC15: 0.009180226865 | SD15: 0.008101965095 | SE15: 0.009557010292 | SF15: 0.007443791682 | SG15: 0.008588287866 | SH15: 0.007674373548 | SI15: 0.007514185148 | SJ15: 0.007333982884 | SK15: 0.00973184626 | SL15: 0.008330785939 | SM15: 0.007601228522 | SN15: 0.009330651233 | SO15: 0.008577451633 | SP15: 0.007775480242 | SQ15: 0.007108219364 | SR15: 0.006467246621 | SS15: 0.007646255107 | ST15: 0.008479161037 | SU15: 0.00873885264 | SV15: 0.00801435945 | SW15: 0.008630159735 | SX15: 0.005948241663 | SY15: 0.01064823152 | SZ15: 0.01374754673 | TA15: 0.00702519466 | TB15: 0.008398267129 | TC15: 0.0070584149 | TD15: 0.006564598082 | TE15: 0.00991103719 | TF15: 0.006705643571 | TG15: 0.009110857209 | TH15: 0.007779881918 | TI15: 0.007461313691 | TJ15: 0.009221752029 | TK15: 0.009050623188 | TL15: 0.01019273308 | TM15: 0.006386445519 | TN15: 0.008847921283 | TO15: 0.007328013679 | TP15: 0.01036470772 | TQ15: 0.007797085607 | TR15: 0.01073054282 | TS15: 0.0119433893 | TT15: 0.0116143224 | TU15: 0.01214300539 | TV15: 0.009544693218 | TW15: 0.008488302727 | TX15: 0.01195624322 | TY15: 0.009147415219 | TZ15: 0.0081439652 | UA15: 0.01440605041 | UB15: 0.007056959662 | UC15: 0.009519206889 | UD15: 0.011862643 | UE15: 0.007831585351 | UF15: 0.01186493549 | UG15: 0.01455552784
A16: sim_15 | B16: 0.008040119082 | C16: 0.01352306532 | D16: 0.008216261121 | E16: 0.01271151447 | F16: 0.007221625323 | G16: 0.007912447035 | H16: 0.006945638872 | I16: 0.008581196457 | J16: 0.007085253277 | K16: 0.01159404677 | L16: 0.007756015814 | M16: 0.009219212416 | N16: 0.01127149145 | O16: 0.007043132958 | P16: 0.01044730348 | Q16: 0.007317442897 | R16: 0.007114333777 | S16: 0.006896133295 | T16: 0.008472379452 | U16: 0.009899947111 | V16: 0.008156306236 | W16: 0.009037362461 | X16: 0.008581015587 | Y16: 0.01147607369 | Z16: 0.01106975516 | AA16: 0.01019821078 | AB16: 0.007899584003 | AC16: 0.008260912828 | AD16: 0.006937957071 | AE16: 0.007286246992 | AF16: 0.008273391779 | AG16: 0.008007334641 | AH16: 0.01040409559 | AI16: 0.007163494255 | AJ16: 0.008192932025 | AK16: 0.008298505543 | AL16: 0.009106254622 | AM16: 0.00698728476 | AN16: 0.008537808074 | AO16: 0.01198061974 | AP16: 0.01112655373 | AQ16: 0.008240088299 | AR16: 0.008578410173 | AS16: 0.01519552991 | AT16: 0.008184444169 | AU16: 0.01075586238 | AV16: 0.007379044849 | AW16: 0.00711744774 | AX16: 0.01539462982 | AY16: 0.01097525015 | AZ16: 0.008158938166 | BA16: 0.00704577675 | BB16: 0.008120312375 | BC16: 0.008535823273 | BD16: 0.007309393479 | BE16: 0.01248882692 | BF16: 0.01227682853 | BG16: 0.007878480124 | BH16: 0.009395517604 | BI16: 0.006918053784 | BJ16: 0.01487498879 | BK16: 0.007676307545 | BL16: 0.008173763727 | BM16: 0.01117275187 | BN16: 0.01132413419 | BO16: 0.009841557849 | BP16: 0.01189791065 | BQ16: 0.008112399822 | BR16: 0.008061006562 | BS16: 0.008659520252 | BT16: 0.007389475554 | BU16: 0.009761870819 | BV16: 0.008326047894 | BW16: 0.008532123409 | BX16: 0.007570575344 | BY16: 0.008969634699 | BZ16: 0.008672343571 | CA16: 0.01068359779 | CB16: 0.008237604295 | CC16: 0.006912286074 | CD16: 0.00857052901 | CE16: 0.008938564694 | CF16: 0.008853520306 | CG16: 0.008675964139 | CH16: 0.01047132612 | CI16: 0.009641634736 | CJ16: 0.006628912767 | CK16: 0.007701164058 | CL16: 0.008025242891 | CM16: 0.008628057259 | CN16: 0.01094769733 | CO16: 0.008482596501 | CP16: 0.006331674782 | CQ16: 0.009057293674 | CR16: 0.007263644049 | CS16: 0.009178285987 | CT16: 0.01114067809 | CU16: 0.008053493746 | CV16: 0.008228664921 | CW16: 0.01041899152 | CX16: 0.007942658001 | CY16: 0.008969061165 | CZ16: 0.008015545731 | DA16: 0.00728178829 | DB16: 0.009229450932 | DC16: 0.0106833055 | DD16: 0.00955045877 | DE16: 0.01069528307 | DF16: 0.01122043683 | DG16: 0.01306516506 | DH16: 0.00706261192 | DI16: 0.006895440392 | DJ16: 0.0090742742 | DK16: 0.006910885867 | DL16: 0.01139608297 | DM16: 0.007427171207 | DN16: 0.008320278147 | DO16: 0.009270288944 | DP16: 0.007098882574 | DQ16: 0.007070568586 | DR16: 0.00847805485 | DS16: 0.007249140007 | DT16: 0.007550528479 | DU16: 0.01400029263 | DV16: 0.009396242546 | DW16: 0.01058871005 | DX16: 0.008348680072 | DY16: 0.008377691312 | DZ16: 0.008054533584 | EA16: 0.0101410641 | EB16: 0.007742496013 | EC16: 0.01133853549 | ED16: 0.008835589302 | EE16: 0.00887511861 | EF16: 0.008759447796 | EG16: 0.008133585486 | EH16: 0.007964521772 | EI16: 0.009340654203 | EJ16: 0.007570396336 | EK16: 0.008290770419 | EL16: 0.01175967302 | EM16: 0.006511466047 | EN16: 0.007326537584 | EO16: 0.009527558928 | EP16: 0.005742403042 | EQ16: 0.008488041628 | ER16: 0.007502417911 | ES16: 0.01201117356 | ET16: 0.00804091452 | EU16: 0.007826462337 | EV16: 0.005589751696 | EW16: 0.007274080596 | EX16: 0.007436681744 | EY16: 0.00883378771 | EZ16: 0.007734783582 | FA16: 0.009401043604 | FB16: 0.01529221156 | FC16: 0.009906224781 | FD16: 0.008620700209 | FE16: 0.009239190774 | FF16: 0.009850927336 | FG16: 0.008677936893 | FH16: 0.006935057558 | FI16: 0.007890663484 | FJ16: 0.01516165317 | FK16: 0.006764356576 | FL16: 0.009892985884 | FM16: 0.008159046496 | FN16: 0.00972800087 | FO16: 0.007400685895 | FP16: 0.01031276283 | FQ16: 0.006795023932 | FR16: 0.00902669401 | FS16: 0.01020696591 | FT16: 0.009372842499 | FU16: 0.007122643663 | FV16: 0.01101312995 | FW16: 0.0112619599 | FX16: 0.009335961837 | FY16: 0.007348357725 | FZ16: 0.006587163895 | GA16: 0.008852416392 | GB16: 0.007160940897 | GC16: 0.007750731362 | GD16: 0.009925415915 | GE16: 0.006532319138 | GF16: 0.0098932703 | GG16: 0.008523077706 | GH16: 0.00984333306 | GI16: 0.01004188206 | GJ16: 0.009246340442 | GK16: 0.009903185728 | GL16: 0.006957676129 | GM16: 0.007824885027 | GN16: 0.009337109655 | GO16: 0.009375526307 | GP16: 0.007302488208 | GQ16: 0.01067324292 | GR16: 0.01045436417 | GS16: 0.007953219184 | GT16: 0.007955862252 | GU16: 0.008383890227 | GV16: 0.006642651357 | GW16: 0.01191422997 | GX16: 0.007346263717 | GY16: 0.007868268615 | GZ16: 0.007866108815 | HA16: 0.01042643848 | HB16: 0.007766508033 | HC16: 0.01049897938 | HD16: 0.0102884307 | HE16: 0.007160143295 | HF16: 0.006639188611 | HG16: 0.009325933144 | HH16: 0.007191023775 | HI16: 0.008349729014 | HJ16: 0.008594393708 | HK16: 0.01125218325 | HL16: 0.009365780615 | HM16: 0.01133620515 | HN16: 0.009502160217 | HO16: 0.008639468508 | HP16: 0.007618072437 | HQ16: 0.01013810439 | HR16: 0.01210690071 | HS16: 0.0114628734 | HT16: 0.008644483818 | HU16: 0.008292600792 | HV16: 0.007713980572 | HW16: 0.01088844125 | HX16: 0.008481313125 | HY16: 0.009524792521 | HZ16: 0.007221737269 | IA16: 0.009242413628 | IB16: 0.009449735203 | IC16: 0.007025633095 | ID16: 0.01097937402 | IE16: 0.007479500804 | IF16: 0.0078546804 | IG16: 0.007618849639 | IH16: 0.01032379502 | II16: 0.01104896569 | IJ16: 0.01016395648 | IK16: 0.008527548967 | IL16: 0.008465472878 | IM16: 0.007453234361 | IN16: 0.008300201597 | IO16: 0.009087743798 | IP16: 0.009423833006 | IQ16: 0.009661819988 | IR16: 0.007867972896 | IS16: 0.00865421652 | IT16: 0.006293721129 | IU16: 0.007719080212 | IV16: 0.007935115631 | IW16: 0.007907584663 | IX16: 0.0109388348 | IY16: 0.007571369983 | IZ16: 0.009187078914 | JA16: 0.006124069137 | JB16: 0.009784460345 | JC16: 0.01314617479 | JD16: 0.006139932114 | JE16: 0.007752594469 | JF16: 0.007457247452 | JG16: 0.007787308869 | JH16: 0.006604488501 | JI16: 0.0100590104 | JJ16: 0.007796448915 | JK16: 0.009332591852 | JL16: 0.009468643794 | JM16: 0.007273961436 | JN16: 0.01221715506 | JO16: 0.007431741746 | JP16: 0.008055663269 | JQ16: 0.009721677353 | JR16: 0.01378335377 | JS16: 0.01040377041 | JT16: 0.007336419253 | JU16: 0.007337559389 | JV16: 0.009501879581 | JW16: 0.01083386824 | JX16: 0.007332129389 | JY16: 0.0112357571 | JZ16: 0.01080550803 | KA16: 0.008224287869 | KB16: 0.007633483426 | KC16: 0.008476744347 | KD16: 0.01002312605 | KE16: 0.009384469455 | KF16: 0.008638974519 | KG16: 0.01384979846 | KH16: 0.008620129221 | KI16: 0.009002577781 | KJ16: 0.01004741499 | KK16: 0.007366563617 | KL16: 0.007848842497 | KM16: 0.01018756406 | KN16: 0.008954164241 | KO16: 0.008909606249 | KP16: 0.007778944234 | KQ16: 0.007206203467 | KR16: 0.006599589285 | KS16: 0.006709445327 | KT16: 0.008808901457 | KU16: 0.007384908817 | KV16: 0.009592413506 | KW16: 0.00712724129 | KX16: 0.01270372722 | KY16: 0.007740103211 | KZ16: 0.007730199857 | LA16: 0.0104535103 | LB16: 0.007347154368 | LC16: 0.008554592754 | LD16: 0.00884004665 | LE16: 0.01058229114 | LF16: 0.006862243954 | LG16: 0.008009380485 | LH16: 0.006682817723 | LI16: 0.009562854463 | LJ16: 0.008004726975 | LK16: 0.006786861821 | LL16: 0.007855210068 | LM16: 0.007914787168 | LN16: 0.007633384755 | LO16: 0.01049094856 | LP16: 0.009560707256 | LQ16: 0.009791740749 | LR16: 0.00811675485 | LS16: 0.007061164002 | LT16: 0.008646127346 | LU16: 0.01405161152 | LV16: 0.007570722339 | LW16: 0.008116227492 | LX16: 0.01087228075 | LY16: 0.007995492307 | LZ16: 0.009057776825 | MA16: 0.008472157177 | MB16: 0.00810813038 | MC16: 0.009782252648 | MD16: 0.007328259359 | ME16: 0.009782888147 | MF16: 0.009148332344 | MG16: 0.008035693823 | MH16: 0.008394836 | MI16: 0.007210335926 | MJ16: 0.008459610275 | MK16: 0.009343649835 | ML16: 0.008236303338 | MM16: 0.009118516884 | MN16: 0.008215275514 | MO16: 0.007868688633 | MP16: 0.007265035012 | MQ16: 0.00739844944 | MR16: 0.007660313228 | MS16: 0.01727968575 | MT16: 0.008086029827 | MU16: 0.007461461434 | MV16: 0.01201694553 | MW16: 0.01206128477 | MX16: 0.007147822676 | MY16: 0.007072730241 | MZ16: 0.007523103772 | NA16: 0.008217228099 | NB16: 0.007645352058 | NC16: 0.009685118335 | ND16: 0.007541702849 | NE16: 0.007207188242 | NF16: 0.008706538722 | NG16: 0.008541386394 | NH16: 0.01051730152 | NI16: 0.008488576039 | NJ16: 0.007333216779 | NK16: 0.008745982615 | NL16: 0.0137304432 | NM16: 0.006430839405 | NN16: 0.007818653011 | NO16: 0.007632460689 | NP16: 0.01514127842 | NQ16: 0.008283007919 | NR16: 0.01134985939 | NS16: 0.01006556902 | NT16: 0.009493584581 | NU16: 0.01044747106 | NV16: 0.01039872219 | NW16: 0.01126168392 | NX16: 0.009665057106 | NY16: 0.01123135656 | NZ16: 0.009499763926 | OA16: 0.007803415324 | OB16: 0.01268078738 | OC16: 0.01056091632 | OD16: 0.008975585081 | OE16: 0.01005810316 | OF16: 0.009411593588 | OG16: 0.01038033254 | OH16: 0.008601515692 | OI16: 0.007523949745 | OJ16: 0.0114181164 | OK16: 0.01115108412 | OL16: 0.009692132881 | OM16: 0.008629732367 | ON16: 0.007850998333 | OO16: 0.008841875372 | OP16: 0.01011485642 | OQ16: 0.008526175329 | OR16: 0.008609180621 | OS16: 0.007850128268 | OT16: 0.009211147651 | OU16: 0.00902665828 | OV16: 0.007073617547 | OW16: 0.006987710853 | OX16: 0.008209531076 | OY16: 0.008518350357 | OZ16: 0.008554857059 | PA16: 0.01465509754 | PB16: 0.009440003008 | PC16: 0.009229790117 | PD16: 0.009855248127 | PE16: 0.008579071383 | PF16: 0.008122875299 | PG16: 0.00655354466 | PH16: 0.006601871738 | PI16: 0.006420085138 | PJ16: 0.009715163062 | PK16: 0.008349110347 | PL16: 0.009516477416 | PM16: 0.007588211356 | PN16: 0.01038551042 | PO16: 0.008167139019 | PP16: 0.00787090154 | PQ16: 0.009514025121 | PR16: 0.009765431324 | PS16: 0.00558694655 | PT16: 0.008351917037 | PU16: 0.008257199796 | PV16: 0.008451446193 | PW16: 0.008880293592 | PX16: 0.009197166704 | PY16: 0.01056338119 | PZ16: 0.01067169388 | QA16: 0.007642341775 | QB16: 0.008322916812 | QC16: 0.01025603462 | QD16: 0.007401519798 | QE16: 0.009211936532 | QF16: 0.01013978259 | QG16: 0.009936797828 | QH16: 0.008646250515 | QI16: 0.008259380819 | QJ16: 0.009694201765 | QK16: 0.009406985923 | QL16: 0.006665852905 | QM16: 0.008765974254 | QN16: 0.008321097952 | QO16: 0.008352491497 | QP16: 0.007139821124 | QQ16: 0.008670115291 | QR16: 0.008499407562 | QS16: 0.009152649123 | QT16: 0.009239676872 | QU16: 0.008871058115 | QV16: 0.006547374374 | QW16: 0.007825927485 | QX16: 0.008606264074 | QY16: 0.008419715975 | QZ16: 0.01026170555 | RA16: 0.007709401766 | RB16: 0.007775814757 | RC16: 0.007276823046 | RD16: 0.009588815341 | RE16: 0.007526138211 | RF16: 0.008222343616 | RG16: 0.01062103375 | RH16: 0.00742899488 | RI16: 0.01037886533 | RJ16: 0.007333205395 | RK16: 0.01280154335 | RL16: 0.007525693977 | RM16: 0.008403282502 | RN16: 0.009519457096 | RO16: 0.007780323229 | RP16: 0.009306031283 | RQ16: 0.008929461346 | RR16: 0.01109094002 | RS16: 0.009182467078 | RT16: 0.00858483009 | RU16: 0.008875863142 | RV16: 0.0105139396 | RW16: 0.007641017117 | RX16: 0.00747379049 | RY16: 0.007075293309 | RZ16: 0.007717211884 | SA16: 0.008748173368 | SB16: 0.007142892669 | SC16: 0.00868833382 | SD16: 0.007706817666 | SE16: 0.009234069753 | SF16: 0.007532222784 | SG16: 0.009174828264 | SH16: 0.007289505145 | SI16: 0.007063787087 | SJ16: 0.007789807092 | SK16: 0.009313173129 | SL16: 0.007874136372 | SM16: 0.007209895889 | SN16: 0.00885725541 | SO16: 0.008913836539 | SP16: 0.008257899844 | SQ16: 0.007937706159 | SR16: 0.006515905023 | SS16: 0.007869686812 | ST16: 0.008328498587 | SU16: 0.008627143094 | SV16: 0.007726396787 | SW16: 0.008339065648 | SX16: 0.006047160022 | SY16: 0.01000723351 | SZ16: 0.01271951273 | TA16: 0.006629089528 | TB16: 0.008218834674 | TC16: 0.007301587874 | TD16: 0.007035938624 | TE16: 0.009574572978 | TF16: 0.007745468605 | TG16: 0.008503774038 | TH16: 0.008406699047 | TI16: 0.007933081676 | TJ16: 0.01038537818 | TK16: 0.009446374186 | TL16: 0.01094009016 | TM16: 0.006466980366 | TN16: 0.008701628268 | TO16: 0.00689303166 | TP16: 0.01130359022 | TQ16: 0.008509012799 | TR16: 0.01068878625 | TS16: 0.01138299551 | TT16: 0.01086480815 | TU16: 0.01130181697 | TV16: 0.01037531001 | TW16: 0.008022922581 | TX16: 0.01100914567 | TY16: 0.009243847143 | TZ16: 0.007831752975 | UA16: 0.0156116432 | UB16: 0.00818338652 | UC16: 0.008867898026 | UD16: 0.01208013509 | UE16: 0.008915294375 | UF16: 0.01206520397 | UG16: 0.01342241559
A17: sim_16 | B17: 0.01009310714 | C17: 0.01456310639 | D17: 0.008691551398 | E17: 0.01254430721 | F17: 0.007186439759 | G17: 0.007727591488 | H17: 0.006964449581 | I17: 0.008719798049 | J17: 0.009097440777 | K17: 0.01123196104 | L17: 0.007782737578 | M17: 0.008606681293 | N17: 0.01072753281 | O17: 0.006853100983 | P17: 0.01149512051 | Q17: 0.00707194802 | R17: 0.007195298116 | S17: 0.007067554555 | T17: 0.008690443858 | U17: 0.01199180295 | V17: 0.008074401514 | W17: 0.008810966993 | X17: 0.00957893216 | Y17: 0.0108738821 | Z17: 0.01172416766 | AA17: 0.01091116066 | AB17: 0.008055742783 | AC17: 0.009051251484 | AD17: 0.007928139882 | AE17: 0.007291196325 | AF17: 0.00818654548 | AG17: 0.008376048745 | AH17: 0.009950284076 | AI17: 0.009312017356 | AJ17: 0.00851101463 | AK17: 0.008615434732 | AL17: 0.008632116552 | AM17: 0.007651805508 | AN17: 0.009064443685 | AO17: 0.01190394452 | AP17: 0.01219064313 | AQ17: 0.007824222748 | AR17: 0.008220743015 | AS17: 0.01555854584 | AT17: 0.007862370665 | AU17: 0.0107832566 | AV17: 0.007728267581 | AW17: 0.006771341114 | AX17: 0.01423025838 | AY17: 0.01056173569 | AZ17: 0.008201381276 | BA17: 0.007003955369 | BB17: 0.007601356535 | BC17: 0.008444140418 | BD17: 0.00687350423 | BE17: 0.01162906013 | BF17: 0.01167048123 | BG17: 0.007957521815 | BH17: 0.01028416881 | BI17: 0.007995391174 | BJ17: 0.01396539744 | BK17: 0.007594352694 | BL17: 0.008447486163 | BM17: 0.01041361879 | BN17: 0.01148836093 | BO17: 0.009247483907 | BP17: 0.01148913135 | BQ17: 0.007807983838 | BR17: 0.0094667624 | BS17: 0.008739736109 | BT17: 0.00791524073 | BU17: 0.009788896692 | BV17: 0.007939827694 | BW17: 0.008203728854 | BX17: 0.00819040711 | BY17: 0.008823576768 | BZ17: 0.008160126756 | CA17: 0.01045971873 | CB17: 0.008713020054 | CC17: 0.00657302913 | CD17: 0.008584605194 | CE17: 0.008995446659 | CF17: 0.008811438867 | CG17: 0.008266002726 | CH17: 0.01041682451 | CI17: 0.009142401011 | CJ17: 0.006720272702 | CK17: 0.007707008386 | CL17: 0.007690257732 | CM17: 0.00827854628 | CN17: 0.01197144449 | CO17: 0.008093498058 | CP17: 0.006069428605 | CQ17: 0.008645038578 | CR17: 0.007279822106 | CS17: 0.008960578516 | CT17: 0.01246638856 | CU17: 0.00775364359 | CV17: 0.007905955693 | CW17: 0.01000209388 | CX17: 0.007738053942 | CY17: 0.008787053333 | CZ17: 0.007709712614 | DA17: 0.007813890995 | DB17: 0.008722279316 | DC17: 0.009967031816 | DD17: 0.009335793422 | DE17: 0.01054189666 | DF17: 0.01214064596 | DG17: 0.0126600678 | DH17: 0.006980397358 | DI17: 0.006952959151 | DJ17: 0.008498672266 | DK17: 0.0066807659 | DL17: 0.01099345024 | DM17: 0.007448990101 | DN17: 0.007894623914 | DO17: 0.009007365585 | DP17: 0.006842740019 | DQ17: 0.006813039231 | DR17: 0.009757780562 | DS17: 0.00725030782 | DT17: 0.009285908983 | DU17: 0.01312003543 | DV17: 0.01044351155 | DW17: 0.01028162291 | DX17: 0.008527609592 | DY17: 0.008000024098 | DZ17: 0.007985014784 | EA17: 0.009889010882 | EB17: 0.008174758884 | EC17: 0.01052383409 | ED17: 0.008321640379 | EE17: 0.008364985888 | EF17: 0.009134474072 | EG17: 0.008186944965 | EH17: 0.007756456657 | EI17: 0.01099091871 | EJ17: 0.007682560284 | EK17: 0.007934380474 | EL17: 0.01138710032 | EM17: 0.006579543316 | EN17: 0.006968152602 | EO17: 0.009202216304 | EP17: 0.005841426016 | EQ17: 0.008890561039 | ER17: 0.0095038318 | ES17: 0.01143599929 | ET17: 0.008439920226 | EU17: 0.007738482419 | EV17: 0.005422909195 | EW17: 0.007212214113 | EX17: 0.008402266238 | EY17: 0.00865903993 | EZ17: 0.007528902021 | FA17: 0.009179917024 | FB17: 0.0143244596 | FC17: 0.01066111709 | FD17: 0.008420865354 | FE17: 0.008962638181 | FF17: 0.01278231123 | FG17: 0.008216147497 | FH17: 0.006611077743 | FI17: 0.009317358388 | FJ17: 0.01390145215 | FK17: 0.006623180773 | FL17: 0.009501405556 | FM17: 0.007869182592 | FN17: 0.009091361147 | FO17: 0.007607979462 | FP17: 0.01136222209 | FQ17: 0.007295921629 | FR17: 0.009705972581 | FS17: 0.009741312321 | FT17: 0.009034429226 | FU17: 0.007532383534 | FV17: 0.01055923371 | FW17: 0.01123619709 | FX17: 0.008834814713 | FY17: 0.007408310191 | FZ17: 0.00706248116 | GA17: 0.009015235756 | GB17: 0.007016189262 | GC17: 0.007298262164 | GD17: 0.009438378072 | GE17: 0.006842337981 | GF17: 0.009268023839 | GG17: 0.009825942281 | GH17: 0.0107589856 | GI17: 0.01006898673 | GJ17: 0.009047806819 | GK17: 0.01058320438 | GL17: 0.007106038385 | GM17: 0.007634802901 | GN17: 0.008968774563 | GO17: 0.009171049803 | GP17: 0.007020453279 | GQ17: 0.01002039933 | GR17: 0.009822622514 | GS17: 0.007498341109 | GT17: 0.007657275067 | GU17: 0.008444500314 | GV17: 0.006824791119 | GW17: 0.01170957588 | GX17: 0.0071908987 | GY17: 0.007626322178 | GZ17: 0.007458853334 | HA17: 0.01023222835 | HB17: 0.007518568639 | HC17: 0.01111680173 | HD17: 0.01043230685 | HE17: 0.007318309552 | HF17: 0.006612164854 | HG17: 0.008899245894 | HH17: 0.007224926579 | HI17: 0.007985001196 | HJ17: 0.008060088044 | HK17: 0.01121368784 | HL17: 0.009349986182 | HM17: 0.01092383614 | HN17: 0.008911923691 | HO17: 0.009624944349 | HP17: 0.00758051944 | HQ17: 0.009871488386 | HR17: 0.01323556983 | HS17: 0.01364965013 | HT17: 0.008072317649 | HU17: 0.007789143991 | HV17: 0.008523764077 | HW17: 0.0102836478 | HX17: 0.008776793977 | HY17: 0.00951821495 | HZ17: 0.007236892546 | IA17: 0.009110647277 | IB17: 0.009349221846 | IC17: 0.006648628986 | ID17: 0.01047131521 | IE17: 0.007796114327 | IF17: 0.007651943675 | IG17: 0.007253983056 | IH17: 0.009567529175 | II17: 0.01052408237 | IJ17: 0.01145243564 | IK17: 0.008232429959 | IL17: 0.008005899841 | IM17: 0.00753783837 | IN17: 0.009872008341 | IO17: 0.009774671657 | IP17: 0.009275289412 | IQ17: 0.009881177522 | IR17: 0.007550823385 | IS17: 0.009082516909 | IT17: 0.006794826551 | IU17: 0.007542292607 | IV17: 0.007788947526 | IW17: 0.008393142783 | IX17: 0.01021218048 | IY17: 0.007234363557 | IZ17: 0.009293550717 | JA17: 0.006239517694 | JB17: 0.009329760087 | JC17: 0.01382785294 | JD17: 0.006507865492 | JE17: 0.00729845517 | JF17: 0.007216255191 | JG17: 0.007340669827 | JH17: 0.008025783627 | JI17: 0.009846629392 | JJ17: 0.00735290353 | JK17: 0.009526574879 | JL17: 0.008847598161 | JM17: 0.007317648774 | JN17: 0.01303733542 | JO17: 0.007038294151 | JP17: 0.008063859212 | JQ17: 0.009659085065 | JR17: 0.01314599446 | JS17: 0.009950560886 | JT17: 0.00945742507 | JU17: 0.007665161153 | JV17: 0.008911299205 | JW17: 0.01029526777 | JX17: 0.007088580543 | JY17: 0.01071657225 | JZ17: 0.01164694055 | KA17: 0.007743088864 | KB17: 0.007356942837 | KC17: 0.007950800337 | KD17: 0.009595303922 | KE17: 0.009013863489 | KF17: 0.008190510622 | KG17: 0.01603209857 | KH17: 0.008771826097 | KI17: 0.008547974431 | KJ17: 0.0098815854 | KK17: 0.007036957625 | KL17: 0.008327565209 | KM17: 0.01123818312 | KN17: 0.009650667347 | KO17: 0.009538006391 | KP17: 0.007395026455 | KQ17: 0.007337501143 | KR17: 0.006319102797 | KS17: 0.006445006322 | KT17: 0.008347688486 | KU17: 0.007716454026 | KV17: 0.009262270326 | KW17: 0.007988240978 | KX17: 0.01252428513 | KY17: 0.008217751032 | KZ17: 0.007481520794 | LA17: 0.01116489397 | LB17: 0.007675985709 | LC17: 0.008589367505 | LD17: 0.009534217527 | LE17: 0.009859961549 | LF17: 0.007588361268 | LG17: 0.007802603323 | LH17: 0.006635662975 | LI17: 0.009189797487 | LJ17: 0.00798982058 | LK17: 0.006405665359 | LL17: 0.008134512556 | LM17: 0.007606984254 | LN17: 0.008030749322 | LO17: 0.01004526099 | LP17: 0.009990414925 | LQ17: 0.01000944291 | LR17: 0.00781017194 | LS17: 0.007553601542 | LT17: 0.008400282024 | LU17: 0.01349050377 | LV17: 0.007193094896 | LW17: 0.008373042082 | LX17: 0.0102840252 | LY17: 0.007542075795 | LZ17: 0.008671537947 | MA17: 0.008756320678 | MB17: 0.008519445558 | MC17: 0.0104075928 | MD17: 0.006941271741 | ME17: 0.009106324094 | MF17: 0.008837663553 | MG17: 0.007795401959 | MH17: 0.008708198383 | MI17: 0.006835326899 | MJ17: 0.008808123254 | MK17: 0.009126791031 | ML17: 0.007753615653 | MM17: 0.008538051198 | MN17: 0.008321111271 | MO17: 0.007485565288 | MP17: 0.007721981919 | MQ17: 0.007152279812 | MR17: 0.007231087334 | MS17: 0.01675526292 | MT17: 0.007633773325 | MU17: 0.007346003022 | MV17: 0.01124691796 | MW17: 0.01223551862 | MX17: 0.007314730052 | MY17: 0.00729734896 | MZ17: 0.007209492412 | NA17: 0.008702247786 | NB17: 0.00740130811 | NC17: 0.009740895046 | ND17: 0.007102427762 | NE17: 0.007664611658 | NF17: 0.008994282459 | NG17: 0.01105351608 | NH17: 0.01064092924 | NI17: 0.007946967598 | NJ17: 0.007041455307 | NK17: 0.009448451375 | NL17: 0.013219322 | NM17: 0.006282327639 | NN17: 0.008138763098 | NO17: 0.007610950847 | NP17: 0.01416210162 | NQ17: 0.008522019076 | NR17: 0.01163010821 | NS17: 0.009837633715 | NT17: 0.009763702097 | NU17: 0.01028112496 | NV17: 0.009746913533 | NW17: 0.01220977002 | NX17: 0.009637071971 | NY17: 0.01129246957 | NZ17: 0.009767401295 | OA17: 0.007747709753 | OB17: 0.01618665562 | OC17: 0.009778349181 | OD17: 0.008739592951 | OE17: 0.0095723731 | OF17: 0.009157548721 | OG17: 0.009962629012 | OH17: 0.008277937194 | OI17: 0.007628139806 | OJ17: 0.01258466575 | OK17: 0.01114242726 | OL17: 0.009503048566 | OM17: 0.00905389194 | ON17: 0.007687756531 | OO17: 0.009195972537 | OP17: 0.00951854756 | OQ17: 0.007964526847 | OR17: 0.008818370679 | OS17: 0.00787856678 | OT17: 0.008669091435 | OU17: 0.00873969936 | OV17: 0.006880513295 | OW17: 0.006925410576 | OX17: 0.007831827486 | OY17: 0.00852597523 | OZ17: 0.008038413604 | PA17: 0.0134020659 | PB17: 0.008932743097 | PC17: 0.008671881154 | PD17: 0.00916773598 | PE17: 0.009070141074 | PF17: 0.007972686212 | PG17: 0.006206405008 | PH17: 0.006698087887 | PI17: 0.006564741968 | PJ17: 0.009270365297 | PK17: 0.008017699321 | PL17: 0.00924691842 | PM17: 0.007625068475 | PN17: 0.009796106466 | PO17: 0.008589774789 | PP17: 0.007670228259 | PQ17: 0.01100153719 | PR17: 0.009116592383 | PS17: 0.005647500421 | PT17: 0.007973503534 | PU17: 0.008671738116 | PV17: 0.008877706219 | PW17: 0.008724705124 | PX17: 0.01111513542 | PY17: 0.009849971308 | PZ17: 0.01039355685 | QA17: 0.007354804656 | QB17: 0.008567026452 | QC17: 0.01088449524 | QD17: 0.00726010873 | QE17: 0.008770222029 | QF17: 0.00953035679 | QG17: 0.009912328825 | QH17: 0.008419686649 | QI17: 0.00823557665 | QJ17: 0.009380833614 | QK17: 0.009132389959 | QL17: 0.007205342777 | QM17: 0.008856962918 | QN17: 0.008675438199 | QO17: 0.007917308772 | QP17: 0.007584673272 | QQ17: 0.008220776403 | QR17: 0.008242334669 | QS17: 0.008861259845 | QT17: 0.00986131108 | QU17: 0.008825311516 | QV17: 0.006538634358 | QW17: 0.008145681929 | QX17: 0.008854113884 | QY17: 0.009684336439 | QZ17: 0.009740963632 | RA17: 0.007619774351 | RB17: 0.00729757254 | RC17: 0.008001754766 | RD17: 0.008939497812 | RE17: 0.008897920679 | RF17: 0.008041527303 | RG17: 0.009819048894 | RH17: 0.007785276561 | RI17: 0.0125900876 | RJ17: 0.007200434912 | RK17: 0.01403141079 | RL17: 0.007284390882 | RM17: 0.0083395396 | RN17: 0.009745994248 | RO17: 0.007582008392 | RP17: 0.009235361476 | RQ17: 0.0091912926 | RR17: 0.01130174312 | RS17: 0.0108383558 | RT17: 0.008089886873 | RU17: 0.008717935551 | RV17: 0.0102018733 | RW17: 0.007646421167 | RX17: 0.00779701345 | RY17: 0.007142398363 | RZ17: 0.007360003157 | SA17: 0.00855806751 | SB17: 0.006925332228 | SC17: 0.008347133535 | SD17: 0.007273521981 | SE17: 0.008980421355 | SF17: 0.007510738031 | SG17: 0.008878174443 | SH17: 0.006928840071 | SI17: 0.006843119219 | SJ17: 0.00833242362 | SK17: 0.008716036696 | SL17: 0.01058161158 | SM17: 0.007583247119 | SN17: 0.01139869632 | SO17: 0.008634659761 | SP17: 0.008180208623 | SQ17: 0.007815575294 | SR17: 0.006253778332 | SS17: 0.008991166391 | ST17: 0.007919184353 | SU17: 0.008694588381 | SV17: 0.007367667812 | SW17: 0.008158062391 | SX17: 0.006664996619 | SY17: 0.009876362703 | SZ17: 0.01244980813 | TA17: 0.006433107859 | TB17: 0.00814921469 | TC17: 0.007555944002 | TD17: 0.007198005314 | TE17: 0.009285203916 | TF17: 0.008459015017 | TG17: 0.008042620939 | TH17: 0.01011148679 | TI17: 0.007678718618 | TJ17: 0.009946664741 | TK17: 0.01105268738 | TL17: 0.01304962362 | TM17: 0.007211267509 | TN17: 0.008317265721 | TO17: 0.006975144335 | TP17: 0.01287093488 | TQ17: 0.007999340012 | TR17: 0.009891937143 | TS17: 0.01256398986 | TT17: 0.011124006 | TU17: 0.01187818098 | TV17: 0.01064417214 | TW17: 0.009987180566 | TX17: 0.01091935395 | TY17: 0.009275350001 | TZ17: 0.007416371397 | UA17: 0.01420330404 | UB17: 0.007777600623 | UC17: 0.009722138521 | UD17: 0.0114155995 | UE17: 0.008479758278 | UF17: 0.01258120931 | UG17: 0.0142753408
A18: sim_17 | B18: 0.01001703672 | C18: 0.01434693903 | D18: 0.008327523207 | E18: 0.01233048704 | F18: 0.007415898637 | G18: 0.00747116858 | H18: 0.007183584348 | I18: 0.008620484999 | J18: 0.009258684746 | K18: 0.01067621667 | L18: 0.007631341614 | M18: 0.009032471494 | N18: 0.01102841381 | O18: 0.007559381819 | P18: 0.010648506 | Q18: 0.006718015302 | R18: 0.006804066502 | S18: 0.006670206505 | T18: 0.008234956281 | U18: 0.01108370199 | V18: 0.008025618657 | W18: 0.008957257276 | X18: 0.0103044327 | Y18: 0.0107171614 | Z18: 0.01090802082 | AA18: 0.01041364051 | AB18: 0.007908210184 | AC18: 0.008629564526 | AD18: 0.00757746592 | AE18: 0.007677961547 | AF18: 0.008909061757 | AG18: 0.008285658662 | AH18: 0.009355962683 | AI18: 0.009031340537 | AJ18: 0.008219347948 | AK18: 0.008374506355 | AL18: 0.00857380598 | AM18: 0.007359743473 | AN18: 0.008676959563 | AO18: 0.01096743739 | AP18: 0.01199013741 | AQ18: 0.007938756209 | AR18: 0.008378283774 | AS18: 0.01658102587 | AT18: 0.007702688765 | AU18: 0.01088902255 | AV18: 0.007519923246 | AW18: 0.007011507819 | AX18: 0.01372635199 | AY18: 0.01204457256 | AZ18: 0.008047452554 | BA18: 0.006616153324 | BB18: 0.007214996979 | BC18: 0.007960941748 | BD18: 0.007300121175 | BE18: 0.01136189063 | BF18: 0.0125252579 | BG18: 0.008164715687 | BH18: 0.009676687746 | BI18: 0.007722494078 | BJ18: 0.0130747276 | BK18: 0.009335137457 | BL18: 0.008984936369 | BM18: 0.011284798 | BN18: 0.01166230164 | BO18: 0.00982464985 | BP18: 0.01245328677 | BQ18: 0.007703738875 | BR18: 0.009565778601 | BS18: 0.008577211998 | BT18: 0.008370420177 | BU18: 0.009184332523 | BV18: 0.007449282083 | BW18: 0.008225912574 | BX18: 0.007823830561 | BY18: 0.009238862965 | BZ18: 0.008055319091 | CA18: 0.01199395337 | CB18: 0.008349352534 | CC18: 0.006219219259 | CD18: 0.01011357421 | CE18: 0.008583602698 | CF18: 0.009701950057 | CG18: 0.008706908013 | CH18: 0.00964907517 | CI18: 0.0104059655 | CJ18: 0.00655704131 | CK18: 0.007663769561 | CL18: 0.008077795257 | CM18: 0.008008438645 | CN18: 0.01168146528 | CO18: 0.007641712414 | CP18: 0.005756472635 | CQ18: 0.008993625399 | CR18: 0.006944383562 | CS18: 0.008626261427 | CT18: 0.01218991543 | CU18: 0.007487938777 | CV18: 0.008196075216 | CW18: 0.01008037166 | CX18: 0.008725505256 | CY18: 0.009057423762 | CZ18: 0.007820849561 | DA18: 0.007623936765 | DB18: 0.008556143675 | DC18: 0.01120250824 | DD18: 0.008762736844 | DE18: 0.01082293078 | DF18: 0.01155601516 | DG18: 0.01333774353 | DH18: 0.00670310426 | DI18: 0.007339578228 | DJ18: 0.008114482167 | DK18: 0.006381996565 | DL18: 0.01091548623 | DM18: 0.007174735438 | DN18: 0.007721140676 | DO18: 0.008619394723 | DP18: 0.006508351233 | DQ18: 0.007005852096 | DR18: 0.009290337845 | DS18: 0.00712320901 | DT18: 0.01042299899 | DU18: 0.01273747624 | DV18: 0.01010084628 | DW18: 0.01026113534 | DX18: 0.0082218383 | DY18: 0.008101071494 | DZ18: 0.007860940038 | EA18: 0.01023105689 | EB18: 0.008431766773 | EC18: 0.01037611282 | ED18: 0.007938910083 | EE18: 0.008850701563 | EF18: 0.008677211607 | EG18: 0.007930604369 | EH18: 0.007920478618 | EI18: 0.01039748346 | EJ18: 0.007463254917 | EK18: 0.008437561995 | EL18: 0.01116267661 | EM18: 0.00632129741 | EN18: 0.00698374833 | EO18: 0.008721013537 | EP18: 0.005771648876 | EQ18: 0.01018292571 | ER18: 0.009831098028 | ES18: 0.01052982262 | ET18: 0.008595946428 | EU18: 0.007549520761 | EV18: 0.005579078127 | EW18: 0.006867473875 | EX18: 0.007980160846 | EY18: 0.009627635361 | EZ18: 0.009144667284 | FA18: 0.008544197307 | FB18: 0.01542480042 | FC18: 0.01044499365 | FD18: 0.00850560754 | FE18: 0.00973125211 | FF18: 0.01214205991 | FG18: 0.007906964294 | FH18: 0.00687481211 | FI18: 0.009114763964 | FJ18: 0.01504397656 | FK18: 0.006663718391 | FL18: 0.00917709299 | FM18: 0.008030302507 | FN18: 0.00869048192 | FO18: 0.008088102499 | FP18: 0.01062159178 | FQ18: 0.006864135825 | FR18: 0.009125446259 | FS18: 0.009429091996 | FT18: 0.008752900427 | FU18: 0.007222154111 | FV18: 0.009795373052 | FW18: 0.01052823536 | FX18: 0.008297762272 | FY18: 0.006967757815 | FZ18: 0.007664040078 | GA18: 0.008475818741 | GB18: 0.007966283552 | GC18: 0.006918990511 | GD18: 0.009027127832 | GE18: 0.007436265961 | GF18: 0.009769161598 | GG18: 0.009476803635 | GH18: 0.01054646986 | GI18: 0.009834810233 | GJ18: 0.008754659999 | GK18: 0.009991466653 | GL18: 0.007623826807 | GM18: 0.007812157952 | GN18: 0.01039233911 | GO18: 0.008546604601 | GP18: 0.007223857326 | GQ18: 0.009679490104 | GR18: 0.01003300937 | GS18: 0.007164978566 | GT18: 0.007310065666 | GU18: 0.00842371914 | GV18: 0.006479543209 | GW18: 0.01194071704 | GX18: 0.006989210415 | GY18: 0.007255473021 | GZ18: 0.007655691755 | HA18: 0.01004283052 | HB18: 0.007774934573 | HC18: 0.01110317742 | HD18: 0.01022044127 | HE18: 0.007291292191 | HF18: 0.006962098473 | HG18: 0.009002425023 | HH18: 0.008008817553 | HI18: 0.007513244751 | HJ18: 0.008360077479 | HK18: 0.01040401789 | HL18: 0.009088773013 | HM18: 0.01016569655 | HN18: 0.009073959116 | HO18: 0.008963649954 | HP18: 0.008850670773 | HQ18: 0.01238519248 | HR18: 0.01244907438 | HS18: 0.01256359665 | HT18: 0.007887805794 | HU18: 0.008042418041 | HV18: 0.0083121972 | HW18: 0.009538470564 | HX18: 0.008363637625 | HY18: 0.009092206037 | HZ18: 0.007147523924 | IA18: 0.008496564901 | IB18: 0.008832821369 | IC18: 0.006570706028 | ID18: 0.01046974624 | IE18: 0.00780690753 | IF18: 0.007266572169 | IG18: 0.007619677558 | IH18: 0.008975794071 | II18: 0.010465148 | IJ18: 0.01063544322 | IK18: 0.007783750966 | IL18: 0.008271198202 | IM18: 0.007329003059 | IN18: 0.009414358328 | IO18: 0.01045162635 | IP18: 0.009259900573 | IQ18: 0.009601432623 | IR18: 0.008546328443 | IS18: 0.008708765814 | IT18: 0.006434314557 | IU18: 0.008578364304 | IV18: 0.007875381963 | IW18: 0.008421719648 | IX18: 0.009651112085 | IY18: 0.007318120675 | IZ18: 0.00973292311 | JA18: 0.006443131692 | JB18: 0.009731017747 | JC18: 0.01431431168 | JD18: 0.006577565269 | JE18: 0.007379421825 | JF18: 0.008378512436 | JG18: 0.007021794139 | JH18: 0.007752069416 | JI18: 0.009438067995 | JJ18: 0.007252702858 | JK18: 0.009217782959 | JL18: 0.00895045551 | JM18: 0.006896498748 | JN18: 0.01193493281 | JO18: 0.006749051646 | JP18: 0.007928538691 | JQ18: 0.00997373775 | JR18: 0.01257252211 | JS18: 0.01016663173 | JT18: 0.009038776641 | JU18: 0.007550381983 | JV18: 0.008559207306 | JW18: 0.009667953596 | JX18: 0.006786550391 | JY18: 0.01088490947 | JZ18: 0.01229168631 | KA18: 0.007615748632 | KB18: 0.007017999117 | KC18: 0.007818994067 | KD18: 0.009571972645 | KE18: 0.009064353217 | KF18: 0.008543231672 | KG18: 0.01791068276 | KH18: 0.008259309182 | KI18: 0.00998578926 | KJ18: 0.009410590884 | KK18: 0.00736318118 | KL18: 0.008586109462 | KM18: 0.01070109519 | KN18: 0.01088652622 | KO18: 0.009240707068 | KP18: 0.007654920496 | KQ18: 0.007158616041 | KR18: 0.006812316573 | KS18: 0.00616872035 | KT18: 0.008031598892 | KU18: 0.007345865392 | KV18: 0.008748154228 | KW18: 0.007847391769 | KX18: 0.01168924939 | KY18: 0.008623451584 | KZ18: 0.007284124388 | LA18: 0.01228952546 | LB18: 0.007556379714 | LC18: 0.0091467186 | LD18: 0.00927511659 | LE18: 0.009393661593 | LF18: 0.007157890775 | LG18: 0.009161318363 | LH18: 0.006349734894 | LI18: 0.00862707339 | LJ18: 0.007738154511 | LK18: 0.006396285736 | LL18: 0.009233556352 | LM18: 0.007841681505 | LN18: 0.00802999549 | LO18: 0.009799446908 | LP18: 0.01069099789 | LQ18: 0.01021360203 | LR18: 0.007694892467 | LS18: 0.007553844359 | LT18: 0.008211550948 | LU18: 0.01544383356 | LV18: 0.007387523203 | LW18: 0.008216701259 | LX18: 0.0124938599 | LY18: 0.007906059639 | LZ18: 0.008504998519 | MA18: 0.008661023716 | MB18: 0.008012678424 | MC18: 0.009796687113 | MD18: 0.006709172208 | ME18: 0.008621613876 | MF18: 0.009766188623 | MG18: 0.007316390123 | MH18: 0.008173880258 | MI18: 0.006934657045 | MJ18: 0.009321299112 | MK18: 0.009911033217 | ML18: 0.008526173015 | MM18: 0.008036112202 | MN18: 0.008361763985 | MO18: 0.008363216477 | MP18: 0.008036139107 | MQ18: 0.007474339161 | MR18: 0.009673022516 | MS18: 0.01531901413 | MT18: 0.007388384248 | MU18: 0.007342636772 | MV18: 0.0115084414 | MW18: 0.01127486687 | MX18: 0.00748071997 | MY18: 0.007091945407 | MZ18: 0.006847185148 | NA18: 0.008304992625 | NB18: 0.00764161413 | NC18: 0.009255410418 | ND18: 0.006906758855 | NE18: 0.007200762181 | NF18: 0.008839674431 | NG18: 0.01053446515 | NH18: 0.01016250913 | NI18: 0.007601450755 | NJ18: 0.007097928482 | NK18: 0.008786800073 | NL18: 0.01348687945 | NM18: 0.006338383813 | NN18: 0.008561718589 | NO18: 0.008120278494 | NP18: 0.01366732173 | NQ18: 0.008565740622 | NR18: 0.01209505203 | NS18: 0.009488206842 | NT18: 0.009349154807 | NU18: 0.009838238703 | NV18: 0.009910598439 | NW18: 0.01220777549 | NX18: 0.009098595609 | NY18: 0.01190168555 | NZ18: 0.009853578582 | OA18: 0.008209157323 | OB18: 0.01516775483 | OC18: 0.009189145888 | OD18: 0.008501887109 | OE18: 0.008892755782 | OF18: 0.009456742544 | OG18: 0.009409927178 | OH18: 0.008769396976 | OI18: 0.00733477895 | OJ18: 0.01199478429 | OK18: 0.01108872035 | OL18: 0.009098419169 | OM18: 0.008433175461 | ON18: 0.007875067918 | OO18: 0.008630119135 | OP18: 0.009243454838 | OQ18: 0.00757920207 | OR18: 0.008839199254 | OS18: 0.00743117788 | OT18: 0.008880171348 | OU18: 0.008573890699 | OV18: 0.007282820369 | OW18: 0.006585824174 | OX18: 0.007616701316 | OY18: 0.008273167247 | OZ18: 0.01028402871 | PA18: 0.01357686287 | PB18: 0.008614074971 | PC18: 0.0081578138 | PD18: 0.008964752341 | PE18: 0.01042710373 | PF18: 0.008131222593 | PG18: 0.006169620686 | PH18: 0.006383948335 | PI18: 0.006237514398 | PJ18: 0.008800713737 | PK18: 0.007848572101 | PL18: 0.009296220526 | PM18: 0.007592870269 | PN18: 0.01271174268 | PO18: 0.008224139014 | PP18: 0.007718486509 | PQ18: 0.01075339927 | PR18: 0.009995502844 | PS18: 0.005637584625 | PT18: 0.00769760486 | PU18: 0.008229367104 | PV18: 0.009105655668 | PW18: 0.008419681649 | PX18: 0.01058493884 | PY18: 0.009137807904 | PZ18: 0.01060479212 | QA18: 0.007008353876 | QB18: 0.009165502233 | QC18: 0.01042771623 | QD18: 0.00715843922 | QE18: 0.008425405135 | QF18: 0.009106846305 | QG18: 0.01155598858 | QH18: 0.008685057182 | QI18: 0.008237151379 | QJ18: 0.009018914769 | QK18: 0.008687234254 | QL18: 0.007160301669 | QM18: 0.008409663815 | QN18: 0.00851918987 | QO18: 0.008361392757 | QP18: 0.007411210426 | QQ18: 0.008448040801 | QR18: 0.008680068959 | QS18: 0.009056332448 | QT18: 0.009719552991 | QU18: 0.008520784768 | QV18: 0.006184653199 | QW18: 0.007643716464 | QX18: 0.008710184693 | QY18: 0.01119046955 | QZ18: 0.01057516474 | RA18: 0.007725741507 | RB18: 0.007981423458 | RC18: 0.008130528512 | RD18: 0.009294157996 | RE18: 0.009128629196 | RF18: 0.007571058467 | RG18: 0.0108052691 | RH18: 0.00818970972 | RI18: 0.01401722577 | RJ18: 0.006795635139 | RK18: 0.01487628217 | RL18: 0.007124625167 | RM18: 0.007821974229 | RN18: 0.01164758252 | RO18: 0.008772414193 | RP18: 0.009367542176 | RQ18: 0.008730068887 | RR18: 0.01079305754 | RS18: 0.01022184631 | RT18: 0.008276130313 | RU18: 0.00930513669 | RV18: 0.009559825252 | RW18: 0.007533568484 | RX18: 0.008189080679 | RY18: 0.007020393085 | RZ18: 0.007697152348 | SA18: 0.008660427376 | SB18: 0.007418325873 | SC18: 0.008218764652 | SD18: 0.007171501211 | SE18: 0.008443507997 | SF18: 0.007558044578 | SG18: 0.008969356041 | SH18: 0.007151171149 | SI18: 0.007205494611 | SJ18: 0.007791661435 | SK18: 0.008188330739 | SL18: 0.01014906883 | SM18: 0.007171785307 | SN18: 0.01132099823 | SO18: 0.008293028001 | SP18: 0.008042092432 | SQ18: 0.00763810979 | SR18: 0.006603398761 | SS18: 0.008433298325 | ST18: 0.007981931138 | SU18: 0.00886386455 | SV18: 0.007761019143 | SW18: 0.008254471128 | SX18: 0.00682101278 | SY18: 0.00938672216 | SZ18: 0.01159219833 | TA18: 0.00646467842 | TB18: 0.008191324675 | TC18: 0.008424903331 | TD18: 0.006911054352 | TE18: 0.00894437773 | TF18: 0.008139347836 | TG18: 0.007742162807 | TH18: 0.01015529084 | TI18: 0.00780569337 | TJ18: 0.009695516659 | TK18: 0.0115942099 | TL18: 0.01208755944 | TM18: 0.007259325015 | TN18: 0.007811109667 | TO18: 0.006711762758 | TP18: 0.01214507477 | TQ18: 0.008960587773 | TR18: 0.009465989128 | TS18: 0.01244022679 | TT18: 0.01058834647 | TU18: 0.01175364282 | TV18: 0.01085440341 | TW18: 0.009662605489 | TX18: 0.01029837808 | TY18: 0.008718346651 | TZ18: 0.007235564325 | UA18: 0.01347003885 | UB18: 0.007914632668 | UC18: 0.01012351336 | UD18: 0.01137875492 | UE18: 0.009572835743 | UF18: 0.01457502754 | UG18: 0.01395127366
